Workbook

Sheet version notes
B3: Version No. | C3: Release Date | D3: Comments
B4: 23 | D4: Same calculations as version 22. Expanded data input range to allow up to 30 charge-depleting cycles. Updated label inputs (fuel prices, ratings scales, etc.) for 2018 model year based on EPA guidance. Some text changes to improve clarity.
B5: 24 | D5: Found an error in some of the calculations for multiple test sets. These calculations referenced the transition cycle for the first test set, instead of the current test set. This would only impact the unusual situation where the transition cycle differed across test sets.
B6: 25 | C6: 2017-12-27 | D6: Fixed an error where the 5-cycle adjustment (0.7 or derived 5-cycle result) was incompletely propogated throughout the charge-depleting calculations. The impact on label values should be none to very minor, affecting only those vehicles that would have been able to use an adjustment for the transition cycle that differs from 0.7. This does not happen often. Fixed an error in the calculation of the unadjusted highway electricity Kw-Hr/100 miles, where the calculation was referencing the charge-depleting fraction from the city schedule. This does not affect any label values, only values put on the web in the online spreadsheets. Revised the calculation of all-electric range. Previous versions summed the distances of all-electric cycles without attention to whether the first cycle was all-electric. Thus PHEVs with no all-electric range could have appeared to have an all-electric range. You should, of course, continue to override this estimate with the actual range recorded from the test, if available. Improved the ability to look at all-electric range and determine whether or not a PHEV is eligible for CAFE dual fuel vehicle calculations. Corrected an error in the Average New Vehicle 5-Year Fuel Cost for model year 2018. The correct value is $6,750, per EPA guidance CD-16-18. Added label inputs - fuel prices, ratings scales, etc. - for the 2019 model year. From EPA guidance letter cd-17-18. Added error-checking where CREE will not be calculated without both charge-depleting and charge-sustaining CREE data. Fixed some cell references in Test Set #2 and #3 cost per mile calculations where formulae inadvertently referred to Test Set #1 test data.
B7: 26a | C7: 2019-05-31 | D7: Added some conditional formatting to visualize non-default values entered by users. For example, fuel density and heating value. Corrected the equation in cell F84, for Hwy2 Unadj FE - Alternative Fuel. There was a cell referencing error that could possible affect vehilces with multiple highway tests. This does not affect CAFE, GHG, or label values. Added the capability to use Deterioration Factors (DF) for CREE values. Because City and HIghway values are submitted via a table in Verify, at this point a DF must be applied separately to each value, thus adjusting each value with a DF. The user may enter different City and Highway DFs. Equations were changed to perform rounding consistent with EV-CIS rounding. Superfluous values were removed. Default method for calculating Zn is now using Amp-hours, per the regulations. This is also designed into the EV-CIS calculations. Calculated intermediate values were rearranged to consolidate those values calculated specifically and solely from charge-depleting test data. Those values requiring charge-sustaining or other inputs are grouped separately. Similar metrics are now grouped together. Increased the number of charge-depleting cycles accommodated by the calculator tp 35. Explanetory comments have been added to many of the inputs and calculated parameters.
B8: 26b | C8: 2019-08-15 | D8: Changed release date of v26a above from "TBD" to May 31, 2019. Added cell borders to charge-sustaining input section. Amended formulae for "CD AC electricity consumption rate (Rcda), adjusted" to round the kW-hr input to 4 decimal places; was previously rounded to 1 decimal. Changed cell F23 (combind CD electricity consumption) to be rounded to 4 decimal places. Was prevoiusly rounded to one decimal. Correct an error in cells D23 and E23. Values need to be multiplied by 100.
D9: Corrected cell references in cells D15 and E15.
D10: Changed the rounding of label cit and highway Killowatt-hours per 100 miles to 3 decimal places. Previously was rounded to 4 decimals.
B11: 26c | C11: 2019-10-10 | D11: Added 2020 model year label inputs. See guidance document CD-18-13, 12/17/2018.
D12: Revised these version notes to reflect the current state of the calculator.
D13: Removed values from the blank version of the template.
B14: 26d | C14: 2020-01-08 | D14: Added 2021 model year label inputs. See guidance document CD-19-13 (Dec. 16, 2019).

Sheet Label Inputs
B2: LABEL INPUTS: FROM EPA GUIDANCE LETTERS APPLICABLE TO THE APPROPRIATE MODEL YEAR
B3: Fuel Prices | M3: Average New Vehicle Fuel Economy | R3: Average New Vehicle 5-Year Fuel Cost | W3: MPG Rating | AB3: GHG Rating
B4: Model Year | C4: Regular Unleaded | D4: Mid-Grade Unleaded | E4: Premium Unleaded | F4: Diesel | G4: E85 | H4: LPG | I4: CNG | J4: Electricity | K4: Hydrogen | M4: Model Year | N4: MPG | R4: Model Year | S4: 5-Year Cost | W4: Model Year | X4: Min | Y4: Max | Z4: Rating | AB4: Model Year | AC4: Min | AD4: Max | AE4: Rating
B5: 2011 | C5: 3 | D5: 3.1 | E5: 3.2 | F5: 3.1 | G5: 2.6 | I5: 1.9 | J5: 0.11 | M5: 2011 | N5: NA | R5: 2011 | S5: NA | W5: 2016 | X5: 0 | Y5: 13 | Z5: 1 | AB5: 2016 | AC5: 659 | AE5: 1
B6: 2012 | C6: 3.7 | D6: 3.85 | E6: 3.95 | F6: 3.95 | G6: 3.25 | I6: 2.15 | J6: 0.12 | M6: 2012 | N6: NA | R6: 2012 | S6: NA | W6: 2016 | X6: 14 | Y6: 15 | Z6: 2 | AB6: 2016 | AC6: 574 | AD6: 658 | AE6: 2
B7: 2013 | C7: 3.55 | D7: 3.65 | E7: 3.8 | F7: 3.8 | G7: 3.1 | I7: 2 | J7: 0.12 | M7: 2013 | N7: 23 | R7: 2013 | S7: 11600 | W7: 2016 | X7: 16 | Y7: 17 | Z7: 3 | AB7: 2016 | AC7: 509 | AD7: 573 | AE7: 3
B8: 2014 | C8: 3.5 | D8: 3.6 | E8: 3.75 | F8: 3.85 | G8: 3.1 | I8: 2 | J8: 0.12 | M8: 2014 | N8: 23 | R8: 2014 | S8: 11500 | W8: 2016 | X8: 18 | Y8: 20 | Z8: 4 | AB8: 2016 | AC8: 435 | AD8: 508 | AE8: 4
B9: 2015 | C9: 3.5 | D9: 3.65 | E9: 3.8 | F9: 3.75 | G9: 3.1 | I9: 2 | J9: 0.12 | M9: 2015 | N9: 24 | R9: 2015 | S9: 11000 | W9: 2016 | X9: 21 | Y9: 24 | Z9: 5 | AB9: 2016 | AC9: 364 | AD9: 434 | AE9: 5
B10: 2016 | C10: 3 | D10: 3.15 | E10: 3.3 | F10: 3.35 | G10: 2.6 | I10: 1.55 | J10: 0.13 | M10: 2016 | N10: 25 | R10: 2016 | S10: 9000 | W10: 2016 | X10: 25 | Y10: 27 | Z10: 6 | AB10: 2016 | AC10: 324 | AD10: 363 | AE10: 6
B11: 2017 | C11: 2.45 | D11: 2.65 | E11: 2.8 | F11: 2.75 | G11: 2.05 | I11: 2.1 | J11: 0.13 | M11: 2017 | N11: 26 | R11: 2017 | S11: 7000 | W11: 2016 | X11: 28 | Y11: 31 | Z11: 7 | AB11: 2016 | AC11: 283 | AD11: 323 | AE11: 7
B12: 2018 | C12: 2.4 | D12: 2.6 | E12: 2.8 | F12: 2.65 | G12: 1.95 | I12: 2.1 | J12: 0.13 | M12: 2018 | N12: 27 | R12: 2018 | S12: 6750 | W12: 2016 | X12: 32 | Y12: 37 | Z12: 8 | AB12: 2016 | AC12: 238 | AD12: 282 | AE12: 8
B13: 2019 | C13: 2.55 | D13: 2.8 | E13: 3 | F13: 2.85 | G13: 2.15 | I13: 2.1 | J13: 0.13 | M13: 2019 | N13: 27 | R13: 2019 | S13: 7000 | W13: 2016 | X13: 38 | Y13: 45 | Z13: 9 | AB13: 2016 | AC13: 196 | AD13: 237 | AE13: 9
B14: 2020 | C14: 2.7 | D14: 3 | E14: 3.25 | F14: 3.15 | G14: 2.3 | I14: 2.1 | J14: 0.13 | M14: 2020 | N14: 27 | R14: 2020 | S14: 7500 | W14: 2016 | X14: 46 | Y14: 99999 | Z14: 10 | AB14: 2016 | AC14: 0 | AD14: 195 | AE14: 10
B15: 2021 | C15: 2.7 | D15: 3 | E15: 3.25 | F15: 3 | G15: 2.25 | I15: 2.15 | J15: 0.13 | M15: 2021 | N15: 27 | R15: 2021 | S15: 7500 | W15: 2017 | X15: 0 | Y15: 14 | Z15: 1 | AB15: 2017 | AC15: 614 | AE15: 1
B16: 2022 | M16: 2022 | R16: 2022 | W16: 2017 | X16: 15 | Y16: 16 | Z16: 2 | AB16: 2017 | AC16: 540 | AD16: 613 | AE16: 2
B17: 2023 | M17: 2023 | R17: 2023 | W17: 2017 | X17: 17 | Y17: 18 | Z17: 3 | AB17: 2017 | AC17: 481 | AD17: 539 | AE17: 3
B18: 2024 | M18: 2024 | R18: 2024 | W18: 2017 | X18: 19 | Y18: 21 | Z18: 4 | AB18: 2017 | AC18: 414 | AD18: 480 | AE18: 4
B19: 2025 | M19: 2025 | R19: 2025 | W19: 2017 | X19: 22 | Y19: 25 | Z19: 5 | AB19: 2017 | AC19: 350 | AD19: 413 | AE19: 5
W20: 2017 | X20: 26 | Y20: 28 | Z20: 6 | AB20: 2017 | AC20: 313 | AD20: 349 | AE20: 6
W21: 2017 | X21: 29 | Y21: 32 | Z21: 7 | AB21: 2017 | AC21: 274 | AD21: 312 | AE21: 7
W22: 2017 | X22: 33 | Y22: 37 | Z22: 8 | AB22: 2017 | AC22: 238 | AD22: 273 | AE22: 8
W23: 2017 | X23: 38 | Y23: 43 | Z23: 9 | AB23: 2017 | AC23: 205 | AD23: 237 | AE23: 9
W24: 2017 | X24: 44 | Y24: 99999 | Z24: 10 | AB24: 2017 | AC24: 0 | AD24: 204 | AE24: 10
W25: 2018 | X25: 0 | Y25: 14 | Z25: 1 | AB25: 2018 | AC25: 614 | AE25: 1
W26: 2018 | X26: 15 | Y26: 16 | Z26: 2 | AB26: 2018 | AC26: 540 | AD26: 613 | AE26: 2
W27: 2018 | X27: 17 | Y27: 19 | Z27: 3 | AB27: 2018 | AC27: 457 | AD27: 539 | AE27: 3
W28: 2018 | X28: 20 | Y28: 22 | Z28: 4 | AB28: 2018 | AC28: 396 | AD28: 456 | AE28: 4
W29: 2018 | X29: 23 | Y29: 26 | Z29: 5 | AB29: 2018 | AC29: 336 | AD29: 395 | AE29: 5
W30: 2018 | X30: 27 | Y30: 29 | Z30: 6 | AB30: 2018 | AC30: 302 | AD30: 335 | AE30: 6
W31: 2018 | X31: 30 | Y31: 32 | Z31: 7 | AB31: 2018 | AC31: 274 | AD31: 301 | AE31: 7
W32: 2018 | X32: 33 | Y32: 37 | Z32: 8 | AB32: 2018 | AC32: 238 | AD32: 273 | AE32: 8
W33: 2018 | X33: 38 | Y33: 43 | Z33: 9 | AB33: 2018 | AC33: 205 | AD33: 237 | AE33: 9
W34: 2018 | X34: 44 | Y34: 99999 | Z34: 10 | AB34: 2018 | AC34: 0 | AD34: 204 | AE34: 10
W35: 2019 | X35: 0 | Y35: 14 | Z35: 1 | AB35: 2019 | AC35: 614 | AE35: 1
W36: 2019 | X36: 15 | Y36: 16 | Z36: 2 | AB36: 2019 | AC36: 540 | AD36: 613 | AE36: 2
W37: 2019 | X37: 17 | Y37: 19 | Z37: 3 | AB37: 2019 | AC37: 457 | AD37: 539 | AE37: 3
W38: 2019 | X38: 20 | Y38: 22 | Z38: 4 | AB38: 2019 | AC38: 396 | AD38: 456 | AE38: 4
W39: 2019 | X39: 23 | Y39: 26 | Z39: 5 | AB39: 2019 | AC39: 336 | AD39: 395 | AE39: 5
W40: 2019 | X40: 27 | Y40: 29 | Z40: 6 | AB40: 2019 | AC40: 302 | AD40: 335 | AE40: 6
W41: 2019 | X41: 30 | Y41: 32 | Z41: 7 | AB41: 2019 | AC41: 274 | AD41: 301 | AE41: 7
W42: 2019 | X42: 33 | Y42: 37 | Z42: 8 | AB42: 2019 | AC42: 238 | AD42: 273 | AE42: 8
W43: 2019 | X43: 38 | Y43: 43 | Z43: 9 | AB43: 2019 | AC43: 205 | AD43: 237 | AE43: 9
W44: 2019 | X44: 44 | Y44: 99999 | Z44: 10 | AB44: 2019 | AC44: 0 | AD44: 204 | AE44: 10
W45: 2020 | X45: 0 | Y45: 14 | Z45: 1 | AB45: 2020 | AC45: 614 | AE45: 1
W46: 2020 | X46: 15 | Y46: 16 | Z46: 2 | AB46: 2020 | AC46: 540 | AD46: 613 | AE46: 2
W47: 2020 | X47: 17 | Y47: 19 | Z47: 3 | AB47: 2020 | AC47: 457 | AD47: 539 | AE47: 3
W48: 2020 | X48: 20 | Y48: 22 | Z48: 4 | AB48: 2020 | AC48: 396 | AD48: 456 | AE48: 4
W49: 2020 | X49: 23 | Y49: 26 | Z49: 5 | AB49: 2020 | AC49: 336 | AD49: 395 | AE49: 5
W50: 2020 | X50: 27 | Y50: 29 | Z50: 6 | AB50: 2020 | AC50: 302 | AD50: 335 | AE50: 6
W51: 2020 | X51: 30 | Y51: 33 | Z51: 7 | AB51: 2020 | AC51: 266 | AD51: 301 | AE51: 7
W52: 2020 | X52: 34 | Y52: 38 | Z52: 8 | AB52: 2020 | AC52: 232 | AD52: 265 | AE52: 8
W53: 2020 | X53: 39 | Y53: 44 | Z53: 9 | AB53: 2020 | AC53: 201 | AD53: 231 | AE53: 9
W54: 2020 | X54: 45 | Y54: 99999 | Z54: 10 | AB54: 2020 | AC54: 0 | AD54: 200 | AE54: 10
W55: 2021 | X55: 0 | Y55: 14 | Z55: 1 | AB55: 2021 | AC55: 614 | AE55: 1
W56: 2021 | X56: 15 | Y56: 16 | Z56: 2 | AB56: 2021 | AC56: 540 | AD56: 613 | AE56: 2
W57: 2021 | X57: 17 | Y57: 19 | Z57: 3 | AB57: 2021 | AC57: 457 | AD57: 539 | AE57: 3
W58: 2021 | X58: 20 | Y58: 22 | Z58: 4 | AB58: 2021 | AC58: 396 | AD58: 456 | AE58: 4
W59: 2021 | X59: 23 | Y59: 26 | Z59: 5 | AB59: 2021 | AC59: 336 | AD59: 395 | AE59: 5
W60: 2021 | X60: 27 | Y60: 30 | Z60: 6 | AB60: 2021 | AC60: 292 | AD60: 335 | AE60: 6
W61: 2021 | X61: 31 | Y61: 35 | Z61: 7 | AB61: 2021 | AC61: 251 | AD61: 291 | AE61: 7
W62: 2021 | X62: 36 | Y62: 42 | Z62: 8 | AB62: 2021 | AC62: 210 | AD62: 250 | AE62: 8
W63: 2021 | X63: 43 | Y63: 52 | Z63: 9 | AB63: 2021 | AC63: 170 | AD63: 209 | AE63: 9
W64: 2021 | X64: 53 | Y64: 99999 | Z64: 10 | AB64: 2021 | AC64: 0 | AD64: 169 | AE64: 10
W65: 2022 | Z65: 1 | AB65: 2022 | AE65: 1
W66: 2022 | Z66: 2 | AB66: 2022 | AE66: 2
W67: 2022 | Z67: 3 | AB67: 2022 | AE67: 3
W68: 2022 | Z68: 4 | AB68: 2022 | AE68: 4
W69: 2022 | Z69: 5 | AB69: 2022 | AE69: 5
W70: 2022 | Z70: 6 | AB70: 2022 | AE70: 6
W71: 2022 | Z71: 7 | AB71: 2022 | AE71: 7
W72: 2022 | Z72: 8 | AB72: 2022 | AE72: 8
W73: 2022 | Z73: 9 | AB73: 2022 | AE73: 9
W74: 2022 | Z74: 10 | AB74: 2022 | AE74: 10
W75: 2023 | Z75: 1 | AB75: 2023 | AE75: 1
W76: 2023 | Z76: 2 | AB76: 2023 | AE76: 2
W77: 2023 | Z77: 3 | AB77: 2023 | AE77: 3
W78: 2023 | Z78: 4 | AB78: 2023 | AE78: 4
W79: 2023 | Z79: 5 | AB79: 2023 | AE79: 5
W80: 2023 | Z80: 6 | AB80: 2023 | AE80: 6
W81: 2023 | Z81: 7 | AB81: 2023 | AE81: 7
W82: 2023 | Z82: 8 | AB82: 2023 | AE82: 8
W83: 2023 | Z83: 9 | AB83: 2023 | AE83: 9
W84: 2023 | Z84: 10 | AB84: 2023 | AE84: 10
W85: 2024 | Z85: 1 | AB85: 2024 | AE85: 1
W86: 2024 | Z86: 2 | AB86: 2024 | AE86: 2
W87: 2024 | Z87: 3 | AB87: 2024 | AE87: 3
W88: 2024 | Z88: 4 | AB88: 2024 | AE88: 4
W89: 2024 | Z89: 5 | AB89: 2024 | AE89: 5
W90: 2024 | Z90: 6 | AB90: 2024 | AE90: 6
W91: 2024 | Z91: 7 | AB91: 2024 | AE91: 7
W92: 2024 | Z92: 8 | AB92: 2024 | AE92: 8
W93: 2024 | Z93: 9 | AB93: 2024 | AE93: 9
W94: 2024 | Z94: 10 | AB94: 2024 | AE94: 10
W95: 2025 | Z95: 1 | AB95: 2025 | AE95: 1
W96: 2025 | Z96: 2 | AB96: 2025 | AE96: 2
W97: 2025 | Z97: 3 | AB97: 2025 | AE97: 3
W98: 2025 | Z98: 4 | AB98: 2025 | AE98: 4
W99: 2025 | Z99: 5 | AB99: 2025 | AE99: 5
W100: 2025 | Z100: 6 | AB100: 2025 | AE100: 6
W101: 2025 | Z101: 7 | AB101: 2025 | AE101: 7
W102: 2025 | Z102: 8 | AB102: 2025 | AE102: 8
W103: 2025 | Z103: 9 | AB103: 2025 | AE103: 9
W104: 2025 | Z104: 10 | AB104: 2025 | AE104: 10

Sheet Calculator with sample data
B1: ENTER/REPLACE DATA IN GREEN CELLS ONLY!
B3: CALCULATED CAFE, GHG, AND LABEL VALUES | I3: ENTER BASIC VEHICLE INFORMATION HERE | M3: Test Set #1 | AI3: Results from Test Set #1: | AJ3: =N6 -> Normal Mode | AO3: INTERMEDIATE CALCULATIONS AND INPUTS | AQ3: Test Set #1: | AR3: =N6 -> Normal Mode
C4: CAFE Values | I4: Vehicle Information | AI4: CAFE Values | AO4: Charge-Depleting (CD) Test Results | AV4: DETAILED CALCULATIONS | AX4: UDDS | AY4: =$AR3 -> Normal Mode | BW4: DETAILED CALCULATIONS | BY4: HFET | BZ4: =$AR3 -> Normal Mode
B5: ü | C5: A. PHEV meets dual fuel criteria: | D5: City | E5: Highway | F5: Combined | I5: Model year: | J5: 2020 | Q5: ENTER CHARGE-DEPLETING UDDS (CITY) DATA HERE | Y5: ENTER CHARGE-DEPLETING HFET (HIGHWAY) DATA HERE | AI5: A. PHEV meets dual fuel criteria: | AJ5: City | AK5: Highway | AL5: Combined | AP5: DRIVING DISTANCE VALUES | AQ5: CITY | AR5: HIGHWAY | AV5: Cycle No. | AW5: Gasoline Consumed | AX5: CO2 [0] | AY5: Net Amp-Hours Used Per Cycle [3] | AZ5: DC Electricity Consumed [1] | BA5: AC Electricity Consumed [1] | BB5: Theoretical Cumulative Cycle Distance | BC5: Electric Only Fuel Consumption Rate | BD5: Total Fuel Consumption Rate (gas + electric) | BE5: 55/45 City Fleet Utility Factor [3] | BF5: 55/45 City FUF x CREE | BG5: 55/45 City FUF x Total Consumption | BH5: Total Fuel Consumption (gas + electric) | BI5: 5-Cycle Adjustment | BJ5: Adjusted Cycle Measured Distance | BK5: Adjusted Cycle Theoretical Cumulative Distance | BL5: MDIUF [3] | BM5: MDIUF x Adjusted CO2 | BN5: MDIUF x Adjusted Total Fuel Consumption | BO5: 43/57 City Fleet Utility Factor [3] | BP5: 43/57 City FUF x Adjusted Total Fuel Consumption Rate | BQ5: 43/57 City FUF x Adjusted CREE | BR5: Is Cycle CD or CS based on NEC 1% Tolerance? | BS5: NEC Tolerance 1% Fuel Energy Criteria | BT5: Is Cycle CD or CS based on battery 2% Tolerance? | BU5: NEC Tolerance 2% Usable Battery Energy Criteria | BW5: Cycle No. | BX5: Gasoline Consumed | BY5: CO2 [0] | BZ5: Net Amp-Hours Used Per Cycle [3] | CA5: DC Electricity Consumed [1] | CB5: AC Electricity Consumed [1] | CC5: Theoretical Cumulative Cycle Distance | CD5: Electric Only Fuel Consumption Rate | CE5: Total Fuel Consumption Rate (gas + electric) | CF5: 55/45 Highway Fleet Utility Factor [3] | CG5: 55/45 Highway FUF x CREE | CH5: 55/45 Highway FUF x Total Consumption | CI5: Total Fuel Consumption (gas + electric) | CJ5: 5-Cycle Adjustment | CK5: Adjusted Cycle Measured Distance | CL5: Adjusted Cycle Theoretical Cumulative Distance | CM5: MDIUF [3] | CN5: MDIUF x Adjusted CO2 | CO5: MDIUF x Adjusted Total Fuel Consumption | CP5: 43/57 Highway Fleet Utility Factor [3] | CQ5: 43/57 Highway FUF x Adjusted Total Fuel Consumption Rate | CR5: 43/57 Highway FUF x Adjusted CREE | CS5: Is Cycle CD or CS based on NEC 1% Tolerance? | CT5: NEC Tolerance 1% Fuel Energy Criteria | CU5: Is Cycle CD or CS based on battery 2% Tolerance? | CV5: NEC Tolerance 2% Usable Battery Energy Criteria
B6: → | C6: 1. Default 50/50 Composite MPGe | D6: =IF($N$7+$N$55+$N$103=0, ((AJ6<>0)+(AJ54<>0)+(AJ102<>0))/(IFERROR(1/AJ6,0)+IFERROR(1/AJ54,0)+IFERROR(1/AJ102,0)), ($N$7+$N$55+$N$103) / (IFERROR($N$7/AJ6,0)+IFERROR($N$55/AJ54,0)+IFERROR($N$103/AJ102,0)) ) -> 66.0616 | E6: =IF($N$7+$N$55+$N$103=0, ((AK6<>0)+(AK54<>0)+(AK102<>0))/(IFERROR(1/AK6,0)+IFERROR(1/AK54,0)+IFERROR(1/AK102,0)), ($N$7+$N$55+$N$103) / (IFERROR($N$7/AK6,0)+IFERROR($N$55/AK54,0)+IFERROR($N$103/AK102,0)) ) -> 81.8662 | F6: =astm(1/(0.55/D6+0.45/E6),4) -> 72.3467 | G6: ← | I6: Vehicle category: | J6: PV | M6: Test Set name (e.g., Eco, Power): | N6: Normal Mode | Q6: Cycle No. | R6: Cycle/Phase Measured Distance | S6: Integrated Amp-Hours Electricity Used | T6: Average Cycle Voltage | U6: Fuel Economy | V6: CO2 | W6: CREE | Y6: Cycle No. | Z6: Cycle/Phase Measured Distance | AA6: Integrated Amp-Hours Electricity Used | AB6: Average Cycle Voltage | AC6: Fuel Economy | AD6: CO2 | AE6: CREE | AI6: 1. Default 50/50 Composite MPGe [4] | AJ6: =IFERROR(astm(1/(0.5/( ( $J$18 ) /(AQ11/AQ37))+0.5/N11),4),0) -> 66.0616 | AK6: =IFERROR(astm(1/(0.5/( ( $J$18 ) /(AR11/AR37))+0.5/O11),4),0) -> 81.8662 | AL6: =IFERROR(astm(1/(0.55/AJ6+0.45/AK6),4),0) -> 72.3467 | AP6: CD driving distance (Rcda), unadjusted (miles) [3] | AQ6: =IFERROR(astm(SUMIF(Q11:Q45,"<=" & ($AQ34-1),R11:R45) + AQ33*VLOOKUP($AQ34,Q11:R45,2,FALSE),3),0) -> 28.259 | AR6: =IFERROR(astm(SUMIF(Y11:Y45,"<=" & ($AR34-1),Z11:Z45) + AR33*VLOOKUP($AR34,Y11:Z45,2,FALSE),3),0) -> 41.012
B7: → | C7: 2. Optional Utility Factor Composite MPGe | D7: =IF($N$7+$N$55+$N$103=0, ((AJ7<>0)+(AJ55<>0)+(AJ103<>0))/(IFERROR(1/AJ7,0)+IFERROR(1/AJ55,0)+IFERROR(1/AJ103,0)), ($N$7+$N$55+$N$103) / (IFERROR($N$7/AJ7,0)+IFERROR($N$55/AJ55,0)+IFERROR($N$103/AJ103,0)) ) -> 84.2373 | E7: =IF($N$7+$N$55+$N$103=0, ((AK7<>0)+(AK55<>0)+(AK103<>0))/(IFERROR(1/AK7,0)+IFERROR(1/AK55,0)+IFERROR(1/AK103,0)), ($N$7+$N$55+$N$103) / (IFERROR($N$7/AK7,0)+IFERROR($N$55/AK55,0)+IFERROR($N$103/AK103,0)) ) -> 74.5373 | F7: =astm(1/(0.55/D7+0.45/E7),4) -> 79.5772 | G7: ← | I7: Manufacturer name: | J7: PHEVs-R-Us | M7: Production Volume (projected or actual): | AI7: 2. Optional Utility Factor Composite MPGe [4] | AJ7: =IFERROR(astm(1/( AQ40 / ( ( $J$18 ) / (AQ11/AQ37)) + (1-AQ40)/N11), 4),0) -> 84.2373 | AK7: =IFERROR(astm(1/( AR40 / ( ( $J$18 ) / (AR11/AR37)) + (1-AR40)/O11), 4),0) -> 74.5373 | AL7: =IFERROR(astm(1/(0.55/AJ7+0.45/AK7),4),0) -> 79.5772 | AP7: CD driving distance (Rcda), adjusted (miles) [3] | AQ7: =IFERROR(astm(SUMIF(AV11:AV45,"<"&AQ34,BJ11:BJ45)+AQ33*SUMIF(AV11:AV45,"="&AQ34,BJ11:BJ45),3),0) -> 19.781 | AR7: =IFERROR(astm(SUMIF(BW11:BW45,"<"&AR34,CK11:CK45)+AR33*SUMIF(BW11:BW45,"="&AR34,CK11:CK45),3),0) -> 28.716
B8: þ | C8: B. PHEV does NOT meet dual fuel criteria: | D8: City | E8: Highway | F8: Combined | I8: Model name: | J8: PHEV1 | AI8: B. PHEV does NOT meet dual fuel criteria: | AJ8: City | AK8: Highway | AL8: Combined | AP8: CD all-electric driving distance, unadjusted (miles) [3] | AQ8: =IF(ISNUMBER(W47), astm(W47,3), 0) -> 31.345 | AR8: =IF(ISNUMBER(AE47), astm(AE47,3), 0) -> 30.123
B9: → | C9: 1. Utility Factor Composity MPGe | D9: =IF($N$7+$N$55+$N$103=0, ((AJ9<>0)+(AJ57<>0)+(AJ105<>0))/(IFERROR(1/AJ9,0)+IFERROR(1/AJ57,0)+IFERROR(1/AJ105,0)), ($N$7+$N$55+$N$103) / (IFERROR($N$7/AJ9,0)+IFERROR($N$55/AJ57,0)+IFERROR($N$103/AJ105,0)) ) -> 65.7964 | E9: =IF($N$7+$N$55+$N$103=0, ((AK9<>0)+(AK57<>0)+(AK105<>0))/(IFERROR(1/AK9,0)+IFERROR(1/AK57,0)+IFERROR(1/AK105,0)), ($N$7+$N$55+$N$103) / (IFERROR($N$7/AK9,0)+IFERROR($N$55/AK57,0)+IFERROR($N$103/AK105,0)) ) -> 59.489 | F9: =astm(1/(0.55/D9+0.45/E9),4) -> 62.8001 | G9: ← | I9: Liquid fuel type: | J9: Regular Unleaded | M9: ENTER CHARGE-SUSTAINING TEST RESULTS HERE | AI9: 1. Utility Factor Composite MPGe [4] | AJ9: =IFERROR(astm(1/ ( AQ15 + (1-AQ30)/N11),4),0) -> 65.7964 | AK9: =IFERROR(astm(1/ ( AR15 + (1-AR30)/O11),4),0) -> 59.489 | AL9: =IFERROR(astm(1/(0.55/AJ9+0.45/AK9),4),0) -> 62.8001 | AP9: CD All-Electric Range, adjusted (mi) [3] | AQ9: =astm( 0.7*AQ8, 3) -> 21.942 | AR9: =astm( 0.7*AR8, 3) -> 21.086
C10: Based on the all-electric range, is this PHEV a dual fuel vehicle for CAFE? | F10: =IF( OR($J$6="LT", AND($J$6="PV",D12>=7.5,E12>=10.2) ), "YES", "NO") -> YES | I10: Additional descriptors as needed: | N10: City | O10: Highway | Q10: No. | R10: Miles [3] | S10: Amp-hrs [3] | T10: Volts [2] | U10: MPG [1] | V10: g/mi [0] | W10: g/mi [0] | Y10: No. | Z10: Miles [3] | AA10: Amp-hrs [3] | AB10: Volts [2] | AC10: MPG [1] | AD10: g/mi [0] | AE10: g/mi [0] | AI10: GHG Values | AJ10: City | AK10: Highway | AL10: Combined | AP10: FUEL CONSUMPTION & ECONOMY VALUES | AQ10: CITY | AR10: HIGHWAY | AV10: No. | AW10: gal | AX10: grams | AY10: Amp-hours | AZ10: W-hours | BA10: W-hours | BB10: mi | BC10: gal/mi equiv | BD10: gal/mi equiv | BE10: UF | BF10: UF | BG10: gal/mi equiv | BH10: gal-equiv | BI10: % | BJ10: miles | BK10: miles | BL10: UF | BM10: g/mi | BN10: gal/mi equiv | BO10: UF | BP10: gal/mi equiv | BQ10: g/mi | BR10: CD or CS | BT10: CD or CS | BW10: No. | BX10: gal | BY10: grams | BZ10: Amp-hours | CA10: W-hours | CB10: W-hours | CC10: mi | CD10: gal/mi equiv | CE10: gal/mi equiv | CF10: UF | CG10: UF | CH10: gal/mi equiv | CI10: gal-equiv | CJ10: % | CK10: miles | CL10: miles | CM10: UF | CN10: g/mi | CO10: gal-equiv | CP10: UF | CQ10: gal-equiv | CR10: g/mi | CS10: CD or CS | CU10: CD or CS
D11: City | E11: Highway | F11: Combined | I11: Fuel tank size (U.S. gallons) | J11: 10.7 | M11: Fuel Economy, Unadjusted (MPG): | N11: 38.1 | O11: 46.3 | Q11: 1 | R11: 7.433 | S11: 5.751245251 | T11: 385.7382838 | U11: 0 | V11: 0 | W11: 0 | Y11: 1 | Z11: 10.252 | AA11: 9.619416062 | AB11: 384.4826652 | AC11: 0 | AD11: 0 | AE11: 0 | AI11: Composite CREE, (g/mi) [1] | AJ11: =IFERROR(IF(OR(SUM(W11:W45)=0,N13=0,ISBLANK(N13), LOOKUP(2,1/(W11:W45<>""),ROW(W11:W45)) < LOOKUP(2,1/(R11:R45<>""),ROW(R11:R45)) ),"ERROR",astm(AQ27+(1-AQ30)*N13,1)),0) -> 83.7 | AK11: =IFERROR(IF(OR(SUM(AE11:AE45)=0,O13=0,ISBLANK(O13), LOOKUP(2,1/(AE11:AE45<>""),ROW(AE11:AE45)) < LOOKUP(2,1/(Z11:Z45<>""),ROW(Z11:Z40)) ),"ERROR",astm(AR27+(1-AR30)*O13,1)),0) -> 129.5 | AL11: =IFERROR(astm(0.55*AJ11+0.45*AK11,1),0) -> 104.3 | AO11: NEW | AP11: CD AC electricity consumption (Rcdc), unadjusted (Watt-hours) [1] | AQ11: =astm(SUMIF(AV11:AV45,"<=" & AQ34,BA11:BA45),1) -> 9339.5 | AR11: =astm(SUMIF(BW11:BW45,"<=" & AR34,CB11:CB45),1) -> 9529.1 | AV11: 1 | AW11: =IF(ISBLANK(R11),"", IF(astm(V11,0)=0, 0, IFERROR(astm(R11,3)/astm(U11,1),0)) ) -> 0 | AX11: =IF(ISBLANK(R11),"", IF(astm(V11,0)=0,0, astm( astm(V11,0)*astm(R11,3), 0) ) ) -> 0 | AY11: =IF( ISBLANK(S11),"",astm(S11,3)) -> 5.751 | AZ11: =IF(ISBLANK(T11),"",astm(AY11*astm(T11,2),1)) -> 2218.4 | BA11: =IFERROR(astm( astm(W46,3)*1000*(AZ11/AQ13),1),"") -> 2515.4 | BB11: =IF(ISBLANK(R11),"",7.45) -> 7.45 | BC11: =IFERROR(BA11/($J$19*astm(R11,3)),"") -> 0.01004034399 | BD11: =IFERROR(BC11+AW11/astm(R11,3),"") -> 0.01004034399 | BE11: =astm(IFERROR(astm(cityfuf(BB11)-0,3),""),3) -> 0.243 | BF11: =IF(ISBLANK(R11),"", IF(astm(V11,0)=0, 0, IFERROR(BE11*astm(W11,0),"") ) ) -> 0 | BG11: =IFERROR(BD11*BE11,"") -> 0.002439803589 | BH11: =IFERROR(BD11*astm(R11,3),"") -> 0.07462987687 | BI11: =IF( $J$5>=2017, IFERROR(MAX(1/(0.004091*(1/BD11)+1.1601),0.7),""), IFERROR(MAX(1/(0.003259*(1/BD11)+1.1805),0.7),"") ) -> 0.7 | BJ11: =IFERROR(BI11*astm(R11,3),"") -> 5.2031 | BK11: =IFERROR(BI11*7.45,"") -> 5.215 | BL11: =IFERROR(astm(mdiuf(BK11)-0,3),"") -> 0.155 | BM11: =IF(ISBLANK(R11),"", IF( astm(V11,0)=0, 0, IFERROR(BL11*astm(V11,0)/(BI11),"") ) ) -> 0 | BN11: =IFERROR(BL11*BD11/BI11,"") -> 0.002223219026 | BO11: =IFERROR(astm(cityfufalt(BK11)-0,3),"") -> 0.198 | BP11: =IFERROR(BO11*BD11/BI11,"") -> 0.002839983014 | BQ11: =IF(ISBLANK(R11),"", IF( astm(V11,0)=0, 0, IFERROR(BO11*astm(W11,0)/(BI11),"") ) ) -> 0 | BR11: =IF(AZ11="","", IF(ABS(BS11)<0.01,"CS based on 1% fuel energy", "CD")) -> CD | BS11: =IF(AZ11="",1, MIN(IFERROR((AZ11/1000)/((AW11*$J$22)*$J$21/3600),1),IFERROR((SUMIFS(AZ11:AZ45,AV11:AV45,"<="&$AV11,AV11:AV45,">="&$AV11-1)/1000)/( $J$22*SUMIFS(AW11:AW45,AV11:AV45,"<="&$AV11,AV11:AV45,">="&$AV11-1)*$J$21/3600),1),IFERROR((SUMIFS(AZ11:AZ45,AV11:AV45,"<="&$AV11,AV11:AV45,">="&$AV11-2)/1000)/( $J$22*SUMIFS(AW11:AW45,AV11:AV45,"<="&$AV11,AV11:AV45,">="&$AV11-2)*$J$21/3600),1),IFERROR((SUMIFS(AZ11:AZ45,AV11:AV45,"<="&$AV11,AV11:AV45,">="&$AV11-3)/1000)/( $J$22*SUMIFS(AW11:AW45,AV11:AV45,"<="&$AV11,AV11:AV45,">="&$AV11-3)*$J$21/3600),1)) ) -> 1 | BT11: =IF(AZ11="","", IF(ABS(BU11)<0.02,"CS based on 2% battery energy","CD")) -> CD | BU11: =IF(AZ11="",1, MIN($AZ11/SUM($AZ11:$AZ11),SUMIFS(AZ11:AZ45,AV11:AV45,">="&$AV11-1,AV11:AV45,"<="&$AV11)/SUM($AZ11:$AZ11),SUMIFS(AZ11:AZ45,AV11:AV45,">="&$AV11-2,AV11:AV45,"<="&$AV11)/SUM($AZ11:$AZ11),SUMIFS(AZ11:AZ45,AV11:AV45,">="&$AV11-3,AV11:AV45,"<="&$AV11)/SUM($AZ11:$AZ11)) ) -> 1 | BW11: 1 | BX11: =IF(ISBLANK(Z11),"", IF(astm(AD11,0)=0, 0, IFERROR(astm(Z11,3)/astm(AC11,1),0)) ) -> 0 | BY11: =IF(ISBLANK(Z11),"", IF(astm(AD11,0)=0,0, astm(AD11,0)*astm(Z11,3)) ) -> 0 | BZ11: =IF(ISBLANK(AA11),"",astm(AA11,3)) -> 9.619 | CA11: =IF(ISBLANK(AB11),"",astm(BZ11*astm(AB11,2),1)) -> 3698.3 | CB11: =IFERROR( astm( astm($AE$46,3)*1000*(CA11/$AR$13),1),"") -> 2997 | CC11: =IF(ISBLANK(Z11),"",10.3) -> 10.3 | CD11: =IFERROR(CB11/($J$19*astm(Z11,3)),"") -> 0.008673288927 | CE11: =IFERROR(CD11+BX11/astm(Z11,3),"") -> 0.008673288927 | CF11: =IFERROR(astm(highwayfuf(CC11)-0,3),"") -> 0.123 | CG11: =IF(ISBLANK(Z11),"", IF( astm(AD11,0)=0, 0, IFERROR(CF11*astm(AE11,0),"") ) ) -> 0 | CH11: =IFERROR(CE11*CF11,"") -> 0.001066814538 | CI11: =IFERROR(CE11*astm(Z11,3),"") -> 0.08891855808 | CJ11: =IF( $J$5>=2017, IFERROR(MAX(1/(0.003191*(1/CE11)+1.2945),0.7),""), IFERROR(MAX(1/(0.001376*(1/CE11)+1.3466),0.7),"") ) -> 0.7 | CK11: =IFERROR(CJ11*astm(Z11,3),"") -> 7.1764 | CL11: =IFERROR(CJ11*10.3,"") -> 7.21 | CM11: =IFERROR(astm(mdiuf(CL11)-0,3),"") -> 0.206 | CN11: =IF(ISBLANK(Z11),"", IF( astm(AD11,0)=0, 0, IFERROR(CM11*astm(AD11,0)/(CJ11),"") ) ) -> 0 | CO11: =IFERROR(CM11*CE11/CJ11,"") -> 0.002552425027 | CP11: =IFERROR(astm(highwayfufalt(CL11)-0,3),"") -> 0.097 | CQ11: =IFERROR(CP11*CE11/CJ11,"") -> 0.001201870037 | CR11: =IF(ISBLANK(Z11),"", IF( astm(AD11,0)=0, 0, IFERROR(CP11*astm(AE11,0)/(CJ11),"") ) ) -> 0 | CS11: =IF($CA11="","", IF(ABS(CT11)<0.01,"CS based on 1% fuel energy","CD")) -> CD | CT11: =IF(CA11="",1, MIN(IFERROR((CA11/1000)/((BX11*$J$22)*$J$21/3600),1),IFERROR((SUMIFS(CA11:CA45,BW11:BW45,"<="&$BW11,BW11:BW45,">="&$BW11-1)/1000)/( $J$22*SUMIFS(BX11:BX45,BW11:BW45,"<="&$BW11,BW11:BW45,">="&$BW11-1)*$J$21/3600),1),IFERROR((SUMIFS(CA11:CA45,BW11:BW45,"<="&$BW11,BW11:BW45,">="&$BW11-2)/1000)/( $J$22*SUMIFS(BX11:BX45,BW11:BW45,"<="&$BW11,BW11:BW45,">="&$BW11-2)*$J$21/3600),1),IFERROR((SUMIFS(CA11:CA45,BW11:BW45,"<="&$BW11,BW11:BW45,">="&$BW11-3)/1000)/( $J$22*SUMIFS(BX11:BX45,BW11:BW45,"<="&$BW11,BW11:BW45,">="&$BW11-3)*$J$21/3600),1)) ) -> 1 | CU11: =IF($CA11="","", IF(ABS(CV11)<0.02,"CS based on 2% battery energy","CD")) -> CD | CV11: =IF(CA11="",1, MIN($CA11/SUM($CA11:$CA11),SUMIFS(CA11:CA45,BW11:BW45,">="&$BW11-1,BW11:BW45,"<="&$BW11)/SUM($CA11:$CA11),SUMIFS(CA11:CA45,BW11:BW45,">="&$BW11-2,BW11:BW45,"<="&$BW11)/SUM($CA11:$CA11),SUMIFS(CA11:CA45,BW11:BW45,">="&$BW11-3,BW11:BW45,"<="&$BW11)/SUM($CA11:$CA11)) ) -> 1
C12: All-Electric Range (miles, unadjusted) | D12: =IFERROR( astm( IF($N$7+$N$55+$N$103=0,SUM(IFERROR(AQ8,0),IFERROR(AQ56,0),IFERROR(AQ104,0)) / ((AQ8<>0)+(AQ56<>0)+(AQ104<>0)),($N$7*AQ8+$N$55*AQ56+$N$103*AQ104)/($N$7+$N$55+$N$103)),1),0) -> 31.3 | E12: =IFERROR( astm( IF($N$7+$N$55+$N$103=0,SUM(IFERROR(AR8,0),IFERROR(AR56,0),IFERROR(AR104,0)) / ((AR8<>0)+(AR56<>0)+(AR104<>0)),($N$7*AR8+$N$55*AR56+$N$103*AR104)/($N$7+$N$55+$N$103)),1),0) -> 30.1 | F12: =0.55*D12+0.45*E12 -> 30.76 | I12: Deterioration Factors for GHG (CREE) Values (optional) | J12: Yes | M12: Fuel Economy, Adjusted (MPG): | N12: 30.3323 | O12: 34.4 | Q12: 2 | R12: 7.427 | S12: 12.35076066 | T12: 366.3897144 | U12: 0 | V12: 0 | W12: 0 | Y12: 2 | Z12: 10.25 | AA12: 16.70885375 | AB12: 366.1590089 | AC12: 0 | AD12: 0 | AE12: 0 | AP12: CD AC electricity consumption rate (Rcda), adjusted (kW-hr/100mi) [3] | AQ12: =IFERROR(astm( astm(W46,3)*100/AQ7,3),0) -> 50.372 | AR12: =IFERROR(astm( astm(AE46,3)*100/AR7,3),0) -> 33.316 | AV12: 2 | AW12: 0 | AX12: 0 | AY12: =IF(ISBLANK(S12),"",(astm(S12,3)-astm(S11,3))) -> 6.6 | AZ12: =IF(ISBLANK(T12),"",astm(AY12*astm(T12,2),1)) -> 2418.2 | BA12: =IFERROR(astm( astm($W$46,3)*1000*(AZ12/AQ13),1),"") -> 2742 | BB12: =IF(ISBLANK(R12),"",7.45+BB11) -> 14.9 | BC12: 0.01095367106 | BD12: 0.01095367106 | BE12: =IFERROR(astm(cityfuf(BB12),3)-astm(cityfuf(BB11),3),"") -> 0.183 | BF12: 0 | BG12: =IFERROR(BD12*BE12,"") -> 0.002004521805 | BH12: 0.081352915 | BI12: =IF( $J$5>=2017, IFERROR(MAX(1/(0.004091*(1/BD12)+1.1601),0.7),""), IFERROR(MAX(1/(0.003259*(1/BD12)+1.1805),0.7),"") ) -> 0.7 | BJ12: 5.1989 | BK12: =IFERROR(BI12*7.45+BK11,"") -> 10.43 | BL12: =IFERROR(astm(mdiuf(BK12),3)-astm(mdiuf(BK11),3),"") -> 0.126 | BM12: 0 | BN12: 0.001971660792 | BO12: =IFERROR(astm(cityfufalt(BK12),3)-astm(cityfufalt(BK11),3),"") -> 0.159 | BP12: 0.002488048142 | BQ12: 0 | BR12: CD | BS12: =IF(AZ12="",1, MIN(IFERROR((AZ12/1000)/((AW12*$J$22)*$J$21/3600),1),IFERROR((SUMIFS(AZ11:AZ45,AV11:AV45,"<="&$AV12,AV11:AV45,">="&$AV12-1)/1000)/( $J$22*SUMIFS(AW11:AW45,AV11:AV45,"<="&$AV12,AV11:AV45,">="&$AV12-1)*$J$21/3600),1),IFERROR((SUMIFS(AZ11:AZ45,AV11:AV45,"<="&$AV12,AV11:AV45,">="&$AV12-2)/1000)/( $J$22*SUMIFS(AW11:AW45,AV11:AV45,"<="&$AV12,AV11:AV45,">="&$AV12-2)*$J$21/3600),1),IFERROR((SUMIFS(AZ11:AZ45,AV11:AV45,"<="&$AV12,AV11:AV45,">="&$AV12-3)/1000)/( $J$22*SUMIFS(AW11:AW45,AV11:AV45,"<="&$AV12,AV11:AV45,">="&$AV12-3)*$J$21/3600),1)) ) -> 1 | BT12: CD | BU12: =IF(AZ12="",1, MIN($AZ12/SUM($AZ11:$AZ12),SUMIFS(AZ11:AZ45,AV11:AV45,">="&$AV12-1,AV11:AV45,"<="&$AV12)/SUM($AZ11:$AZ12),SUMIFS(AZ11:AZ45,AV11:AV45,">="&$AV12-2,AV11:AV45,"<="&$AV12)/SUM($AZ11:$AZ12),SUMIFS(AZ11:AZ45,AV11:AV45,">="&$AV12-3,AV11:AV45,"<="&$AV12)/SUM($AZ11:$AZ12)) ) -> 0.5215459604 | BW12: 2 | BX12: 0 | BY12: 0 | BZ12: =IF(ISBLANK(AA12),"",(astm(AA12,3)-astm(AA11,3))) -> 7.09 | CA12: 2596.1 | CB12: 2103.8 | CC12: =IF(ISBLANK(Z12),"",10.3+CC11) -> 20.6 | CD12: 0.006089564767 | CE12: 0.006089564767 | CF12: =IFERROR(astm(highwayfuf(CC12)-highwayfuf(CC11),3),"") -> 0.117 | CG12: 0 | CH12: 0.0007124790778 | CI12: 0.06241803887 | CJ12: 0.7 | CK12: 7.175 | CL12: =IFERROR(CJ12*10.3+CL11,"") -> 14.42 | CM12: =IFERROR(astm(mdiuf(CL12)-mdiuf(CL11),3),"") -> 0.156 | CN12: 0 | CO12: 0.001357103005 | CP12: =IFERROR(astm(highwayfufalt(CL12)-highwayfufalt(CL11),3),"") -> 0.094 | CQ12: 0.0008177415545 | CR12: 0 | CS12: =IF(CA12="","", IF(ABS(CT12)<0.01,"CS based on 1% fuel energy","CD")) -> CD | CT12: =IF(CA12="",1, MIN(IFERROR((CA12/1000)/((BX12*$J$22)*$J$21/3600),1),IFERROR((SUMIFS(CA11:CA45,BW11:BW45,"<="&$BW12,BW11:BW45,">="&$BW12-1)/1000)/( $J$22*SUMIFS(BX11:BX45,BW11:BW45,"<="&$BW12,BW11:BW45,">="&$BW12-1)*$J$21/3600),1),IFERROR((SUMIFS(CA11:CA45,BW11:BW45,"<="&$BW12,BW11:BW45,">="&$BW12-2)/1000)/( $J$22*SUMIFS(BX11:BX45,BW11:BW45,"<="&$BW12,BW11:BW45,">="&$BW12-2)*$J$21/3600),1),IFERROR((SUMIFS(CA11:CA45,BW11:BW45,"<="&$BW12,BW11:BW45,">="&$BW12-3)/1000)/( $J$22*SUMIFS(BX11:BX45,BW11:BW45,"<="&$BW12,BW11:BW45,">="&$BW12-3)*$J$21/3600),1)) ) -> 1 | CU12: =IF($CA12="","", IF(ABS(CV12)<0.02,"CS based on 2% battery energy","CD")) -> CD | CV12: =IF(CA12="",1, MIN($CA12/SUM($CA11:$CA12),SUMIFS(CA11:CA45,BW11:BW45,">="&$BW12-1,BW11:BW45,"<="&$BW12)/SUM($CA11:$CA12),SUMIFS(CA11:CA45,BW11:BW45,">="&$BW12-2,BW11:BW45,"<="&$BW12)/SUM($CA11:$CA12),SUMIFS(CA11:CA45,BW11:BW45,">="&$BW12-3,BW11:BW45,"<="&$BW12)/SUM($CA11:$CA12)) ) -> 0.4124459837
I13: Select the type of DF to apply: | J13: None | M13: CREE (g/mi): | N13: 250.7048697 | O13: 203.7075925 | Q13: 3 | R13: 7.423 | S13: 17.94864702 | T13: 356.3703295 | U13: 0 | V13: 0 | W13: 0 | Y13: 3 | Z13: 10.25 | AA13: 23.987 | AB13: 366.1590089 | AC13: 0 | AD13: 0 | AE13: 0 | AI13: Label Values (5-Cycle Adjusted) | AP13: CD test total DC energy consumed, unadjusted (Watt-hours) [1] | AQ13: =astm(SUM(AZ11:AZ45),1) -> 8787.5 | AR13: =astm(SUM(CA11:CA45),1) -> 11805.7 | AV13: 3 | AW13: 0 | AX13: 0 | AY13: 5.598 | AZ13: 1995 | BA13: =IFERROR(astm( astm($W$46,3)*1000*(AZ13/AQ13),1),"") -> 2262.1 | BB13: 22.35 | BC13: 0.009041448392 | BD13: 0.009041448392 | BE13: =IFERROR(astm(cityfuf(BB13),3)-astm(cityfuf(BB12),3),"") -> 0.137 | BF13: 0 | BG13: 0.00123867843 | BH13: 0.06711467141 | BI13: 0.7 | BJ13: 5.1961 | BK13: =IFERROR(BI13*7.45+BK12,"") -> 15.645 | BL13: =IFERROR(astm(mdiuf(BK13),3)-astm(mdiuf(BK12),3),"") -> 0.103 | BM13: 0 | BN13: 0.001330384549 | BO13: =IFERROR(astm(cityfufalt(BK13),3)-astm(cityfufalt(BK12),3),"") -> 0.126 | BP13: 0.001627460711 | BQ13: 0 | BR13: CD | BS13: =IF(AZ13="",1, MIN(IFERROR((AZ13/1000)/((AW13*$J$22)*$J$21/3600),1),IFERROR((SUMIFS(AZ11:AZ45,AV11:AV45,"<="&$AV13,AV11:AV45,">="&$AV13-1)/1000)/( $J$22*SUMIFS(AW11:AW45,AV11:AV45,"<="&$AV13,AV11:AV45,">="&$AV13-1)*$J$21/3600),1),IFERROR((SUMIFS(AZ11:AZ45,AV11:AV45,"<="&$AV13,AV11:AV45,">="&$AV13-2)/1000)/( $J$22*SUMIFS(AW11:AW45,AV11:AV45,"<="&$AV13,AV11:AV45,">="&$AV13-2)*$J$21/3600),1),IFERROR((SUMIFS(AZ11:AZ45,AV11:AV45,"<="&$AV13,AV11:AV45,">="&$AV13-3)/1000)/( $J$22*SUMIFS(AW11:AW45,AV11:AV45,"<="&$AV13,AV11:AV45,">="&$AV13-3)*$J$21/3600),1)) ) -> 1 | BT13: CD | BU13: =IF(AZ13="",1, MIN($AZ13/SUM($AZ11:$AZ13),SUMIFS(AZ11:AZ45,AV11:AV45,">="&$AV13-1,AV11:AV45,"<="&$AV13)/SUM($AZ11:$AZ13),SUMIFS(AZ11:AZ45,AV11:AV45,">="&$AV13-2,AV11:AV45,"<="&$AV13)/SUM($AZ11:$AZ13),SUMIFS(AZ11:AZ45,AV11:AV45,">="&$AV13-3,AV11:AV45,"<="&$AV13)/SUM($AZ11:$AZ13)) ) -> 0.3008323783 | BW13: 3 | BX13: 0 | BY13: 0 | BZ13: 7.278 | CA13: 2664.9 | CB13: 2159.6 | CC13: 30.9 | CD13: 0.006251080935 | CE13: 0.006251080935 | CF13: =IFERROR(astm(highwayfuf(CC13)-highwayfuf(CC12),3),"") -> 0.105 | CG13: 0 | CH13: 0.0006563634982 | CI13: 0.06407357959 | CJ13: 0.7 | CK13: 7.175 | CL13: =IFERROR(CJ13*10.3+CL12,"") -> 21.63 | CM13: =IFERROR(astm(mdiuf(CL13)-mdiuf(CL12),3),"") -> 0.119 | CN13: 0 | CO13: 0.001062683759 | CP13: =IFERROR(astm(highwayfufalt(CL13)-highwayfufalt(CL12),3),"") -> 0.087 | CQ13: 0.0007769200591 | CR13: 0 | CS13: CD | CT13: =IF(CA13="",1, MIN(IFERROR((CA13/1000)/((BX13*$J$22)*$J$21/3600),1),IFERROR((SUMIFS(CA11:CA45,BW11:BW45,"<="&$BW13,BW11:BW45,">="&$BW13-1)/1000)/( $J$22*SUMIFS(BX11:BX45,BW11:BW45,"<="&$BW13,BW11:BW45,">="&$BW13-1)*$J$21/3600),1),IFERROR((SUMIFS(CA11:CA45,BW11:BW45,"<="&$BW13,BW11:BW45,">="&$BW13-2)/1000)/( $J$22*SUMIFS(BX11:BX45,BW11:BW45,"<="&$BW13,BW11:BW45,">="&$BW13-2)*$J$21/3600),1),IFERROR((SUMIFS(CA11:CA45,BW11:BW45,"<="&$BW13,BW11:BW45,">="&$BW13-3)/1000)/( $J$22*SUMIFS(BX11:BX45,BW11:BW45,"<="&$BW13,BW11:BW45,">="&$BW13-3)*$J$21/3600),1)) ) -> 1 | CU13: CD | CV13: =IF(CA13="",1, MIN($CA13/SUM($CA11:$CA13),SUMIFS(CA11:CA45,BW11:BW45,">="&$BW13-1,BW11:BW45,"<="&$BW13)/SUM($CA11:$CA13),SUMIFS(CA11:CA45,BW11:BW45,">="&$BW13-2,BW11:BW45,"<="&$BW13)/SUM($CA11:$CA13),SUMIFS(CA11:CA45,BW11:BW45,">="&$BW13-3,BW11:BW45,"<="&$BW13)/SUM($CA11:$CA13)) ) -> 0.2974451129
C14: GHG Values | D14: City | E14: Highway | F14: Combined | I14: Enter a single DF for City and Highway: | M14: CO2, Unadjusted (g/mi): | N14: 233 | O14: 192 | Q14: 4 | R14: 7.423 | S14: 22.453 | T14: 356.3703295 | U14: 0 | V14: 0 | W14: 0 | Y14: 4 | Z14: 10.26 | AA14: 31.978 | AB14: 350.3429071 | AC14: 57.1087001 | AD14: 162.9882751 | AE14: 161.32 | AI14: Charge-Depleting | AL14: Combined | AO14: NEW | AP14: CD Rcda total fuel consumption (Rcda), unadjusted (gal equiv) [4] | AQ14: =IFERROR(astm(SUMIF(AV11:AV45,"<=" & (AQ34-1),BH11:BH45) + AQ33*SUMIF(AV11:AV45,"=" & (AQ34-1),BH11:BH45),4),0) -> 0.2771 | AR14: =IFERROR(astm(SUMIF(BW11:BW45,"<=" & (AR34-1),CI11:CI45) + AR33*SUMIF(BW11:BW45,"=" & (AR34-1),CI11:CI45),4),0) -> 0.2795 | AV14: 4 | AW14: =IF(ISBLANK(R14),"", IF(astm(V14,0)=0, 0, IFERROR(astm(R14,3)/astm(U14,1),0)) ) -> 0 | AX14: =IF(ISBLANK(R14),"", IF(astm(V14,0)=0,0, astm( astm(V14,0)*astm(R14,3), 0) ) ) -> 0 | AY14: =IF(ISBLANK(S14),"",(astm(S14,3)-astm(S13,3))) -> 4.504 | AZ14: =IF(ISBLANK(T14),"",astm(AY14*astm(T14,2),1)) -> 1605.1 | BA14: =IFERROR(astm( astm($W$46,3)*1000*(AZ14/AQ13),1),"") -> 1820 | BB14: =IF(ISBLANK(R14),"",7.45+BB13) -> 29.8 | BC14: =IFERROR(BA14/($J$19*astm(R14,3)),"") -> 0.007274406999 | BD14: =IFERROR(BC14+AW14/astm(R14,3),"") -> 0.007274406999 | BE14: =IFERROR(astm(cityfuf(BB14),3)-astm(cityfuf(BB13),3),"") -> 0.103 | BF14: =IF(ISBLANK(R14),"", IF(astm(V14,0)=0, 0, IFERROR(BE14*astm(W14,0),"") ) ) -> 0 | BG14: 0.0007492639209 | BH14: =IFERROR(BD14*astm(R14,3),"") -> 0.05399792316 | BI14: 0.7 | BJ14: =IFERROR(BI14*astm(R14,3),"") -> 5.1961 | BK14: 20.86 | BL14: =IFERROR(astm(mdiuf(BK14),3)-astm(mdiuf(BK13),3),"") -> 0.086 | BM14: =IF(ISBLANK(R14),"", IF( astm(V14,0)=0, 0, IFERROR(BL14*astm(V14,0)/(BI14),"") ) ) -> 0 | BN14: 0.0008937128599 | BO14: =IFERROR(astm(cityfufalt(BK14),3)-astm(cityfufalt(BK13),3),"") -> 0.101 | BP14: 0.00104959301 | BQ14: =IF(ISBLANK(R14),"", IF( astm(V14,0)=0, 0, IFERROR(BO14*astm(W14,0)/(BI14),"") ) ) -> 0 | BR14: CD | BS14: =IF(AZ14="",1, MIN(IFERROR((AZ14/1000)/((AW14*$J$22)*$J$21/3600),1),IFERROR((SUMIFS(AZ11:AZ45,AV11:AV45,"<="&$AV14,AV11:AV45,">="&$AV14-1)/1000)/( $J$22*SUMIFS(AW11:AW45,AV11:AV45,"<="&$AV14,AV11:AV45,">="&$AV14-1)*$J$21/3600),1),IFERROR((SUMIFS(AZ11:AZ45,AV11:AV45,"<="&$AV14,AV11:AV45,">="&$AV14-2)/1000)/( $J$22*SUMIFS(AW11:AW45,AV11:AV45,"<="&$AV14,AV11:AV45,">="&$AV14-2)*$J$21/3600),1),IFERROR((SUMIFS(AZ11:AZ45,AV11:AV45,"<="&$AV14,AV11:AV45,">="&$AV14-3)/1000)/( $J$22*SUMIFS(AW11:AW45,AV11:AV45,"<="&$AV14,AV11:AV45,">="&$AV14-3)*$J$21/3600),1)) ) -> 1 | BT14: CD | BU14: =IF(AZ14="",1, MIN($AZ14/SUM($AZ11:$AZ14),SUMIFS(AZ11:AZ45,AV11:AV45,">="&$AV14-1,AV11:AV45,"<="&$AV14)/SUM($AZ11:$AZ14),SUMIFS(AZ11:AZ45,AV11:AV45,">="&$AV14-2,AV11:AV45,"<="&$AV14)/SUM($AZ11:$AZ14),SUMIFS(AZ11:AZ45,AV11:AV45,">="&$AV14-3,AV11:AV45,"<="&$AV14)/SUM($AZ11:$AZ14)) ) -> 0.1948717326 | BW14: 4 | BX14: 0.1796847636 | BY14: 1672.38 | BZ14: 7.991 | CA14: 2799.6 | CB14: 2268.7 | CC14: 41.2 | CD14: 0.006560476419 | CE14: 0.02407361127 | CF14: =IFERROR(astm(highwayfuf(CC14)-highwayfuf(CC13),3),"") -> 0.092 | CG14: 14.812 | CH14: 0.002214772237 | CI14: 0.2469952516 | CJ14: 0.7007454213 | CK14: 7.189648022 | CL14: 28.84767784 | CM14: =IFERROR(astm(mdiuf(CL14)-mdiuf(CL13),3),"") -> 0.092 | CN14: 21.40006848 | CO14: 0.003160594661 | CP14: =IFERROR(astm(highwayfufalt(CL14)-highwayfufalt(CL13),3),"") -> 0.08 | CQ14: 0.002748343183 | CR14: 18.38042691 | CS14: CD | CT14: =IF(CA14="",1, MIN(IFERROR((CA14/1000)/((BX14*$J$22)*$J$21/3600),1),IFERROR((SUMIFS(CA11:CA45,BW11:BW45,"<="&$BW14,BW11:BW45,">="&$BW14-1)/1000)/( $J$22*SUMIFS(BX11:BX45,BW11:BW45,"<="&$BW14,BW11:BW45,">="&$BW14-1)*$J$21/3600),1),IFERROR((SUMIFS(CA11:CA45,BW11:BW45,"<="&$BW14,BW11:BW45,">="&$BW14-2)/1000)/( $J$22*SUMIFS(BX11:BX45,BW11:BW45,"<="&$BW14,BW11:BW45,">="&$BW14-2)*$J$21/3600),1),IFERROR((SUMIFS(CA11:CA45,BW11:BW45,"<="&$BW14,BW11:BW45,">="&$BW14-3)/1000)/( $J$22*SUMIFS(BX11:BX45,BW11:BW45,"<="&$BW14,BW11:BW45,">="&$BW14-3)*$J$21/3600),1)) ) -> 0.4648190957 | CU14: CD | CV14: =IF(CA14="",1, MIN($CA14/SUM($CA11:$CA14),SUMIFS(CA11:CA45,BW11:BW45,">="&$BW14-1,BW11:BW45,"<="&$BW14)/SUM($CA11:$CA14),SUMIFS(CA11:CA45,BW11:BW45,">="&$BW14-2,BW11:BW45,"<="&$BW14)/SUM($CA11:$CA14),SUMIFS(CA11:CA45,BW11:BW45,">="&$BW14-3,BW11:BW45,"<="&$BW14)/SUM($CA11:$CA14)) ) -> 0.2380834942
C15: Composite CREE, no DF (g/mi) | D15: =IF(OR(AND(J13<>"None",COUNT(J14:J16)=3), AND(J13<>"None", ISNUMBER(J14), OR(ISNUMBER(J15),ISNUMBER(J16) ) ) ),"DF ERROR", IF(OR(N13=0,O13=0,SUM(V11:V45)=0,SUM(AD11:AD45)=0),"ERROR", IF( OR( AJ11="ERROR", AJ59="ERROR", AJ107="ERROR"), "CREE ERROR", astm(IF($N$7+$N$55+$N$103=0,SUM(IFERROR(AJ11,0),IFERROR(AJ59,0),IFERROR(AJ107,0)) / ((AJ11<>0)+(AJ59<>0)+(AJ107<>0)),($N$7*AJ11+$N$55*AJ59+$N$103*AJ107)/($N$7+$N$55+$N$103)),1) ) ) ) -> 83.7 | E15: =IF(OR(AND(J13<>"None",COUNT(J14:J16)=3), AND(J13<>"None", ISNUMBER(J14), OR(ISNUMBER(J15),ISNUMBER(J16) ) ) ),"DF ERROR", IF(OR(N13=0,O13=0,SUM(W11:W45)=0,SUM(AE11:AE45)=0),"ERROR", IF( OR( AK11="ERROR", AK59="ERROR", AK107="ERROR"), "CREE ERROR", astm(IF($N$7+$N$55+$N$103=0,SUM(IFERROR(AK11,0),IFERROR(AK59,0),IFERROR(AK107,0)) / ((AK11<>0)+(AK59<>0)+(AK107<>0)),($N$7*AK11+$N$55*AK59+$N$103*AK107)/($N$7+$N$55+$N$103)),1) ) ) ) -> 129.5 | F15: =IF(OR(N13=0,O13=0,SUM(W11:W45)=0,SUM(AE11:AE45)=0),"ERROR", IFERROR(astm(0.55*D15+0.45*E15,1),"CREE ERROR") ) -> 104.3 | I15: Enter a City DF : | M15: CO2, Adjusted (g/mi): | N15: 293.1 | O15: 258.3 | Q15: 5 | R15: 7.423 | S15: 23.999 | T15: 356.3703295 | U15: 100 | V15: 89 | W15: 90 | Y15: 5 | Z15: 10.262 | AA15: 32.111 | AB15: 351.6426286 | AC15: 46 | AD15: 197.3946346 | AE15: 195.46 | AI15: CD range, adjusted (miles) [0] | AL15: =IFERROR(astm(0.55*AQ7+0.45*AR7,0),0) -> 24 | AP15: CD utilitized total fuel consumption rate (55/45 FUF, Rcdc), unadjusted (gal-equiv/mile) [6] | AQ15: =astm(SUMIF(AV11:AV45,"<=" & (AQ34),BG11:BG45)*1000000,0)/1000000 -> 0.006432 | AR15: =astm(SUMIF(BW11:BW45,"<=" & (AR34),CH11:CH45)*1000000,0)/1000000 -> 0.00465 | AV15: 5 | AW15: =IF(ISBLANK(R15),"", IF(astm(V15,0)=0, 0, IFERROR(astm(R15,3)/astm(U15,1),0)) ) -> 0.07423 | AX15: =IF(ISBLANK(R15),"", IF(astm(V15,0)=0,0, astm( astm(V15,0)*astm(R15,3), 0) ) ) -> 661 | AY15: =IF(ISBLANK(S15),"",(astm(S15,3)-astm(S14,3))) -> 1.546 | AZ15: =IF(ISBLANK(T15),"",astm(AY15*astm(T15,2),1)) -> 550.9 | BA15: =IFERROR(astm( astm($W$46,3)*1000*(AZ15/AQ13),1),"") -> 624.7 | BB15: =IF(ISBLANK(R15),"",7.45+BB14) -> 37.25 | BC15: =IFERROR(BA15/($J$19*astm(R15,3)),"") -> 0.002496880249 | BD15: =IFERROR(BC15+AW15/astm(R15,3),"") -> 0.01249688025 | BE15: =IFERROR(astm(cityfuf(BB15),3)-astm(cityfuf(BB14),3),"") -> 0.076 | BF15: =IF(ISBLANK(R15),"", IF(astm(V15,0)=0, 0, IFERROR(BE15*astm(W15,0),"") ) ) -> 6.84 | BG15: 0.0009497628989 | BH15: =IFERROR(BD15*astm(R15,3),"") -> 0.09276434209 | BI15: 0.7 | BJ15: =IFERROR(BI15*astm(R15,3),"") -> 5.1961 | BK15: 26.075 | BL15: =IFERROR(astm(mdiuf(BK15),3)-astm(mdiuf(BK14),3),"") -> 0.071 | BM15: =IF(ISBLANK(R15),"", IF( astm(V15,0)=0, 0, IFERROR(BL15*astm(V15,0)/(BI15),"") ) ) -> 9.027142857 | BN15: 0.001267540711 | BO15: =IFERROR(astm(cityfufalt(BK15),3)-astm(cityfufalt(BK14),3),"") -> 0.079 | BP15: 0.001410362199 | BQ15: =IF(ISBLANK(R15),"", IF( astm(V15,0)=0, 0, IFERROR(BO15*astm(W15,0)/(BI15),"") ) ) -> 10.15714286 | BR15: CD | BS15: =IF(AZ15="",1, MIN(IFERROR((AZ15/1000)/((AW15*$J$22)*$J$21/3600),1),IFERROR((SUMIFS(AZ11:AZ45,AV11:AV45,"<="&$AV15,AV11:AV45,">="&$AV15-1)/1000)/( $J$22*SUMIFS(AW11:AW45,AV11:AV45,"<="&$AV15,AV11:AV45,">="&$AV15-1)*$J$21/3600),1),IFERROR((SUMIFS(AZ11:AZ45,AV11:AV45,"<="&$AV15,AV11:AV45,">="&$AV15-2)/1000)/( $J$22*SUMIFS(AW11:AW45,AV11:AV45,"<="&$AV15,AV11:AV45,">="&$AV15-2)*$J$21/3600),1),IFERROR((SUMIFS(AZ11:AZ45,AV11:AV45,"<="&$AV15,AV11:AV45,">="&$AV15-3)/1000)/( $J$22*SUMIFS(AW11:AW45,AV11:AV45,"<="&$AV15,AV11:AV45,">="&$AV15-3)*$J$21/3600),1)) ) -> 0.2214076085 | BT15: CD | BU15: =IF(AZ15="",1, MIN($AZ15/SUM($AZ11:$AZ15),SUMIFS(AZ11:AZ45,AV11:AV45,">="&$AV15-1,AV11:AV45,"<="&$AV15)/SUM($AZ11:$AZ15),SUMIFS(AZ11:AZ45,AV11:AV45,">="&$AV15-2,AV11:AV45,"<="&$AV15)/SUM($AZ11:$AZ15),SUMIFS(AZ11:AZ45,AV11:AV45,">="&$AV15-3,AV11:AV45,"<="&$AV15)/SUM($AZ11:$AZ15)) ) -> 0.0626906095 | BW15: 5 | BX15: 0.2230869565 | BY15: 2021.614 | BZ15: 0.133 | CA15: 46.8 | CB15: 37.9 | CC15: 51.5 | CD15: 0.0001095753504 | CE15: 0.02184870579 | CF15: =IFERROR(astm(highwayfuf(CC15)-highwayfuf(CC14),3),"") -> 0.079 | CG15: 15.405 | CH15: 0.001726047757 | CI15: 0.2242114188 | CJ15: 0.7 | CK15: 7.1834 | CL15: 36.05767784 | CM15: =IFERROR(astm(mdiuf(CL15)-mdiuf(CL14),3),"") -> 0.072 | CN15: 20.26285714 | CO15: 0.002247295452 | CP15: =IFERROR(astm(highwayfufalt(CL15)-highwayfufalt(CL14),3),"") -> 0.072 | CQ15: 0.002247295452 | CR15: 20.05714286 | CS15: CS based on 1% fuel energy | CT15: =IF(CA15="",1, MIN(IFERROR((CA15/1000)/((BX15*$J$22)*$J$21/3600),1),IFERROR((SUMIFS(CA11:CA45,BW11:BW45,"<="&$BW15,BW11:BW45,">="&$BW15-1)/1000)/( $J$22*SUMIFS(BX11:BX45,BW11:BW45,"<="&$BW15,BW11:BW45,">="&$BW15-1)*$J$21/3600),1),IFERROR((SUMIFS(CA11:CA45,BW11:BW45,"<="&$BW15,BW11:BW45,">="&$BW15-2)/1000)/( $J$22*SUMIFS(BX11:BX45,BW11:BW45,"<="&$BW15,BW11:BW45,">="&$BW15-2)*$J$21/3600),1),IFERROR((SUMIFS(CA11:CA45,BW11:BW45,"<="&$BW15,BW11:BW45,">="&$BW15-3)/1000)/( $J$22*SUMIFS(BX11:BX45,BW11:BW45,"<="&$BW15,BW11:BW45,">="&$BW15-3)*$J$21/3600),1)) ) -> 0.006258509324 | CU15: CS based on 2% battery energy | CV15: =IF(CA15="",1, MIN($CA15/SUM($CA11:$CA15),SUMIFS(CA11:CA45,BW11:BW45,">="&$BW15-1,BW11:BW45,"<="&$BW15)/SUM($CA11:$CA15),SUMIFS(CA11:CA45,BW11:BW45,">="&$BW15-2,BW11:BW45,"<="&$BW15)/SUM($CA11:$CA15),SUMIFS(CA11:CA45,BW11:BW45,">="&$BW15-3,BW11:BW45,"<="&$BW15)/SUM($CA11:$CA15)) ) -> 0.003964186791
C16: Composite CREE, with DF (g/mi) | D16: =IF(AND(ISNUMBER(J16),ISBLANK(J15)),"DF ERROR", IFERROR(astm(IF(J13="None","", IF(J13="Additive",D15+J14+J15,IF(J13="Multiplicative",D15*(J14+J15),""))),1),"") ) ->  | E16: =IF(AND(ISNUMBER(J15),ISBLANK(J16)),"DF ERROR", IFERROR(astm(IF(J13="None","",IF(J13="Additive",E15+J14+J16,IF(J13="Multiplicative",E15*(J14+J16),""))),1),"") ) ->  | F16: =IFERROR(IF(OR(N13=0,O13=0,SUM(W11:W45)=0,SUM(AE11:AE45)=0),"ERROR", astm(0.55*D16+0.45*E16,1) ),"") ->  | I16: Enter a Highway DF: | Q16: 6 | R16: 7.424 | S16: 24.231 | T16: 349.6202107 | U16: 37.46077728 | V16: 288.0626061 | W16: 289.0626061 | Y16: 6 | AI16: CD All-Electric Range, adjusted (mi) [0] | AL16: =IFERROR(astm(0.55*AQ9+0.45*AR9,0),0) -> 22 | AO16: NEW | AP16: CD utilitized total fuel consumption rate (43/57 FUF, Rcdc), adjusted (gal-equiv/mile) [6] | AQ16: =astm( 1000000*SUMIF(AV11:AV45,"<=" & (AQ34),BP11:BP45), 0) / 1000000 -> 0.008005 | AR16: =astm( 1000000*SUMIF(BW11:BW45,"<=" & (AR34),CQ11:CQ45), 0) / 1000000 -> 0.005545 | AV16: 6 | AW16: =IF(ISBLANK(R16),"", IF(astm(V16,0)=0, 0, IFERROR(astm(R16,3)/astm(U16,1),0)) ) -> 0.1979733333 | AX16: =IF(ISBLANK(R16),"", IF(astm(V16,0)=0,0, astm( astm(V16,0)*astm(R16,3), 0) ) ) -> 2138 | AY16: =IF(ISBLANK(S16),"",(astm(S16,3)-astm(S15,3))) -> 0.232 | AZ16: =IF(ISBLANK(T16),"",astm(AY16*astm(T16,2),1)) -> 81.1 | BA16: =IFERROR(astm( astm($W$46,3)*1000*(AZ16/AQ13),1),"") -> 92 | BB16: =IF(ISBLANK(R16),"",7.45+BB15) -> 44.7 | BC16: =IFERROR(BA16/($J$19*astm(R16,3)),"") -> 0.000367667746 | BD16: =IFERROR(BC16+AW16/astm(R16,3),"") -> 0.02703433441 | BE16: =IFERROR(astm(cityfuf(BB16),3)-astm(cityfuf(BB15),3),"") -> 0.058 | BF16: =IF(ISBLANK(R16),"", IF(astm(V16,0)=0, 0, IFERROR(BE16*astm(W16,0),"") ) ) -> 16.762 | BG16: 0.001567991396 | BH16: =IFERROR(BD16*astm(R16,3),"") -> 0.2007028987 | BI16: 0.7625286786 | BJ16: =IFERROR(BI16*astm(R16,3),"") -> 5.66101291 | BK16: 31.75583866 | BL16: =IFERROR(astm(mdiuf(BK16),3)-astm(mdiuf(BK15),3),"") -> 0.063 | BM16: =IF(ISBLANK(R16),"", IF( astm(V16,0)=0, 0, IFERROR(BL16*astm(V16,0)/(BI16),"") ) ) -> 23.79451489 | BN16: 0.002233572475 | BO16: =IFERROR(astm(cityfufalt(BK16),3)-astm(cityfufalt(BK15),3),"") -> 0.069 | BP16: 0.002446293663 | BQ16: =IF(ISBLANK(R16),"", IF( astm(V16,0)=0, 0, IFERROR(BO16*astm(W16,0)/(BI16),"") ) ) -> 26.15114757 | BR16: CD | BS16: =IF(AZ16="",1, MIN(IFERROR((AZ16/1000)/((AW16*$J$22)*$J$21/3600),1),IFERROR((SUMIFS(AZ11:AZ45,AV11:AV45,"<="&$AV16,AV11:AV45,">="&$AV16-1)/1000)/( $J$22*SUMIFS(AW11:AW45,AV11:AV45,"<="&$AV16,AV11:AV45,">="&$AV16-1)*$J$21/3600),1),IFERROR((SUMIFS(AZ11:AZ45,AV11:AV45,"<="&$AV16,AV11:AV45,">="&$AV16-2)/1000)/( $J$22*SUMIFS(AW11:AW45,AV11:AV45,"<="&$AV16,AV11:AV45,">="&$AV16-2)*$J$21/3600),1),IFERROR((SUMIFS(AZ11:AZ45,AV11:AV45,"<="&$AV16,AV11:AV45,">="&$AV16-3)/1000)/( $J$22*SUMIFS(AW11:AW45,AV11:AV45,"<="&$AV16,AV11:AV45,">="&$AV16-3)*$J$21/3600),1)) ) -> 0.01222118696 | BT16: CS based on 2% battery energy | BU16: =IF(AZ16="",1, MIN($AZ16/SUM($AZ11:$AZ16),SUMIFS(AZ11:AZ45,AV11:AV45,">="&$AV16-1,AV11:AV45,"<="&$AV16)/SUM($AZ11:$AZ16),SUMIFS(AZ11:AZ45,AV11:AV45,">="&$AV16-2,AV11:AV45,"<="&$AV16)/SUM($AZ11:$AZ16),SUMIFS(AZ11:AZ45,AV11:AV45,">="&$AV16-3,AV11:AV45,"<="&$AV16)/SUM($AZ11:$AZ16)) ) -> 0.00914451949 | BW16: 6 | CF16: =IFERROR(astm(highwayfuf(CC16)-highwayfuf(CC15),3),"") ->  | CM16: =IFERROR(astm(mdiuf(CL16)-mdiuf(CL15),3),"") ->  | CP16: =IFERROR(astm(highwayfufalt(CL16)-highwayfufalt(CL15),3),"") ->  | CT16: =IF(CA16="",1, MIN(IFERROR((CA16/1000)/((BX16*$J$22)*$J$21/3600),1),IFERROR((SUMIFS(CA11:CA45,BW11:BW45,"<="&$BW16,BW11:BW45,">="&$BW16-1)/1000)/( $J$22*SUMIFS(BX11:BX45,BW11:BW45,"<="&$BW16,BW11:BW45,">="&$BW16-1)*$J$21/3600),1),IFERROR((SUMIFS(CA11:CA45,BW11:BW45,"<="&$BW16,BW11:BW45,">="&$BW16-2)/1000)/( $J$22*SUMIFS(BX11:BX45,BW11:BW45,"<="&$BW16,BW11:BW45,">="&$BW16-2)*$J$21/3600),1),IFERROR((SUMIFS(CA11:CA45,BW11:BW45,"<="&$BW16,BW11:BW45,">="&$BW16-3)/1000)/( $J$22*SUMIFS(BX11:BX45,BW11:BW45,"<="&$BW16,BW11:BW45,">="&$BW16-3)*$J$21/3600),1)) ) -> 1 | CV16: =IF(CA16="",1, MIN($CA16/SUM($CA11:$CA16),SUMIFS(CA11:CA45,BW11:BW45,">="&$BW16-1,BW11:BW45,"<="&$BW16)/SUM($CA11:$CA16),SUMIFS(CA11:CA45,BW11:BW45,">="&$BW16-2,BW11:BW45,"<="&$BW16)/SUM($CA11:$CA16),SUMIFS(CA11:CA45,BW11:BW45,">="&$BW16-3,BW11:BW45,"<="&$BW16)/SUM($CA11:$CA16)) ) -> 1
C17: Label Values (5-Cycle Adjusted) | I17: Inputs & Conversions (most of these should not be changed) | Q17: 7 | R17: 7.429 | S17: 24 | T17: 351.4483612 | U17: 38.79094557 | V17: 251.3296508 | W17: 252.3296508 | Y17: 7 | AI17: Total Driving Range (Miles) [0] | AL17: =IFERROR(astm( IFERROR((astm(0.55*AQ38+0.45*AR38,0)+AL15),0) / 10,0) *10,0) -> 370 | AO17: NEW | AP17: CD utilitized total fuel consumption rate (MDIUF, Rcdc), adjusted (gal-equiv/mile) [6] | AQ17: =astm(SUMIF(AV11:AV45,"<=" & (AQ34),BN11:BN45)*1000000,0) / 1000000 -> 0.006419 | AR17: =astm(SUMIF(BW11:BW45,"<=" & (AR34),CO11:CO45)*1000000,0) / 1000000 -> 0.008133 | AV17: 7 | AW17: 0.1914690722 | AX17: 1865 | AY17: =IF(ISBLANK(S17),"",(astm(S17,3)-astm(S16,3))) -> -0.231 | AZ17: -81.2 | BA17: =IFERROR(astm( astm($W$46,3)*1000*(AZ17/AQ13),1),"") -> -92.1 | BB17: 52.15 | BC17: -0.0003678196615 | BD17: 0.02540537621 | BE17: =IFERROR(astm(cityfuf(BB17),3)-astm(cityfuf(BB16),3),"") -> 0.042 | BF17: 10.584 | BG17: 0.001067025801 | BH17: 0.1887365399 | BI17: 0.7569284069 | BJ17: 5.623221135 | BK17: 37.39495529 | BL17: =IFERROR(astm(mdiuf(BK17),3)-astm(mdiuf(BK16),3),"") -> 0.052 | BM17: 17.24337451 | BN17: 0.001745316401 | BO17: =IFERROR(astm(cityfufalt(BK17),3)-astm(cityfufalt(BK16),3),"") -> 0.052 | BP17: 0.001745316401 | BQ17: 17.31207322 | BR17: CD | BS17: =IF(AZ17="",1, MIN(IFERROR((AZ17/1000)/((AW17*$J$22)*$J$21/3600),1),IFERROR((SUMIFS(AZ11:AZ45,AV11:AV45,"<="&$AV17,AV11:AV45,">="&$AV17-1)/1000)/( $J$22*SUMIFS(AW11:AW45,AV11:AV45,"<="&$AV17,AV11:AV45,">="&$AV17-1)*$J$21/3600),1),IFERROR((SUMIFS(AZ11:AZ45,AV11:AV45,"<="&$AV17,AV11:AV45,">="&$AV17-2)/1000)/( $J$22*SUMIFS(AW11:AW45,AV11:AV45,"<="&$AV17,AV11:AV45,">="&$AV17-2)*$J$21/3600),1),IFERROR((SUMIFS(AZ11:AZ45,AV11:AV45,"<="&$AV17,AV11:AV45,">="&$AV17-3)/1000)/( $J$22*SUMIFS(AW11:AW45,AV11:AV45,"<="&$AV17,AV11:AV45,">="&$AV17-3)*$J$21/3600),1)) ) -> -0.01265192549 | BT17: CS based on 2% battery energy | BU17: =IF(AZ17="",1, MIN($AZ17/SUM($AZ11:$AZ17),SUMIFS(AZ11:AZ45,AV11:AV45,">="&$AV17-1,AV11:AV45,"<="&$AV17)/SUM($AZ11:$AZ17),SUMIFS(AZ11:AZ45,AV11:AV45,">="&$AV17-2,AV11:AV45,"<="&$AV17)/SUM($AZ11:$AZ17),SUMIFS(AZ11:AZ45,AV11:AV45,">="&$AV17-3,AV11:AV45,"<="&$AV17)/SUM($AZ11:$AZ17)) ) -> -0.009240398293 | BW17: 7 | CF17: =IFERROR(astm(highwayfuf(CC17)-highwayfuf(CC16),3),"") ->  | CM17: =IFERROR(astm(mdiuf(CL17)-mdiuf(CL16),3),"") ->  | CP17: =IFERROR(astm(highwayfufalt(CL17)-highwayfufalt(CL16),3),"") ->  | CT17: =IF(CA17="",1, MIN(IFERROR((CA17/1000)/((BX17*$J$22)*$J$21/3600),1),IFERROR((SUMIFS(CA11:CA45,BW11:BW45,"<="&$BW17,BW11:BW45,">="&$BW17-1)/1000)/( $J$22*SUMIFS(BX11:BX45,BW11:BW45,"<="&$BW17,BW11:BW45,">="&$BW17-1)*$J$21/3600),1),IFERROR((SUMIFS(CA11:CA45,BW11:BW45,"<="&$BW17,BW11:BW45,">="&$BW17-2)/1000)/( $J$22*SUMIFS(BX11:BX45,BW11:BW45,"<="&$BW17,BW11:BW45,">="&$BW17-2)*$J$21/3600),1),IFERROR((SUMIFS(CA11:CA45,BW11:BW45,"<="&$BW17,BW11:BW45,">="&$BW17-3)/1000)/( $J$22*SUMIFS(BX11:BX45,BW11:BW45,"<="&$BW17,BW11:BW45,">="&$BW17-3)*$J$21/3600),1)) ) -> 1 | CV17: =IF(CA17="",1, MIN($CA17/SUM($CA11:$CA17),SUMIFS(CA11:CA45,BW11:BW45,">="&$BW17-1,BW11:BW45,"<="&$BW17)/SUM($CA11:$CA17),SUMIFS(CA11:CA45,BW11:BW45,">="&$BW17-2,BW11:BW45,"<="&$BW17)/SUM($CA11:$CA17),SUMIFS(CA11:CA45,BW11:BW45,">="&$BW17-3,BW11:BW45,"<="&$BW17)/SUM($CA11:$CA17)) ) -> 1
C18: Charge-Depleting | D18: City | E18: Highway | F18: Combined | I18: DOE Petroleum Equivalence Factor (PEF): | J18: 82049 | Q18: 8 | Y18: 8 | AI18: CD Fuel Economy (MPGe) [0] | AL18: =IFERROR(astm(1/(0.55/AQ19+0.45/AR19),0),0) -> 83 | AP18: CD gasoline consumption (Rcda), unadjusted (gal) [1] | AQ18: =IFERROR(SUMIF(AV11:AV45,"<=" & AQ34-1,AW11:AW45)+AQ33*SUMIF(AV11:AV45,"=" & AQ34-1,AW11:AW45),0) -> 0 | AR18: =IFERROR(SUMIF(BW11:BW45,"<=" & AR34-1,BX11:BX45)+AR33*SUMIF(BW11:BW45,"=" & AR34-1,BX11:BX45),0) -> 0 | AV18: 8 | BA18: =IFERROR(astm( astm($W$46,3)*1000*(AZ18/AQ13),1),"") ->  | BE18: =IFERROR(astm(cityfuf(BB18),3)-astm(cityfuf(BB17),3),"") ->  | BL18: =IFERROR(astm(mdiuf(BK18),3)-astm(mdiuf(BK17),3),"") ->  | BO18: =IFERROR(astm(cityfufalt(BK18),3)-astm(cityfufalt(BK17),3),"") ->  | BS18: =IF(AZ18="",1, MIN(IFERROR((AZ18/1000)/((AW18*$J$22)*$J$21/3600),1),IFERROR((SUMIFS(AZ11:AZ45,AV11:AV45,"<="&$AV18,AV11:AV45,">="&$AV18-1)/1000)/( $J$22*SUMIFS(AW11:AW45,AV11:AV45,"<="&$AV18,AV11:AV45,">="&$AV18-1)*$J$21/3600),1),IFERROR((SUMIFS(AZ11:AZ45,AV11:AV45,"<="&$AV18,AV11:AV45,">="&$AV18-2)/1000)/( $J$22*SUMIFS(AW11:AW45,AV11:AV45,"<="&$AV18,AV11:AV45,">="&$AV18-2)*$J$21/3600),1),IFERROR((SUMIFS(AZ11:AZ45,AV11:AV45,"<="&$AV18,AV11:AV45,">="&$AV18-3)/1000)/( $J$22*SUMIFS(AW11:AW45,AV11:AV45,"<="&$AV18,AV11:AV45,">="&$AV18-3)*$J$21/3600),1)) ) -> 1 | BU18: =IF(AZ18="",1, MIN($AZ18/SUM($AZ11:$AZ18),SUMIFS(AZ11:AZ45,AV11:AV45,">="&$AV18-1,AV11:AV45,"<="&$AV18)/SUM($AZ11:$AZ18),SUMIFS(AZ11:AZ45,AV11:AV45,">="&$AV18-2,AV11:AV45,"<="&$AV18)/SUM($AZ11:$AZ18),SUMIFS(AZ11:AZ45,AV11:AV45,">="&$AV18-3,AV11:AV45,"<="&$AV18)/SUM($AZ11:$AZ18)) ) -> 1 | BW18: 8 | CF18: =IFERROR(astm(highwayfuf(CC18)-highwayfuf(CC17),3),"") ->  | CM18: =IFERROR(astm(mdiuf(CL18)-mdiuf(CL17),3),"") ->  | CP18: =IFERROR(astm(highwayfufalt(CL18)-highwayfufalt(CL17),3),"") ->  | CT18: =IF(CA18="",1, MIN(IFERROR((CA18/1000)/((BX18*$J$22)*$J$21/3600),1),IFERROR((SUMIFS(CA11:CA45,BW11:BW45,"<="&$BW18,BW11:BW45,">="&$BW18-1)/1000)/( $J$22*SUMIFS(BX11:BX45,BW11:BW45,"<="&$BW18,BW11:BW45,">="&$BW18-1)*$J$21/3600),1),IFERROR((SUMIFS(CA11:CA45,BW11:BW45,"<="&$BW18,BW11:BW45,">="&$BW18-2)/1000)/( $J$22*SUMIFS(BX11:BX45,BW11:BW45,"<="&$BW18,BW11:BW45,">="&$BW18-2)*$J$21/3600),1),IFERROR((SUMIFS(CA11:CA45,BW11:BW45,"<="&$BW18,BW11:BW45,">="&$BW18-3)/1000)/( $J$22*SUMIFS(BX11:BX45,BW11:BW45,"<="&$BW18,BW11:BW45,">="&$BW18-3)*$J$21/3600),1)) ) -> 1 | CV18: =IF(CA18="",1, MIN($CA18/SUM($CA11:$CA18),SUMIFS(CA11:CA45,BW11:BW45,">="&$BW18-1,BW11:BW45,"<="&$BW18)/SUM($CA11:$CA18),SUMIFS(CA11:CA45,BW11:BW45,">="&$BW18-2,BW11:BW45,"<="&$BW18)/SUM($CA11:$CA18),SUMIFS(CA11:CA45,BW11:BW45,">="&$BW18-3,BW11:BW45,"<="&$BW18)/SUM($CA11:$CA18)) ) -> 1
C19: Charge-depleting Range (Miles) | D19: =IF($N$7+$N$55+$N$103=0,SUM(IFERROR(AQ7,0),IFERROR(AQ55,0),IFERROR(AQ103,0)) / ((AQ7<>0)+(AQ55<>0)+(AQ103<>0)),($N$7*AQ7+$N$55*AQ55+$N$103*AQ103)/($N$7+$N$55+$N$103)) -> 19.781 | E19: =IF($N$7+$N$55+$N$103=0,SUM(IFERROR(AR7,0),IFERROR(AR55,0),IFERROR(AR103,0)) / ((AR7<>0)+(AR55<>0)+(AR103<>0)),($N$7*AR7+$N$55*AR55+$N$103*AR103)/($N$7+$N$55+$N$103)) -> 28.716 | F19: =astm(0.55*D19+0.45*E19,0) -> 24 | I19: Watt-hours of energy per gallon of gasoline: | J19: 33705 | Q19: 9 | Y19: 9 | AI19: CD Electricity Consumption (kW-hr/100mi) [0] | AL19: =IFERROR(astm(0.55*AQ12+0.45*AR12,0),0) -> 43 | AP19: CD fuel economy (Rcda), adjusted (MPGe) [4] | AQ19: =IFERROR(astm( AQ7/ ( SUMIF(AV11:AV45,"<=" & (AQ34-1),BH11:BH45) + AQ33*SUMIF(AV11:AV45,"=" & (AQ34-1),BH11:BH45) ),4),0) -> 71.3794 | AR19: =IFERROR(astm( AR7/ ( SUMIF(BW11:BW45,"<=" & (AR34-1),CI11:CI45) + AR33*SUMIF(BW11:BW45,"=" & (AR34-1),CI11:CI45) ),4),0) -> 102.7466 | AV19: 9 | BA19: =IFERROR(astm( astm($W$46,3)*1000*(AZ19/AQ13),1),"") ->  | BE19: =IFERROR(astm(cityfuf(BB19),3)-astm(cityfuf(BB18),3),"") ->  | BL19: =IFERROR(astm(mdiuf(BK19),3)-astm(mdiuf(BK18),3),"") ->  | BO19: =IFERROR(astm(cityfufalt(BK19),3)-astm(cityfufalt(BK18),3),"") ->  | BS19: =IF(AZ19="",1, MIN(IFERROR((AZ19/1000)/((AW19*$J$22)*$J$21/3600),1),IFERROR((SUMIFS(AZ11:AZ45,AV11:AV45,"<="&$AV19,AV11:AV45,">="&$AV19-1)/1000)/( $J$22*SUMIFS(AW11:AW45,AV11:AV45,"<="&$AV19,AV11:AV45,">="&$AV19-1)*$J$21/3600),1),IFERROR((SUMIFS(AZ11:AZ45,AV11:AV45,"<="&$AV19,AV11:AV45,">="&$AV19-2)/1000)/( $J$22*SUMIFS(AW11:AW45,AV11:AV45,"<="&$AV19,AV11:AV45,">="&$AV19-2)*$J$21/3600),1),IFERROR((SUMIFS(AZ11:AZ45,AV11:AV45,"<="&$AV19,AV11:AV45,">="&$AV19-3)/1000)/( $J$22*SUMIFS(AW11:AW45,AV11:AV45,"<="&$AV19,AV11:AV45,">="&$AV19-3)*$J$21/3600),1)) ) -> 1 | BU19: =IF(AZ19="",1, MIN($AZ19/SUM($AZ11:$AZ19),SUMIFS(AZ11:AZ45,AV11:AV45,">="&$AV19-1,AV11:AV45,"<="&$AV19)/SUM($AZ11:$AZ19),SUMIFS(AZ11:AZ45,AV11:AV45,">="&$AV19-2,AV11:AV45,"<="&$AV19)/SUM($AZ11:$AZ19),SUMIFS(AZ11:AZ45,AV11:AV45,">="&$AV19-3,AV11:AV45,"<="&$AV19)/SUM($AZ11:$AZ19)) ) -> 1 | BW19: 9 | CF19: =IFERROR(astm(highwayfuf(CC19)-highwayfuf(CC18),3),"") ->  | CM19: =IFERROR(astm(mdiuf(CL19)-mdiuf(CL18),3),"") ->  | CP19: =IFERROR(astm(highwayfufalt(CL19)-highwayfufalt(CL18),3),"") ->  | CT19: =IF(CA19="",1, MIN(IFERROR((CA19/1000)/((BX19*$J$22)*$J$21/3600),1),IFERROR((SUMIFS(CA11:CA45,BW11:BW45,"<="&$BW19,BW11:BW45,">="&$BW19-1)/1000)/( $J$22*SUMIFS(BX11:BX45,BW11:BW45,"<="&$BW19,BW11:BW45,">="&$BW19-1)*$J$21/3600),1),IFERROR((SUMIFS(CA11:CA45,BW11:BW45,"<="&$BW19,BW11:BW45,">="&$BW19-2)/1000)/( $J$22*SUMIFS(BX11:BX45,BW11:BW45,"<="&$BW19,BW11:BW45,">="&$BW19-2)*$J$21/3600),1),IFERROR((SUMIFS(CA11:CA45,BW11:BW45,"<="&$BW19,BW11:BW45,">="&$BW19-3)/1000)/( $J$22*SUMIFS(BX11:BX45,BW11:BW45,"<="&$BW19,BW11:BW45,">="&$BW19-3)*$J$21/3600),1)) ) -> 1 | CV19: =IF(CA19="",1, MIN($CA19/SUM($CA11:$CA19),SUMIFS(CA11:CA45,BW11:BW45,">="&$BW19-1,BW11:BW45,"<="&$BW19)/SUM($CA11:$CA19),SUMIFS(CA11:CA45,BW11:BW45,">="&$BW19-2,BW11:BW45,"<="&$BW19)/SUM($CA11:$CA19),SUMIFS(CA11:CA45,BW11:BW45,">="&$BW19-3,BW11:BW45,"<="&$BW19)/SUM($CA11:$CA19)) ) -> 1
C20: All-Electric Range (Miles) | D20: =IF($N$7+$N$55+$N$103=0,SUM(IFERROR(AQ9,0),IFERROR(AQ57,0),IFERROR(AQ105,0)) / ((AQ9<>0)+(AQ57<>0)+(AQ105<>0)),($N$7*AQ9+$N$55*AQ57+$N$103*AQ105)/($N$7+$N$55+$N$103)) -> 21.942 | E20: =IF($N$7+$N$55+$N$103=0,SUM(IFERROR(AR9,0),IFERROR(AR57,0),IFERROR(AR105,0)) / ((AR9<>0)+(AR57<>0)+(AR105<>0)),($N$7*AR9+$N$55*AR57+$N$103*AR105)/($N$7+$N$55+$N$103)) -> 21.086 | F20: =astm(0.55*D20+0.45*E20,0) -> 22 | I20: Grams of CO2 per gallon of gasoline/diesel: | J20: 8887 | Q20: 10 | Y20: 10 | AI20: CD Gasoline Consumption (gal/100mi) [0] | AL20: =IFERROR(astm(0.55*AQ20+0.45*AR20,1),0) -> 0 | AP20: CD gasoline consumption rate (Rcda), adjusted (gal/100mi) [4] | AQ20: =IFERROR(astm(100*(SUMIF(AV11:AV45,"<=" & AQ34-1,AW11:AW45)+AQ33*SUMIF(AV11:AV45,"=" & AQ34-1,AW11:AW45))/AQ7,4),0) -> 0 | AR20: =IFERROR(astm(100*(SUMIF(BW11:BW45,"<=" & AR34-1,BX11:BX45)+AR33*SUMIF(BW11:BW45,"=" & AR34-1,BX11:BX45))/AR7,4),0) -> 0 | AV20: 10 | BA20: =IFERROR(astm( astm($W$46,3)*1000*(AZ20/AQ13),1),"") ->  | BE20: =IFERROR(astm(cityfuf(BB20),3)-astm(cityfuf(BB19),3),"") ->  | BL20: =IFERROR(astm(mdiuf(BK20),3)-astm(mdiuf(BK19),3),"") ->  | BO20: =IFERROR(astm(cityfufalt(BK20),3)-astm(cityfufalt(BK19),3),"") ->  | BS20: =IF(AZ20="",1, MIN(IFERROR((AZ20/1000)/((AW20*$J$22)*$J$21/3600),1),IFERROR((SUMIFS(AZ11:AZ45,AV11:AV45,"<="&$AV20,AV11:AV45,">="&$AV20-1)/1000)/( $J$22*SUMIFS(AW11:AW45,AV11:AV45,"<="&$AV20,AV11:AV45,">="&$AV20-1)*$J$21/3600),1),IFERROR((SUMIFS(AZ11:AZ45,AV11:AV45,"<="&$AV20,AV11:AV45,">="&$AV20-2)/1000)/( $J$22*SUMIFS(AW11:AW45,AV11:AV45,"<="&$AV20,AV11:AV45,">="&$AV20-2)*$J$21/3600),1),IFERROR((SUMIFS(AZ11:AZ45,AV11:AV45,"<="&$AV20,AV11:AV45,">="&$AV20-3)/1000)/( $J$22*SUMIFS(AW11:AW45,AV11:AV45,"<="&$AV20,AV11:AV45,">="&$AV20-3)*$J$21/3600),1)) ) -> 1 | BU20: =IF(AZ20="",1, MIN($AZ20/SUM($AZ11:$AZ20),SUMIFS(AZ11:AZ45,AV11:AV45,">="&$AV20-1,AV11:AV45,"<="&$AV20)/SUM($AZ11:$AZ20),SUMIFS(AZ11:AZ45,AV11:AV45,">="&$AV20-2,AV11:AV45,"<="&$AV20)/SUM($AZ11:$AZ20),SUMIFS(AZ11:AZ45,AV11:AV45,">="&$AV20-3,AV11:AV45,"<="&$AV20)/SUM($AZ11:$AZ20)) ) -> 1 | BW20: 10 | CF20: =IFERROR(astm(highwayfuf(CC20)-highwayfuf(CC19),3),"") ->  | CM20: =IFERROR(astm(mdiuf(CL20)-mdiuf(CL19),3),"") ->  | CP20: =IFERROR(astm(highwayfufalt(CL20)-highwayfufalt(CL19),3),"") ->  | CT20: =IF(CA20="",1, MIN(IFERROR((CA20/1000)/((BX20*$J$22)*$J$21/3600),1),IFERROR((SUMIFS(CA11:CA45,BW11:BW45,"<="&$BW20,BW11:BW45,">="&$BW20-1)/1000)/( $J$22*SUMIFS(BX11:BX45,BW11:BW45,"<="&$BW20,BW11:BW45,">="&$BW20-1)*$J$21/3600),1),IFERROR((SUMIFS(CA11:CA45,BW11:BW45,"<="&$BW20,BW11:BW45,">="&$BW20-2)/1000)/( $J$22*SUMIFS(BX11:BX45,BW11:BW45,"<="&$BW20,BW11:BW45,">="&$BW20-2)*$J$21/3600),1),IFERROR((SUMIFS(CA11:CA45,BW11:BW45,"<="&$BW20,BW11:BW45,">="&$BW20-3)/1000)/( $J$22*SUMIFS(BX11:BX45,BW11:BW45,"<="&$BW20,BW11:BW45,">="&$BW20-3)*$J$21/3600),1)) ) -> 1 | CV20: =IF(CA20="",1, MIN($CA20/SUM($CA11:$CA20),SUMIFS(CA11:CA45,BW11:BW45,">="&$BW20-1,BW11:BW45,"<="&$BW20)/SUM($CA11:$CA20),SUMIFS(CA11:CA45,BW11:BW45,">="&$BW20-2,BW11:BW45,"<="&$BW20)/SUM($CA11:$CA20),SUMIFS(CA11:CA45,BW11:BW45,">="&$BW20-3,BW11:BW45,"<="&$BW20)/SUM($CA11:$CA20)) ) -> 1
C21: Total Driving Range (Miles) | F21: =astm( ( IF($N$7+$N$55+$N$103=0,SUM(IFERROR(( IFERROR((astm(0.55*AQ38+0.45*AR38,0)+AL15),0)),0),IFERROR((IFERROR((astm(0.55*AQ86+0.45*AR86,0)+AL63),0)),0),IFERROR(( IFERROR((astm(0.55*AQ134+0.45*AR134,0)+AL111),0)),0)) / ((( IFERROR((astm(0.55*AQ38+0.45*AR38,0)+AL15),0))<>0)+((IFERROR((astm(0.55*AQ86+0.45*AR86,0)+AL63),0))<>0)+(( IFERROR((astm(0.55*AQ134+0.45*AR134,0)+AL111),0))<>0)),($N$7*( IFERROR((astm(0.55*AQ38+0.45*AR38,0)+AL15),0))+$N$55*(IFERROR((astm(0.55*AQ86+0.45*AR86,0)+AL63),0))+$N$103*( IFERROR((astm(0.55*AQ134+0.45*AR134,0)+AL111),0)))/($N$7+$N$55+$N$103)) ) / 10,0 ) * 10 -> 370 | I21: Fuel lower heating value (kJ/kg): | J21: 43020 | Q21: 11 | Y21: 11 | AI21: Charge-Sustaining | AL21: Combined | AO21: NEW | AP21: CD fuel economy (Rcda), unadjusted (MPGe) [4] | AQ21: =astm(IFERROR(AQ6/ ( SUMIF(AV11:AV45,"<=" & (AQ34-1),BH11:BH45) + AQ33*SUMIF(AV11:AV45,"=" & (AQ34-1),BH11:BH45) ),0),4) -> 101.9721 | AR21: =astm(IFERROR(AR6/ ( SUMIF(BW11:BW45,"<=" & (AR34-1),CI11:CI45) + AR33*SUMIF(BW11:BW45,"=" & (AR34-1),CI11:CI45) ),0),4) -> 146.742 | AV21: 11 | BA21: =IFERROR(astm( astm($W$46,3)*1000*(AZ21/AQ13),1),"") ->  | BE21: =IFERROR(astm(cityfuf(BB21),3)-astm(cityfuf(BB20),3),"") ->  | BL21: =IFERROR(astm(mdiuf(BK21),3)-astm(mdiuf(BK20),3),"") ->  | BO21: =IFERROR(astm(cityfufalt(BK21),3)-astm(cityfufalt(BK20),3),"") ->  | BS21: =IF(AZ21="",1, MIN(IFERROR((AZ21/1000)/((AW21*$J$22)*$J$21/3600),1),IFERROR((SUMIFS(AZ11:AZ45,AV11:AV45,"<="&$AV21,AV11:AV45,">="&$AV21-1)/1000)/( $J$22*SUMIFS(AW11:AW45,AV11:AV45,"<="&$AV21,AV11:AV45,">="&$AV21-1)*$J$21/3600),1),IFERROR((SUMIFS(AZ11:AZ45,AV11:AV45,"<="&$AV21,AV11:AV45,">="&$AV21-2)/1000)/( $J$22*SUMIFS(AW11:AW45,AV11:AV45,"<="&$AV21,AV11:AV45,">="&$AV21-2)*$J$21/3600),1),IFERROR((SUMIFS(AZ11:AZ45,AV11:AV45,"<="&$AV21,AV11:AV45,">="&$AV21-3)/1000)/( $J$22*SUMIFS(AW11:AW45,AV11:AV45,"<="&$AV21,AV11:AV45,">="&$AV21-3)*$J$21/3600),1)) ) -> 1 | BU21: =IF(AZ21="",1, MIN($AZ21/SUM($AZ11:$AZ21),SUMIFS(AZ11:AZ45,AV11:AV45,">="&$AV21-1,AV11:AV45,"<="&$AV21)/SUM($AZ11:$AZ21),SUMIFS(AZ11:AZ45,AV11:AV45,">="&$AV21-2,AV11:AV45,"<="&$AV21)/SUM($AZ11:$AZ21),SUMIFS(AZ11:AZ45,AV11:AV45,">="&$AV21-3,AV11:AV45,"<="&$AV21)/SUM($AZ11:$AZ21)) ) -> 1 | BW21: 11 | CF21: =IFERROR(astm(highwayfuf(CC21)-highwayfuf(CC20),3),"") ->  | CM21: =IFERROR(astm(mdiuf(CL21)-mdiuf(CL20),3),"") ->  | CP21: =IFERROR(astm(highwayfufalt(CL21)-highwayfufalt(CL20),3),"") ->  | CT21: =IF(CA21="",1, MIN(IFERROR((CA21/1000)/((BX21*$J$22)*$J$21/3600),1),IFERROR((SUMIFS(CA11:CA45,BW11:BW45,"<="&$BW21,BW11:BW45,">="&$BW21-1)/1000)/( $J$22*SUMIFS(BX11:BX45,BW11:BW45,"<="&$BW21,BW11:BW45,">="&$BW21-1)*$J$21/3600),1),IFERROR((SUMIFS(CA11:CA45,BW11:BW45,"<="&$BW21,BW11:BW45,">="&$BW21-2)/1000)/( $J$22*SUMIFS(BX11:BX45,BW11:BW45,"<="&$BW21,BW11:BW45,">="&$BW21-2)*$J$21/3600),1),IFERROR((SUMIFS(CA11:CA45,BW11:BW45,"<="&$BW21,BW11:BW45,">="&$BW21-3)/1000)/( $J$22*SUMIFS(BX11:BX45,BW11:BW45,"<="&$BW21,BW11:BW45,">="&$BW21-3)*$J$21/3600),1)) ) -> 1 | CV21: =IF(CA21="",1, MIN($CA21/SUM($CA11:$CA21),SUMIFS(CA11:CA45,BW11:BW45,">="&$BW21-1,BW11:BW45,"<="&$BW21)/SUM($CA11:$CA21),SUMIFS(CA11:CA45,BW11:BW45,">="&$BW21-2,BW11:BW45,"<="&$BW21)/SUM($CA11:$CA21),SUMIFS(CA11:CA45,BW11:BW45,">="&$BW21-3,BW11:BW45,"<="&$BW21)/SUM($CA11:$CA21)) ) -> 1
C22: CD Fuel Economy (MPGe) | D22: =astm(IF($N$7+$N$55+$N$103=0, ((AQ19<>0)+(AQ67<>0)+(AQ115<>0))/(IFERROR(1/AQ19,0)+IFERROR(1/AQ67,0)+IFERROR(1/AQ115,0)), ($N$7+$N$55+$N$103) / (IFERROR($N$7/AQ19,0)+IFERROR($N$55/AQ67,0)+IFERROR($N$103/AQ115,0)) ),4) -> 71.3794 | E22: =astm(IF($N$7+$N$55+$N$103=0, ((AR19<>0)+(AR67<>0)+(AR115<>0))/(IFERROR(1/AR19,0)+IFERROR(1/AR67,0)+IFERROR(1/AR115,0)), ($N$7+$N$55+$N$103) / (IFERROR($N$7/AR19,0)+IFERROR($N$55/AR67,0)+IFERROR($N$103/AR115,0)) ),4) -> 102.7466 | F22: =astm(1/(0.55/D22+0.45/E22),0) -> 83 | I22: Fuel density (kg/gal): | J22: 2.805 | Q22: 12 | Y22: 12 | AI22: CS Fuel Economy (MPG) [0] | AJ22: =IFERROR(astm(N12,4),0) -> 30.3323 | AK22: =IFERROR(astm(O12,4),0) -> 34.4 | AL22: =IFERROR(astm(1/(0.55/AJ22+0.45/AK22),0),0) -> 32 | AO22: NEW | AP22: CD AC electricity consumption rate (Rcda), unadjusted (kW-hr/100mi) [3] | AQ22: =astm(IFERROR((IFERROR( ( SUMIF(AV11:AV45,"<=" & (AQ34-1),BA11:BA45) + AQ33*SUMIF(AV11:AV45,"=" & (AQ34-1),BA11:BA45) ) / AQ6 *100 / 1000, 0)),0),3) -> 33.053 | AR22: =astm(IFERROR((IFERROR( ( SUMIF(BW11:BW45,"<=" & (AR34-1),CB11:CB45) + AR33*SUMIF(BW11:BW45,"=" & (AR34-1),CB11:CB45) ) / AR6 *100 / 1000, 0)),0),3) -> 22.969 | AV22: 12 | BA22: =IFERROR(astm( astm($W$46,3)*1000*(AZ22/AQ13),1),"") ->  | BE22: =IFERROR(astm(cityfuf(BB22),3)-astm(cityfuf(BB21),3),"") ->  | BL22: =IFERROR(astm(mdiuf(BK22),3)-astm(mdiuf(BK21),3),"") ->  | BO22: =IFERROR(astm(cityfufalt(BK22),3)-astm(cityfufalt(BK21),3),"") ->  | BS22: =IF(AZ22="",1, MIN(IFERROR((AZ22/1000)/((AW22*$J$22)*$J$21/3600),1),IFERROR((SUMIFS(AZ11:AZ45,AV11:AV45,"<="&$AV22,AV11:AV45,">="&$AV22-1)/1000)/( $J$22*SUMIFS(AW11:AW45,AV11:AV45,"<="&$AV22,AV11:AV45,">="&$AV22-1)*$J$21/3600),1),IFERROR((SUMIFS(AZ11:AZ45,AV11:AV45,"<="&$AV22,AV11:AV45,">="&$AV22-2)/1000)/( $J$22*SUMIFS(AW11:AW45,AV11:AV45,"<="&$AV22,AV11:AV45,">="&$AV22-2)*$J$21/3600),1),IFERROR((SUMIFS(AZ11:AZ45,AV11:AV45,"<="&$AV22,AV11:AV45,">="&$AV22-3)/1000)/( $J$22*SUMIFS(AW11:AW45,AV11:AV45,"<="&$AV22,AV11:AV45,">="&$AV22-3)*$J$21/3600),1)) ) -> 1 | BU22: =IF(AZ22="",1, MIN($AZ22/SUM($AZ11:$AZ22),SUMIFS(AZ11:AZ45,AV11:AV45,">="&$AV22-1,AV11:AV45,"<="&$AV22)/SUM($AZ11:$AZ22),SUMIFS(AZ11:AZ45,AV11:AV45,">="&$AV22-2,AV11:AV45,"<="&$AV22)/SUM($AZ11:$AZ22),SUMIFS(AZ11:AZ45,AV11:AV45,">="&$AV22-3,AV11:AV45,"<="&$AV22)/SUM($AZ11:$AZ22)) ) -> 1 | BW22: 12 | CF22: =IFERROR(astm(highwayfuf(CC22)-highwayfuf(CC21),3),"") ->  | CM22: =IFERROR(astm(mdiuf(CL22)-mdiuf(CL21),3),"") ->  | CP22: =IFERROR(astm(highwayfufalt(CL22)-highwayfufalt(CL21),3),"") ->  | CT22: =IF(CA22="",1, MIN(IFERROR((CA22/1000)/((BX22*$J$22)*$J$21/3600),1),IFERROR((SUMIFS(CA11:CA45,BW11:BW45,"<="&$BW22,BW11:BW45,">="&$BW22-1)/1000)/( $J$22*SUMIFS(BX11:BX45,BW11:BW45,"<="&$BW22,BW11:BW45,">="&$BW22-1)*$J$21/3600),1),IFERROR((SUMIFS(CA11:CA45,BW11:BW45,"<="&$BW22,BW11:BW45,">="&$BW22-2)/1000)/( $J$22*SUMIFS(BX11:BX45,BW11:BW45,"<="&$BW22,BW11:BW45,">="&$BW22-2)*$J$21/3600),1),IFERROR((SUMIFS(CA11:CA45,BW11:BW45,"<="&$BW22,BW11:BW45,">="&$BW22-3)/1000)/( $J$22*SUMIFS(BX11:BX45,BW11:BW45,"<="&$BW22,BW11:BW45,">="&$BW22-3)*$J$21/3600),1)) ) -> 1 | CV22: =IF(CA22="",1, MIN($CA22/SUM($CA11:$CA22),SUMIFS(CA11:CA45,BW11:BW45,">="&$BW22-1,BW11:BW45,"<="&$BW22)/SUM($CA11:$CA22),SUMIFS(CA11:CA45,BW11:BW45,">="&$BW22-2,BW11:BW45,"<="&$BW22)/SUM($CA11:$CA22),SUMIFS(CA11:CA45,BW11:BW45,">="&$BW22-3,BW11:BW45,"<="&$BW22)/SUM($CA11:$CA22)) ) -> 1
C23: CD Electricity Consumption (kW-hr/100mi) | D23: =astm( IF($N$7+$N$55+$N$103=0,SUM(IFERROR(AQ12,0),IFERROR(AQ60,0),IFERROR(AQ108,0)) / ((AQ12<>0)+(AQ60<>0)+(AQ108<>0)),($N$7*AQ12+$N$55*AQ60+$N$103*AQ108)/($N$7+$N$55+$N$103)),4) -> 50.372 | E23: =astm( IF($N$7+$N$55+$N$103=0,SUM(IFERROR(AR12,0),IFERROR(AR60,0),IFERROR(AR108,0)) / ((AR12<>0)+(AR60<>0)+(AR108<>0)),($N$7*AR12+$N$55*AR60+$N$103*AR108)/($N$7+$N$55+$N$103)),4) -> 33.316 | F23: =astm(0.55*D23+0.45*E23,4) -> 42.6968 | Q23: 13 | Y23: 13 | AI23: CS Fuel Consumption (gal/100mi) [1] | AJ23: =IFERROR(astm(100/AJ22,1),0) -> 3.3 | AK23: =IFERROR(astm(100/AK22,1),0) -> 2.9 | AL23: =IFERROR(astm(100/AL22,1),0) -> 3.1 | AP23: GHG EMISSIONS VALUES | AQ23: CITY | AR23: HIGHWAY | AV23: 13 | BA23: =IFERROR(astm( astm($W$46,3)*1000*(AZ23/AQ13),1),"") ->  | BE23: =IFERROR(astm(cityfuf(BB23),3)-astm(cityfuf(BB22),3),"") ->  | BL23: =IFERROR(astm(mdiuf(BK23),3)-astm(mdiuf(BK22),3),"") ->  | BO23: =IFERROR(astm(cityfufalt(BK23),3)-astm(cityfufalt(BK22),3),"") ->  | BS23: =IF(AZ23="",1, MIN(IFERROR((AZ23/1000)/((AW23*$J$22)*$J$21/3600),1),IFERROR((SUMIFS(AZ11:AZ45,AV11:AV45,"<="&$AV23,AV11:AV45,">="&$AV23-1)/1000)/( $J$22*SUMIFS(AW11:AW45,AV11:AV45,"<="&$AV23,AV11:AV45,">="&$AV23-1)*$J$21/3600),1),IFERROR((SUMIFS(AZ11:AZ45,AV11:AV45,"<="&$AV23,AV11:AV45,">="&$AV23-2)/1000)/( $J$22*SUMIFS(AW11:AW45,AV11:AV45,"<="&$AV23,AV11:AV45,">="&$AV23-2)*$J$21/3600),1),IFERROR((SUMIFS(AZ11:AZ45,AV11:AV45,"<="&$AV23,AV11:AV45,">="&$AV23-3)/1000)/( $J$22*SUMIFS(AW11:AW45,AV11:AV45,"<="&$AV23,AV11:AV45,">="&$AV23-3)*$J$21/3600),1)) ) -> 1 | BU23: =IF(AZ23="",1, MIN($AZ23/SUM($AZ11:$AZ23),SUMIFS(AZ11:AZ45,AV11:AV45,">="&$AV23-1,AV11:AV45,"<="&$AV23)/SUM($AZ11:$AZ23),SUMIFS(AZ11:AZ45,AV11:AV45,">="&$AV23-2,AV11:AV45,"<="&$AV23)/SUM($AZ11:$AZ23),SUMIFS(AZ11:AZ45,AV11:AV45,">="&$AV23-3,AV11:AV45,"<="&$AV23)/SUM($AZ11:$AZ23)) ) -> 1 | BW23: 13 | CF23: =IFERROR(astm(highwayfuf(CC23)-highwayfuf(CC22),3),"") ->  | CM23: =IFERROR(astm(mdiuf(CL23)-mdiuf(CL22),3),"") ->  | CP23: =IFERROR(astm(highwayfufalt(CL23)-highwayfufalt(CL22),3),"") ->  | CT23: =IF(CA23="",1, MIN(IFERROR((CA23/1000)/((BX23*$J$22)*$J$21/3600),1),IFERROR((SUMIFS(CA11:CA45,BW11:BW45,"<="&$BW23,BW11:BW45,">="&$BW23-1)/1000)/( $J$22*SUMIFS(BX11:BX45,BW11:BW45,"<="&$BW23,BW11:BW45,">="&$BW23-1)*$J$21/3600),1),IFERROR((SUMIFS(CA11:CA45,BW11:BW45,"<="&$BW23,BW11:BW45,">="&$BW23-2)/1000)/( $J$22*SUMIFS(BX11:BX45,BW11:BW45,"<="&$BW23,BW11:BW45,">="&$BW23-2)*$J$21/3600),1),IFERROR((SUMIFS(CA11:CA45,BW11:BW45,"<="&$BW23,BW11:BW45,">="&$BW23-3)/1000)/( $J$22*SUMIFS(BX11:BX45,BW11:BW45,"<="&$BW23,BW11:BW45,">="&$BW23-3)*$J$21/3600),1)) ) -> 1 | CV23: =IF(CA23="",1, MIN($CA23/SUM($CA11:$CA23),SUMIFS(CA11:CA45,BW11:BW45,">="&$BW23-1,BW11:BW45,"<="&$BW23)/SUM($CA11:$CA23),SUMIFS(CA11:CA45,BW11:BW45,">="&$BW23-2,BW11:BW45,"<="&$BW23)/SUM($CA11:$CA23),SUMIFS(CA11:CA45,BW11:BW45,">="&$BW23-3,BW11:BW45,"<="&$BW23)/SUM($CA11:$CA23)) ) -> 1
C24: CD Gasoline Consumption (gal/100mi) | D24: =IF($N$7+$N$55+$N$103=0,SUM(IFERROR(AQ20,0),IFERROR(AQ68,0),IFERROR(AQ116,0)) / ((AQ7<>0)+(AQ55<>0)+(AQ103<>0)), ($N$7*AQ20+$N$55*AQ68+$N$103*AQ116)/($N$7+$N$55+$N$103)) -> 0 | E24: =IF($N$7+$N$55+$N$103=0,SUM(IFERROR(AR20,0),IFERROR(AR68,0),IFERROR(AR116,0)) / ((AR7<>0)+(AR55<>0)+(AR103<>0)), ($N$7*AR20+$N$55*AR68+$N$103*AR116)/($N$7+$N$55+$N$103)) -> 0 | F24: =astm(0.55*D24+0.45*E24,1) -> 0 | I24: ERROR AND VALIDATION MESSAGES | Q24: 14 | Y24: 14 | AI24: Composite CD/CS | AL24: Combined | AP24: CD CO2 emissions rate (Rcda), unadjusted (g/mi) [1] | AQ24: =IFERROR(astm((SUMIF(AV11:AV45,"<=" & AQ34-1,AX11:AX45)+AQ33*SUMIF(AV11:AV45,"=" & AQ34-1,AX11:AX45))/AQ6,1),0) -> 0 | AR24: =IFERROR(astm((SUMIF(BW11:BW45,"<=" & AR34-1,BY11:BY45)+AR33*SUMIF(BW11:BW45,"=" & AR34-1,BY11:BY45))/AR6,1),0) -> 0 | AV24: 14 | BA24: =IFERROR(astm( astm($W$46,3)*1000*(AZ24/AQ13),1),"") ->  | BE24: =IFERROR(astm(cityfuf(BB24),3)-astm(cityfuf(BB23),3),"") ->  | BL24: =IFERROR(astm(mdiuf(BK24),3)-astm(mdiuf(BK23),3),"") ->  | BO24: =IFERROR(astm(cityfufalt(BK24),3)-astm(cityfufalt(BK23),3),"") ->  | BS24: =IF(AZ24="",1, MIN(IFERROR((AZ24/1000)/((AW24*$J$22)*$J$21/3600),1),IFERROR((SUMIFS(AZ11:AZ45,AV11:AV45,"<="&$AV24,AV11:AV45,">="&$AV24-1)/1000)/( $J$22*SUMIFS(AW11:AW45,AV11:AV45,"<="&$AV24,AV11:AV45,">="&$AV24-1)*$J$21/3600),1),IFERROR((SUMIFS(AZ11:AZ45,AV11:AV45,"<="&$AV24,AV11:AV45,">="&$AV24-2)/1000)/( $J$22*SUMIFS(AW11:AW45,AV11:AV45,"<="&$AV24,AV11:AV45,">="&$AV24-2)*$J$21/3600),1),IFERROR((SUMIFS(AZ11:AZ45,AV11:AV45,"<="&$AV24,AV11:AV45,">="&$AV24-3)/1000)/( $J$22*SUMIFS(AW11:AW45,AV11:AV45,"<="&$AV24,AV11:AV45,">="&$AV24-3)*$J$21/3600),1)) ) -> 1 | BU24: =IF(AZ24="",1, MIN($AZ24/SUM($AZ11:$AZ24),SUMIFS(AZ11:AZ45,AV11:AV45,">="&$AV24-1,AV11:AV45,"<="&$AV24)/SUM($AZ11:$AZ24),SUMIFS(AZ11:AZ45,AV11:AV45,">="&$AV24-2,AV11:AV45,"<="&$AV24)/SUM($AZ11:$AZ24),SUMIFS(AZ11:AZ45,AV11:AV45,">="&$AV24-3,AV11:AV45,"<="&$AV24)/SUM($AZ11:$AZ24)) ) -> 1 | BW24: 14 | CF24: =IFERROR(astm(highwayfuf(CC24)-highwayfuf(CC23),3),"") ->  | CM24: =IFERROR(astm(mdiuf(CL24)-mdiuf(CL23),3),"") ->  | CP24: =IFERROR(astm(highwayfufalt(CL24)-highwayfufalt(CL23),3),"") ->  | CT24: =IF(CA24="",1, MIN(IFERROR((CA24/1000)/((BX24*$J$22)*$J$21/3600),1),IFERROR((SUMIFS(CA11:CA45,BW11:BW45,"<="&$BW24,BW11:BW45,">="&$BW24-1)/1000)/( $J$22*SUMIFS(BX11:BX45,BW11:BW45,"<="&$BW24,BW11:BW45,">="&$BW24-1)*$J$21/3600),1),IFERROR((SUMIFS(CA11:CA45,BW11:BW45,"<="&$BW24,BW11:BW45,">="&$BW24-2)/1000)/( $J$22*SUMIFS(BX11:BX45,BW11:BW45,"<="&$BW24,BW11:BW45,">="&$BW24-2)*$J$21/3600),1),IFERROR((SUMIFS(CA11:CA45,BW11:BW45,"<="&$BW24,BW11:BW45,">="&$BW24-3)/1000)/( $J$22*SUMIFS(BX11:BX45,BW11:BW45,"<="&$BW24,BW11:BW45,">="&$BW24-3)*$J$21/3600),1)) ) -> 1 | CV24: =IF(CA24="",1, MIN($CA24/SUM($CA11:$CA24),SUMIFS(CA11:CA45,BW11:BW45,">="&$BW24-1,BW11:BW45,"<="&$BW24)/SUM($CA11:$CA24),SUMIFS(CA11:CA45,BW11:BW45,">="&$BW24-2,BW11:BW45,"<="&$BW24)/SUM($CA11:$CA24),SUMIFS(CA11:CA45,BW11:BW45,">="&$BW24-3,BW11:BW45,"<="&$BW24)/SUM($CA11:$CA24)) ) -> 1
C25: Charge-Sustaining | D25: City | E25: Highway | F25: Combined | I25: =IF(J18=73844,"You chose a Petroleum Equivalence Factor that is not common. Make sure this is correct.", "") ->  | Q25: 15 | Y25: 15 | AI25: Annual Fuel Cost ($/year) [0] | AL25: =astm( IFERROR(15000*astm(0.55*AQ46+0.45*AR46,3),0)/50,0) * 50 -> 1050 | AO25: NEW | AP25: CD CO2 emissions rate (Rcda), adjusted (g/mi) [1] | AQ25: =IFERROR(astm( IFERROR((SUMIF(AV11:AV45,"<=" & AQ34-1,AX11:AX45)+AQ33*SUMIF(AV11:AV45,"=" & AQ34-1,AX11:AX45))/AQ7,#VALUE!), 1),0) -> 0 | AR25: =IFERROR(astm( IFERROR((SUMIF(BW11:BW45,"<=" & AR34-1,BY11:BY45)+AR33*SUMIF(BW11:BW45,"=" & AR34-1,BY11:BY45))/AR7,#VALUE!), 1),0) -> 0 | AV25: 15 | BA25: =IFERROR(astm( astm($W$46,3)*1000*(AZ25/AQ13),1),"") ->  | BE25: =IFERROR(astm(cityfuf(BB25),3)-astm(cityfuf(BB24),3),"") ->  | BL25: =IFERROR(astm(mdiuf(BK25),3)-astm(mdiuf(BK24),3),"") ->  | BO25: =IFERROR(astm(cityfufalt(BK25),3)-astm(cityfufalt(BK24),3),"") ->  | BS25: =IF(AZ25="",1, MIN(IFERROR((AZ25/1000)/((AW25*$J$22)*$J$21/3600),1),IFERROR((SUMIFS(AZ11:AZ45,AV11:AV45,"<="&$AV25,AV11:AV45,">="&$AV25-1)/1000)/( $J$22*SUMIFS(AW11:AW45,AV11:AV45,"<="&$AV25,AV11:AV45,">="&$AV25-1)*$J$21/3600),1),IFERROR((SUMIFS(AZ11:AZ45,AV11:AV45,"<="&$AV25,AV11:AV45,">="&$AV25-2)/1000)/( $J$22*SUMIFS(AW11:AW45,AV11:AV45,"<="&$AV25,AV11:AV45,">="&$AV25-2)*$J$21/3600),1),IFERROR((SUMIFS(AZ11:AZ45,AV11:AV45,"<="&$AV25,AV11:AV45,">="&$AV25-3)/1000)/( $J$22*SUMIFS(AW11:AW45,AV11:AV45,"<="&$AV25,AV11:AV45,">="&$AV25-3)*$J$21/3600),1)) ) -> 1 | BU25: =IF(AZ25="",1, MIN($AZ25/SUM($AZ11:$AZ25),SUMIFS(AZ11:AZ45,AV11:AV45,">="&$AV25-1,AV11:AV45,"<="&$AV25)/SUM($AZ11:$AZ25),SUMIFS(AZ11:AZ45,AV11:AV45,">="&$AV25-2,AV11:AV45,"<="&$AV25)/SUM($AZ11:$AZ25),SUMIFS(AZ11:AZ45,AV11:AV45,">="&$AV25-3,AV11:AV45,"<="&$AV25)/SUM($AZ11:$AZ25)) ) -> 1 | BW25: 15 | CF25: =IFERROR(astm(highwayfuf(CC25)-highwayfuf(CC24),3),"") ->  | CM25: =IFERROR(astm(mdiuf(CL25)-mdiuf(CL24),3),"") ->  | CP25: =IFERROR(astm(highwayfufalt(CL25)-highwayfufalt(CL24),3),"") ->  | CT25: =IF(CA25="",1, MIN(IFERROR((CA25/1000)/((BX25*$J$22)*$J$21/3600),1),IFERROR((SUMIFS(CA11:CA45,BW11:BW45,"<="&$BW25,BW11:BW45,">="&$BW25-1)/1000)/( $J$22*SUMIFS(BX11:BX45,BW11:BW45,"<="&$BW25,BW11:BW45,">="&$BW25-1)*$J$21/3600),1),IFERROR((SUMIFS(CA11:CA45,BW11:BW45,"<="&$BW25,BW11:BW45,">="&$BW25-2)/1000)/( $J$22*SUMIFS(BX11:BX45,BW11:BW45,"<="&$BW25,BW11:BW45,">="&$BW25-2)*$J$21/3600),1),IFERROR((SUMIFS(CA11:CA45,BW11:BW45,"<="&$BW25,BW11:BW45,">="&$BW25-3)/1000)/( $J$22*SUMIFS(BX11:BX45,BW11:BW45,"<="&$BW25,BW11:BW45,">="&$BW25-3)*$J$21/3600),1)) ) -> 1 | CV25: =IF(CA25="",1, MIN($CA25/SUM($CA11:$CA25),SUMIFS(CA11:CA45,BW11:BW45,">="&$BW25-1,BW11:BW45,"<="&$BW25)/SUM($CA11:$CA25),SUMIFS(CA11:CA45,BW11:BW45,">="&$BW25-2,BW11:BW45,"<="&$BW25)/SUM($CA11:$CA25),SUMIFS(CA11:CA45,BW11:BW45,">="&$BW25-3,BW11:BW45,"<="&$BW25)/SUM($CA11:$CA25)) ) -> 1
C26: CS Fuel Economy (MPG) | D26: =IF($N$7+$N$55+$N$103=0, ((AJ22<>0)+(AJ70<>0)+(AJ118<>0))/(IFERROR(1/AJ22,0)+IFERROR(1/AJ70,0)+IFERROR(1/AJ118,0)), ($N$7+$N$55+$N$103) / (IFERROR($N$7/AJ22,0)+IFERROR($N$55/AJ70,0)+IFERROR($N$103/AJ118,0)) ) -> 30.3323 | E26: =IF($N$7+$N$55+$N$103=0, ((AK22<>0)+(AK70<>0)+(AK118<>0))/(IFERROR(1/AK22,0)+IFERROR(1/AK70,0)+IFERROR(1/AK118,0)), ($N$7+$N$55+$N$103) / (IFERROR($N$7/AK22,0)+IFERROR($N$55/AK70,0)+IFERROR($N$103/AK118,0)) ) -> 34.4 | F26: =astm(1/(0.55/D26+0.45/E26),0) -> 32 | I26: =IF(J19<>33705,"You are using a non-standard value for energy per gallon. This is allowed, but you must explain why.", "") ->  | Q26: 16 | Y26: 16 | AI26: 5-Year Fuel Savings Value ($/5 years) [0] | AL26: =$F$38-5*AL25 -> 2250 | AO26: NEW | AP26: CD utilitized CO2 (MDIUF, Rcdc), adjusted (g/mi) [1] | AQ26: =astm(SUMIF(AV11:AV45,"<=" & (AQ34),BM11:BM45),1) -> 0 | AR26: =astm(SUMIF(BW11:BW45,"<=" & (AR34),CN11:CN45),1) -> 21.4 | AV26: 16 | BA26: =IFERROR(astm( astm($W$46,3)*1000*(AZ26/AQ13),1),"") ->  | BE26: =IFERROR(astm(cityfuf(BB26),3)-astm(cityfuf(BB25),3),"") ->  | BL26: =IFERROR(astm(mdiuf(BK26),3)-astm(mdiuf(BK25),3),"") ->  | BO26: =IFERROR(astm(cityfufalt(BK26),3)-astm(cityfufalt(BK25),3),"") ->  | BS26: =IF(AZ26="",1, MIN(IFERROR((AZ26/1000)/((AW26*$J$22)*$J$21/3600),1),IFERROR((SUMIFS(AZ11:AZ45,AV11:AV45,"<="&$AV26,AV11:AV45,">="&$AV26-1)/1000)/( $J$22*SUMIFS(AW11:AW45,AV11:AV45,"<="&$AV26,AV11:AV45,">="&$AV26-1)*$J$21/3600),1),IFERROR((SUMIFS(AZ11:AZ45,AV11:AV45,"<="&$AV26,AV11:AV45,">="&$AV26-2)/1000)/( $J$22*SUMIFS(AW11:AW45,AV11:AV45,"<="&$AV26,AV11:AV45,">="&$AV26-2)*$J$21/3600),1),IFERROR((SUMIFS(AZ11:AZ45,AV11:AV45,"<="&$AV26,AV11:AV45,">="&$AV26-3)/1000)/( $J$22*SUMIFS(AW11:AW45,AV11:AV45,"<="&$AV26,AV11:AV45,">="&$AV26-3)*$J$21/3600),1)) ) -> 1 | BU26: =IF(AZ26="",1, MIN($AZ26/SUM($AZ11:$AZ26),SUMIFS(AZ11:AZ45,AV11:AV45,">="&$AV26-1,AV11:AV45,"<="&$AV26)/SUM($AZ11:$AZ26),SUMIFS(AZ11:AZ45,AV11:AV45,">="&$AV26-2,AV11:AV45,"<="&$AV26)/SUM($AZ11:$AZ26),SUMIFS(AZ11:AZ45,AV11:AV45,">="&$AV26-3,AV11:AV45,"<="&$AV26)/SUM($AZ11:$AZ26)) ) -> 1 | BW26: 16 | CF26: =IFERROR(astm(highwayfuf(CC26)-highwayfuf(CC25),3),"") ->  | CM26: =IFERROR(astm(mdiuf(CL26)-mdiuf(CL25),3),"") ->  | CP26: =IFERROR(astm(highwayfufalt(CL26)-highwayfufalt(CL25),3),"") ->  | CT26: =IF(CA26="",1, MIN(IFERROR((CA26/1000)/((BX26*$J$22)*$J$21/3600),1),IFERROR((SUMIFS(CA11:CA45,BW11:BW45,"<="&$BW26,BW11:BW45,">="&$BW26-1)/1000)/( $J$22*SUMIFS(BX11:BX45,BW11:BW45,"<="&$BW26,BW11:BW45,">="&$BW26-1)*$J$21/3600),1),IFERROR((SUMIFS(CA11:CA45,BW11:BW45,"<="&$BW26,BW11:BW45,">="&$BW26-2)/1000)/( $J$22*SUMIFS(BX11:BX45,BW11:BW45,"<="&$BW26,BW11:BW45,">="&$BW26-2)*$J$21/3600),1),IFERROR((SUMIFS(CA11:CA45,BW11:BW45,"<="&$BW26,BW11:BW45,">="&$BW26-3)/1000)/( $J$22*SUMIFS(BX11:BX45,BW11:BW45,"<="&$BW26,BW11:BW45,">="&$BW26-3)*$J$21/3600),1)) ) -> 1 | CV26: =IF(CA26="",1, MIN($CA26/SUM($CA11:$CA26),SUMIFS(CA11:CA45,BW11:BW45,">="&$BW26-1,BW11:BW45,"<="&$BW26)/SUM($CA11:$CA26),SUMIFS(CA11:CA45,BW11:BW45,">="&$BW26-2,BW11:BW45,"<="&$BW26)/SUM($CA11:$CA26),SUMIFS(CA11:CA45,BW11:BW45,">="&$BW26-3,BW11:BW45,"<="&$BW26)/SUM($CA11:$CA26)) ) -> 1
C27: CS Fuel Consumption (gal/100mi) | D27: =IF($N$7+$N$55+$N$103=0,SUM(IFERROR(AJ23,0),IFERROR(AJ71,0),IFERROR(AJ119,0)) / ((AJ23<>0)+(AJ71<>0)+(AJ119<>0)), ($N$7*AJ23+$N$55*AJ71+$N$103*AJ119)/($N$7+$N$55+$N$103)) -> 3.3 | E27: =IF($N$7+$N$55+$N$103=0,SUM(IFERROR(AK23,0),IFERROR(AK71,0),IFERROR(AK119,0)) / ((AK23<>0)+(AK71<>0)+(AK119<>0)), ($N$7*AK23+$N$55*AK71+$N$103*AK119)/($N$7+$N$55+$N$103)) -> 2.9 | F27: =astm(100/F26,1) -> 3.1 | I27: =IF(J20=10180,"You chose a conversion factor for grams of CO2 per gallon for diesel fuel. Make sure this is correct.","") ->  | Q27: 17 | Y27: 17 | AI27: Composite CO2 (g/mi) [0] | AL27: =astm(0.55*AQ48+0.45*AR48,0) -> 145 | AP27: CD utilitized CREE (55/45 FUF, Rcdc), unadjusted (g/mi) [1] | AQ27: =astm(SUMIF(AV11:AV45,"<=" & AQ34,BF11:BF45),1) -> 0 | AR27: =astm(SUMIF(BW11:BW45,"<=" & AR34,CG11:CG45),1) -> 14.8 | AV27: 17 | BA27: =IFERROR(astm( astm($W$46,3)*1000*(AZ27/AQ13),1),"") ->  | BE27: =IFERROR(astm(cityfuf(BB27),3)-astm(cityfuf(BB26),3),"") ->  | BL27: =IFERROR(astm(mdiuf(BK27),3)-astm(mdiuf(BK26),3),"") ->  | BO27: =IFERROR(astm(cityfufalt(BK27),3)-astm(cityfufalt(BK26),3),"") ->  | BS27: =IF(AZ27="",1, MIN(IFERROR((AZ27/1000)/((AW27*$J$22)*$J$21/3600),1),IFERROR((SUMIFS(AZ11:AZ45,AV11:AV45,"<="&$AV27,AV11:AV45,">="&$AV27-1)/1000)/( $J$22*SUMIFS(AW11:AW45,AV11:AV45,"<="&$AV27,AV11:AV45,">="&$AV27-1)*$J$21/3600),1),IFERROR((SUMIFS(AZ11:AZ45,AV11:AV45,"<="&$AV27,AV11:AV45,">="&$AV27-2)/1000)/( $J$22*SUMIFS(AW11:AW45,AV11:AV45,"<="&$AV27,AV11:AV45,">="&$AV27-2)*$J$21/3600),1),IFERROR((SUMIFS(AZ11:AZ45,AV11:AV45,"<="&$AV27,AV11:AV45,">="&$AV27-3)/1000)/( $J$22*SUMIFS(AW11:AW45,AV11:AV45,"<="&$AV27,AV11:AV45,">="&$AV27-3)*$J$21/3600),1)) ) -> 1 | BU27: =IF(AZ27="",1, MIN($AZ27/SUM($AZ11:$AZ27),SUMIFS(AZ11:AZ45,AV11:AV45,">="&$AV27-1,AV11:AV45,"<="&$AV27)/SUM($AZ11:$AZ27),SUMIFS(AZ11:AZ45,AV11:AV45,">="&$AV27-2,AV11:AV45,"<="&$AV27)/SUM($AZ11:$AZ27),SUMIFS(AZ11:AZ45,AV11:AV45,">="&$AV27-3,AV11:AV45,"<="&$AV27)/SUM($AZ11:$AZ27)) ) -> 1 | BW27: 17 | CF27: =IFERROR(astm(highwayfuf(CC27)-highwayfuf(CC26),3),"") ->  | CM27: =IFERROR(astm(mdiuf(CL27)-mdiuf(CL26),3),"") ->  | CP27: =IFERROR(astm(highwayfufalt(CL27)-highwayfufalt(CL26),3),"") ->  | CT27: =IF(CA27="",1, MIN(IFERROR((CA27/1000)/((BX27*$J$22)*$J$21/3600),1),IFERROR((SUMIFS(CA11:CA45,BW11:BW45,"<="&$BW27,BW11:BW45,">="&$BW27-1)/1000)/( $J$22*SUMIFS(BX11:BX45,BW11:BW45,"<="&$BW27,BW11:BW45,">="&$BW27-1)*$J$21/3600),1),IFERROR((SUMIFS(CA11:CA45,BW11:BW45,"<="&$BW27,BW11:BW45,">="&$BW27-2)/1000)/( $J$22*SUMIFS(BX11:BX45,BW11:BW45,"<="&$BW27,BW11:BW45,">="&$BW27-2)*$J$21/3600),1),IFERROR((SUMIFS(CA11:CA45,BW11:BW45,"<="&$BW27,BW11:BW45,">="&$BW27-3)/1000)/( $J$22*SUMIFS(BX11:BX45,BW11:BW45,"<="&$BW27,BW11:BW45,">="&$BW27-3)*$J$21/3600),1)) ) -> 1 | CV27: =IF(CA27="",1, MIN($CA27/SUM($CA11:$CA27),SUMIFS(CA11:CA45,BW11:BW45,">="&$BW27-1,BW11:BW45,"<="&$BW27)/SUM($CA11:$CA27),SUMIFS(CA11:CA45,BW11:BW45,">="&$BW27-2,BW11:BW45,"<="&$BW27)/SUM($CA11:$CA27),SUMIFS(CA11:CA45,BW11:BW45,">="&$BW27-3,BW11:BW45,"<="&$BW27)/SUM($CA11:$CA27)) ) -> 1
C28: Composite CD/CS | D28: City | E28: Highway | F28: Combined | Q28: 18 | Y28: 18 | AI28: Composite Fuel Economy (MPG) [0] | AL28: =IFERROR(astm(1/(0.55/AQ49+0.45/AR49),0),0) -> 45 | AO28: NEW | AP28: CD utilitized CREE (43/57 FUF, Rcdc), adjusted (g/mi) [1] | AQ28: =astm(SUMIF(AV11:AV45,"<=" & (AQ34),BQ11:BQ45),1) -> 0 | AR28: =astm(SUMIF(BW11:BW45,"<=" & (AR34),CR11:CR45),1) -> 18.4 | AV28: 18 | BA28: =IFERROR(astm( astm($W$46,3)*1000*(AZ28/AQ13),1),"") ->  | BE28: =IFERROR(astm(cityfuf(BB28),3)-astm(cityfuf(BB27),3),"") ->  | BL28: =IFERROR(astm(mdiuf(BK28),3)-astm(mdiuf(BK27),3),"") ->  | BO28: =IFERROR(astm(cityfufalt(BK28),3)-astm(cityfufalt(BK27),3),"") ->  | BS28: =IF(AZ28="",1, MIN(IFERROR((AZ28/1000)/((AW28*$J$22)*$J$21/3600),1),IFERROR((SUMIFS(AZ11:AZ45,AV11:AV45,"<="&$AV28,AV11:AV45,">="&$AV28-1)/1000)/( $J$22*SUMIFS(AW11:AW45,AV11:AV45,"<="&$AV28,AV11:AV45,">="&$AV28-1)*$J$21/3600),1),IFERROR((SUMIFS(AZ11:AZ45,AV11:AV45,"<="&$AV28,AV11:AV45,">="&$AV28-2)/1000)/( $J$22*SUMIFS(AW11:AW45,AV11:AV45,"<="&$AV28,AV11:AV45,">="&$AV28-2)*$J$21/3600),1),IFERROR((SUMIFS(AZ11:AZ45,AV11:AV45,"<="&$AV28,AV11:AV45,">="&$AV28-3)/1000)/( $J$22*SUMIFS(AW11:AW45,AV11:AV45,"<="&$AV28,AV11:AV45,">="&$AV28-3)*$J$21/3600),1)) ) -> 1 | BU28: =IF(AZ28="",1, MIN($AZ28/SUM($AZ11:$AZ28),SUMIFS(AZ11:AZ45,AV11:AV45,">="&$AV28-1,AV11:AV45,"<="&$AV28)/SUM($AZ11:$AZ28),SUMIFS(AZ11:AZ45,AV11:AV45,">="&$AV28-2,AV11:AV45,"<="&$AV28)/SUM($AZ11:$AZ28),SUMIFS(AZ11:AZ45,AV11:AV45,">="&$AV28-3,AV11:AV45,"<="&$AV28)/SUM($AZ11:$AZ28)) ) -> 1 | BW28: 18 | CF28: =IFERROR(astm(highwayfuf(CC28)-highwayfuf(CC27),3),"") ->  | CM28: =IFERROR(astm(mdiuf(CL28)-mdiuf(CL27),3),"") ->  | CP28: =IFERROR(astm(highwayfufalt(CL28)-highwayfufalt(CL27),3),"") ->  | CT28: =IF(CA28="",1, MIN(IFERROR((CA28/1000)/((BX28*$J$22)*$J$21/3600),1),IFERROR((SUMIFS(CA11:CA45,BW11:BW45,"<="&$BW28,BW11:BW45,">="&$BW28-1)/1000)/( $J$22*SUMIFS(BX11:BX45,BW11:BW45,"<="&$BW28,BW11:BW45,">="&$BW28-1)*$J$21/3600),1),IFERROR((SUMIFS(CA11:CA45,BW11:BW45,"<="&$BW28,BW11:BW45,">="&$BW28-2)/1000)/( $J$22*SUMIFS(BX11:BX45,BW11:BW45,"<="&$BW28,BW11:BW45,">="&$BW28-2)*$J$21/3600),1),IFERROR((SUMIFS(CA11:CA45,BW11:BW45,"<="&$BW28,BW11:BW45,">="&$BW28-3)/1000)/( $J$22*SUMIFS(BX11:BX45,BW11:BW45,"<="&$BW28,BW11:BW45,">="&$BW28-3)*$J$21/3600),1)) ) -> 1 | CV28: =IF(CA28="",1, MIN($CA28/SUM($CA11:$CA28),SUMIFS(CA11:CA45,BW11:BW45,">="&$BW28-1,BW11:BW45,"<="&$BW28)/SUM($CA11:$CA28),SUMIFS(CA11:CA45,BW11:BW45,">="&$BW28-2,BW11:BW45,"<="&$BW28)/SUM($CA11:$CA28),SUMIFS(CA11:CA45,BW11:BW45,">="&$BW28-3,BW11:BW45,"<="&$BW28)/SUM($CA11:$CA28)) ) -> 1
C29: Annual Fuel Cost ($/year) | F29: =astm( ( IF($N$7+$N$55+$N$103=0,SUM(IFERROR((IFERROR(15000*astm(0.55*AQ46+0.45*AR46,3),0)),0),IFERROR((IFERROR(15000*astm(0.55*AQ94+0.45*AR94,3),0)),0),IFERROR((IFERROR(15000*astm(0.55*AQ142+0.45*AR142,3),0)),0)) / (((IFERROR(15000*astm(0.55*AQ46+0.45*AR46,3),0))<>0)+((IFERROR(15000*astm(0.55*AQ94+0.45*AR94,3),0))<>0)+((IFERROR(15000*astm(0.55*AQ142+0.45*AR142,3),0))<>0)),($N$7*(IFERROR(15000*astm(0.55*AQ46+0.45*AR46,3),0))+$N$55*(IFERROR(15000*astm(0.55*AQ94+0.45*AR94,3),0))+$N$103*(IFERROR(15000*astm(0.55*AQ142+0.45*AR142,3),0)))/($N$7+$N$55+$N$103)) ) / 50,0 ) * 50 -> 1050 | Q29: 19 | Y29: 19 | AI29: HOV Lane Values | AJ29: City | AK29: Highway | AL29: Combined | AP29: UTILITY FACTORS & OTHER METRICS | AQ29: CITY | AR29: HIGHWAY | AV29: 19 | BA29: =IFERROR(astm( astm($W$46,3)*1000*(AZ29/AQ13),1),"") ->  | BE29: =IFERROR(astm(cityfuf(BB29),3)-astm(cityfuf(BB28),3),"") ->  | BL29: =IFERROR(astm(mdiuf(BK29),3)-astm(mdiuf(BK28),3),"") ->  | BO29: =IFERROR(astm(cityfufalt(BK29),3)-astm(cityfufalt(BK28),3),"") ->  | BS29: =IF(AZ29="",1, MIN(IFERROR((AZ29/1000)/((AW29*$J$22)*$J$21/3600),1),IFERROR((SUMIFS(AZ11:AZ45,AV11:AV45,"<="&$AV29,AV11:AV45,">="&$AV29-1)/1000)/( $J$22*SUMIFS(AW11:AW45,AV11:AV45,"<="&$AV29,AV11:AV45,">="&$AV29-1)*$J$21/3600),1),IFERROR((SUMIFS(AZ11:AZ45,AV11:AV45,"<="&$AV29,AV11:AV45,">="&$AV29-2)/1000)/( $J$22*SUMIFS(AW11:AW45,AV11:AV45,"<="&$AV29,AV11:AV45,">="&$AV29-2)*$J$21/3600),1),IFERROR((SUMIFS(AZ11:AZ45,AV11:AV45,"<="&$AV29,AV11:AV45,">="&$AV29-3)/1000)/( $J$22*SUMIFS(AW11:AW45,AV11:AV45,"<="&$AV29,AV11:AV45,">="&$AV29-3)*$J$21/3600),1)) ) -> 1 | BU29: =IF(AZ29="",1, MIN($AZ29/SUM($AZ11:$AZ29),SUMIFS(AZ11:AZ45,AV11:AV45,">="&$AV29-1,AV11:AV45,"<="&$AV29)/SUM($AZ11:$AZ29),SUMIFS(AZ11:AZ45,AV11:AV45,">="&$AV29-2,AV11:AV45,"<="&$AV29)/SUM($AZ11:$AZ29),SUMIFS(AZ11:AZ45,AV11:AV45,">="&$AV29-3,AV11:AV45,"<="&$AV29)/SUM($AZ11:$AZ29)) ) -> 1 | BW29: 19 | CF29: =IFERROR(astm(highwayfuf(CC29)-highwayfuf(CC28),3),"") ->  | CM29: =IFERROR(astm(mdiuf(CL29)-mdiuf(CL28),3),"") ->  | CP29: =IFERROR(astm(highwayfufalt(CL29)-highwayfufalt(CL28),3),"") ->  | CT29: =IF(CA29="",1, MIN(IFERROR((CA29/1000)/((BX29*$J$22)*$J$21/3600),1),IFERROR((SUMIFS(CA11:CA45,BW11:BW45,"<="&$BW29,BW11:BW45,">="&$BW29-1)/1000)/( $J$22*SUMIFS(BX11:BX45,BW11:BW45,"<="&$BW29,BW11:BW45,">="&$BW29-1)*$J$21/3600),1),IFERROR((SUMIFS(CA11:CA45,BW11:BW45,"<="&$BW29,BW11:BW45,">="&$BW29-2)/1000)/( $J$22*SUMIFS(BX11:BX45,BW11:BW45,"<="&$BW29,BW11:BW45,">="&$BW29-2)*$J$21/3600),1),IFERROR((SUMIFS(CA11:CA45,BW11:BW45,"<="&$BW29,BW11:BW45,">="&$BW29-3)/1000)/( $J$22*SUMIFS(BX11:BX45,BW11:BW45,"<="&$BW29,BW11:BW45,">="&$BW29-3)*$J$21/3600),1)) ) -> 1 | CV29: =IF(CA29="",1, MIN($CA29/SUM($CA11:$CA29),SUMIFS(CA11:CA45,BW11:BW45,">="&$BW29-1,BW11:BW45,"<="&$BW29)/SUM($CA11:$CA29),SUMIFS(CA11:CA45,BW11:BW45,">="&$BW29-2,BW11:BW45,"<="&$BW29)/SUM($CA11:$CA29),SUMIFS(CA11:CA45,BW11:BW45,">="&$BW29-3,BW11:BW45,"<="&$BW29)/SUM($CA11:$CA29)) ) -> 1
C30: 5-Year Fuel Savings Value ($/5 years) | E30: ="You " & IF(($F$38-5*F29)>=0, "SAVE:", "SPEND:") -> You SAVE: | F30: =ABS($F$38-5*F29) -> 2250 | Q30: 20 | Y30: 20 | AI30: MDIUF based on unadjusted Rcda [3] | AJ30: =IFERROR(astm(mdiuf(AQ6),3),0) -> 0.567 | AK30: =IFERROR(astm(mdiuf(AR6),3),0) -> 0.685 | AP30: CD 55/45 Fleet Utility Factor (FUF) for Rcdc [3] | AQ30: =astm(SUMIF(AV11:AV45,"<="&AQ34,BE11:BE45),3) -> 0.666 | AR30: =astm(SUMIF(BW11:BW45,"<="&AR34,CF11:CF45),3) -> 0.437 | AV30: 20 | BA30: =IFERROR(astm( astm($W$46,3)*1000*(AZ30/AQ13),1),"") ->  | BE30: =IFERROR(astm(cityfuf(BB30),3)-astm(cityfuf(BB29),3),"") ->  | BL30: =IFERROR(astm(mdiuf(BK30),3)-astm(mdiuf(BK29),3),"") ->  | BO30: =IFERROR(astm(cityfufalt(BK30),3)-astm(cityfufalt(BK29),3),"") ->  | BS30: =IF(AZ30="",1, MIN(IFERROR((AZ30/1000)/((AW30*$J$22)*$J$21/3600),1),IFERROR((SUMIFS(AZ11:AZ45,AV11:AV45,"<="&$AV30,AV11:AV45,">="&$AV30-1)/1000)/( $J$22*SUMIFS(AW11:AW45,AV11:AV45,"<="&$AV30,AV11:AV45,">="&$AV30-1)*$J$21/3600),1),IFERROR((SUMIFS(AZ11:AZ45,AV11:AV45,"<="&$AV30,AV11:AV45,">="&$AV30-2)/1000)/( $J$22*SUMIFS(AW11:AW45,AV11:AV45,"<="&$AV30,AV11:AV45,">="&$AV30-2)*$J$21/3600),1),IFERROR((SUMIFS(AZ11:AZ45,AV11:AV45,"<="&$AV30,AV11:AV45,">="&$AV30-3)/1000)/( $J$22*SUMIFS(AW11:AW45,AV11:AV45,"<="&$AV30,AV11:AV45,">="&$AV30-3)*$J$21/3600),1)) ) -> 1 | BU30: =IF(AZ30="",1, MIN($AZ30/SUM($AZ11:$AZ30),SUMIFS(AZ11:AZ45,AV11:AV45,">="&$AV30-1,AV11:AV45,"<="&$AV30)/SUM($AZ11:$AZ30),SUMIFS(AZ11:AZ45,AV11:AV45,">="&$AV30-2,AV11:AV45,"<="&$AV30)/SUM($AZ11:$AZ30),SUMIFS(AZ11:AZ45,AV11:AV45,">="&$AV30-3,AV11:AV45,"<="&$AV30)/SUM($AZ11:$AZ30)) ) -> 1 | BW30: 20 | CF30: =IFERROR(astm(highwayfuf(CC30)-highwayfuf(CC29),3),"") ->  | CM30: =IFERROR(astm(mdiuf(CL30)-mdiuf(CL29),3),"") ->  | CP30: =IFERROR(astm(highwayfufalt(CL30)-highwayfufalt(CL29),3),"") ->  | CT30: =IF(CA30="",1, MIN(IFERROR((CA30/1000)/((BX30*$J$22)*$J$21/3600),1),IFERROR((SUMIFS(CA11:CA45,BW11:BW45,"<="&$BW30,BW11:BW45,">="&$BW30-1)/1000)/( $J$22*SUMIFS(BX11:BX45,BW11:BW45,"<="&$BW30,BW11:BW45,">="&$BW30-1)*$J$21/3600),1),IFERROR((SUMIFS(CA11:CA45,BW11:BW45,"<="&$BW30,BW11:BW45,">="&$BW30-2)/1000)/( $J$22*SUMIFS(BX11:BX45,BW11:BW45,"<="&$BW30,BW11:BW45,">="&$BW30-2)*$J$21/3600),1),IFERROR((SUMIFS(CA11:CA45,BW11:BW45,"<="&$BW30,BW11:BW45,">="&$BW30-3)/1000)/( $J$22*SUMIFS(BX11:BX45,BW11:BW45,"<="&$BW30,BW11:BW45,">="&$BW30-3)*$J$21/3600),1)) ) -> 1 | CV30: =IF(CA30="",1, MIN($CA30/SUM($CA11:$CA30),SUMIFS(CA11:CA45,BW11:BW45,">="&$BW30-1,BW11:BW45,"<="&$BW30)/SUM($CA11:$CA30),SUMIFS(CA11:CA45,BW11:BW45,">="&$BW30-2,BW11:BW45,"<="&$BW30)/SUM($CA11:$CA30),SUMIFS(CA11:CA45,BW11:BW45,">="&$BW30-3,BW11:BW45,"<="&$BW30)/SUM($CA11:$CA30)) ) -> 1
C31: Composite CO2 (g/mi) | D31: =astm(IF($N$7+$N$55+$N$103=0,SUM(IFERROR(AQ48,0),IFERROR(AQ96,0),IFERROR(AQ144,0)) / ((AQ48<>0)+(AQ96<>0)+(AQ144<>0)),($N$7*AQ48+$N$55*AQ96+$N$103*AQ144)/($N$7+$N$55+$N$103)),1) -> 155.3 | E31: =astm(IF($N$7+$N$55+$N$103=0,SUM(IFERROR(AR48,0),IFERROR(AR96,0),IFERROR(AR144,0)) / ((AR48<>0)+(AR96<>0)+(AR144<>0)),($N$7*AR48+$N$55*AR96+$N$103*AR144)/($N$7+$N$55+$N$103)),1) -> 131.7 | F31: =astm(0.55*D31+0.45*E31,0) -> 145 | Q31: 21 | Y31: 21 | AI31: Composite CD/CS Fuel Economy (MPGe) [4] | AJ31: =IFERROR(astm(1/(AJ30/(AQ6/ AQ14 )+(1-AJ30)/N11),4),0) -> 59.0853 | AK31: =IFERROR(astm(1/(AK30/(AR6/ AR14 )+(1-AK30)/O11),4),0) -> 87.1704 | AL31: =IFERROR(astm(1/(0.55/AJ31+0.45/AK31),4),0) -> 69.1043 | AP31: MDIUF based on Rcda, adjusted [3] | AQ31: =astm(mdiuf(AQ7),3) -> 0.453 | AR31: =astm(mdiuf(AR7),3) -> 0.572 | AV31: 21 | BA31: =IFERROR(astm( astm($W$46,3)*1000*(AZ31/AQ13),1),"") ->  | BE31: =IFERROR(astm(cityfuf(BB31),3)-astm(cityfuf(BB30),3),"") ->  | BL31: =IFERROR(astm(mdiuf(BK31),3)-astm(mdiuf(BK30),3),"") ->  | BO31: =IFERROR(astm(cityfufalt(BK31),3)-astm(cityfufalt(BK30),3),"") ->  | BS31: =IF(AZ31="",1, MIN(IFERROR((AZ31/1000)/((AW31*$J$22)*$J$21/3600),1),IFERROR((SUMIFS(AZ11:AZ45,AV11:AV45,"<="&$AV31,AV11:AV45,">="&$AV31-1)/1000)/( $J$22*SUMIFS(AW11:AW45,AV11:AV45,"<="&$AV31,AV11:AV45,">="&$AV31-1)*$J$21/3600),1),IFERROR((SUMIFS(AZ11:AZ45,AV11:AV45,"<="&$AV31,AV11:AV45,">="&$AV31-2)/1000)/( $J$22*SUMIFS(AW11:AW45,AV11:AV45,"<="&$AV31,AV11:AV45,">="&$AV31-2)*$J$21/3600),1),IFERROR((SUMIFS(AZ11:AZ45,AV11:AV45,"<="&$AV31,AV11:AV45,">="&$AV31-3)/1000)/( $J$22*SUMIFS(AW11:AW45,AV11:AV45,"<="&$AV31,AV11:AV45,">="&$AV31-3)*$J$21/3600),1)) ) -> 1 | BU31: =IF(AZ31="",1, MIN($AZ31/SUM($AZ11:$AZ31),SUMIFS(AZ11:AZ45,AV11:AV45,">="&$AV31-1,AV11:AV45,"<="&$AV31)/SUM($AZ11:$AZ31),SUMIFS(AZ11:AZ45,AV11:AV45,">="&$AV31-2,AV11:AV45,"<="&$AV31)/SUM($AZ11:$AZ31),SUMIFS(AZ11:AZ45,AV11:AV45,">="&$AV31-3,AV11:AV45,"<="&$AV31)/SUM($AZ11:$AZ31)) ) -> 1 | BW31: 21 | CF31: =IFERROR(astm(highwayfuf(CC31)-highwayfuf(CC30),3),"") ->  | CM31: =IFERROR(astm(mdiuf(CL31)-mdiuf(CL30),3),"") ->  | CP31: =IFERROR(astm(highwayfufalt(CL31)-highwayfufalt(CL30),3),"") ->  | CT31: =IF(CA31="",1, MIN(IFERROR((CA31/1000)/((BX31*$J$22)*$J$21/3600),1),IFERROR((SUMIFS(CA11:CA45,BW11:BW45,"<="&$BW31,BW11:BW45,">="&$BW31-1)/1000)/( $J$22*SUMIFS(BX11:BX45,BW11:BW45,"<="&$BW31,BW11:BW45,">="&$BW31-1)*$J$21/3600),1),IFERROR((SUMIFS(CA11:CA45,BW11:BW45,"<="&$BW31,BW11:BW45,">="&$BW31-2)/1000)/( $J$22*SUMIFS(BX11:BX45,BW11:BW45,"<="&$BW31,BW11:BW45,">="&$BW31-2)*$J$21/3600),1),IFERROR((SUMIFS(CA11:CA45,BW11:BW45,"<="&$BW31,BW11:BW45,">="&$BW31-3)/1000)/( $J$22*SUMIFS(BX11:BX45,BW11:BW45,"<="&$BW31,BW11:BW45,">="&$BW31-3)*$J$21/3600),1)) ) -> 1 | CV31: =IF(CA31="",1, MIN($CA31/SUM($CA11:$CA31),SUMIFS(CA11:CA45,BW11:BW45,">="&$BW31-1,BW11:BW45,"<="&$BW31)/SUM($CA11:$CA31),SUMIFS(CA11:CA45,BW11:BW45,">="&$BW31-2,BW11:BW45,"<="&$BW31)/SUM($CA11:$CA31),SUMIFS(CA11:CA45,BW11:BW45,">="&$BW31-3,BW11:BW45,"<="&$BW31)/SUM($CA11:$CA31)) ) -> 1
C32: Composite Fuel Economy (MPG) | D32: =IF($N$7+$N$55+$N$103=0, ((AQ49<>0)+(AQ97<>0)+(AQ145<>0))/(IFERROR(1/AQ49,0)+IFERROR(1/AQ97,0)+IFERROR(1/AQ145,0)), ($N$7+$N$55+$N$103) / (IFERROR($N$7/AQ49,0)+IFERROR($N$55/AQ97,0)+IFERROR($N$103/AQ145,0)) ) -> 41.8548 | E32: =IF($N$7+$N$55+$N$103=0, ((AR49<>0)+(AR97<>0)+(AR145<>0))/(IFERROR(1/AR49,0)+IFERROR(1/AR97,0)+IFERROR(1/AR145,0)), ($N$7+$N$55+$N$103) / (IFERROR($N$7/AR49,0)+IFERROR($N$55/AR97,0)+IFERROR($N$103/AR145,0)) ) -> 48.6718 | F32: =astm(1/(0.55/D32+0.45/E32),0) -> 45 | Q32: 22 | Y32: 22 | AI32: Trends Report Values | AJ32: City | AK32: Highway | AL32: Combined | AP32: MDIUF based on Rcdc, unadjusted [3] | AQ32: =astm(SUMIF(AV11:AV45,"<=" & AQ34,BL11:BL45),3) -> 0.47 | AR32: =astm(SUMIF(BW11:BW45,"<=" & AR34,CM11:CM45),3) -> 0.573 | AV32: 22 | BA32: =IFERROR(astm( astm($W$46,3)*1000*(AZ32/AQ13),1),"") ->  | BE32: =IFERROR(astm(cityfuf(BB32),3)-astm(cityfuf(BB31),3),"") ->  | BL32: =IFERROR(astm(mdiuf(BK32),3)-astm(mdiuf(BK31),3),"") ->  | BO32: =IFERROR(astm(cityfufalt(BK32),3)-astm(cityfufalt(BK31),3),"") ->  | BS32: =IF(AZ32="",1, MIN(IFERROR((AZ32/1000)/((AW32*$J$22)*$J$21/3600),1),IFERROR((SUMIFS(AZ11:AZ45,AV11:AV45,"<="&$AV32,AV11:AV45,">="&$AV32-1)/1000)/( $J$22*SUMIFS(AW11:AW45,AV11:AV45,"<="&$AV32,AV11:AV45,">="&$AV32-1)*$J$21/3600),1),IFERROR((SUMIFS(AZ11:AZ45,AV11:AV45,"<="&$AV32,AV11:AV45,">="&$AV32-2)/1000)/( $J$22*SUMIFS(AW11:AW45,AV11:AV45,"<="&$AV32,AV11:AV45,">="&$AV32-2)*$J$21/3600),1),IFERROR((SUMIFS(AZ11:AZ45,AV11:AV45,"<="&$AV32,AV11:AV45,">="&$AV32-3)/1000)/( $J$22*SUMIFS(AW11:AW45,AV11:AV45,"<="&$AV32,AV11:AV45,">="&$AV32-3)*$J$21/3600),1)) ) -> 1 | BU32: =IF(AZ32="",1, MIN($AZ32/SUM($AZ11:$AZ32),SUMIFS(AZ11:AZ45,AV11:AV45,">="&$AV32-1,AV11:AV45,"<="&$AV32)/SUM($AZ11:$AZ32),SUMIFS(AZ11:AZ45,AV11:AV45,">="&$AV32-2,AV11:AV45,"<="&$AV32)/SUM($AZ11:$AZ32),SUMIFS(AZ11:AZ45,AV11:AV45,">="&$AV32-3,AV11:AV45,"<="&$AV32)/SUM($AZ11:$AZ32)) ) -> 1 | BW32: 22 | CF32: =IFERROR(astm(highwayfuf(CC32)-highwayfuf(CC31),3),"") ->  | CM32: =IFERROR(astm(mdiuf(CL32)-mdiuf(CL31),3),"") ->  | CP32: =IFERROR(astm(highwayfufalt(CL32)-highwayfufalt(CL31),3),"") ->  | CT32: =IF(CA32="",1, MIN(IFERROR((CA32/1000)/((BX32*$J$22)*$J$21/3600),1),IFERROR((SUMIFS(CA11:CA45,BW11:BW45,"<="&$BW32,BW11:BW45,">="&$BW32-1)/1000)/( $J$22*SUMIFS(BX11:BX45,BW11:BW45,"<="&$BW32,BW11:BW45,">="&$BW32-1)*$J$21/3600),1),IFERROR((SUMIFS(CA11:CA45,BW11:BW45,"<="&$BW32,BW11:BW45,">="&$BW32-2)/1000)/( $J$22*SUMIFS(BX11:BX45,BW11:BW45,"<="&$BW32,BW11:BW45,">="&$BW32-2)*$J$21/3600),1),IFERROR((SUMIFS(CA11:CA45,BW11:BW45,"<="&$BW32,BW11:BW45,">="&$BW32-3)/1000)/( $J$22*SUMIFS(BX11:BX45,BW11:BW45,"<="&$BW32,BW11:BW45,">="&$BW32-3)*$J$21/3600),1)) ) -> 1 | CV32: =IF(CA32="",1, MIN($CA32/SUM($CA11:$CA32),SUMIFS(CA11:CA45,BW11:BW45,">="&$BW32-1,BW11:BW45,"<="&$BW32)/SUM($CA11:$CA32),SUMIFS(CA11:CA45,BW11:BW45,">="&$BW32-2,BW11:BW45,"<="&$BW32)/SUM($CA11:$CA32),SUMIFS(CA11:CA45,BW11:BW45,">="&$BW32-3,BW11:BW45,"<="&$BW32)/SUM($CA11:$CA32)) ) -> 1
C33: MPG Rating (on scale of 1-10) | F33: =INDEX('Label Inputs'!$W$5:$Z$54, MATCH(1,('Label Inputs'!$W$5:$W$54=$J$5)*('Label Inputs'!$Y$5:$Y$54>=$F$32),0),4) -> 10 | Q33: 23 | Y33: 23 | AI33: Fleet Utility Factor (43/57) [3] | AJ33: =astm(SUMIF(AV11:AV40,"<="&AQ34,BO11:BO40),3) -> 0.584 | AK33: =astm(SUMIF(BW11:BW40,"<="&AR34,CP11:CP40),3) -> 0.358 | AL33: =0.55*AJ33+0.45*AK33 -> 0.4823 | AP33: Fraction of transition cycle that is charge-depleting operation (Zn) [3] | AQ33: =astm( IF((IF( SUMIF(AV11:AV45,"=" & ($AQ34),AY11:AY45)/SUMIF(AV11:AV45,"=" & ($AQ34-1),AY11:AY45)<0,0, SUMIF(AV11:AV45,"=" & ($AQ34),AY11:AY45)/SUMIF(AV11:AV45,"=" & ($AQ34-1),AY11:AY45)))<0,0, IF((IF( SUMIF(AV11:AV45,"=" & ($AQ34),AY11:AY45)/SUMIF(AV11:AV45,"=" & ($AQ34-1),AY11:AY45)<0,0, SUMIF(AV11:AV45,"=" & ($AQ34),AY11:AY45)/SUMIF(AV11:AV45,"=" & ($AQ34-1),AY11:AY45)))>1,1, (IF( SUMIF(AV11:AV45,"=" & ($AQ34),AY11:AY45)/SUMIF(AV11:AV45,"=" & ($AQ34-1),AY11:AY45)<0,0, SUMIF(AV11:AV45,"=" & ($AQ34),AY11:AY45)/SUMIF(AV11:AV45,"=" & ($AQ34-1),AY11:AY45))))), 3) -> 0.805 | AR33: =astm( IF((IF( SUMIF(BW11:BW45,"=" & ($AR34),BZ11:BZ45)/SUMIF(BW11:BW45,"=" & ($AR34-1),BZ11:BZ45)<0,0, SUMIF(BW11:BW45,"=" & ($AR34),BZ11:BZ45)/SUMIF(BW11:BW45,"=" & ($AR34-1),BZ11:BZ45)))<0,0, IF((IF( SUMIF(BW11:BW45,"=" & ($AR34),BZ11:BZ45)/SUMIF(BW11:BW45,"=" & ($AR34-1),BZ11:BZ45)<0,0, SUMIF(BW11:BW45,"=" & ($AR34),BZ11:BZ45)/SUMIF(BW11:BW45,"=" & ($AR34-1),BZ11:BZ45)))>1,1, (IF( SUMIF(BW11:BW45,"=" & ($AR34),BZ11:BZ45)/SUMIF(BW11:BW45,"=" & ($AR34-1),BZ11:BZ45)<0,0, SUMIF(BW11:BW45,"=" & ($AR34),BZ11:BZ45)/SUMIF(BW11:BW45,"=" & ($AR34-1),BZ11:BZ45))))), 3) -> 1 | AV33: 23 | BA33: =IFERROR(astm( astm($W$46,3)*1000*(AZ33/AQ13),1),"") ->  | BE33: =IFERROR(astm(cityfuf(BB33),3)-astm(cityfuf(BB32),3),"") ->  | BL33: =IFERROR(astm(mdiuf(BK33),3)-astm(mdiuf(BK32),3),"") ->  | BO33: =IFERROR(astm(cityfufalt(BK33),3)-astm(cityfufalt(BK32),3),"") ->  | BS33: =IF(AZ33="",1, MIN(IFERROR((AZ33/1000)/((AW33*$J$22)*$J$21/3600),1),IFERROR((SUMIFS(AZ11:AZ45,AV11:AV45,"<="&$AV33,AV11:AV45,">="&$AV33-1)/1000)/( $J$22*SUMIFS(AW11:AW45,AV11:AV45,"<="&$AV33,AV11:AV45,">="&$AV33-1)*$J$21/3600),1),IFERROR((SUMIFS(AZ11:AZ45,AV11:AV45,"<="&$AV33,AV11:AV45,">="&$AV33-2)/1000)/( $J$22*SUMIFS(AW11:AW45,AV11:AV45,"<="&$AV33,AV11:AV45,">="&$AV33-2)*$J$21/3600),1),IFERROR((SUMIFS(AZ11:AZ45,AV11:AV45,"<="&$AV33,AV11:AV45,">="&$AV33-3)/1000)/( $J$22*SUMIFS(AW11:AW45,AV11:AV45,"<="&$AV33,AV11:AV45,">="&$AV33-3)*$J$21/3600),1)) ) -> 1 | BU33: =IF(AZ33="",1, MIN($AZ33/SUM($AZ11:$AZ33),SUMIFS(AZ11:AZ45,AV11:AV45,">="&$AV33-1,AV11:AV45,"<="&$AV33)/SUM($AZ11:$AZ33),SUMIFS(AZ11:AZ45,AV11:AV45,">="&$AV33-2,AV11:AV45,"<="&$AV33)/SUM($AZ11:$AZ33),SUMIFS(AZ11:AZ45,AV11:AV45,">="&$AV33-3,AV11:AV45,"<="&$AV33)/SUM($AZ11:$AZ33)) ) -> 1 | BW33: 23 | CF33: =IFERROR(astm(highwayfuf(CC33)-highwayfuf(CC32),3),"") ->  | CM33: =IFERROR(astm(mdiuf(CL33)-mdiuf(CL32),3),"") ->  | CP33: =IFERROR(astm(highwayfufalt(CL33)-highwayfufalt(CL32),3),"") ->  | CT33: =IF(CA33="",1, MIN(IFERROR((CA33/1000)/((BX33*$J$22)*$J$21/3600),1),IFERROR((SUMIFS(CA11:CA45,BW11:BW45,"<="&$BW33,BW11:BW45,">="&$BW33-1)/1000)/( $J$22*SUMIFS(BX11:BX45,BW11:BW45,"<="&$BW33,BW11:BW45,">="&$BW33-1)*$J$21/3600),1),IFERROR((SUMIFS(CA11:CA45,BW11:BW45,"<="&$BW33,BW11:BW45,">="&$BW33-2)/1000)/( $J$22*SUMIFS(BX11:BX45,BW11:BW45,"<="&$BW33,BW11:BW45,">="&$BW33-2)*$J$21/3600),1),IFERROR((SUMIFS(CA11:CA45,BW11:BW45,"<="&$BW33,BW11:BW45,">="&$BW33-3)/1000)/( $J$22*SUMIFS(BX11:BX45,BW11:BW45,"<="&$BW33,BW11:BW45,">="&$BW33-3)*$J$21/3600),1)) ) -> 1 | CV33: =IF(CA33="",1, MIN($CA33/SUM($CA11:$CA33),SUMIFS(CA11:CA45,BW11:BW45,">="&$BW33-1,BW11:BW45,"<="&$BW33)/SUM($CA11:$CA33),SUMIFS(CA11:CA45,BW11:BW45,">="&$BW33-2,BW11:BW45,"<="&$BW33)/SUM($CA11:$CA33),SUMIFS(CA11:CA45,BW11:BW45,">="&$BW33-3,BW11:BW45,"<="&$BW33)/SUM($CA11:$CA33)) ) -> 1
C34: GHG Rating (on scale of 1-10) | F34: =INDEX('Label Inputs'!$AB$5:$AE$54, MATCH(1,('Label Inputs'!$AB$5:$AB$54=$J$5)*('Label Inputs'!$AC$5:$AC$54<=$F$31),0),4) -> 10 | Q34: 24 | Y34: 24 | AI34: Unadjusted Fuel Economy (MPG) [4] | AJ34: =AJ9 -> 65.7964 | AK34: =AK9 -> 59.489 | AL34: =AL9 -> 62.8001 | AP34: Number of last cycle number with charge-depleting operation (transition cycle) [0] | AQ34: =IF(ISNUMBER(W48), W48, IF(COUNTIF(BR11:BR45,"CD") < COUNT(R11:R45), COUNTIF(BR11:BR45,"CD"), IF(COUNTIF(BT11:BT45,"CD") < COUNT(R11:R45), COUNTIF(BT11:BT45,"CD"), "EOT ERROR" ) ) ) -> 4 | AR34: =IF(ISNUMBER(AE48), AE48, IF(COUNTIF(CS11:CS45,"CD") < COUNT(Z11:Z45), COUNTIF(CS11:CS45,"CD"), IF(COUNTIF(CU11:CU45,"CD") < COUNT(Z11:Z45), COUNTIF(CU11:CU45,"CD"), "EOT ERROR" ) ) ) -> 4 | AV34: 24 | BA34: =IFERROR(astm( astm($W$46,3)*1000*(AZ34/AQ13),1),"") ->  | BE34: =IFERROR(astm(cityfuf(BB34),3)-astm(cityfuf(BB33),3),"") ->  | BL34: =IFERROR(astm(mdiuf(BK34),3)-astm(mdiuf(BK33),3),"") ->  | BO34: =IFERROR(astm(cityfufalt(BK34),3)-astm(cityfufalt(BK33),3),"") ->  | BS34: =IF(AZ34="",1, MIN(IFERROR((AZ34/1000)/((AW34*$J$22)*$J$21/3600),1),IFERROR((SUMIFS(AZ11:AZ45,AV11:AV45,"<="&$AV34,AV11:AV45,">="&$AV34-1)/1000)/( $J$22*SUMIFS(AW11:AW45,AV11:AV45,"<="&$AV34,AV11:AV45,">="&$AV34-1)*$J$21/3600),1),IFERROR((SUMIFS(AZ11:AZ45,AV11:AV45,"<="&$AV34,AV11:AV45,">="&$AV34-2)/1000)/( $J$22*SUMIFS(AW11:AW45,AV11:AV45,"<="&$AV34,AV11:AV45,">="&$AV34-2)*$J$21/3600),1),IFERROR((SUMIFS(AZ11:AZ45,AV11:AV45,"<="&$AV34,AV11:AV45,">="&$AV34-3)/1000)/( $J$22*SUMIFS(AW11:AW45,AV11:AV45,"<="&$AV34,AV11:AV45,">="&$AV34-3)*$J$21/3600),1)) ) -> 1 | BU34: =IF(AZ34="",1, MIN($AZ34/SUM($AZ11:$AZ34),SUMIFS(AZ11:AZ45,AV11:AV45,">="&$AV34-1,AV11:AV45,"<="&$AV34)/SUM($AZ11:$AZ34),SUMIFS(AZ11:AZ45,AV11:AV45,">="&$AV34-2,AV11:AV45,"<="&$AV34)/SUM($AZ11:$AZ34),SUMIFS(AZ11:AZ45,AV11:AV45,">="&$AV34-3,AV11:AV45,"<="&$AV34)/SUM($AZ11:$AZ34)) ) -> 1 | BW34: 24 | CF34: =IFERROR(astm(highwayfuf(CC34)-highwayfuf(CC33),3),"") ->  | CM34: =IFERROR(astm(mdiuf(CL34)-mdiuf(CL33),3),"") ->  | CP34: =IFERROR(astm(highwayfufalt(CL34)-highwayfufalt(CL33),3),"") ->  | CT34: =IF(CA34="",1, MIN(IFERROR((CA34/1000)/((BX34*$J$22)*$J$21/3600),1),IFERROR((SUMIFS(CA11:CA45,BW11:BW45,"<="&$BW34,BW11:BW45,">="&$BW34-1)/1000)/( $J$22*SUMIFS(BX11:BX45,BW11:BW45,"<="&$BW34,BW11:BW45,">="&$BW34-1)*$J$21/3600),1),IFERROR((SUMIFS(CA11:CA45,BW11:BW45,"<="&$BW34,BW11:BW45,">="&$BW34-2)/1000)/( $J$22*SUMIFS(BX11:BX45,BW11:BW45,"<="&$BW34,BW11:BW45,">="&$BW34-2)*$J$21/3600),1),IFERROR((SUMIFS(CA11:CA45,BW11:BW45,"<="&$BW34,BW11:BW45,">="&$BW34-3)/1000)/( $J$22*SUMIFS(BX11:BX45,BW11:BW45,"<="&$BW34,BW11:BW45,">="&$BW34-3)*$J$21/3600),1)) ) -> 1 | CV34: =IF(CA34="",1, MIN($CA34/SUM($CA11:$CA34),SUMIFS(CA11:CA45,BW11:BW45,">="&$BW34-1,BW11:BW45,"<="&$BW34)/SUM($CA11:$CA34),SUMIFS(CA11:CA45,BW11:BW45,">="&$BW34-2,BW11:BW45,"<="&$BW34)/SUM($CA11:$CA34),SUMIFS(CA11:CA45,BW11:BW45,">="&$BW34-3,BW11:BW45,"<="&$BW34)/SUM($CA11:$CA34)) ) -> 1
C35: Label Inputs Based on Model Year and Fuel Type (generally these should not be changed) | Q35: 25 | Y35: 25 | AI35: Unadjusted GHG (g/mi) [1] | AJ35: =AJ11 -> 83.7 | AK35: =AK11 -> 129.5 | AL35: =AL11 -> 104.3 | AO35: Intermediate Results Requiring Charge-Sustaining (CS) Test Results or Other Inputs | AV35: 25 | BA35: =IFERROR(astm( astm($W$46,3)*1000*(AZ35/AQ13),1),"") ->  | BE35: =IFERROR(astm(cityfuf(BB35),3)-astm(cityfuf(BB34),3),"") ->  | BL35: =IFERROR(astm(mdiuf(BK35),3)-astm(mdiuf(BK34),3),"") ->  | BO35: =IFERROR(astm(cityfufalt(BK35),3)-astm(cityfufalt(BK34),3),"") ->  | BS35: =IF(AZ35="",1, MIN(IFERROR((AZ35/1000)/((AW35*$J$22)*$J$21/3600),1),IFERROR((SUMIFS(AZ11:AZ45,AV11:AV45,"<="&$AV35,AV11:AV45,">="&$AV35-1)/1000)/( $J$22*SUMIFS(AW11:AW45,AV11:AV45,"<="&$AV35,AV11:AV45,">="&$AV35-1)*$J$21/3600),1),IFERROR((SUMIFS(AZ11:AZ45,AV11:AV45,"<="&$AV35,AV11:AV45,">="&$AV35-2)/1000)/( $J$22*SUMIFS(AW11:AW45,AV11:AV45,"<="&$AV35,AV11:AV45,">="&$AV35-2)*$J$21/3600),1),IFERROR((SUMIFS(AZ11:AZ45,AV11:AV45,"<="&$AV35,AV11:AV45,">="&$AV35-3)/1000)/( $J$22*SUMIFS(AW11:AW45,AV11:AV45,"<="&$AV35,AV11:AV45,">="&$AV35-3)*$J$21/3600),1)) ) -> 1 | BU35: =IF(AZ35="",1, MIN($AZ35/SUM($AZ11:$AZ35),SUMIFS(AZ11:AZ45,AV11:AV45,">="&$AV35-1,AV11:AV45,"<="&$AV35)/SUM($AZ11:$AZ35),SUMIFS(AZ11:AZ45,AV11:AV45,">="&$AV35-2,AV11:AV45,"<="&$AV35)/SUM($AZ11:$AZ35),SUMIFS(AZ11:AZ45,AV11:AV45,">="&$AV35-3,AV11:AV45,"<="&$AV35)/SUM($AZ11:$AZ35)) ) -> 1 | BW35: 25 | CF35: =IFERROR(astm(highwayfuf(CC35)-highwayfuf(CC34),3),"") ->  | CM35: =IFERROR(astm(mdiuf(CL35)-mdiuf(CL34),3),"") ->  | CP35: =IFERROR(astm(highwayfufalt(CL35)-highwayfufalt(CL34),3),"") ->  | CT35: =IF(CA35="",1, MIN(IFERROR((CA35/1000)/((BX35*$J$22)*$J$21/3600),1),IFERROR((SUMIFS(CA11:CA45,BW11:BW45,"<="&$BW35,BW11:BW45,">="&$BW35-1)/1000)/( $J$22*SUMIFS(BX11:BX45,BW11:BW45,"<="&$BW35,BW11:BW45,">="&$BW35-1)*$J$21/3600),1),IFERROR((SUMIFS(CA11:CA45,BW11:BW45,"<="&$BW35,BW11:BW45,">="&$BW35-2)/1000)/( $J$22*SUMIFS(BX11:BX45,BW11:BW45,"<="&$BW35,BW11:BW45,">="&$BW35-2)*$J$21/3600),1),IFERROR((SUMIFS(CA11:CA45,BW11:BW45,"<="&$BW35,BW11:BW45,">="&$BW35-3)/1000)/( $J$22*SUMIFS(BX11:BX45,BW11:BW45,"<="&$BW35,BW11:BW45,">="&$BW35-3)*$J$21/3600),1)) ) -> 1 | CV35: =IF(CA35="",1, MIN($CA35/SUM($CA11:$CA35),SUMIFS(CA11:CA45,BW11:BW45,">="&$BW35-1,BW11:BW45,"<="&$BW35)/SUM($CA11:$CA35),SUMIFS(CA11:CA45,BW11:BW45,">="&$BW35-2,BW11:BW45,"<="&$BW35)/SUM($CA11:$CA35),SUMIFS(CA11:CA45,BW11:BW45,">="&$BW35-3,BW11:BW45,"<="&$BW35)/SUM($CA11:$CA35)) ) -> 1
C36: Gasoline cost ($/gallon) | F36: =INDEX('Label Inputs'!C5:K14,MATCH(J5,'Label Inputs'!B5:B14,0),MATCH(J9,'Label Inputs'!C4:K4,0)) -> 2.7 | Q36: 26 | Y36: 26 | AI36: Adjusted Fuel Economy (MPG) [4] | AJ36: =IFERROR(astm(1/ ( AQ16 + (1-AJ33)/N12),4),0) -> 46.041 | AK36: =IFERROR(astm(1/ ( AR16 + (1-AK33)/O12),4),0) -> 41.309 | AL36: =IFERROR(astm(1/(0.55/AJ36+0.45/AK36),4),0) -> 43.784 | AP36: DRIVING DISTANCE VALUES | AQ36: CITY | AR36: HIGHWAY | AV36: 26 | BA36: =IFERROR(astm( astm($W$46,3)*1000*(AZ36/AQ13),1),"") ->  | BE36: =IFERROR(astm(cityfuf(BB36),3)-astm(cityfuf(BB35),3),"") ->  | BL36: =IFERROR(astm(mdiuf(BK36),3)-astm(mdiuf(BK35),3),"") ->  | BO36: =IFERROR(astm(cityfufalt(BK36),3)-astm(cityfufalt(BK35),3),"") ->  | BS36: =IF(AZ36="",1, MIN(IFERROR((AZ36/1000)/((AW36*$J$22)*$J$21/3600),1),IFERROR((SUMIFS(AZ11:AZ45,AV11:AV45,"<="&$AV36,AV11:AV45,">="&$AV36-1)/1000)/( $J$22*SUMIFS(AW11:AW45,AV11:AV45,"<="&$AV36,AV11:AV45,">="&$AV36-1)*$J$21/3600),1),IFERROR((SUMIFS(AZ11:AZ45,AV11:AV45,"<="&$AV36,AV11:AV45,">="&$AV36-2)/1000)/( $J$22*SUMIFS(AW11:AW45,AV11:AV45,"<="&$AV36,AV11:AV45,">="&$AV36-2)*$J$21/3600),1),IFERROR((SUMIFS(AZ11:AZ45,AV11:AV45,"<="&$AV36,AV11:AV45,">="&$AV36-3)/1000)/( $J$22*SUMIFS(AW11:AW45,AV11:AV45,"<="&$AV36,AV11:AV45,">="&$AV36-3)*$J$21/3600),1)) ) -> 1 | BU36: =IF(AZ36="",1, MIN($AZ36/SUM($AZ11:$AZ36),SUMIFS(AZ11:AZ45,AV11:AV45,">="&$AV36-1,AV11:AV45,"<="&$AV36)/SUM($AZ11:$AZ36),SUMIFS(AZ11:AZ45,AV11:AV45,">="&$AV36-2,AV11:AV45,"<="&$AV36)/SUM($AZ11:$AZ36),SUMIFS(AZ11:AZ45,AV11:AV45,">="&$AV36-3,AV11:AV45,"<="&$AV36)/SUM($AZ11:$AZ36)) ) -> 1 | BW36: 26 | CF36: =IFERROR(astm(highwayfuf(CC36)-highwayfuf(CC35),3),"") ->  | CM36: =IFERROR(astm(mdiuf(CL36)-mdiuf(CL35),3),"") ->  | CP36: =IFERROR(astm(highwayfufalt(CL36)-highwayfufalt(CL35),3),"") ->  | CT36: =IF(CA36="",1, MIN(IFERROR((CA36/1000)/((BX36*$J$22)*$J$21/3600),1),IFERROR((SUMIFS(CA11:CA45,BW11:BW45,"<="&$BW36,BW11:BW45,">="&$BW36-1)/1000)/( $J$22*SUMIFS(BX11:BX45,BW11:BW45,"<="&$BW36,BW11:BW45,">="&$BW36-1)*$J$21/3600),1),IFERROR((SUMIFS(CA11:CA45,BW11:BW45,"<="&$BW36,BW11:BW45,">="&$BW36-2)/1000)/( $J$22*SUMIFS(BX11:BX45,BW11:BW45,"<="&$BW36,BW11:BW45,">="&$BW36-2)*$J$21/3600),1),IFERROR((SUMIFS(CA11:CA45,BW11:BW45,"<="&$BW36,BW11:BW45,">="&$BW36-3)/1000)/( $J$22*SUMIFS(BX11:BX45,BW11:BW45,"<="&$BW36,BW11:BW45,">="&$BW36-3)*$J$21/3600),1)) ) -> 1 | CV36: =IF(CA36="",1, MIN($CA36/SUM($CA11:$CA36),SUMIFS(CA11:CA45,BW11:BW45,">="&$BW36-1,BW11:BW45,"<="&$BW36)/SUM($CA11:$CA36),SUMIFS(CA11:CA45,BW11:BW45,">="&$BW36-2,BW11:BW45,"<="&$BW36)/SUM($CA11:$CA36),SUMIFS(CA11:CA45,BW11:BW45,">="&$BW36-3,BW11:BW45,"<="&$BW36)/SUM($CA11:$CA36)) ) -> 1
C37: Electricity cost ($/kW-hour) | F37: =INDEX('Label Inputs'!C5:K14,MATCH(J5,'Label Inputs'!B5:B14,0),MATCH("Electricity",'Label Inputs'!C4:K4,0)) -> 0.13 | Q37: 27 | Y37: 27 | AI37: Adjusted GHG (g/mi) [1] | AJ37: =IFERROR(astm( AQ28 +(1-AJ33)*astm(N15,1),1),0) -> 121.9 | AK37: =IFERROR(astm( AR28 +(1-AK33)*astm(O15,1),1),0) -> 184.2 | AL37: =IFERROR(astm(0.55*AJ37+0.45*AK37,1),0) -> 149.9 | AP37: CD Equivalent All-Electric Range (EAER), Unadjusted (mi) [3] | AQ37: =astm(AQ6*((N14-AQ24)/N14),3) -> 28.259 | AR37: =astm(AR6*((O14-AR24)/O14),3) -> 41.012 | AV37: 27 | BA37: =IFERROR(astm( astm($W$46,3)*1000*(AZ37/AQ13),1),"") ->  | BE37: =IFERROR(astm(cityfuf(BB37),3)-astm(cityfuf(BB36),3),"") ->  | BL37: =IFERROR(astm(mdiuf(BK37),3)-astm(mdiuf(BK36),3),"") ->  | BO37: =IFERROR(astm(cityfufalt(BK37),3)-astm(cityfufalt(BK36),3),"") ->  | BS37: =IF(AZ37="",1, MIN(IFERROR((AZ37/1000)/((AW37*$J$22)*$J$21/3600),1),IFERROR((SUMIFS(AZ11:AZ45,AV11:AV45,"<="&$AV37,AV11:AV45,">="&$AV37-1)/1000)/( $J$22*SUMIFS(AW11:AW45,AV11:AV45,"<="&$AV37,AV11:AV45,">="&$AV37-1)*$J$21/3600),1),IFERROR((SUMIFS(AZ11:AZ45,AV11:AV45,"<="&$AV37,AV11:AV45,">="&$AV37-2)/1000)/( $J$22*SUMIFS(AW11:AW45,AV11:AV45,"<="&$AV37,AV11:AV45,">="&$AV37-2)*$J$21/3600),1),IFERROR((SUMIFS(AZ11:AZ45,AV11:AV45,"<="&$AV37,AV11:AV45,">="&$AV37-3)/1000)/( $J$22*SUMIFS(AW11:AW45,AV11:AV45,"<="&$AV37,AV11:AV45,">="&$AV37-3)*$J$21/3600),1)) ) -> 1 | BU37: =IF(AZ37="",1, MIN($AZ37/SUM($AZ11:$AZ37),SUMIFS(AZ11:AZ45,AV11:AV45,">="&$AV37-1,AV11:AV45,"<="&$AV37)/SUM($AZ11:$AZ37),SUMIFS(AZ11:AZ45,AV11:AV45,">="&$AV37-2,AV11:AV45,"<="&$AV37)/SUM($AZ11:$AZ37),SUMIFS(AZ11:AZ45,AV11:AV45,">="&$AV37-3,AV11:AV45,"<="&$AV37)/SUM($AZ11:$AZ37)) ) -> 1 | BW37: 27 | CF37: =IFERROR(astm(highwayfuf(CC37)-highwayfuf(CC36),3),"") ->  | CM37: =IFERROR(astm(mdiuf(CL37)-mdiuf(CL36),3),"") ->  | CP37: =IFERROR(astm(highwayfufalt(CL37)-highwayfufalt(CL36),3),"") ->  | CT37: =IF(CA37="",1, MIN(IFERROR((CA37/1000)/((BX37*$J$22)*$J$21/3600),1),IFERROR((SUMIFS(CA11:CA45,BW11:BW45,"<="&$BW37,BW11:BW45,">="&$BW37-1)/1000)/( $J$22*SUMIFS(BX11:BX45,BW11:BW45,"<="&$BW37,BW11:BW45,">="&$BW37-1)*$J$21/3600),1),IFERROR((SUMIFS(CA11:CA45,BW11:BW45,"<="&$BW37,BW11:BW45,">="&$BW37-2)/1000)/( $J$22*SUMIFS(BX11:BX45,BW11:BW45,"<="&$BW37,BW11:BW45,">="&$BW37-2)*$J$21/3600),1),IFERROR((SUMIFS(CA11:CA45,BW11:BW45,"<="&$BW37,BW11:BW45,">="&$BW37-3)/1000)/( $J$22*SUMIFS(BX11:BX45,BW11:BW45,"<="&$BW37,BW11:BW45,">="&$BW37-3)*$J$21/3600),1)) ) -> 1 | CV37: =IF(CA37="",1, MIN($CA37/SUM($CA11:$CA37),SUMIFS(CA11:CA45,BW11:BW45,">="&$BW37-1,BW11:BW45,"<="&$BW37)/SUM($CA11:$CA37),SUMIFS(CA11:CA45,BW11:BW45,">="&$BW37-2,BW11:BW45,"<="&$BW37)/SUM($CA11:$CA37),SUMIFS(CA11:CA45,BW11:BW45,">="&$BW37-3,BW11:BW45,"<="&$BW37)/SUM($CA11:$CA37)) ) -> 1
C38: Average vehicle 5-year cost ($) | F38: =VLOOKUP(J5,'Label Inputs'!R4:S14,2,FALSE) -> 7500 | Q38: 28 | Y38: 28 | AP38: Charge-sustaining driving range, adjusted (mi) [3] | AQ38: =IFERROR(astm((astm($J$11,1)-AQ18)*astm(N12,4),3),0) -> 324.556 | AR38: =IFERROR(astm((astm($J$11,1)-AR18)*astm(O12,4),3),0) -> 368.08 | AV38: 28 | BA38: =IFERROR(astm( astm($W$46,3)*1000*(AZ38/AQ13),1),"") ->  | BE38: =IFERROR(astm(cityfuf(BB38),3)-astm(cityfuf(BB37),3),"") ->  | BL38: =IFERROR(astm(mdiuf(BK38),3)-astm(mdiuf(BK37),3),"") ->  | BO38: =IFERROR(astm(cityfufalt(BK38),3)-astm(cityfufalt(BK37),3),"") ->  | BS38: =IF(AZ38="",1, MIN(IFERROR((AZ38/1000)/((AW38*$J$22)*$J$21/3600),1),IFERROR((SUMIFS(AZ11:AZ45,AV11:AV45,"<="&$AV38,AV11:AV45,">="&$AV38-1)/1000)/( $J$22*SUMIFS(AW11:AW45,AV11:AV45,"<="&$AV38,AV11:AV45,">="&$AV38-1)*$J$21/3600),1),IFERROR((SUMIFS(AZ11:AZ45,AV11:AV45,"<="&$AV38,AV11:AV45,">="&$AV38-2)/1000)/( $J$22*SUMIFS(AW11:AW45,AV11:AV45,"<="&$AV38,AV11:AV45,">="&$AV38-2)*$J$21/3600),1),IFERROR((SUMIFS(AZ11:AZ45,AV11:AV45,"<="&$AV38,AV11:AV45,">="&$AV38-3)/1000)/( $J$22*SUMIFS(AW11:AW45,AV11:AV45,"<="&$AV38,AV11:AV45,">="&$AV38-3)*$J$21/3600),1)) ) -> 1 | BU38: =IF(AZ38="",1, MIN($AZ38/SUM($AZ11:$AZ38),SUMIFS(AZ11:AZ45,AV11:AV45,">="&$AV38-1,AV11:AV45,"<="&$AV38)/SUM($AZ11:$AZ38),SUMIFS(AZ11:AZ45,AV11:AV45,">="&$AV38-2,AV11:AV45,"<="&$AV38)/SUM($AZ11:$AZ38),SUMIFS(AZ11:AZ45,AV11:AV45,">="&$AV38-3,AV11:AV45,"<="&$AV38)/SUM($AZ11:$AZ38)) ) -> 1 | BW38: 28 | CF38: =IFERROR(astm(highwayfuf(CC38)-highwayfuf(CC37),3),"") ->  | CM38: =IFERROR(astm(mdiuf(CL38)-mdiuf(CL37),3),"") ->  | CP38: =IFERROR(astm(highwayfufalt(CL38)-highwayfufalt(CL37),3),"") ->  | CT38: =IF(CA38="",1, MIN(IFERROR((CA38/1000)/((BX38*$J$22)*$J$21/3600),1),IFERROR((SUMIFS(CA11:CA45,BW11:BW45,"<="&$BW38,BW11:BW45,">="&$BW38-1)/1000)/( $J$22*SUMIFS(BX11:BX45,BW11:BW45,"<="&$BW38,BW11:BW45,">="&$BW38-1)*$J$21/3600),1),IFERROR((SUMIFS(CA11:CA45,BW11:BW45,"<="&$BW38,BW11:BW45,">="&$BW38-2)/1000)/( $J$22*SUMIFS(BX11:BX45,BW11:BW45,"<="&$BW38,BW11:BW45,">="&$BW38-2)*$J$21/3600),1),IFERROR((SUMIFS(CA11:CA45,BW11:BW45,"<="&$BW38,BW11:BW45,">="&$BW38-3)/1000)/( $J$22*SUMIFS(BX11:BX45,BW11:BW45,"<="&$BW38,BW11:BW45,">="&$BW38-3)*$J$21/3600),1)) ) -> 1 | CV38: =IF(CA38="",1, MIN($CA38/SUM($CA11:$CA38),SUMIFS(CA11:CA45,BW11:BW45,">="&$BW38-1,BW11:BW45,"<="&$BW38)/SUM($CA11:$CA38),SUMIFS(CA11:CA45,BW11:BW45,">="&$BW38-2,BW11:BW45,"<="&$BW38)/SUM($CA11:$CA38),SUMIFS(CA11:CA45,BW11:BW45,">="&$BW38-3,BW11:BW45,"<="&$BW38)/SUM($CA11:$CA38)) ) -> 1
C39: Average vehicle MPG | F39: =VLOOKUP(J5,'Label Inputs'!M4:N14,2,FALSE) -> 27 | Q39: 29 | Y39: 29 | AP39: UTILITY FACTORS & OTHER METRICS | AQ39: CITY | AR39: HIGHWAY | AV39: 29 | BA39: =IFERROR(astm( astm($W$46,3)*1000*(AZ39/AQ13),1),"") ->  | BE39: =IFERROR(astm(cityfuf(BB39),3)-astm(cityfuf(BB38),3),"") ->  | BL39: =IFERROR(astm(mdiuf(BK39),3)-astm(mdiuf(BK38),3),"") ->  | BO39: =IFERROR(astm(cityfufalt(BK39),3)-astm(cityfufalt(BK38),3),"") ->  | BS39: =IF(AZ39="",1, MIN(IFERROR((AZ39/1000)/((AW39*$J$22)*$J$21/3600),1),IFERROR((SUMIFS(AZ11:AZ45,AV11:AV45,"<="&$AV39,AV11:AV45,">="&$AV39-1)/1000)/( $J$22*SUMIFS(AW11:AW45,AV11:AV45,"<="&$AV39,AV11:AV45,">="&$AV39-1)*$J$21/3600),1),IFERROR((SUMIFS(AZ11:AZ45,AV11:AV45,"<="&$AV39,AV11:AV45,">="&$AV39-2)/1000)/( $J$22*SUMIFS(AW11:AW45,AV11:AV45,"<="&$AV39,AV11:AV45,">="&$AV39-2)*$J$21/3600),1),IFERROR((SUMIFS(AZ11:AZ45,AV11:AV45,"<="&$AV39,AV11:AV45,">="&$AV39-3)/1000)/( $J$22*SUMIFS(AW11:AW45,AV11:AV45,"<="&$AV39,AV11:AV45,">="&$AV39-3)*$J$21/3600),1)) ) -> 1 | BU39: =IF(AZ39="",1, MIN($AZ39/SUM($AZ11:$AZ39),SUMIFS(AZ11:AZ45,AV11:AV45,">="&$AV39-1,AV11:AV45,"<="&$AV39)/SUM($AZ11:$AZ39),SUMIFS(AZ11:AZ45,AV11:AV45,">="&$AV39-2,AV11:AV45,"<="&$AV39)/SUM($AZ11:$AZ39),SUMIFS(AZ11:AZ45,AV11:AV45,">="&$AV39-3,AV11:AV45,"<="&$AV39)/SUM($AZ11:$AZ39)) ) -> 1 | BW39: 29 | CF39: =IFERROR(astm(highwayfuf(CC39)-highwayfuf(CC38),3),"") ->  | CM39: =IFERROR(astm(mdiuf(CL39)-mdiuf(CL38),3),"") ->  | CP39: =IFERROR(astm(highwayfufalt(CL39)-highwayfufalt(CL38),3),"") ->  | CT39: =IF(CA39="",1, MIN(IFERROR((CA39/1000)/((BX39*$J$22)*$J$21/3600),1),IFERROR((SUMIFS(CA11:CA45,BW11:BW45,"<="&$BW39,BW11:BW45,">="&$BW39-1)/1000)/( $J$22*SUMIFS(BX11:BX45,BW11:BW45,"<="&$BW39,BW11:BW45,">="&$BW39-1)*$J$21/3600),1),IFERROR((SUMIFS(CA11:CA45,BW11:BW45,"<="&$BW39,BW11:BW45,">="&$BW39-2)/1000)/( $J$22*SUMIFS(BX11:BX45,BW11:BW45,"<="&$BW39,BW11:BW45,">="&$BW39-2)*$J$21/3600),1),IFERROR((SUMIFS(CA11:CA45,BW11:BW45,"<="&$BW39,BW11:BW45,">="&$BW39-3)/1000)/( $J$22*SUMIFS(BX11:BX45,BW11:BW45,"<="&$BW39,BW11:BW45,">="&$BW39-3)*$J$21/3600),1)) ) -> 1 | CV39: =IF(CA39="",1, MIN($CA39/SUM($CA11:$CA39),SUMIFS(CA11:CA45,BW11:BW45,">="&$BW39-1,BW11:BW45,"<="&$BW39)/SUM($CA11:$CA39),SUMIFS(CA11:CA45,BW11:BW45,">="&$BW39-2,BW11:BW45,"<="&$BW39)/SUM($CA11:$CA39),SUMIFS(CA11:CA45,BW11:BW45,">="&$BW39-3,BW11:BW45,"<="&$BW39)/SUM($CA11:$CA39)) ) -> 1
Q40: 30 | Y40: 30 | AP40: CD 55/45 Fleet Utility Factor (FUF) for EAER [3] | AQ40: =astm(cityfuf(AQ37),3) -> 0.647 | AR40: =astm(highwayfuf(AR37),3) -> 0.436 | AV40: 30 | BA40: =IFERROR(astm( astm($W$46,3)*1000*(AZ40/AQ13),1),"") ->  | BE40: =IFERROR(astm(cityfuf(BB40),3)-astm(cityfuf(BB39),3),"") ->  | BL40: =IFERROR(astm(mdiuf(BK40),3)-astm(mdiuf(BK39),3),"") ->  | BO40: =IFERROR(astm(cityfufalt(BK40),3)-astm(cityfufalt(BK39),3),"") ->  | BS40: =IF(AZ40="",1, MIN(IFERROR((AZ40/1000)/((AW40*$J$22)*$J$21/3600),1),IFERROR((SUMIFS(AZ11:AZ45,AV11:AV45,"<="&$AV40,AV11:AV45,">="&$AV40-1)/1000)/( $J$22*SUMIFS(AW11:AW45,AV11:AV45,"<="&$AV40,AV11:AV45,">="&$AV40-1)*$J$21/3600),1),IFERROR((SUMIFS(AZ11:AZ45,AV11:AV45,"<="&$AV40,AV11:AV45,">="&$AV40-2)/1000)/( $J$22*SUMIFS(AW11:AW45,AV11:AV45,"<="&$AV40,AV11:AV45,">="&$AV40-2)*$J$21/3600),1),IFERROR((SUMIFS(AZ11:AZ45,AV11:AV45,"<="&$AV40,AV11:AV45,">="&$AV40-3)/1000)/( $J$22*SUMIFS(AW11:AW45,AV11:AV45,"<="&$AV40,AV11:AV45,">="&$AV40-3)*$J$21/3600),1)) ) -> 1 | BU40: =IF(AZ40="",1, MIN($AZ40/SUM($AZ11:$AZ40),SUMIFS(AZ11:AZ45,AV11:AV45,">="&$AV40-1,AV11:AV45,"<="&$AV40)/SUM($AZ11:$AZ40),SUMIFS(AZ11:AZ45,AV11:AV45,">="&$AV40-2,AV11:AV45,"<="&$AV40)/SUM($AZ11:$AZ40),SUMIFS(AZ11:AZ45,AV11:AV45,">="&$AV40-3,AV11:AV45,"<="&$AV40)/SUM($AZ11:$AZ40)) ) -> 1 | BW40: 30 | CF40: =IFERROR(astm(highwayfuf(CC40)-highwayfuf(CC39),3),"") ->  | CM40: =IFERROR(astm(mdiuf(CL40)-mdiuf(CL39),3),"") ->  | CP40: =IFERROR(astm(highwayfufalt(CL40)-highwayfufalt(CL39),3),"") ->  | CT40: =IF(CA40="",1, MIN(IFERROR((CA40/1000)/((BX40*$J$22)*$J$21/3600),1),IFERROR((SUMIFS(CA11:CA45,BW11:BW45,"<="&$BW40,BW11:BW45,">="&$BW40-1)/1000)/( $J$22*SUMIFS(BX11:BX45,BW11:BW45,"<="&$BW40,BW11:BW45,">="&$BW40-1)*$J$21/3600),1),IFERROR((SUMIFS(CA11:CA45,BW11:BW45,"<="&$BW40,BW11:BW45,">="&$BW40-2)/1000)/( $J$22*SUMIFS(BX11:BX45,BW11:BW45,"<="&$BW40,BW11:BW45,">="&$BW40-2)*$J$21/3600),1),IFERROR((SUMIFS(CA11:CA45,BW11:BW45,"<="&$BW40,BW11:BW45,">="&$BW40-3)/1000)/( $J$22*SUMIFS(BX11:BX45,BW11:BW45,"<="&$BW40,BW11:BW45,">="&$BW40-3)*$J$21/3600),1)) ) -> 1 | CV40: =IF(CA40="",1, MIN($CA40/SUM($CA11:$CA40),SUMIFS(CA11:CA45,BW11:BW45,">="&$BW40-1,BW11:BW45,"<="&$BW40)/SUM($CA11:$CA40),SUMIFS(CA11:CA45,BW11:BW45,">="&$BW40-2,BW11:BW45,"<="&$BW40)/SUM($CA11:$CA40),SUMIFS(CA11:CA45,BW11:BW45,">="&$BW40-3,BW11:BW45,"<="&$BW40)/SUM($CA11:$CA40)) ) -> 1
B41: THE FOLLOWING VALUES ARE USED FOR OTHER EPA PUBLICATIONS OR PROGRAMS | Q41: 31 | Y41: 31 | AP41: FUEL COSTS: PROCESS FOR DERIVING A COMPOSITE CD/CS COST PER MILE | AQ41: CITY | AR41: HIGHWAY | AV41: 31 | BA41: =IFERROR(astm( astm($W$46,3)*1000*(AZ41/AQ13),1),"") ->  | BE41: =IFERROR(astm(cityfuf(BB41),3)-astm(cityfuf(BB40),3),"") ->  | BL41: =IFERROR(astm(mdiuf(BK41),3)-astm(mdiuf(BK40),3),"") ->  | BO41: =IFERROR(astm(cityfufalt(BK41),3)-astm(cityfufalt(BK40),3),"") ->  | BS41: =IF(AZ41="",1, MIN(IFERROR((AZ41/1000)/((AW41*$J$22)*$J$21/3600),1),IFERROR((SUMIFS(AZ11:AZ45,AV11:AV45,"<="&$AV41,AV11:AV45,">="&$AV41-1)/1000)/( $J$22*SUMIFS(AW11:AW45,AV11:AV45,"<="&$AV41,AV11:AV45,">="&$AV41-1)*$J$21/3600),1),IFERROR((SUMIFS(AZ11:AZ45,AV11:AV45,"<="&$AV41,AV11:AV45,">="&$AV41-2)/1000)/( $J$22*SUMIFS(AW11:AW45,AV11:AV45,"<="&$AV41,AV11:AV45,">="&$AV41-2)*$J$21/3600),1),IFERROR((SUMIFS(AZ11:AZ45,AV11:AV45,"<="&$AV41,AV11:AV45,">="&$AV41-3)/1000)/( $J$22*SUMIFS(AW11:AW45,AV11:AV45,"<="&$AV41,AV11:AV45,">="&$AV41-3)*$J$21/3600),1)) ) -> 1 | BU41: =IF(AZ41="",1, MIN($AZ41/SUM($AZ11:$AZ41),SUMIFS(AZ11:AZ45,AV11:AV45,">="&$AV41-1,AV11:AV45,"<="&$AV41)/SUM($AZ11:$AZ41),SUMIFS(AZ11:AZ45,AV11:AV45,">="&$AV41-2,AV11:AV45,"<="&$AV41)/SUM($AZ11:$AZ41),SUMIFS(AZ11:AZ45,AV11:AV45,">="&$AV41-3,AV11:AV45,"<="&$AV41)/SUM($AZ11:$AZ41)) ) -> 1 | BW41: 31 | CF41: =IFERROR(astm(highwayfuf(CC41)-highwayfuf(CC40),3),"") ->  | CM41: =IFERROR(astm(mdiuf(CL41)-mdiuf(CL40),3),"") ->  | CP41: =IFERROR(astm(highwayfufalt(CL41)-highwayfufalt(CL40),3),"") ->  | CT41: =IF(CA41="",1, MIN(IFERROR((CA41/1000)/((BX41*$J$22)*$J$21/3600),1),IFERROR((SUMIFS(CA11:CA45,BW11:BW45,"<="&$BW41,BW11:BW45,">="&$BW41-1)/1000)/( $J$22*SUMIFS(BX11:BX45,BW11:BW45,"<="&$BW41,BW11:BW45,">="&$BW41-1)*$J$21/3600),1),IFERROR((SUMIFS(CA11:CA45,BW11:BW45,"<="&$BW41,BW11:BW45,">="&$BW41-2)/1000)/( $J$22*SUMIFS(BX11:BX45,BW11:BW45,"<="&$BW41,BW11:BW45,">="&$BW41-2)*$J$21/3600),1),IFERROR((SUMIFS(CA11:CA45,BW11:BW45,"<="&$BW41,BW11:BW45,">="&$BW41-3)/1000)/( $J$22*SUMIFS(BX11:BX45,BW11:BW45,"<="&$BW41,BW11:BW45,">="&$BW41-3)*$J$21/3600),1)) ) -> 1 | CV41: =IF(CA41="",1, MIN($CA41/SUM($CA11:$CA41),SUMIFS(CA11:CA45,BW11:BW45,">="&$BW41-1,BW11:BW45,"<="&$BW41)/SUM($CA11:$CA41),SUMIFS(CA11:CA45,BW11:BW45,">="&$BW41-2,BW11:BW45,"<="&$BW41)/SUM($CA11:$CA41),SUMIFS(CA11:CA45,BW11:BW45,">="&$BW41-3,BW11:BW45,"<="&$BW41)/SUM($CA11:$CA41)) ) -> 1
C42: Trends Report Values | D42: City | E42: Highway | Q42: 32 | Y42: 32 | AP42: CD cost per mile - electricity ($/mi) [3] | AQ42: =astm($F$37*$AQ$12/100,3) -> 0.065 | AR42: =astm($F$37*$AR$12/100,3) -> 0.043 | AV42: 32 | BA42: =IFERROR(astm( astm($W$46,3)*1000*(AZ42/AQ13),1),"") ->  | BE42: =IFERROR(astm(cityfuf(BB42),3)-astm(cityfuf(BB41),3),"") ->  | BL42: =IFERROR(astm(mdiuf(BK42),3)-astm(mdiuf(BK41),3),"") ->  | BO42: =IFERROR(astm(cityfufalt(BK42),3)-astm(cityfufalt(BK41),3),"") ->  | BS42: =IF(AZ42="",1, MIN(IFERROR((AZ42/1000)/((AW42*$J$22)*$J$21/3600),1),IFERROR((SUMIFS(AZ11:AZ45,AV11:AV45,"<="&$AV42,AV11:AV45,">="&$AV42-1)/1000)/( $J$22*SUMIFS(AW11:AW45,AV11:AV45,"<="&$AV42,AV11:AV45,">="&$AV42-1)*$J$21/3600),1),IFERROR((SUMIFS(AZ11:AZ45,AV11:AV45,"<="&$AV42,AV11:AV45,">="&$AV42-2)/1000)/( $J$22*SUMIFS(AW11:AW45,AV11:AV45,"<="&$AV42,AV11:AV45,">="&$AV42-2)*$J$21/3600),1),IFERROR((SUMIFS(AZ11:AZ45,AV11:AV45,"<="&$AV42,AV11:AV45,">="&$AV42-3)/1000)/( $J$22*SUMIFS(AW11:AW45,AV11:AV45,"<="&$AV42,AV11:AV45,">="&$AV42-3)*$J$21/3600),1)) ) -> 1 | BU42: =IF(AZ42="",1, MIN($AZ42/SUM($AZ11:$AZ42),SUMIFS(AZ11:AZ45,AV11:AV45,">="&$AV42-1,AV11:AV45,"<="&$AV42)/SUM($AZ11:$AZ42),SUMIFS(AZ11:AZ45,AV11:AV45,">="&$AV42-2,AV11:AV45,"<="&$AV42)/SUM($AZ11:$AZ42),SUMIFS(AZ11:AZ45,AV11:AV45,">="&$AV42-3,AV11:AV45,"<="&$AV42)/SUM($AZ11:$AZ42)) ) -> 1 | BW42: 32 | CF42: =IFERROR(astm(highwayfuf(CC42)-highwayfuf(CC41),3),"") ->  | CM42: =IFERROR(astm(mdiuf(CL42)-mdiuf(CL41),3),"") ->  | CP42: =IFERROR(astm(highwayfufalt(CL42)-highwayfufalt(CL41),3),"") ->  | CT42: =IF(CA42="",1, MIN(IFERROR((CA42/1000)/((BX42*$J$22)*$J$21/3600),1),IFERROR((SUMIFS(CA11:CA45,BW11:BW45,"<="&$BW42,BW11:BW45,">="&$BW42-1)/1000)/( $J$22*SUMIFS(BX11:BX45,BW11:BW45,"<="&$BW42,BW11:BW45,">="&$BW42-1)*$J$21/3600),1),IFERROR((SUMIFS(CA11:CA45,BW11:BW45,"<="&$BW42,BW11:BW45,">="&$BW42-2)/1000)/( $J$22*SUMIFS(BX11:BX45,BW11:BW45,"<="&$BW42,BW11:BW45,">="&$BW42-2)*$J$21/3600),1),IFERROR((SUMIFS(CA11:CA45,BW11:BW45,"<="&$BW42,BW11:BW45,">="&$BW42-3)/1000)/( $J$22*SUMIFS(BX11:BX45,BW11:BW45,"<="&$BW42,BW11:BW45,">="&$BW42-3)*$J$21/3600),1)) ) -> 1 | CV42: =IF(CA42="",1, MIN($CA42/SUM($CA11:$CA42),SUMIFS(CA11:CA45,BW11:BW45,">="&$BW42-1,BW11:BW45,"<="&$BW42)/SUM($CA11:$CA42),SUMIFS(CA11:CA45,BW11:BW45,">="&$BW42-2,BW11:BW45,"<="&$BW42)/SUM($CA11:$CA42),SUMIFS(CA11:CA45,BW11:BW45,">="&$BW42-3,BW11:BW45,"<="&$BW42)/SUM($CA11:$CA42)) ) -> 1
C43: Fleet Utility Factor (43/57) | D43: =astm(IF($N$7+$N$55+$N$103=0,SUM(IFERROR(AJ33,0),IFERROR(AJ81,0),IFERROR(AJ129,0)) / ((AJ33<>0)+(AJ81<>0)+(AJ129<>0)),($N$7*AJ33+$N$55*AJ81+$N$103*AJ129)/($N$7+$N$55+$N$103)),4) -> 0.584 | E43: =astm(IF($N$7+$N$55+$N$103=0,SUM(IFERROR(AK33,0),IFERROR(AK81,0),IFERROR(AK129,0)) / ((AK33<>0)+(AK81<>0)+(AK129<>0)),($N$7*AK33+$N$55*AK81+$N$103*AK129)/($N$7+$N$55+$N$103)),4) -> 0.358 | Q43: 33 | Y43: 33 | AP43: CD cost per mile - gasoline ($/mi) [3] | AQ43: =astm($F$36*((SUMIF(AV11:AV45,"<=" & (AQ34-1),AW11:AW45) + AQ33*SUMIF(AV11:AV45,"=" & (AQ34-1),AW11:AW45))/AQ7),3) -> 0 | AR43: =astm($F$36*((SUMIF(BW11:BW45,"<=" & (AR34-1),BX11:BX45) + AR33*SUMIF(BW11:BW45,"=" & (AR34-1),BX11:BX45))/AR7),3) -> 0 | AV43: 33 | BA43: =IFERROR(astm( astm($W$46,3)*1000*(AZ43/AQ13),1),"") ->  | BE43: =IFERROR(astm(cityfuf(BB43),3)-astm(cityfuf(BB42),3),"") ->  | BL43: =IFERROR(astm(mdiuf(BK43),3)-astm(mdiuf(BK42),3),"") ->  | BO43: =IFERROR(astm(cityfufalt(BK43),3)-astm(cityfufalt(BK42),3),"") ->  | BS43: =IF(AZ43="",1, MIN(IFERROR((AZ43/1000)/((AW43*$J$22)*$J$21/3600),1),IFERROR((SUMIFS(AZ11:AZ45,AV11:AV45,"<="&$AV43,AV11:AV45,">="&$AV43-1)/1000)/( $J$22*SUMIFS(AW11:AW45,AV11:AV45,"<="&$AV43,AV11:AV45,">="&$AV43-1)*$J$21/3600),1),IFERROR((SUMIFS(AZ11:AZ45,AV11:AV45,"<="&$AV43,AV11:AV45,">="&$AV43-2)/1000)/( $J$22*SUMIFS(AW11:AW45,AV11:AV45,"<="&$AV43,AV11:AV45,">="&$AV43-2)*$J$21/3600),1),IFERROR((SUMIFS(AZ11:AZ45,AV11:AV45,"<="&$AV43,AV11:AV45,">="&$AV43-3)/1000)/( $J$22*SUMIFS(AW11:AW45,AV11:AV45,"<="&$AV43,AV11:AV45,">="&$AV43-3)*$J$21/3600),1)) ) -> 1 | BU43: =IF(AZ43="",1, MIN($AZ43/SUM($AZ11:$AZ43),SUMIFS(AZ11:AZ45,AV11:AV45,">="&$AV43-1,AV11:AV45,"<="&$AV43)/SUM($AZ11:$AZ43),SUMIFS(AZ11:AZ45,AV11:AV45,">="&$AV43-2,AV11:AV45,"<="&$AV43)/SUM($AZ11:$AZ43),SUMIFS(AZ11:AZ45,AV11:AV45,">="&$AV43-3,AV11:AV45,"<="&$AV43)/SUM($AZ11:$AZ43)) ) -> 1 | BW43: 33 | CF43: =IFERROR(astm(highwayfuf(CC43)-highwayfuf(CC42),3),"") ->  | CM43: =IFERROR(astm(mdiuf(CL43)-mdiuf(CL42),3),"") ->  | CP43: =IFERROR(astm(highwayfufalt(CL43)-highwayfufalt(CL42),3),"") ->  | CT43: =IF(CA43="",1, MIN(IFERROR((CA43/1000)/((BX43*$J$22)*$J$21/3600),1),IFERROR((SUMIFS(CA11:CA45,BW11:BW45,"<="&$BW43,BW11:BW45,">="&$BW43-1)/1000)/( $J$22*SUMIFS(BX11:BX45,BW11:BW45,"<="&$BW43,BW11:BW45,">="&$BW43-1)*$J$21/3600),1),IFERROR((SUMIFS(CA11:CA45,BW11:BW45,"<="&$BW43,BW11:BW45,">="&$BW43-2)/1000)/( $J$22*SUMIFS(BX11:BX45,BW11:BW45,"<="&$BW43,BW11:BW45,">="&$BW43-2)*$J$21/3600),1),IFERROR((SUMIFS(CA11:CA45,BW11:BW45,"<="&$BW43,BW11:BW45,">="&$BW43-3)/1000)/( $J$22*SUMIFS(BX11:BX45,BW11:BW45,"<="&$BW43,BW11:BW45,">="&$BW43-3)*$J$21/3600),1)) ) -> 1 | CV43: =IF(CA43="",1, MIN($CA43/SUM($CA11:$CA43),SUMIFS(CA11:CA45,BW11:BW45,">="&$BW43-1,BW11:BW45,"<="&$BW43)/SUM($CA11:$CA43),SUMIFS(CA11:CA45,BW11:BW45,">="&$BW43-2,BW11:BW45,"<="&$BW43)/SUM($CA11:$CA43),SUMIFS(CA11:CA45,BW11:BW45,">="&$BW43-3,BW11:BW45,"<="&$BW43)/SUM($CA11:$CA43)) ) -> 1
C44: Unadjusted Fuel Economy (MPG) | D44: =astm(IF($N$7+$N$55+$N$103=0, ((AJ34<>0)+(AJ82<>0)+(AJ130<>0))/(IFERROR(1/AJ34,0)+IFERROR(1/AJ82,0)+IFERROR(1/AJ130,0)), ($N$7+$N$55+$N$103) / (IFERROR($N$7/AJ34,0)+IFERROR($N$55/AJ82,0)+IFERROR($N$103/AJ130,0)) ),4) -> 65.7964 | E44: =astm(IF($N$7+$N$55+$N$103=0, ((AK34<>0)+(AK82<>0)+(AK130<>0))/(IFERROR(1/AK34,0)+IFERROR(1/AK82,0)+IFERROR(1/AK130,0)), ($N$7+$N$55+$N$103) / (IFERROR($N$7/AK34,0)+IFERROR($N$55/AK82,0)+IFERROR($N$103/AK130,0)) ),4) -> 59.489 | Q44: 34 | Y44: 34 | AP44: CD total cost per mile ($/mi) [3] | AQ44: =astm(AQ43+AQ42,3) -> 0.065 | AR44: =astm(AR43+AR42,3) -> 0.043 | AV44: 34 | BA44: =IFERROR(astm( astm($W$46,3)*1000*(AZ44/AQ13),1),"") ->  | BE44: =IFERROR(astm(cityfuf(BB44),3)-astm(cityfuf(BB43),3),"") ->  | BL44: =IFERROR(astm(mdiuf(BK44),3)-astm(mdiuf(BK43),3),"") ->  | BO44: =IFERROR(astm(cityfufalt(BK44),3)-astm(cityfufalt(BK43),3),"") ->  | BS44: =IF(AZ44="",1, MIN(IFERROR((AZ44/1000)/((AW44*$J$22)*$J$21/3600),1),IFERROR((SUMIFS(AZ11:AZ45,AV11:AV45,"<="&$AV44,AV11:AV45,">="&$AV44-1)/1000)/( $J$22*SUMIFS(AW11:AW45,AV11:AV45,"<="&$AV44,AV11:AV45,">="&$AV44-1)*$J$21/3600),1),IFERROR((SUMIFS(AZ11:AZ45,AV11:AV45,"<="&$AV44,AV11:AV45,">="&$AV44-2)/1000)/( $J$22*SUMIFS(AW11:AW45,AV11:AV45,"<="&$AV44,AV11:AV45,">="&$AV44-2)*$J$21/3600),1),IFERROR((SUMIFS(AZ11:AZ45,AV11:AV45,"<="&$AV44,AV11:AV45,">="&$AV44-3)/1000)/( $J$22*SUMIFS(AW11:AW45,AV11:AV45,"<="&$AV44,AV11:AV45,">="&$AV44-3)*$J$21/3600),1)) ) -> 1 | BU44: =IF(AZ44="",1, MIN($AZ44/SUM($AZ11:$AZ44),SUMIFS(AZ11:AZ45,AV11:AV45,">="&$AV44-1,AV11:AV45,"<="&$AV44)/SUM($AZ11:$AZ44),SUMIFS(AZ11:AZ45,AV11:AV45,">="&$AV44-2,AV11:AV45,"<="&$AV44)/SUM($AZ11:$AZ44),SUMIFS(AZ11:AZ45,AV11:AV45,">="&$AV44-3,AV11:AV45,"<="&$AV44)/SUM($AZ11:$AZ44)) ) -> 1 | BW44: 34 | CF44: =IFERROR(astm(highwayfuf(CC44)-highwayfuf(CC43),3),"") ->  | CM44: =IFERROR(astm(mdiuf(CL44)-mdiuf(CL43),3),"") ->  | CP44: =IFERROR(astm(highwayfufalt(CL44)-highwayfufalt(CL43),3),"") ->  | CT44: =IF(CA44="",1, MIN(IFERROR((CA44/1000)/((BX44*$J$22)*$J$21/3600),1),IFERROR((SUMIFS(CA11:CA45,BW11:BW45,"<="&$BW44,BW11:BW45,">="&$BW44-1)/1000)/( $J$22*SUMIFS(BX11:BX45,BW11:BW45,"<="&$BW44,BW11:BW45,">="&$BW44-1)*$J$21/3600),1),IFERROR((SUMIFS(CA11:CA45,BW11:BW45,"<="&$BW44,BW11:BW45,">="&$BW44-2)/1000)/( $J$22*SUMIFS(BX11:BX45,BW11:BW45,"<="&$BW44,BW11:BW45,">="&$BW44-2)*$J$21/3600),1),IFERROR((SUMIFS(CA11:CA45,BW11:BW45,"<="&$BW44,BW11:BW45,">="&$BW44-3)/1000)/( $J$22*SUMIFS(BX11:BX45,BW11:BW45,"<="&$BW44,BW11:BW45,">="&$BW44-3)*$J$21/3600),1)) ) -> 1 | CV44: =IF(CA44="",1, MIN($CA44/SUM($CA11:$CA44),SUMIFS(CA11:CA45,BW11:BW45,">="&$BW44-1,BW11:BW45,"<="&$BW44)/SUM($CA11:$CA44),SUMIFS(CA11:CA45,BW11:BW45,">="&$BW44-2,BW11:BW45,"<="&$BW44)/SUM($CA11:$CA44),SUMIFS(CA11:CA45,BW11:BW45,">="&$BW44-3,BW11:BW45,"<="&$BW44)/SUM($CA11:$CA44)) ) -> 1
C45: Unadjusted GHG (g/mi) | D45: =astm(IFERROR(IF($N$7+$N$55+$N$103=0,SUM(IFERROR(AJ35,0),IFERROR(AJ83,0),IFERROR(AJ131,0)) / ((AJ35<>0)+(AJ83<>0)+(AJ131<>0)),($N$7*AJ35+$N$55*AJ83+$N$103*AJ131)/($N$7+$N$55+$N$103)),"CREE data error"),1) -> 83.7 | E45: =astm(IFERROR(IF($N$7+$N$55+$N$103=0,SUM(IFERROR(AK35,0),IFERROR(AK83,0),IFERROR(AK131,0)) / ((AK35<>0)+(AK83<>0)+(AK131<>0)),($N$7*AK35+$N$55*AK83+$N$103*AK131)/($N$7+$N$55+$N$103)),"CREE data error"),1) -> 129.5 | Q45: 35 | Y45: 35 | AP45: CS cost per mile ($/mi) [3] | AQ45: =astm($F$36/astm(N12,4),3) -> 0.089 | AR45: =astm($F$36/astm(O12,4),3) -> 0.078 | AV45: 35 | BA45: =IFERROR(astm( astm($W$46,3)*1000*(AZ45/AQ13),1),"") ->  | BE45: =IFERROR(astm(cityfuf(BB45),3)-astm(cityfuf(BB44),3),"") ->  | BL45: =IFERROR(astm(mdiuf(BK45),3)-astm(mdiuf(BK44),3),"") ->  | BO45: =IFERROR(astm(cityfufalt(BK45),3)-astm(cityfufalt(BK44),3),"") ->  | BS45: =IF(AZ45="",1, MIN(IFERROR((AZ45/1000)/((AW45*$J$22)*$J$21/3600),1),IFERROR((SUMIFS(AZ11:AZ45,AV11:AV45,"<="&$AV45,AV11:AV45,">="&$AV45-1)/1000)/( $J$22*SUMIFS(AW11:AW45,AV11:AV45,"<="&$AV45,AV11:AV45,">="&$AV45-1)*$J$21/3600),1),IFERROR((SUMIFS(AZ11:AZ45,AV11:AV45,"<="&$AV45,AV11:AV45,">="&$AV45-2)/1000)/( $J$22*SUMIFS(AW11:AW45,AV11:AV45,"<="&$AV45,AV11:AV45,">="&$AV45-2)*$J$21/3600),1),IFERROR((SUMIFS(AZ11:AZ45,AV11:AV45,"<="&$AV45,AV11:AV45,">="&$AV45-3)/1000)/( $J$22*SUMIFS(AW11:AW45,AV11:AV45,"<="&$AV45,AV11:AV45,">="&$AV45-3)*$J$21/3600),1)) ) -> 1 | BU45: =IF(AZ45="",1, MIN($AZ45/SUM($AZ11:$AZ45),SUMIFS(AZ11:AZ45,AV11:AV45,">="&$AV45-1,AV11:AV45,"<="&$AV45)/SUM($AZ11:$AZ45),SUMIFS(AZ11:AZ45,AV11:AV45,">="&$AV45-2,AV11:AV45,"<="&$AV45)/SUM($AZ11:$AZ45),SUMIFS(AZ11:AZ45,AV11:AV45,">="&$AV45-3,AV11:AV45,"<="&$AV45)/SUM($AZ11:$AZ45)) ) -> 1 | BW45: 35 | CF45: =IFERROR(astm(highwayfuf(CC45)-highwayfuf(CC44),3),"") ->  | CM45: =IFERROR(astm(mdiuf(CL45)-mdiuf(CL44),3),"") ->  | CP45: =IFERROR(astm(highwayfufalt(CL45)-highwayfufalt(CL44),3),"") ->  | CT45: =IF(CA45="",1, MIN(IFERROR((CA45/1000)/((BX45*$J$22)*$J$21/3600),1),IFERROR((SUMIFS(CA11:CA45,BW11:BW45,"<="&$BW45,BW11:BW45,">="&$BW45-1)/1000)/( $J$22*SUMIFS(BX11:BX45,BW11:BW45,"<="&$BW45,BW11:BW45,">="&$BW45-1)*$J$21/3600),1),IFERROR((SUMIFS(CA11:CA45,BW11:BW45,"<="&$BW45,BW11:BW45,">="&$BW45-2)/1000)/( $J$22*SUMIFS(BX11:BX45,BW11:BW45,"<="&$BW45,BW11:BW45,">="&$BW45-2)*$J$21/3600),1),IFERROR((SUMIFS(CA11:CA45,BW11:BW45,"<="&$BW45,BW11:BW45,">="&$BW45-3)/1000)/( $J$22*SUMIFS(BX11:BX45,BW11:BW45,"<="&$BW45,BW11:BW45,">="&$BW45-3)*$J$21/3600),1)) ) -> 1 | CV45: =IF(CA45="",1, MIN($CA45/SUM($CA11:$CA45),SUMIFS(CA11:CA45,BW11:BW45,">="&$BW45-1,BW11:BW45,"<="&$BW45)/SUM($CA11:$CA45),SUMIFS(CA11:CA45,BW11:BW45,">="&$BW45-2,BW11:BW45,"<="&$BW45)/SUM($CA11:$CA45),SUMIFS(CA11:CA45,BW11:BW45,">="&$BW45-3,BW11:BW45,"<="&$BW45)/SUM($CA11:$CA45)) ) -> 1
C46: Adjusted Fuel Economy (MPG) | D46: =astm(IF($N$7+$N$55+$N$103=0, ((AJ36<>0)+(AJ84<>0)+(AJ132<>0))/(IFERROR(1/AJ36,0)+IFERROR(1/AJ84,0)+IFERROR(1/AJ132,0)), ($N$7+$N$55+$N$103) / (IFERROR($N$7/AJ36,0)+IFERROR($N$55/AJ84,0)+IFERROR($N$103/AJ132,0)) ),4) -> 46.041 | E46: =astm(IF($N$7+$N$55+$N$103=0, ((AK36<>0)+(AK84<>0)+(AK132<>0))/(IFERROR(1/AK36,0)+IFERROR(1/AK84,0)+IFERROR(1/AK132,0)), ($N$7+$N$55+$N$103) / (IFERROR($N$7/AK36,0)+IFERROR($N$55/AK84,0)+IFERROR($N$103/AK132,0)) ),4) -> 41.309 | V46: Recharge energy (AC kilowatt-hours): | W46: 9.964 | AD46: Recharge energy (AC kilowatt-hours): | AE46: 9.567 | AP46: Composite CD/CS cost ($/mi) [3] | AQ46: =astm(AQ31*AQ44+(1-AQ31)*AQ45,3) -> 0.078 | AR46: =astm(AR31*AR44+(1-AR31)*AR45,3) -> 0.058
C47: Adjusted GHG (g/mi) | D47: =astm(IF($N$7+$N$55+$N$103=0,SUM(IFERROR(AJ37,0),IFERROR(AJ85,0),IFERROR(AJ133,0)) / ((AJ37<>0)+(AJ85<>0)+(AJ133<>0)),($N$7*AJ37+$N$55*AJ85+$N$103*AJ133)/($N$7+$N$55+$N$103)),1) -> 121.9 | E47: =astm(IF($N$7+$N$55+$N$103=0,SUM(IFERROR(AK37,0),IFERROR(AK85,0),IFERROR(AK133,0)) / ((AK37<>0)+(AK85<>0)+(AK133<>0)),($N$7*AK37+$N$55*AK85+$N$103*AK133)/($N$7+$N$55+$N$103)),1) -> 184.2 | V47: All-Electric Range (miles): | W47: 31.345 | AD47: All-Electric Range (miles): | AE47: 30.123 | AP47: COMPOSITE CD/CS FUEL ECONOMY AND CO2 VALUES, ADJUSTED | AQ47: CITY | AR47: HIGHWAY
C48: HOV Lane Values | D48: City | E48: Highway | F48: Combined | Q48: ="Calculated transition cycle: " & IF(COUNTIF(BR11:BR40,"CD") < COUNT(R11:R40), COUNTIF(BR11:BR40,"CD"), IF(COUNTIF(BT11:BT40,"CD") < COUNT(R11:R40), COUNTIF(BT11:BT40,"CD"), "ERROR" ) ) -> Calculated transition cycle: 5 | V48: To override transition cycle, enter here---> | W48: 4 | Y48: ="Calculated transition cycle: " & IF(COUNTIF(CS11:CS40,"CD") < COUNT(Z11:Z40), COUNTIF(CS11:CS40,"CD"), IF(COUNTIF(CU11:CU40,"CD") < COUNT(Z11:Z40), COUNTIF(CU11:CU40,"CD"), "ERROR" ) ) -> Calculated transition cycle: 4 | AD48: To override transition cycle, enter here---> | AP48: Composite CD/CS CO2, adjusted (g/mi) [1] | AQ48: =astm(IFERROR(AQ26+(1-AQ32)*N15,#VALUE!),1) -> 155.3 | AR48: =astm(IFERROR(AR26+(1-AR32)*O15,#VALUE!),1) -> 131.7
C49: MDIUF based on unadjusted Rcda | D49: =IF($N$7+$N$55+$N$103=0,SUM(IFERROR(AJ30,0),IFERROR(AJ78,0),IFERROR(AJ126,0)) / ((AJ30<>0)+(AJ78<>0)+(AJ126<>0)),($N$7*AJ30+$N$55*AJ78+$N$103*AJ126)/($N$7+$N$55+$N$103)) -> 0.567 | E49: =IF($N$7+$N$55+$N$103=0,SUM(IFERROR(AK30,0),IFERROR(AK78,0),IFERROR(AK126,0)) / ((AK30<>0)+(AK78<>0)+(AK126<>0)),($N$7*AK30+$N$55*AK78+$N$103*AK126)/($N$7+$N$55+$N$103)) -> 0.685 | AP49: Composite CD/CS Fuel Economy, adjusted (MPG) [4] | AQ49: =IFERROR(astm( IFERROR(1/ ( AQ17 + (1-AQ32)/N12),#VALUE!), 4),0) -> 41.8548 | AR49: =IFERROR(astm( IFERROR(1/ ( AR17 + (1-AR32)/O12),#VALUE!), 4),0) -> 48.6718
C50: Composite CD/CS Fuel Economy (MPGe) | D50: =IF($N$7+$N$55+$N$103=0, ((AJ31<>0)+(AJ79<>0)+(AJ127<>0))/(IFERROR(1/AJ31,0)+IFERROR(1/AJ79,0)+IFERROR(1/AJ127,0)), ($N$7+$N$55+$N$103) / (IFERROR($N$7/AJ31,0)+IFERROR($N$55/AJ79,0)+IFERROR($N$103/AJ127,0)) ) -> 59.0853 | E50: =IF($N$7+$N$55+$N$103=0, ((AK31<>0)+(AK79<>0)+(AK127<>0))/(IFERROR(1/AK31,0)+IFERROR(1/AK79,0)+IFERROR(1/AK127,0)), ($N$7+$N$55+$N$103) / (IFERROR($N$7/AK31,0)+IFERROR($N$55/AK79,0)+IFERROR($N$103/AK127,0)) ) -> 87.1704 | F50: =1/(0.55/D50+0.45/E50) -> 69.10430391
C51: Fueleconomy.gov Values | M51: Test Set #2 | AI51: Results from Test Set #2: | AJ51: =N52 -> 0 | AO51: INTERMEDIATE CALCULATIONS AND INPUTS | AQ51: Test Set #2: | AR51: =N53 -> 0
C52: Charge-sustaining Efficiency | F52: MPG | AI52: CAFE Values | AO52: Charge-Depleting (CD) Test Results | AV52: DETAILED CALCULATIONS | AX52: UDDS | AY52: =$AR51 -> 0 | BW52: DETAILED CALCULATIONS | BY52: HFET | BZ52: =AR51 -> 0
C53: City FE (Guide) - Conventional Fuel | F53: =astm(IF($N$7+$N$55+$N$103=0, ((N12<>0)+(N60<>0)+(N108<>0))/(IFERROR(1/N12,0)+IFERROR(1/N60,0)+IFERROR(1/N108,0)), ($N$7+$N$55+$N$103) / (IFERROR($N$7/N12,0)+IFERROR($N$55/N60,0)+IFERROR($N$103/N108,0)) ),0) -> 30 | Q53: ENTER CHARGE-DEPLETING UDDS (CITY) DATA HERE | Y53: ENTER CHARGE-DEPLETING HFET (HIGHWAY) DATA HERE | AI53: A. PHEV meets dual fuel criteria: | AJ53: City | AK53: Highway | AL53: Combined | AP53: DRIVING DISTANCE VALUES | AQ53: CITY | AR53: HIGHWAY | AV53: Cycle No. | AW53: Gasoline Consumed | AX53: CO2 [0] | AY53: Net Amp-Hours Used Per Cycle [3] | AZ53: DC Electricity Consumed [1] | BA53: AC Electricity Consumed [1] | BB53: Theoretical Cumulative Cycle Distance | BC53: Electric Only Fuel Consumption Rate | BD53: Total Fuel Consumption Rate (gas + electric) | BE53: 55/45 City Fleet Utility Factor [3] | BF53: 55/45 City FUF x CREE | BG53: 55/45 City FUF x Total Consumption | BH53: Total Fuel Consumption (gas + electric) | BI53: 5-Cycle Adjustment | BJ53: Adjusted Cycle Measured Distance | BK53: Adjusted Cycle Theoretical Cumulative Distance | BL53: MDIUF [3] | BM53: MDIUF x Adjusted CO2 | BN53: MDIUF x Adjusted Total Fuel Consumption | BO53: 43/57 City Fleet Utility Factor [3] | BP53: 43/57 City FUF x Adjusted Total Fuel Consumption Rate | BQ53: 43/57 City FUF x Adjusted CREE | BR53: Is Cycle CD or CS based on NEC 1% Tolerance? | BS53: NEC Tolerance 1% Fuel Energy Criteria | BT53: Is Cycle CD or CS based on battery 2% Tolerance? | BU53: NEC Tolerance 2% Usable Battery Energy Criteria | BW53: Cycle No. | BX53: Gasoline Consumed | BY53: CO2 [0] | BZ53: Net Amp-Hours Used Per Cycle [3] | CA53: DC Electricity Consumed [1] | CB53: AC Electricity Consumed [1] | CC53: Theoretical Cumulative Cycle Distance | CD53: Electric Only Fuel Consumption Rate | CE53: Total Fuel Consumption Rate (gas + electric) | CF53: 55/45 Highway Fleet Utility Factor [3] | CG53: 55/45 Highway FUF x CREE | CH53: 55/45 Highway FUF x Total Consumption | CI53: Total Fuel Consumption (gas + electric) | CJ53: 5-Cycle Adjustment | CK53: Adjusted Cycle Measured Distance | CL53: Adjusted Cycle Theoretical Cumulative Distance | CM53: MDIUF [3] | CN53: MDIUF x Adjusted CO2 | CO53: MDIUF x Adjusted Total Fuel Consumption | CP53: 43/57 Highway Fleet Utility Factor [3] | CQ53: 43/57 Highway FUF x Adjusted Total Fuel Consumption Rate | CR53: 43/57 Highway FUF x Adjusted CREE | CS53: Is Cycle CD or CS based on NEC 1% Tolerance? | CT53: NEC Tolerance 1% Fuel Energy Criteria | CU53: Is Cycle CD or CS based on battery 2% Tolerance? | CV53: NEC Tolerance 2% Usable Battery Energy Criteria
C54: Hwy FE (Guide) - Conventional Fuel | F54: =astm(IF($N$7+$N$55+$N$103=0, ((O12<>0)+(O60<>0)+(O108<>0))/(IFERROR(1/O12,0)+IFERROR(1/O60,0)+IFERROR(1/O108,0)), ($N$7+$N$55+$N$103) / (IFERROR($N$7/O12,0)+IFERROR($N$55/O60,0)+IFERROR($N$103/O108,0)) ),0) -> 34 | M54: Test Set name (e.g., Eco, Power): | Q54: Cycle No. | R54: Cycle/Phase Measured Distance | S54: Integrated Amp-Hours Electricity Used | T54: Average Cycle Voltage | U54: Fuel Economy | V54: CO2 | W54: CREE | Y54: Cycle No. | Z54: Cycle/Phase Measured Distance | AA54: Integrated Amp-Hours Electricity Used | AB54: Average Cycle Voltage | AC54: Fuel Economy | AD54: CO2 | AE54: CREE | AI54: 1. Default 50/50 Composite MPGe [4] | AJ54: =IFERROR(astm(1/(0.5/( ( $J$18 ) /(AQ59/AQ85))+0.5/N59),4),0) -> 0 | AK54: =IFERROR(astm(1/(0.5/( ( $J$18 ) /(AR59/AR85))+0.5/O59),4),0) -> 0 | AL54: =IFERROR(astm(1/(0.55/AJ54+0.45/AK54),4),0) -> 0 | AP54: CD driving distance (Rcda), unadjusted (miles) [3] | AQ54: =IFERROR(astm(SUMIF(Q59:Q93,"<=" & ($AQ82-1),R59:R93) + AQ81*VLOOKUP($AQ82,Q59:R93,2,FALSE),3),0) -> 0 | AR54: =IFERROR(astm(SUMIF(Y59:Y93,"<=" & ($AR82-1),Z59:Z93) + AR81*VLOOKUP($AR82,Y59:Z93,2,FALSE),3),0) -> 0
C55: Comb FE (Guide) - Conventional Fuel | F55: =astm(1/(0.55/(IF($N$7+$N$55+$N$103=0, ((N12<>0)+(N60<>0)+(N108<>0))/(IFERROR(1/N12,0)+IFERROR(1/N60,0)+IFERROR(1/N108,0)), ($N$7+$N$55+$N$103) / (IFERROR($N$7/N12,0)+IFERROR($N$55/N60,0)+IFERROR($N$103/N108,0)) ))+0.45/(IF($N$7+$N$55+$N$103=0, ((O12<>0)+(O60<>0)+(O108<>0))/(IFERROR(1/O12,0)+IFERROR(1/O60,0)+IFERROR(1/O108,0)), ($N$7+$N$55+$N$103) / (IFERROR($N$7/O12,0)+IFERROR($N$55/O60,0)+IFERROR($N$103/O108,0)) ))),0) -> 32 | M55: Production Volume (projected or actual): | AI55: 2. Optional Utility Factor Composite MPGe [4] | AJ55: =IFERROR(astm(1/( AQ88 / ( ( $J$18 ) / (AQ59/AQ85)) + (1-AQ88)/N59), 4),0) -> 0 | AK55: =IFERROR(astm(1/( AR88 / ( ( $J$18 ) / (AR59/AR85)) + (1-AR88)/O59), 4),0) -> 0 | AL55: =IFERROR(astm(1/(0.55/AJ55+0.45/AK55),4),0) -> 0 | AP55: CD driving distance (Rcda), adjusted (miles) [3] | AQ55: =IFERROR(astm(SUMIF(AV59:AV93,"<"&AQ82,BJ59:BJ93)+AQ81*SUMIF(AV59:AV93,"="&AQ82,BJ59:BJ93),3),0) -> 0 | AR55: =IFERROR(astm(SUMIF(BW59:BW93,"<"&AR82,CK59:CK93)+AR81*SUMIF(BW59:BW93,"="&AR82,CK59:CK93),3),0) -> 0
C56: City Unadj FE - Conventional Fuel | F56: =astm(IF($N$7+$N$55+$N$103=0, ((N11<>0)+(N59<>0)+(N107<>0))/(IFERROR(1/N11,0)+IFERROR(1/N59,0)+IFERROR(1/N107,0)), ($N$7+$N$55+$N$103) / (IFERROR($N$7/N11,0)+IFERROR($N$55/N59,0)+IFERROR($N$103/N107,0)) ),1) -> 38.1 | AI56: B. PHEV does NOT meet dual fuel criteria: | AJ56: City | AK56: Highway | AL56: Combined | AP56: CD all-electric driving distance, unadjusted (miles) [3] | AQ56: =IF(ISNUMBER(W95), astm(W95,3), 0) -> 0 | AR56: =IF(ISNUMBER(AE95), astm(AE95,3), 0) -> 0
C57: Hwy Unadj FE - Conventional Fuel | F57: =astm(IF($N$7+$N$55+$N$103=0, ((O11<>0)+(O59<>0)+(O107<>0))/(IFERROR(1/O11,0)+IFERROR(1/O59,0)+IFERROR(1/O107,0)), ($N$7+$N$55+$N$103) / (IFERROR($N$7/O11,0)+IFERROR($N$55/O59,0)+IFERROR($N$103/O107,0)) ),1) -> 46.3 | M57: ENTER CHARGE-SUSTAINING TEST RESULTS HERE | AI57: 1. Utility Factor Composite MPGe [4] | AJ57: =IFERROR(astm(1/ ( AQ63 + (1-AQ78)/N59),4),0) -> 0 | AK57: =IFERROR(astm(1/ ( AR63 + (1-AR78)/O59),4),0) -> 0 | AL57: =IFERROR(astm(1/(0.55/AJ57+0.45/AK57),4),0) -> 0 | AP57: CD All-Electric Range, adjusted (mi) [3] | AQ57: =astm( 0.7*AQ56, 3) -> 0 | AR57: =astm( 0.7*AR56, 3) -> 0
C58: Comb Unadj FE - Conventional Fuel | F58: =astm(1/(0.55/(IF($N$7+$N$55+$N$103=0, ((N11<>0)+(N59<>0)+(N107<>0))/(IFERROR(1/N11,0)+IFERROR(1/N59,0)+IFERROR(1/N107,0)), ($N$7+$N$55+$N$103) / (IFERROR($N$7/N11,0)+IFERROR($N$55/N59,0)+IFERROR($N$103/N107,0)) ))+0.45/(IF($N$7+$N$55+$N$103=0, ((O11<>0)+(O59<>0)+(O107<>0))/(IFERROR(1/O11,0)+IFERROR(1/O59,0)+IFERROR(1/O107,0)), ($N$7+$N$55+$N$103) / (IFERROR($N$7/O11,0)+IFERROR($N$55/O59,0)+IFERROR($N$103/O107,0)) ))),4) -> 41.3994 | N58: City | O58: Highway | Q58: No. | R58: Miles [3] | S58: Amp-hrs [3] | T58: Volts [2] | U58: MPG [1] | V58: g/mi [0] | W58: g/mi [0] | Y58: No. | Z58: Miles [3] | AA58: Amp-hrs [3] | AB58: Volts [2] | AC58: MPG [1] | AD58: g/mi [0] | AE58: g/mi [0] | AI58: GHG Values | AJ58: City | AK58: Highway | AL58: Combined | AP58: FUEL CONSUMPTION & ECONOMY VALUES | AQ58: CITY | AR58: HIGHWAY | AV58: No. | AW58: gal | AX58: grams | AY58: Amp-hours | AZ58: W-hours | BA58: W-hours | BB58: mi | BC58: gal/mi equiv | BD58: gal/mi equiv | BE58: UF | BF58: UF | BG58: gal/mi equiv | BH58: gal-equiv | BI58: % | BJ58: miles | BK58: miles | BL58: UF | BM58: g/mi | BN58: gal/mi equiv | BO58: UF | BP58: gal/mi equiv | BQ58: g/mi | BR58: CD or CS | BT58: CD or CS | BW58: No. | BX58: gal | BY58: grams | BZ58: Amp-hours | CA58: W-hours | CB58: W-hours | CC58: mi | CD58: gal/mi equiv | CE58: gal/mi equiv | CF58: UF | CG58: UF | CH58: gal/mi equiv | CI58: gal-equiv | CJ58: % | CK58: miles | CL58: miles | CM58: UF | CN58: g/mi | CO58: gal-equiv | CP58: UF | CQ58: gal-equiv | CR58: g/mi | CS58: CD or CS | CU58: CD or CS
C59: City Unrd Adj FE - Conventional Fuel | F59: =astm(IF($N$7+$N$55+$N$103=0, ((N12<>0)+(N60<>0)+(N108<>0))/(IFERROR(1/N12,0)+IFERROR(1/N60,0)+IFERROR(1/N108,0)), ($N$7+$N$55+$N$103) / (IFERROR($N$7/N12,0)+IFERROR($N$55/N60,0)+IFERROR($N$103/N108,0)) ),4) -> 30.3323 | M59: Fuel Economy, Unadjusted (MPG): | Q59: 1 | Y59: 1 | AI59: Composite CREE, without upstream emissions [1] | AJ59: =IFERROR(IF(OR(SUM(W59:W93)=0,N61=0,ISBLANK(N61), LOOKUP(2,1/(W59:W93<>""),ROW(W59:W93)) < LOOKUP(2,1/(R59:R93<>""),ROW(R59:R93)) ),"ERROR",astm(AQ75+(1-AQ78)*N61,1)),0) -> 0 | AK59: =IFERROR(IF(OR(SUM(AE59:AE93)=0,O61=0,ISBLANK(O61), LOOKUP(2,1/(AE59:AE93<>""),ROW(AE59:AE93)) < LOOKUP(2,1/(Z59:Z93<>""),ROW(Z59:Z88)) ),"ERROR",astm(AR75+(1-AR78)*O61,1)),0) -> 0 | AL59: =IFERROR(astm(0.55*AJ59+0.45*AK59,1),0) -> 0 | AO59: NEW | AP59: CD AC electricity consumption (Rcdc), unadjusted (Watt-hours) [1] | AQ59: =astm(SUMIF(AV59:AV93,"<=" & AQ82,BA59:BA93),1) -> 0 | AR59: =astm(SUMIF(BW59:BW93,"<=" & AR82,CB59:CB93),1) -> 0 | AV59: 1 | AW59: =IF(ISBLANK(R59),"", IF(astm(V59,0)=0, 0, IFERROR(astm(R59,3)/astm(U59,1),0)) ) ->  | AX59: =IF(ISBLANK(R59),"", IF(astm(V59,0)=0,0, astm( astm(V59,0)*astm(R59,3), 0) ) ) ->  | AY59: =IF( ISBLANK(S59),"",astm(S59,3)) ->  | AZ59: =IF(ISBLANK(T59),"",astm(AY59*astm(T59,2),1)) ->  | BA59: =IFERROR(astm( astm($W$94,3)*1000*(AZ59/AQ61),1),"") ->  | BB59: =IF(ISBLANK(R59),"",7.45) ->  | BC59: =IFERROR(BA59/($J$19*astm(R59,3)),"") ->  | BD59: =IFERROR(BC59+AW59/astm(R59,3),"") ->  | BE59: =astm(IFERROR(astm(cityfuf(BB59)-0,3),""),3) ->  | BF59: =IF(ISBLANK(R59),"", IF(astm(V59,0)=0, 0, IFERROR(BE59*astm(W59,0),"") ) ) ->  | BG59: =IFERROR(BD59*BE59,"") ->  | BH59: =IFERROR(BD59*astm(R59,3),"") ->  | BI59: =IF( $J$5>=2017, IFERROR(MAX(1/(0.004091*(1/BD59)+1.1601),0.7),""), IFERROR(MAX(1/(0.003259*(1/BD59)+1.1805),0.7),"") ) ->  | BJ59: =IFERROR(BI59*astm(R59,3),"") ->  | BK59: =IFERROR(BI59*7.45,"") ->  | BL59: =IFERROR(astm(mdiuf(BK59)-0,3),"") ->  | BM59: =IF(ISBLANK(R59),"", IF( astm(V59,0)=0, 0, IFERROR(BL59*astm(V59,0)/(BI59),"") ) ) ->  | BN59: =IFERROR(BL59*BD59/BI59,"") ->  | BO59: =IFERROR(astm(cityfufalt(BK59)-0,3),"") ->  | BP59: =IFERROR(BO59*BD59/BI59,"") ->  | BQ59: =IF(ISBLANK(R59),"", IF( astm(V59,0)=0, 0, IFERROR(BO59*astm(W59,0)/(BI59),"") ) ) ->  | BR59: =IF(AZ59="","", IF(ABS(BS59)<0.01,"CS based on 1% fuel energy", "CD")) ->  | BS59: =IF(AZ59="",1, MIN(IFERROR((AZ59/1000)/((AW59*$J$22)*$J$21/3600),1),IFERROR((SUMIFS(AZ59:AZ93,AV59:AV93,"<="&$AV59,AV59:AV93,">="&$AV59-1)/1000)/( $J$22*SUMIFS(AW59:AW93,AV59:AV93,"<="&$AV59,AV59:AV93,">="&$AV59-1)*$J$21/3600),1),IFERROR((SUMIFS(AZ59:AZ93,AV59:AV93,"<="&$AV59,AV59:AV93,">="&$AV59-2)/1000)/( $J$22*SUMIFS(AW59:AW93,AV59:AV93,"<="&$AV59,AV59:AV93,">="&$AV59-2)*$J$21/3600),1),IFERROR((SUMIFS(AZ59:AZ93,AV59:AV93,"<="&$AV59,AV59:AV93,">="&$AV59-3)/1000)/( $J$22*SUMIFS(AW59:AW93,AV59:AV93,"<="&$AV59,AV59:AV93,">="&$AV59-3)*$J$21/3600),1)) ) -> 1 | BT59: =IF(AZ59="","", IF(ABS(BU59)<0.02,"CS based on 2% battery energy","CD")) ->  | BU59: =IF(AZ59="",1, MIN($AZ59/SUM($AZ59:$AZ59),SUMIFS(AZ59:AZ93,AV59:AV93,">="&$AV59-1,AV59:AV93,"<="&$AV59)/SUM($AZ59:$AZ59),SUMIFS(AZ59:AZ93,AV59:AV93,">="&$AV59-2,AV59:AV93,"<="&$AV59)/SUM($AZ59:$AZ59),SUMIFS(AZ59:AZ93,AV59:AV93,">="&$AV59-3,AV59:AV93,"<="&$AV59)/SUM($AZ59:$AZ59)) ) -> 1 | BW59: 1 | BX59: =IF(ISBLANK(Z59),"", IF(astm(AD59,0)=0, 0, IFERROR(astm(Z59,3)/astm(AC59,1),0)) ) ->  | BY59: =IF(ISBLANK(Z59),"", IF(astm(AD59,0)=0,0, astm(AD59,0)*astm(Z59,3)) ) ->  | BZ59: =IF(ISBLANK(AA59),"",astm(AA59,3)) ->  | CA59: =IF(ISBLANK(AB59),"",astm(BZ59*astm(AB59,2),1)) ->  | CB59: =IFERROR(astm( astm($AE$94,3)*1000*(CA59/$AR$61),1),"") ->  | CC59: =IF(ISBLANK(Z59),"",10.3) ->  | CD59: =IFERROR(CB59/($J$19*astm(Z59,3)),"") ->  | CE59: =IFERROR(CD59+BX59/astm(Z59,3),"") ->  | CF59: =IFERROR(astm(highwayfuf(CC59)-0,3),"") ->  | CG59: =IF(ISBLANK(Z59),"", IF( astm(AD59,0)=0, 0, IFERROR(CF59*astm(AE59,0),"") ) ) ->  | CH59: =IFERROR(CE59*CF59,"") ->  | CI59: =IFERROR(CE59*astm(Z59,3),"") ->  | CJ59: =IF( $J$5>=2017, IFERROR(MAX(1/(0.003191*(1/CE59)+1.2945),0.7),""), IFERROR(MAX(1/(0.001376*(1/CE59)+1.3466),0.7),"") ) ->  | CK59: =IFERROR(CJ59*astm(Z59,3),"") ->  | CL59: =IFERROR(CJ59*10.3,"") ->  | CM59: =IFERROR(astm(mdiuf(CL59)-0,3),"") ->  | CN59: =IF(ISBLANK(Z59),"", IF( astm(AD59,0)=0, 0, IFERROR(CM59*astm(AD59,0)/(CJ59),"") ) ) ->  | CO59: =IFERROR(CM59*CE59/CJ59,"") ->  | CP59: =IFERROR(astm(highwayfufalt(CL59)-0,3),"") ->  | CQ59: =IFERROR(CP59*CE59/CJ59,"") ->  | CR59: =IF(ISBLANK(Z59),"", IF( astm(AD59,0)=0, 0, IFERROR(CP59*astm(AE59,0)/(CJ59),"") ) ) ->  | CS59: =IF($CA59="","", IF(ABS(CT59)<0.01,"CS based on 1% fuel energy","CD")) ->  | CT59: =IF(CA59="",1, MIN(IFERROR((CA59/1000)/((BX59*$J$22)*$J$21/3600),1),IFERROR((SUMIFS(CA59:CA93,BW59:BW93,"<="&$BW59,BW59:BW93,">="&$BW59-1)/1000)/( $J$22*SUMIFS(BX59:BX93,BW59:BW93,"<="&$BW59,BW59:BW93,">="&$BW59-1)*$J$21/3600),1),IFERROR((SUMIFS(CA59:CA93,BW59:BW93,"<="&$BW59,BW59:BW93,">="&$BW59-2)/1000)/( $J$22*SUMIFS(BX59:BX93,BW59:BW93,"<="&$BW59,BW59:BW93,">="&$BW59-2)*$J$21/3600),1),IFERROR((SUMIFS(CA59:CA93,BW59:BW93,"<="&$BW59,BW59:BW93,">="&$BW59-3)/1000)/( $J$22*SUMIFS(BX59:BX93,BW59:BW93,"<="&$BW59,BW59:BW93,">="&$BW59-3)*$J$21/3600),1)) ) -> 1 | CU59: =IF($CA59="","", IF(ABS(CV59)<0.02,"CS based on 2% battery energy","CD")) ->  | CV59: =IF(CA59="",1, MIN($CA59/SUM($CA59:$CA59),SUMIFS(CA59:CA93,BW59:BW93,">="&$BW59-1,BW59:BW93,"<="&$BW59)/SUM($CA59:$CA59),SUMIFS(CA59:CA93,BW59:BW93,">="&$BW59-2,BW59:BW93,"<="&$BW59)/SUM($CA59:$CA59),SUMIFS(CA59:CA93,BW59:BW93,">="&$BW59-3,BW59:BW93,"<="&$BW59)/SUM($CA59:$CA59)) ) -> 1
C60: Hwy Unrd Adj FE - Conventional Fuel | F60: =astm(IF($N$7+$N$55+$N$103=0, ((O12<>0)+(O60<>0)+(O108<>0))/(IFERROR(1/O12,0)+IFERROR(1/O60,0)+IFERROR(1/O108,0)), ($N$7+$N$55+$N$103) / (IFERROR($N$7/O12,0)+IFERROR($N$55/O60,0)+IFERROR($N$103/O108,0)) ),4) -> 34.4 | M60: Fuel Economy, Adjusted (MPG): | Q60: 2 | Y60: 2 | AP60: CD AC electricity consumption rate (Rcda), adjusted (kW-hr/100mi) [3] | AQ60: =IFERROR(astm( astm(W94,3)*100/AQ55,3),0) -> 0 | AR60: =IFERROR(astm( astm(AE94,3)*100/AR55,3),0) -> 0 | AV60: 2 | AY60: =IF(ISBLANK(S60),"",(astm(S60,3)-astm(S59,3))) ->  | BA60: =IFERROR(astm( astm($W$94,3)*1000*(AZ60/AQ61),1),"") ->  | BB60: =IF(ISBLANK(R60),"",7.45+BB59) ->  | BE60: =IFERROR(astm(cityfuf(BB60),3)-astm(cityfuf(BB59),3),"") ->  | BG60: =IFERROR(BD60*BE60,"") ->  | BK60: =IFERROR(BI60*7.45+BK59,"") ->  | BL60: =IFERROR(astm(mdiuf(BK60),3)-astm(mdiuf(BK59),3),"") ->  | BO60: =IFERROR(astm(cityfufalt(BK60),3)-astm(cityfufalt(BK59),3),"") ->  | BS60: =IF(AZ60="",1, MIN(IFERROR((AZ60/1000)/((AW60*$J$22)*$J$21/3600),1),IFERROR((SUMIFS(AZ59:AZ93,AV59:AV93,"<="&$AV60,AV59:AV93,">="&$AV60-1)/1000)/( $J$22*SUMIFS(AW59:AW93,AV59:AV93,"<="&$AV60,AV59:AV93,">="&$AV60-1)*$J$21/3600),1),IFERROR((SUMIFS(AZ59:AZ93,AV59:AV93,"<="&$AV60,AV59:AV93,">="&$AV60-2)/1000)/( $J$22*SUMIFS(AW59:AW93,AV59:AV93,"<="&$AV60,AV59:AV93,">="&$AV60-2)*$J$21/3600),1),IFERROR((SUMIFS(AZ59:AZ93,AV59:AV93,"<="&$AV60,AV59:AV93,">="&$AV60-3)/1000)/( $J$22*SUMIFS(AW59:AW93,AV59:AV93,"<="&$AV60,AV59:AV93,">="&$AV60-3)*$J$21/3600),1)) ) -> 1 | BU60: =IF(AZ60="",1, MIN($AZ60/SUM($AZ59:$AZ60),SUMIFS(AZ59:AZ93,AV59:AV93,">="&$AV60-1,AV59:AV93,"<="&$AV60)/SUM($AZ59:$AZ60),SUMIFS(AZ59:AZ93,AV59:AV93,">="&$AV60-2,AV59:AV93,"<="&$AV60)/SUM($AZ59:$AZ60),SUMIFS(AZ59:AZ93,AV59:AV93,">="&$AV60-3,AV59:AV93,"<="&$AV60)/SUM($AZ59:$AZ60)) ) -> 1 | BW60: 2 | BZ60: =IF(ISBLANK(AA60),"",(astm(AA60,3)-astm(AA59,3))) ->  | CC60: =IF(ISBLANK(Z60),"",10.3+CC59) ->  | CF60: =IFERROR(astm(highwayfuf(CC60)-highwayfuf(CC59),3),"") ->  | CL60: =IFERROR(CJ60*10.3+CL59,"") ->  | CM60: =IFERROR(astm(mdiuf(CL60)-mdiuf(CL59),3),"") ->  | CP60: =IFERROR(astm(highwayfufalt(CL60)-highwayfufalt(CL59),3),"") ->  | CS60: =IF(CA60="","", IF(ABS(CT60)<0.01,"CS based on 1% fuel energy","CD")) ->  | CT60: =IF(CA60="",1, MIN(IFERROR((CA60/1000)/((BX60*$J$22)*$J$21/3600),1),IFERROR((SUMIFS(CA59:CA93,BW59:BW93,"<="&$BW60,BW59:BW93,">="&$BW60-1)/1000)/( $J$22*SUMIFS(BX59:BX93,BW59:BW93,"<="&$BW60,BW59:BW93,">="&$BW60-1)*$J$21/3600),1),IFERROR((SUMIFS(CA59:CA93,BW59:BW93,"<="&$BW60,BW59:BW93,">="&$BW60-2)/1000)/( $J$22*SUMIFS(BX59:BX93,BW59:BW93,"<="&$BW60,BW59:BW93,">="&$BW60-2)*$J$21/3600),1),IFERROR((SUMIFS(CA59:CA93,BW59:BW93,"<="&$BW60,BW59:BW93,">="&$BW60-3)/1000)/( $J$22*SUMIFS(BX59:BX93,BW59:BW93,"<="&$BW60,BW59:BW93,">="&$BW60-3)*$J$21/3600),1)) ) -> 1 | CU60: =IF($CA60="","", IF(ABS(CV60)<0.02,"CS based on 2% battery energy","CD")) ->  | CV60: =IF(CA60="",1, MIN($CA60/SUM($CA59:$CA60),SUMIFS(CA59:CA93,BW59:BW93,">="&$BW60-1,BW59:BW93,"<="&$BW60)/SUM($CA59:$CA60),SUMIFS(CA59:CA93,BW59:BW93,">="&$BW60-2,BW59:BW93,"<="&$BW60)/SUM($CA59:$CA60),SUMIFS(CA59:CA93,BW59:BW93,">="&$BW60-3,BW59:BW93,"<="&$BW60)/SUM($CA59:$CA60)) ) -> 1
C61: Comb Unrd Adj FE - Conventional Fuel | F61: =astm(1/(0.55/(IF($N$7+$N$55+$N$103=0, ((N12<>0)+(N60<>0)+(N108<>0))/(IFERROR(1/N12,0)+IFERROR(1/N60,0)+IFERROR(1/N108,0)), ($N$7+$N$55+$N$103) / (IFERROR($N$7/N12,0)+IFERROR($N$55/N60,0)+IFERROR($N$103/N108,0)) ))+0.45/(IF($N$7+$N$55+$N$103=0, ((O12<>0)+(O60<>0)+(O108<>0))/(IFERROR(1/O12,0)+IFERROR(1/O60,0)+IFERROR(1/O108,0)), ($N$7+$N$55+$N$103) / (IFERROR($N$7/O12,0)+IFERROR($N$55/O60,0)+IFERROR($N$103/O108,0)) ))),4) -> 32.037 | M61: CREE (g/mi): | Q61: 3 | Y61: 3 | AI61: Label Values (5-Cycle Adjusted) | AP61: CD test total DC energy consumed, unadjusted (Watt-hours) [1] | AQ61: =astm(SUM(AZ59:AZ93),1) -> 0 | AR61: =astm(SUM(CA59:CA93),1) -> 0 | AV61: 3 | BA61: =IFERROR(astm( astm($W$94,3)*1000*(AZ61/AQ61),1),"") ->  | BE61: =IFERROR(astm(cityfuf(BB61),3)-astm(cityfuf(BB60),3),"") ->  | BK61: =IFERROR(BI61*7.45+BK60,"") ->  | BL61: =IFERROR(astm(mdiuf(BK61),3)-astm(mdiuf(BK60),3),"") ->  | BO61: =IFERROR(astm(cityfufalt(BK61),3)-astm(cityfufalt(BK60),3),"") ->  | BS61: =IF(AZ61="",1, MIN(IFERROR((AZ61/1000)/((AW61*$J$22)*$J$21/3600),1),IFERROR((SUMIFS(AZ59:AZ93,AV59:AV93,"<="&$AV61,AV59:AV93,">="&$AV61-1)/1000)/( $J$22*SUMIFS(AW59:AW93,AV59:AV93,"<="&$AV61,AV59:AV93,">="&$AV61-1)*$J$21/3600),1),IFERROR((SUMIFS(AZ59:AZ93,AV59:AV93,"<="&$AV61,AV59:AV93,">="&$AV61-2)/1000)/( $J$22*SUMIFS(AW59:AW93,AV59:AV93,"<="&$AV61,AV59:AV93,">="&$AV61-2)*$J$21/3600),1),IFERROR((SUMIFS(AZ59:AZ93,AV59:AV93,"<="&$AV61,AV59:AV93,">="&$AV61-3)/1000)/( $J$22*SUMIFS(AW59:AW93,AV59:AV93,"<="&$AV61,AV59:AV93,">="&$AV61-3)*$J$21/3600),1)) ) -> 1 | BU61: =IF(AZ61="",1, MIN($AZ61/SUM($AZ59:$AZ61),SUMIFS(AZ59:AZ93,AV59:AV93,">="&$AV61-1,AV59:AV93,"<="&$AV61)/SUM($AZ59:$AZ61),SUMIFS(AZ59:AZ93,AV59:AV93,">="&$AV61-2,AV59:AV93,"<="&$AV61)/SUM($AZ59:$AZ61),SUMIFS(AZ59:AZ93,AV59:AV93,">="&$AV61-3,AV59:AV93,"<="&$AV61)/SUM($AZ59:$AZ61)) ) -> 1 | BW61: 3 | CF61: =IFERROR(astm(highwayfuf(CC61)-highwayfuf(CC60),3),"") ->  | CL61: =IFERROR(CJ61*10.3+CL60,"") ->  | CM61: =IFERROR(astm(mdiuf(CL61)-mdiuf(CL60),3),"") ->  | CP61: =IFERROR(astm(highwayfufalt(CL61)-highwayfufalt(CL60),3),"") ->  | CT61: =IF(CA61="",1, MIN(IFERROR((CA61/1000)/((BX61*$J$22)*$J$21/3600),1),IFERROR((SUMIFS(CA59:CA93,BW59:BW93,"<="&$BW61,BW59:BW93,">="&$BW61-1)/1000)/( $J$22*SUMIFS(BX59:BX93,BW59:BW93,"<="&$BW61,BW59:BW93,">="&$BW61-1)*$J$21/3600),1),IFERROR((SUMIFS(CA59:CA93,BW59:BW93,"<="&$BW61,BW59:BW93,">="&$BW61-2)/1000)/( $J$22*SUMIFS(BX59:BX93,BW59:BW93,"<="&$BW61,BW59:BW93,">="&$BW61-2)*$J$21/3600),1),IFERROR((SUMIFS(CA59:CA93,BW59:BW93,"<="&$BW61,BW59:BW93,">="&$BW61-3)/1000)/( $J$22*SUMIFS(BX59:BX93,BW59:BW93,"<="&$BW61,BW59:BW93,">="&$BW61-3)*$J$21/3600),1)) ) -> 1 | CV61: =IF(CA61="",1, MIN($CA61/SUM($CA59:$CA61),SUMIFS(CA59:CA93,BW59:BW93,">="&$BW61-1,BW59:BW93,"<="&$BW61)/SUM($CA59:$CA61),SUMIFS(CA59:CA93,BW59:BW93,">="&$BW61-2,BW59:BW93,"<="&$BW61)/SUM($CA59:$CA61),SUMIFS(CA59:CA93,BW59:BW93,">="&$BW61-3,BW59:BW93,"<="&$BW61)/SUM($CA59:$CA61)) ) -> 1
C62: Charge-sustaining CO2 | F62: g/mi | M62: CO2, Unadjusted (g/mi): | Q62: 4 | Y62: 4 | AI62: Charge-Depleting | AL62: Combined | AO62: NEW | AP62: CD Rcda total fuel consumption (Rcda), unadjusted (gal equiv) [4] | AQ62: =IFERROR(astm(SUMIF(AV59:AV93,"<=" & (AQ82-1),BH59:BH93) + AQ81*SUMIF(AV59:AV93,"=" & (AQ82-1),BH59:BH93),4),0) -> 0 | AR62: =IFERROR(astm(SUMIF(BW59:BW93,"<=" & (AR82-1),CI59:CI93) + AR81*SUMIF(BW59:BW93,"=" & (AR82-1),CI59:CI93),4),0) -> 0 | AV62: 4 | BA62: =IFERROR(astm( astm($W$94,3)*1000*(AZ62/AQ61),1),"") ->  | BE62: =IFERROR(astm(cityfuf(BB62),3)-astm(cityfuf(BB61),3),"") ->  | BL62: =IFERROR(astm(mdiuf(BK62),3)-astm(mdiuf(BK61),3),"") ->  | BO62: =IFERROR(astm(cityfufalt(BK62),3)-astm(cityfufalt(BK61),3),"") ->  | BS62: =IF(AZ62="",1, MIN(IFERROR((AZ62/1000)/((AW62*$J$22)*$J$21/3600),1),IFERROR((SUMIFS(AZ59:AZ93,AV59:AV93,"<="&$AV62,AV59:AV93,">="&$AV62-1)/1000)/( $J$22*SUMIFS(AW59:AW93,AV59:AV93,"<="&$AV62,AV59:AV93,">="&$AV62-1)*$J$21/3600),1),IFERROR((SUMIFS(AZ59:AZ93,AV59:AV93,"<="&$AV62,AV59:AV93,">="&$AV62-2)/1000)/( $J$22*SUMIFS(AW59:AW93,AV59:AV93,"<="&$AV62,AV59:AV93,">="&$AV62-2)*$J$21/3600),1),IFERROR((SUMIFS(AZ59:AZ93,AV59:AV93,"<="&$AV62,AV59:AV93,">="&$AV62-3)/1000)/( $J$22*SUMIFS(AW59:AW93,AV59:AV93,"<="&$AV62,AV59:AV93,">="&$AV62-3)*$J$21/3600),1)) ) -> 1 | BU62: =IF(AZ62="",1, MIN($AZ62/SUM($AZ59:$AZ62),SUMIFS(AZ59:AZ93,AV59:AV93,">="&$AV62-1,AV59:AV93,"<="&$AV62)/SUM($AZ59:$AZ62),SUMIFS(AZ59:AZ93,AV59:AV93,">="&$AV62-2,AV59:AV93,"<="&$AV62)/SUM($AZ59:$AZ62),SUMIFS(AZ59:AZ93,AV59:AV93,">="&$AV62-3,AV59:AV93,"<="&$AV62)/SUM($AZ59:$AZ62)) ) -> 1 | BW62: 4 | CF62: =IFERROR(astm(highwayfuf(CC62)-highwayfuf(CC61),3),"") ->  | CM62: =IFERROR(astm(mdiuf(CL62)-mdiuf(CL61),3),"") ->  | CP62: =IFERROR(astm(highwayfufalt(CL62)-highwayfufalt(CL61),3),"") ->  | CT62: =IF(CA62="",1, MIN(IFERROR((CA62/1000)/((BX62*$J$22)*$J$21/3600),1),IFERROR((SUMIFS(CA59:CA93,BW59:BW93,"<="&$BW62,BW59:BW93,">="&$BW62-1)/1000)/( $J$22*SUMIFS(BX59:BX93,BW59:BW93,"<="&$BW62,BW59:BW93,">="&$BW62-1)*$J$21/3600),1),IFERROR((SUMIFS(CA59:CA93,BW59:BW93,"<="&$BW62,BW59:BW93,">="&$BW62-2)/1000)/( $J$22*SUMIFS(BX59:BX93,BW59:BW93,"<="&$BW62,BW59:BW93,">="&$BW62-2)*$J$21/3600),1),IFERROR((SUMIFS(CA59:CA93,BW59:BW93,"<="&$BW62,BW59:BW93,">="&$BW62-3)/1000)/( $J$22*SUMIFS(BX59:BX93,BW59:BW93,"<="&$BW62,BW59:BW93,">="&$BW62-3)*$J$21/3600),1)) ) -> 1 | CV62: =IF(CA62="",1, MIN($CA62/SUM($CA59:$CA62),SUMIFS(CA59:CA93,BW59:BW93,">="&$BW62-1,BW59:BW93,"<="&$BW62)/SUM($CA59:$CA62),SUMIFS(CA59:CA93,BW59:BW93,">="&$BW62-2,BW59:BW93,"<="&$BW62)/SUM($CA59:$CA62),SUMIFS(CA59:CA93,BW59:BW93,">="&$BW62-3,BW59:BW93,"<="&$BW62)/SUM($CA59:$CA62)) ) -> 1
C63: City CO2 Rounded Adjusted | F63: =astm(IF($N$7+$N$55+$N$103=0, (N15+N63+N111)/ ((N15<>0)+(N63<>0)+(N111<>0)), (IFERROR($N$7*N15,0)+IFERROR($N$55*N63,0)+IFERROR($N$103*N111,0)) / ($N$7+$N$55+$N$103) ),0) -> 293 | M63: CO2, Adjusted (g/mi): | Q63: 5 | Y63: 5 | AI63: CD range, adjusted (miles) [0] | AL63: =IFERROR(astm(0.55*AQ55+0.45*AR55,0),0) -> 0 | AP63: CD utilitized total fuel consumption rate (55/45 FUF, Rcdc), unadjusted (gal-equiv/mile) [6] | AQ63: =astm(SUMIF(AV59:AV93,"<=" & (AQ82),BG59:BG93)*1000000,0)/1000000 -> 0 | AR63: =astm(SUMIF(BW59:BW93,"<=" & (AR82),CH59:CH93)*1000000,0)/1000000 -> 0 | AV63: 5 | BA63: =IFERROR(astm( astm($W$94,3)*1000*(AZ63/AQ61),1),"") ->  | BE63: =IFERROR(astm(cityfuf(BB63),3)-astm(cityfuf(BB62),3),"") ->  | BL63: =IFERROR(astm(mdiuf(BK63),3)-astm(mdiuf(BK62),3),"") ->  | BO63: =IFERROR(astm(cityfufalt(BK63),3)-astm(cityfufalt(BK62),3),"") ->  | BS63: =IF(AZ63="",1, MIN(IFERROR((AZ63/1000)/((AW63*$J$22)*$J$21/3600),1),IFERROR((SUMIFS(AZ59:AZ93,AV59:AV93,"<="&$AV63,AV59:AV93,">="&$AV63-1)/1000)/( $J$22*SUMIFS(AW59:AW93,AV59:AV93,"<="&$AV63,AV59:AV93,">="&$AV63-1)*$J$21/3600),1),IFERROR((SUMIFS(AZ59:AZ93,AV59:AV93,"<="&$AV63,AV59:AV93,">="&$AV63-2)/1000)/( $J$22*SUMIFS(AW59:AW93,AV59:AV93,"<="&$AV63,AV59:AV93,">="&$AV63-2)*$J$21/3600),1),IFERROR((SUMIFS(AZ59:AZ93,AV59:AV93,"<="&$AV63,AV59:AV93,">="&$AV63-3)/1000)/( $J$22*SUMIFS(AW59:AW93,AV59:AV93,"<="&$AV63,AV59:AV93,">="&$AV63-3)*$J$21/3600),1)) ) -> 1 | BU63: =IF(AZ63="",1, MIN($AZ63/SUM($AZ59:$AZ63),SUMIFS(AZ59:AZ93,AV59:AV93,">="&$AV63-1,AV59:AV93,"<="&$AV63)/SUM($AZ59:$AZ63),SUMIFS(AZ59:AZ93,AV59:AV93,">="&$AV63-2,AV59:AV93,"<="&$AV63)/SUM($AZ59:$AZ63),SUMIFS(AZ59:AZ93,AV59:AV93,">="&$AV63-3,AV59:AV93,"<="&$AV63)/SUM($AZ59:$AZ63)) ) -> 1 | BW63: 5 | CF63: =IFERROR(astm(highwayfuf(CC63)-highwayfuf(CC62),3),"") ->  | CM63: =IFERROR(astm(mdiuf(CL63)-mdiuf(CL62),3),"") ->  | CP63: =IFERROR(astm(highwayfufalt(CL63)-highwayfufalt(CL62),3),"") ->  | CT63: =IF(CA63="",1, MIN(IFERROR((CA63/1000)/((BX63*$J$22)*$J$21/3600),1),IFERROR((SUMIFS(CA59:CA93,BW59:BW93,"<="&$BW63,BW59:BW93,">="&$BW63-1)/1000)/( $J$22*SUMIFS(BX59:BX93,BW59:BW93,"<="&$BW63,BW59:BW93,">="&$BW63-1)*$J$21/3600),1),IFERROR((SUMIFS(CA59:CA93,BW59:BW93,"<="&$BW63,BW59:BW93,">="&$BW63-2)/1000)/( $J$22*SUMIFS(BX59:BX93,BW59:BW93,"<="&$BW63,BW59:BW93,">="&$BW63-2)*$J$21/3600),1),IFERROR((SUMIFS(CA59:CA93,BW59:BW93,"<="&$BW63,BW59:BW93,">="&$BW63-3)/1000)/( $J$22*SUMIFS(BX59:BX93,BW59:BW93,"<="&$BW63,BW59:BW93,">="&$BW63-3)*$J$21/3600),1)) ) -> 1 | CV63: =IF(CA63="",1, MIN($CA63/SUM($CA59:$CA63),SUMIFS(CA59:CA93,BW59:BW93,">="&$BW63-1,BW59:BW93,"<="&$BW63)/SUM($CA59:$CA63),SUMIFS(CA59:CA93,BW59:BW93,">="&$BW63-2,BW59:BW93,"<="&$BW63)/SUM($CA59:$CA63),SUMIFS(CA59:CA93,BW59:BW93,">="&$BW63-3,BW59:BW93,"<="&$BW63)/SUM($CA59:$CA63)) ) -> 1
C64: Hwy CO2 Rounded Adjusted | F64: =astm(IF($N$7+$N$55+$N$103=0, (O15+O63+O111)/ ((O15<>0)+(O63<>0)+(O111<>0)), (IFERROR($N$7*O15,0)+IFERROR($N$55*O63,0)+IFERROR($N$103*O111,0)) / ($N$7+$N$55+$N$103) ),0) -> 258 | Q64: 6 | Y64: 6 | AI64: CD All-Electric Range, adjusted (mi) [0] | AL64: =IFERROR(astm(0.55*AQ57+0.45*AR57,0),0) -> 0 | AO64: NEW | AP64: CD utilitized total fuel consumption rate (43/57 FUF, Rcdc), adjusted (gal-equiv/mile) [6] | AQ64: =astm( 1000000*SUMIF(AV59:AV93,"<=" & (AQ82),BP59:BP93), 0) / 1000000 -> 0 | AR64: =astm( 1000000*SUMIF(BW59:BW93,"<=" & (AR82),CQ59:CQ93), 0) / 1000000 -> 0 | AV64: 6 | BA64: =IFERROR(astm( astm($W$94,3)*1000*(AZ64/AQ61),1),"") ->  | BE64: =IFERROR(astm(cityfuf(BB64),3)-astm(cityfuf(BB63),3),"") ->  | BL64: =IFERROR(astm(mdiuf(BK64),3)-astm(mdiuf(BK63),3),"") ->  | BO64: =IFERROR(astm(cityfufalt(BK64),3)-astm(cityfufalt(BK63),3),"") ->  | BS64: =IF(AZ64="",1, MIN(IFERROR((AZ64/1000)/((AW64*$J$22)*$J$21/3600),1),IFERROR((SUMIFS(AZ59:AZ93,AV59:AV93,"<="&$AV64,AV59:AV93,">="&$AV64-1)/1000)/( $J$22*SUMIFS(AW59:AW93,AV59:AV93,"<="&$AV64,AV59:AV93,">="&$AV64-1)*$J$21/3600),1),IFERROR((SUMIFS(AZ59:AZ93,AV59:AV93,"<="&$AV64,AV59:AV93,">="&$AV64-2)/1000)/( $J$22*SUMIFS(AW59:AW93,AV59:AV93,"<="&$AV64,AV59:AV93,">="&$AV64-2)*$J$21/3600),1),IFERROR((SUMIFS(AZ59:AZ93,AV59:AV93,"<="&$AV64,AV59:AV93,">="&$AV64-3)/1000)/( $J$22*SUMIFS(AW59:AW93,AV59:AV93,"<="&$AV64,AV59:AV93,">="&$AV64-3)*$J$21/3600),1)) ) -> 1 | BU64: =IF(AZ64="",1, MIN($AZ64/SUM($AZ59:$AZ64),SUMIFS(AZ59:AZ93,AV59:AV93,">="&$AV64-1,AV59:AV93,"<="&$AV64)/SUM($AZ59:$AZ64),SUMIFS(AZ59:AZ93,AV59:AV93,">="&$AV64-2,AV59:AV93,"<="&$AV64)/SUM($AZ59:$AZ64),SUMIFS(AZ59:AZ93,AV59:AV93,">="&$AV64-3,AV59:AV93,"<="&$AV64)/SUM($AZ59:$AZ64)) ) -> 1 | BW64: 6 | CF64: =IFERROR(astm(highwayfuf(CC64)-highwayfuf(CC63),3),"") ->  | CM64: =IFERROR(astm(mdiuf(CL64)-mdiuf(CL63),3),"") ->  | CP64: =IFERROR(astm(highwayfufalt(CL64)-highwayfufalt(CL63),3),"") ->  | CT64: =IF(CA64="",1, MIN(IFERROR((CA64/1000)/((BX64*$J$22)*$J$21/3600),1),IFERROR((SUMIFS(CA59:CA93,BW59:BW93,"<="&$BW64,BW59:BW93,">="&$BW64-1)/1000)/( $J$22*SUMIFS(BX59:BX93,BW59:BW93,"<="&$BW64,BW59:BW93,">="&$BW64-1)*$J$21/3600),1),IFERROR((SUMIFS(CA59:CA93,BW59:BW93,"<="&$BW64,BW59:BW93,">="&$BW64-2)/1000)/( $J$22*SUMIFS(BX59:BX93,BW59:BW93,"<="&$BW64,BW59:BW93,">="&$BW64-2)*$J$21/3600),1),IFERROR((SUMIFS(CA59:CA93,BW59:BW93,"<="&$BW64,BW59:BW93,">="&$BW64-3)/1000)/( $J$22*SUMIFS(BX59:BX93,BW59:BW93,"<="&$BW64,BW59:BW93,">="&$BW64-3)*$J$21/3600),1)) ) -> 1 | CV64: =IF(CA64="",1, MIN($CA64/SUM($CA59:$CA64),SUMIFS(CA59:CA93,BW59:BW93,">="&$BW64-1,BW59:BW93,"<="&$BW64)/SUM($CA59:$CA64),SUMIFS(CA59:CA93,BW59:BW93,">="&$BW64-2,BW59:BW93,"<="&$BW64)/SUM($CA59:$CA64),SUMIFS(CA59:CA93,BW59:BW93,">="&$BW64-3,BW59:BW93,"<="&$BW64)/SUM($CA59:$CA64)) ) -> 1
C65: Comb CO2 Rounded Adjusted | F65: =astm(0.55*(IF($N$7+$N$55+$N$103=0, (N15+N63+N111)/ ((N15<>0)+(N63<>0)+(N111<>0)), (IFERROR($N$7*N15,0)+IFERROR($N$55*N63,0)+IFERROR($N$103*N111,0)) / ($N$7+$N$55+$N$103) ))+0.45*(IF($N$7+$N$55+$N$103=0, (O15+O63+O111)/ ((O15<>0)+(O63<>0)+(O111<>0)), (IFERROR($N$7*O15,0)+IFERROR($N$55*O63,0)+IFERROR($N$103*O111,0)) / ($N$7+$N$55+$N$103) )),0) -> 277 | Q65: 7 | Y65: 7 | AI65: Total Driving Range (Miles) [0] | AL65: =IFERROR(astm( IFERROR((astm(0.55*AQ86+0.45*AR86,0)+AL63),0) / 10,0) *10,0) -> 0 | AO65: NEW | AP65: CD utilitized total fuel consumption rate (MDIUF, Rcdc), adjusted (gal-equiv/mile) [6] | AQ65: =astm(SUMIF(AV59:AV93,"<=" & (AQ82),BN59:BN93)*1000000,0) / 1000000 -> 0 | AR65: =astm(SUMIF(BW59:BW93,"<=" & (AR82),CO59:CO93)*1000000,0) / 1000000 -> 0 | AV65: 7 | BA65: =IFERROR(astm( astm($W$94,3)*1000*(AZ65/AQ61),1),"") ->  | BE65: =IFERROR(astm(cityfuf(BB65),3)-astm(cityfuf(BB64),3),"") ->  | BL65: =IFERROR(astm(mdiuf(BK65),3)-astm(mdiuf(BK64),3),"") ->  | BO65: =IFERROR(astm(cityfufalt(BK65),3)-astm(cityfufalt(BK64),3),"") ->  | BS65: =IF(AZ65="",1, MIN(IFERROR((AZ65/1000)/((AW65*$J$22)*$J$21/3600),1),IFERROR((SUMIFS(AZ59:AZ93,AV59:AV93,"<="&$AV65,AV59:AV93,">="&$AV65-1)/1000)/( $J$22*SUMIFS(AW59:AW93,AV59:AV93,"<="&$AV65,AV59:AV93,">="&$AV65-1)*$J$21/3600),1),IFERROR((SUMIFS(AZ59:AZ93,AV59:AV93,"<="&$AV65,AV59:AV93,">="&$AV65-2)/1000)/( $J$22*SUMIFS(AW59:AW93,AV59:AV93,"<="&$AV65,AV59:AV93,">="&$AV65-2)*$J$21/3600),1),IFERROR((SUMIFS(AZ59:AZ93,AV59:AV93,"<="&$AV65,AV59:AV93,">="&$AV65-3)/1000)/( $J$22*SUMIFS(AW59:AW93,AV59:AV93,"<="&$AV65,AV59:AV93,">="&$AV65-3)*$J$21/3600),1)) ) -> 1 | BU65: =IF(AZ65="",1, MIN($AZ65/SUM($AZ59:$AZ65),SUMIFS(AZ59:AZ93,AV59:AV93,">="&$AV65-1,AV59:AV93,"<="&$AV65)/SUM($AZ59:$AZ65),SUMIFS(AZ59:AZ93,AV59:AV93,">="&$AV65-2,AV59:AV93,"<="&$AV65)/SUM($AZ59:$AZ65),SUMIFS(AZ59:AZ93,AV59:AV93,">="&$AV65-3,AV59:AV93,"<="&$AV65)/SUM($AZ59:$AZ65)) ) -> 1 | BW65: 7 | CF65: =IFERROR(astm(highwayfuf(CC65)-highwayfuf(CC64),3),"") ->  | CM65: =IFERROR(astm(mdiuf(CL65)-mdiuf(CL64),3),"") ->  | CP65: =IFERROR(astm(highwayfufalt(CL65)-highwayfufalt(CL64),3),"") ->  | CT65: =IF(CA65="",1, MIN(IFERROR((CA65/1000)/((BX65*$J$22)*$J$21/3600),1),IFERROR((SUMIFS(CA59:CA93,BW59:BW93,"<="&$BW65,BW59:BW93,">="&$BW65-1)/1000)/( $J$22*SUMIFS(BX59:BX93,BW59:BW93,"<="&$BW65,BW59:BW93,">="&$BW65-1)*$J$21/3600),1),IFERROR((SUMIFS(CA59:CA93,BW59:BW93,"<="&$BW65,BW59:BW93,">="&$BW65-2)/1000)/( $J$22*SUMIFS(BX59:BX93,BW59:BW93,"<="&$BW65,BW59:BW93,">="&$BW65-2)*$J$21/3600),1),IFERROR((SUMIFS(CA59:CA93,BW59:BW93,"<="&$BW65,BW59:BW93,">="&$BW65-3)/1000)/( $J$22*SUMIFS(BX59:BX93,BW59:BW93,"<="&$BW65,BW59:BW93,">="&$BW65-3)*$J$21/3600),1)) ) -> 1 | CV65: =IF(CA65="",1, MIN($CA65/SUM($CA59:$CA65),SUMIFS(CA59:CA93,BW59:BW93,">="&$BW65-1,BW59:BW93,"<="&$BW65)/SUM($CA59:$CA65),SUMIFS(CA59:CA93,BW59:BW93,">="&$BW65-2,BW59:BW93,"<="&$BW65)/SUM($CA59:$CA65),SUMIFS(CA59:CA93,BW59:BW93,">="&$BW65-3,BW59:BW93,"<="&$BW65)/SUM($CA59:$CA65)) ) -> 1
C66: *City CO2 Unadj | F66: =astm(IF($N$7+$N$55+$N$103=0, (N14+N62+N110)/ ((N14<>0)+(N62<>0)+(N110<>0)), (IFERROR($N$7*N14,0)+IFERROR($N$55*N62,0)+IFERROR($N$103*N110,0)) / ($N$7+$N$55+$N$103) ),1) -> 233 | Q66: 8 | Y66: 8 | AI66: CD Fuel Economy (MPGe) [0] | AL66: =IFERROR(astm(1/(0.55/AQ67+0.45/AR67),0),0) -> 0 | AP66: CD gasoline consumption (Rcda), adjusted (gal) [1] | AQ66: =IFERROR(SUMIF(AV59:AV93,"<=" & AQ82-1,AW59:AW93)+AQ81*SUMIF(AV59:AV93,"=" & AQ82-1,AW59:AW93),0) -> 0 | AR66: =IFERROR(SUMIF(BW59:BW93,"<=" & AR82-1,BX59:BX93)+AR81*SUMIF(BW59:BW93,"=" & AR82-1,BX59:BX93),0) -> 0 | AV66: 8 | BA66: =IFERROR(astm( astm($W$94,3)*1000*(AZ66/AQ61),1),"") ->  | BE66: =IFERROR(astm(cityfuf(BB66),3)-astm(cityfuf(BB65),3),"") ->  | BL66: =IFERROR(astm(mdiuf(BK66),3)-astm(mdiuf(BK65),3),"") ->  | BO66: =IFERROR(astm(cityfufalt(BK66),3)-astm(cityfufalt(BK65),3),"") ->  | BS66: =IF(AZ66="",1, MIN(IFERROR((AZ66/1000)/((AW66*$J$22)*$J$21/3600),1),IFERROR((SUMIFS(AZ59:AZ93,AV59:AV93,"<="&$AV66,AV59:AV93,">="&$AV66-1)/1000)/( $J$22*SUMIFS(AW59:AW93,AV59:AV93,"<="&$AV66,AV59:AV93,">="&$AV66-1)*$J$21/3600),1),IFERROR((SUMIFS(AZ59:AZ93,AV59:AV93,"<="&$AV66,AV59:AV93,">="&$AV66-2)/1000)/( $J$22*SUMIFS(AW59:AW93,AV59:AV93,"<="&$AV66,AV59:AV93,">="&$AV66-2)*$J$21/3600),1),IFERROR((SUMIFS(AZ59:AZ93,AV59:AV93,"<="&$AV66,AV59:AV93,">="&$AV66-3)/1000)/( $J$22*SUMIFS(AW59:AW93,AV59:AV93,"<="&$AV66,AV59:AV93,">="&$AV66-3)*$J$21/3600),1)) ) -> 1 | BU66: =IF(AZ66="",1, MIN($AZ66/SUM($AZ59:$AZ66),SUMIFS(AZ59:AZ93,AV59:AV93,">="&$AV66-1,AV59:AV93,"<="&$AV66)/SUM($AZ59:$AZ66),SUMIFS(AZ59:AZ93,AV59:AV93,">="&$AV66-2,AV59:AV93,"<="&$AV66)/SUM($AZ59:$AZ66),SUMIFS(AZ59:AZ93,AV59:AV93,">="&$AV66-3,AV59:AV93,"<="&$AV66)/SUM($AZ59:$AZ66)) ) -> 1 | BW66: 8 | CF66: =IFERROR(astm(highwayfuf(CC66)-highwayfuf(CC65),3),"") ->  | CM66: =IFERROR(astm(mdiuf(CL66)-mdiuf(CL65),3),"") ->  | CP66: =IFERROR(astm(highwayfufalt(CL66)-highwayfufalt(CL65),3),"") ->  | CT66: =IF(CA66="",1, MIN(IFERROR((CA66/1000)/((BX66*$J$22)*$J$21/3600),1),IFERROR((SUMIFS(CA59:CA93,BW59:BW93,"<="&$BW66,BW59:BW93,">="&$BW66-1)/1000)/( $J$22*SUMIFS(BX59:BX93,BW59:BW93,"<="&$BW66,BW59:BW93,">="&$BW66-1)*$J$21/3600),1),IFERROR((SUMIFS(CA59:CA93,BW59:BW93,"<="&$BW66,BW59:BW93,">="&$BW66-2)/1000)/( $J$22*SUMIFS(BX59:BX93,BW59:BW93,"<="&$BW66,BW59:BW93,">="&$BW66-2)*$J$21/3600),1),IFERROR((SUMIFS(CA59:CA93,BW59:BW93,"<="&$BW66,BW59:BW93,">="&$BW66-3)/1000)/( $J$22*SUMIFS(BX59:BX93,BW59:BW93,"<="&$BW66,BW59:BW93,">="&$BW66-3)*$J$21/3600),1)) ) -> 1 | CV66: =IF(CA66="",1, MIN($CA66/SUM($CA59:$CA66),SUMIFS(CA59:CA93,BW59:BW93,">="&$BW66-1,BW59:BW93,"<="&$BW66)/SUM($CA59:$CA66),SUMIFS(CA59:CA93,BW59:BW93,">="&$BW66-2,BW59:BW93,"<="&$BW66)/SUM($CA59:$CA66),SUMIFS(CA59:CA93,BW59:BW93,">="&$BW66-3,BW59:BW93,"<="&$BW66)/SUM($CA59:$CA66)) ) -> 1
C67: *Hwy CO2 Unadj | F67: =astm(IF($N$7+$N$55+$N$103=0, (O14+O62+O110)/ ((O14<>0)+(O62<>0)+(O110<>0)), (IFERROR($N$7*O14,0)+IFERROR($N$55*O62,0)+IFERROR($N$103*O110,0)) / ($N$7+$N$55+$N$103) ),1) -> 192 | Q67: 9 | Y67: 9 | AI67: CD Electricity Consumption (kW-hr/100mi) [0] | AL67: =IFERROR(astm(0.55*AQ60+0.45*AR60,0),0) -> 0 | AP67: CD fuel economy (Rcda), adjusted (MPGe) [4] | AQ67: =IFERROR(astm( AQ55/ ( SUMIF(AV59:AV93,"<=" & (AQ82-1),BH59:BH93) + AQ81*SUMIF(AV59:AV93,"=" & (AQ82-1),BH59:BH93) ),4),0) -> 0 | AR67: =IFERROR(astm( AR55/ ( SUMIF(BW59:BW93,"<=" & (AR82-1),CI59:CI93) + AR81*SUMIF(BW59:BW93,"=" & (AR82-1),CI59:CI93) ),4),0) -> 0 | AV67: 9 | BA67: =IFERROR(astm( astm($W$94,3)*1000*(AZ67/AQ61),1),"") ->  | BE67: =IFERROR(astm(cityfuf(BB67),3)-astm(cityfuf(BB66),3),"") ->  | BL67: =IFERROR(astm(mdiuf(BK67),3)-astm(mdiuf(BK66),3),"") ->  | BO67: =IFERROR(astm(cityfufalt(BK67),3)-astm(cityfufalt(BK66),3),"") ->  | BS67: =IF(AZ67="",1, MIN(IFERROR((AZ67/1000)/((AW67*$J$22)*$J$21/3600),1),IFERROR((SUMIFS(AZ59:AZ93,AV59:AV93,"<="&$AV67,AV59:AV93,">="&$AV67-1)/1000)/( $J$22*SUMIFS(AW59:AW93,AV59:AV93,"<="&$AV67,AV59:AV93,">="&$AV67-1)*$J$21/3600),1),IFERROR((SUMIFS(AZ59:AZ93,AV59:AV93,"<="&$AV67,AV59:AV93,">="&$AV67-2)/1000)/( $J$22*SUMIFS(AW59:AW93,AV59:AV93,"<="&$AV67,AV59:AV93,">="&$AV67-2)*$J$21/3600),1),IFERROR((SUMIFS(AZ59:AZ93,AV59:AV93,"<="&$AV67,AV59:AV93,">="&$AV67-3)/1000)/( $J$22*SUMIFS(AW59:AW93,AV59:AV93,"<="&$AV67,AV59:AV93,">="&$AV67-3)*$J$21/3600),1)) ) -> 1 | BU67: =IF(AZ67="",1, MIN($AZ67/SUM($AZ59:$AZ67),SUMIFS(AZ59:AZ93,AV59:AV93,">="&$AV67-1,AV59:AV93,"<="&$AV67)/SUM($AZ59:$AZ67),SUMIFS(AZ59:AZ93,AV59:AV93,">="&$AV67-2,AV59:AV93,"<="&$AV67)/SUM($AZ59:$AZ67),SUMIFS(AZ59:AZ93,AV59:AV93,">="&$AV67-3,AV59:AV93,"<="&$AV67)/SUM($AZ59:$AZ67)) ) -> 1 | BW67: 9 | CF67: =IFERROR(astm(highwayfuf(CC67)-highwayfuf(CC66),3),"") ->  | CM67: =IFERROR(astm(mdiuf(CL67)-mdiuf(CL66),3),"") ->  | CP67: =IFERROR(astm(highwayfufalt(CL67)-highwayfufalt(CL66),3),"") ->  | CT67: =IF(CA67="",1, MIN(IFERROR((CA67/1000)/((BX67*$J$22)*$J$21/3600),1),IFERROR((SUMIFS(CA59:CA93,BW59:BW93,"<="&$BW67,BW59:BW93,">="&$BW67-1)/1000)/( $J$22*SUMIFS(BX59:BX93,BW59:BW93,"<="&$BW67,BW59:BW93,">="&$BW67-1)*$J$21/3600),1),IFERROR((SUMIFS(CA59:CA93,BW59:BW93,"<="&$BW67,BW59:BW93,">="&$BW67-2)/1000)/( $J$22*SUMIFS(BX59:BX93,BW59:BW93,"<="&$BW67,BW59:BW93,">="&$BW67-2)*$J$21/3600),1),IFERROR((SUMIFS(CA59:CA93,BW59:BW93,"<="&$BW67,BW59:BW93,">="&$BW67-3)/1000)/( $J$22*SUMIFS(BX59:BX93,BW59:BW93,"<="&$BW67,BW59:BW93,">="&$BW67-3)*$J$21/3600),1)) ) -> 1 | CV67: =IF(CA67="",1, MIN($CA67/SUM($CA59:$CA67),SUMIFS(CA59:CA93,BW59:BW93,">="&$BW67-1,BW59:BW93,"<="&$BW67)/SUM($CA59:$CA67),SUMIFS(CA59:CA93,BW59:BW93,">="&$BW67-2,BW59:BW93,"<="&$BW67)/SUM($CA59:$CA67),SUMIFS(CA59:CA93,BW59:BW93,">="&$BW67-3,BW59:BW93,"<="&$BW67)/SUM($CA59:$CA67)) ) -> 1
C68: *Comb CO2 Unadj | F68: =astm(0.55*(IF($N$7+$N$55+$N$103=0, (N14+N62+N110)/ ((N14<>0)+(N62<>0)+(N110<>0)), (IFERROR($N$7*N14,0)+IFERROR($N$55*N62,0)+IFERROR($N$103*N110,0)) / ($N$7+$N$55+$N$103) ))+0.45*(IF($N$7+$N$55+$N$103=0, (O14+O62+O110)/ ((O14<>0)+(O62<>0)+(O110<>0)), (IFERROR($N$7*O14,0)+IFERROR($N$55*O62,0)+IFERROR($N$103*O110,0)) / ($N$7+$N$55+$N$103) )),1) -> 214.6 | Q68: 10 | Y68: 10 | AI68: CD Gasoline Consumption (gal/100mi) [0] | AL68: =IFERROR(astm(0.55*AQ68+0.45*AR68,1),0) -> 0 | AP68: CD gasoline consumption rate (Rcda), adjusted (gal/100mi) [4] | AQ68: =IFERROR(astm(100*(SUMIF(AV59:AV93,"<=" & AQ82-1,AW59:AW93)+AQ81*SUMIF(AV59:AV93,"=" & AQ82-1,AW59:AW93))/AQ55,4),0) -> 0 | AR68: =IFERROR(astm(100*(SUMIF(BW59:BW93,"<=" & AR82-1,BX59:BX93)+AR81*SUMIF(BW59:BW93,"=" & AR82-1,BX59:BX93))/AR55,4),0) -> 0 | AV68: 10 | BA68: =IFERROR(astm( astm($W$94,3)*1000*(AZ68/AQ61),1),"") ->  | BE68: =IFERROR(astm(cityfuf(BB68),3)-astm(cityfuf(BB67),3),"") ->  | BL68: =IFERROR(astm(mdiuf(BK68),3)-astm(mdiuf(BK67),3),"") ->  | BO68: =IFERROR(astm(cityfufalt(BK68),3)-astm(cityfufalt(BK67),3),"") ->  | BS68: =IF(AZ68="",1, MIN(IFERROR((AZ68/1000)/((AW68*$J$22)*$J$21/3600),1),IFERROR((SUMIFS(AZ59:AZ93,AV59:AV93,"<="&$AV68,AV59:AV93,">="&$AV68-1)/1000)/( $J$22*SUMIFS(AW59:AW93,AV59:AV93,"<="&$AV68,AV59:AV93,">="&$AV68-1)*$J$21/3600),1),IFERROR((SUMIFS(AZ59:AZ93,AV59:AV93,"<="&$AV68,AV59:AV93,">="&$AV68-2)/1000)/( $J$22*SUMIFS(AW59:AW93,AV59:AV93,"<="&$AV68,AV59:AV93,">="&$AV68-2)*$J$21/3600),1),IFERROR((SUMIFS(AZ59:AZ93,AV59:AV93,"<="&$AV68,AV59:AV93,">="&$AV68-3)/1000)/( $J$22*SUMIFS(AW59:AW93,AV59:AV93,"<="&$AV68,AV59:AV93,">="&$AV68-3)*$J$21/3600),1)) ) -> 1 | BU68: =IF(AZ68="",1, MIN($AZ68/SUM($AZ59:$AZ68),SUMIFS(AZ59:AZ93,AV59:AV93,">="&$AV68-1,AV59:AV93,"<="&$AV68)/SUM($AZ59:$AZ68),SUMIFS(AZ59:AZ93,AV59:AV93,">="&$AV68-2,AV59:AV93,"<="&$AV68)/SUM($AZ59:$AZ68),SUMIFS(AZ59:AZ93,AV59:AV93,">="&$AV68-3,AV59:AV93,"<="&$AV68)/SUM($AZ59:$AZ68)) ) -> 1 | BW68: 10 | CF68: =IFERROR(astm(highwayfuf(CC68)-highwayfuf(CC67),3),"") ->  | CM68: =IFERROR(astm(mdiuf(CL68)-mdiuf(CL67),3),"") ->  | CP68: =IFERROR(astm(highwayfufalt(CL68)-highwayfufalt(CL67),3),"") ->  | CT68: =IF(CA68="",1, MIN(IFERROR((CA68/1000)/((BX68*$J$22)*$J$21/3600),1),IFERROR((SUMIFS(CA59:CA93,BW59:BW93,"<="&$BW68,BW59:BW93,">="&$BW68-1)/1000)/( $J$22*SUMIFS(BX59:BX93,BW59:BW93,"<="&$BW68,BW59:BW93,">="&$BW68-1)*$J$21/3600),1),IFERROR((SUMIFS(CA59:CA93,BW59:BW93,"<="&$BW68,BW59:BW93,">="&$BW68-2)/1000)/( $J$22*SUMIFS(BX59:BX93,BW59:BW93,"<="&$BW68,BW59:BW93,">="&$BW68-2)*$J$21/3600),1),IFERROR((SUMIFS(CA59:CA93,BW59:BW93,"<="&$BW68,BW59:BW93,">="&$BW68-3)/1000)/( $J$22*SUMIFS(BX59:BX93,BW59:BW93,"<="&$BW68,BW59:BW93,">="&$BW68-3)*$J$21/3600),1)) ) -> 1 | CV68: =IF(CA68="",1, MIN($CA68/SUM($CA59:$CA68),SUMIFS(CA59:CA93,BW59:BW93,">="&$BW68-1,BW59:BW93,"<="&$BW68)/SUM($CA59:$CA68),SUMIFS(CA59:CA93,BW59:BW93,">="&$BW68-2,BW59:BW93,"<="&$BW68)/SUM($CA59:$CA68),SUMIFS(CA59:CA93,BW59:BW93,">="&$BW68-3,BW59:BW93,"<="&$BW68)/SUM($CA59:$CA68)) ) -> 1
C69: *City CO2 Unrd Adj | F69: =astm(IF($N$7+$N$55+$N$103=0, (N15+N63+N111)/ ((N15<>0)+(N63<>0)+(N111<>0)), (IFERROR($N$7*N15,0)+IFERROR($N$55*N63,0)+IFERROR($N$103*N111,0)) / ($N$7+$N$55+$N$103) ),1) -> 293.1 | Q69: 11 | Y69: 11 | AI69: Charge-Sustaining | AL69: Combined | AO69: NEW | AP69: CD fuel economy (Rcda), unadjusted (MPGe) [4] | AQ69: =astm(IFERROR(AQ54/ ( SUMIF(AV59:AV93,"<=" & (AQ82-1),BH59:BH93) + AQ81*SUMIF(AV59:AV93,"=" & (AQ82-1),BH59:BH93) ),0),4) -> 0 | AR69: =astm(IFERROR(AR54/ ( SUMIF(BW59:BW93,"<=" & (AR82-1),CI59:CI93) + AR81*SUMIF(BW59:BW93,"=" & (AR82-1),CI59:CI93) ),0),4) -> 0 | AV69: 11 | BA69: =IFERROR(astm( astm($W$94,3)*1000*(AZ69/AQ61),1),"") ->  | BE69: =IFERROR(astm(cityfuf(BB69),3)-astm(cityfuf(BB68),3),"") ->  | BL69: =IFERROR(astm(mdiuf(BK69),3)-astm(mdiuf(BK68),3),"") ->  | BO69: =IFERROR(astm(cityfufalt(BK69),3)-astm(cityfufalt(BK68),3),"") ->  | BS69: =IF(AZ69="",1, MIN(IFERROR((AZ69/1000)/((AW69*$J$22)*$J$21/3600),1),IFERROR((SUMIFS(AZ59:AZ93,AV59:AV93,"<="&$AV69,AV59:AV93,">="&$AV69-1)/1000)/( $J$22*SUMIFS(AW59:AW93,AV59:AV93,"<="&$AV69,AV59:AV93,">="&$AV69-1)*$J$21/3600),1),IFERROR((SUMIFS(AZ59:AZ93,AV59:AV93,"<="&$AV69,AV59:AV93,">="&$AV69-2)/1000)/( $J$22*SUMIFS(AW59:AW93,AV59:AV93,"<="&$AV69,AV59:AV93,">="&$AV69-2)*$J$21/3600),1),IFERROR((SUMIFS(AZ59:AZ93,AV59:AV93,"<="&$AV69,AV59:AV93,">="&$AV69-3)/1000)/( $J$22*SUMIFS(AW59:AW93,AV59:AV93,"<="&$AV69,AV59:AV93,">="&$AV69-3)*$J$21/3600),1)) ) -> 1 | BU69: =IF(AZ69="",1, MIN($AZ69/SUM($AZ59:$AZ69),SUMIFS(AZ59:AZ93,AV59:AV93,">="&$AV69-1,AV59:AV93,"<="&$AV69)/SUM($AZ59:$AZ69),SUMIFS(AZ59:AZ93,AV59:AV93,">="&$AV69-2,AV59:AV93,"<="&$AV69)/SUM($AZ59:$AZ69),SUMIFS(AZ59:AZ93,AV59:AV93,">="&$AV69-3,AV59:AV93,"<="&$AV69)/SUM($AZ59:$AZ69)) ) -> 1 | BW69: 11 | CF69: =IFERROR(astm(highwayfuf(CC69)-highwayfuf(CC68),3),"") ->  | CM69: =IFERROR(astm(mdiuf(CL69)-mdiuf(CL68),3),"") ->  | CP69: =IFERROR(astm(highwayfufalt(CL69)-highwayfufalt(CL68),3),"") ->  | CT69: =IF(CA69="",1, MIN(IFERROR((CA69/1000)/((BX69*$J$22)*$J$21/3600),1),IFERROR((SUMIFS(CA59:CA93,BW59:BW93,"<="&$BW69,BW59:BW93,">="&$BW69-1)/1000)/( $J$22*SUMIFS(BX59:BX93,BW59:BW93,"<="&$BW69,BW59:BW93,">="&$BW69-1)*$J$21/3600),1),IFERROR((SUMIFS(CA59:CA93,BW59:BW93,"<="&$BW69,BW59:BW93,">="&$BW69-2)/1000)/( $J$22*SUMIFS(BX59:BX93,BW59:BW93,"<="&$BW69,BW59:BW93,">="&$BW69-2)*$J$21/3600),1),IFERROR((SUMIFS(CA59:CA93,BW59:BW93,"<="&$BW69,BW59:BW93,">="&$BW69-3)/1000)/( $J$22*SUMIFS(BX59:BX93,BW59:BW93,"<="&$BW69,BW59:BW93,">="&$BW69-3)*$J$21/3600),1)) ) -> 1 | CV69: =IF(CA69="",1, MIN($CA69/SUM($CA59:$CA69),SUMIFS(CA59:CA93,BW59:BW93,">="&$BW69-1,BW59:BW93,"<="&$BW69)/SUM($CA59:$CA69),SUMIFS(CA59:CA93,BW59:BW93,">="&$BW69-2,BW59:BW93,"<="&$BW69)/SUM($CA59:$CA69),SUMIFS(CA59:CA93,BW59:BW93,">="&$BW69-3,BW59:BW93,"<="&$BW69)/SUM($CA59:$CA69)) ) -> 1
C70: *Hwy CO2 Unrnd Adj | F70: =astm(IF($N$7+$N$55+$N$103=0, (O15+O63+O111)/ ((O15<>0)+(O63<>0)+(O111<>0)), (IFERROR($N$7*O15,0)+IFERROR($N$55*O63,0)+IFERROR($N$103*O111,0)) / ($N$7+$N$55+$N$103) ),1) -> 258.3 | Q70: 12 | Y70: 12 | AI70: CS Fuel Economy (MPG) [0] | AJ70: =IFERROR(astm(N60,4),0) -> 0 | AK70: =IFERROR(astm(O60,4),0) -> 0 | AL70: =IFERROR(astm(1/(0.55/AJ70+0.45/AK70),0),0) -> 0 | AO70: NEW | AP70: CD AC electricity consumption rate (Rcda), unadjusted (kW-hr/100mi) [3] | AQ70: =astm(IFERROR((IFERROR( ( SUMIF(AV59:AV93,"<=" & (AQ82-1),BA59:BA93) + AQ81*SUMIF(AV59:AV93,"=" & (AQ82-1),BA59:BA93) ) / AQ54 *100 / 1000, 0)),0),3) -> 0 | AR70: =astm(IFERROR((IFERROR( ( SUMIF(BW59:BW93,"<=" & (AR82-1),CB59:CB93) + AR81*SUMIF(BW59:BW93,"=" & (AR82-1),CB59:CB93) ) / AR54 *100 / 1000, 0)),0),3) -> 0 | AV70: 12 | BA70: =IFERROR(astm( astm($W$94,3)*1000*(AZ70/AQ61),1),"") ->  | BE70: =IFERROR(astm(cityfuf(BB70),3)-astm(cityfuf(BB69),3),"") ->  | BL70: =IFERROR(astm(mdiuf(BK70),3)-astm(mdiuf(BK69),3),"") ->  | BO70: =IFERROR(astm(cityfufalt(BK70),3)-astm(cityfufalt(BK69),3),"") ->  | BS70: =IF(AZ70="",1, MIN(IFERROR((AZ70/1000)/((AW70*$J$22)*$J$21/3600),1),IFERROR((SUMIFS(AZ59:AZ93,AV59:AV93,"<="&$AV70,AV59:AV93,">="&$AV70-1)/1000)/( $J$22*SUMIFS(AW59:AW93,AV59:AV93,"<="&$AV70,AV59:AV93,">="&$AV70-1)*$J$21/3600),1),IFERROR((SUMIFS(AZ59:AZ93,AV59:AV93,"<="&$AV70,AV59:AV93,">="&$AV70-2)/1000)/( $J$22*SUMIFS(AW59:AW93,AV59:AV93,"<="&$AV70,AV59:AV93,">="&$AV70-2)*$J$21/3600),1),IFERROR((SUMIFS(AZ59:AZ93,AV59:AV93,"<="&$AV70,AV59:AV93,">="&$AV70-3)/1000)/( $J$22*SUMIFS(AW59:AW93,AV59:AV93,"<="&$AV70,AV59:AV93,">="&$AV70-3)*$J$21/3600),1)) ) -> 1 | BU70: =IF(AZ70="",1, MIN($AZ70/SUM($AZ59:$AZ70),SUMIFS(AZ59:AZ93,AV59:AV93,">="&$AV70-1,AV59:AV93,"<="&$AV70)/SUM($AZ59:$AZ70),SUMIFS(AZ59:AZ93,AV59:AV93,">="&$AV70-2,AV59:AV93,"<="&$AV70)/SUM($AZ59:$AZ70),SUMIFS(AZ59:AZ93,AV59:AV93,">="&$AV70-3,AV59:AV93,"<="&$AV70)/SUM($AZ59:$AZ70)) ) -> 1 | BW70: 12 | CF70: =IFERROR(astm(highwayfuf(CC70)-highwayfuf(CC69),3),"") ->  | CM70: =IFERROR(astm(mdiuf(CL70)-mdiuf(CL69),3),"") ->  | CP70: =IFERROR(astm(highwayfufalt(CL70)-highwayfufalt(CL69),3),"") ->  | CT70: =IF(CA70="",1, MIN(IFERROR((CA70/1000)/((BX70*$J$22)*$J$21/3600),1),IFERROR((SUMIFS(CA59:CA93,BW59:BW93,"<="&$BW70,BW59:BW93,">="&$BW70-1)/1000)/( $J$22*SUMIFS(BX59:BX93,BW59:BW93,"<="&$BW70,BW59:BW93,">="&$BW70-1)*$J$21/3600),1),IFERROR((SUMIFS(CA59:CA93,BW59:BW93,"<="&$BW70,BW59:BW93,">="&$BW70-2)/1000)/( $J$22*SUMIFS(BX59:BX93,BW59:BW93,"<="&$BW70,BW59:BW93,">="&$BW70-2)*$J$21/3600),1),IFERROR((SUMIFS(CA59:CA93,BW59:BW93,"<="&$BW70,BW59:BW93,">="&$BW70-3)/1000)/( $J$22*SUMIFS(BX59:BX93,BW59:BW93,"<="&$BW70,BW59:BW93,">="&$BW70-3)*$J$21/3600),1)) ) -> 1 | CV70: =IF(CA70="",1, MIN($CA70/SUM($CA59:$CA70),SUMIFS(CA59:CA93,BW59:BW93,">="&$BW70-1,BW59:BW93,"<="&$BW70)/SUM($CA59:$CA70),SUMIFS(CA59:CA93,BW59:BW93,">="&$BW70-2,BW59:BW93,"<="&$BW70)/SUM($CA59:$CA70),SUMIFS(CA59:CA93,BW59:BW93,">="&$BW70-3,BW59:BW93,"<="&$BW70)/SUM($CA59:$CA70)) ) -> 1
C71: *Comb CO2 Unrnd Adj | F71: =astm(0.55*(IF($N$7+$N$55+$N$103=0, (N15+N63+N111)/ ((N15<>0)+(N63<>0)+(N111<>0)), (IFERROR($N$7*N15,0)+IFERROR($N$55*N63,0)+IFERROR($N$103*N111,0)) / ($N$7+$N$55+$N$103) ))+0.45*(IF($N$7+$N$55+$N$103=0, (O15+O63+O111)/ ((O15<>0)+(O63<>0)+(O111<>0)), (IFERROR($N$7*O15,0)+IFERROR($N$55*O63,0)+IFERROR($N$103*O111,0)) / ($N$7+$N$55+$N$103) )),1) -> 277.4 | Q71: 13 | Y71: 13 | AI71: CS Fuel Consumption (gal/100mi) [1] | AJ71: =IFERROR(astm(100/AJ70,1),0) -> 0 | AK71: =IFERROR(astm(100/AK70,1),0) -> 0 | AL71: =IFERROR(astm(100/AL70,1),0) -> 0 | AP71: GHG EMISSIONS VALUES | AQ71: CITY | AR71: HIGHWAY | AV71: 13 | BA71: =IFERROR(astm( astm($W$94,3)*1000*(AZ71/AQ61),1),"") ->  | BE71: =IFERROR(astm(cityfuf(BB71),3)-astm(cityfuf(BB70),3),"") ->  | BL71: =IFERROR(astm(mdiuf(BK71),3)-astm(mdiuf(BK70),3),"") ->  | BO71: =IFERROR(astm(cityfufalt(BK71),3)-astm(cityfufalt(BK70),3),"") ->  | BS71: =IF(AZ71="",1, MIN(IFERROR((AZ71/1000)/((AW71*$J$22)*$J$21/3600),1),IFERROR((SUMIFS(AZ59:AZ93,AV59:AV93,"<="&$AV71,AV59:AV93,">="&$AV71-1)/1000)/( $J$22*SUMIFS(AW59:AW93,AV59:AV93,"<="&$AV71,AV59:AV93,">="&$AV71-1)*$J$21/3600),1),IFERROR((SUMIFS(AZ59:AZ93,AV59:AV93,"<="&$AV71,AV59:AV93,">="&$AV71-2)/1000)/( $J$22*SUMIFS(AW59:AW93,AV59:AV93,"<="&$AV71,AV59:AV93,">="&$AV71-2)*$J$21/3600),1),IFERROR((SUMIFS(AZ59:AZ93,AV59:AV93,"<="&$AV71,AV59:AV93,">="&$AV71-3)/1000)/( $J$22*SUMIFS(AW59:AW93,AV59:AV93,"<="&$AV71,AV59:AV93,">="&$AV71-3)*$J$21/3600),1)) ) -> 1 | BU71: =IF(AZ71="",1, MIN($AZ71/SUM($AZ59:$AZ71),SUMIFS(AZ59:AZ93,AV59:AV93,">="&$AV71-1,AV59:AV93,"<="&$AV71)/SUM($AZ59:$AZ71),SUMIFS(AZ59:AZ93,AV59:AV93,">="&$AV71-2,AV59:AV93,"<="&$AV71)/SUM($AZ59:$AZ71),SUMIFS(AZ59:AZ93,AV59:AV93,">="&$AV71-3,AV59:AV93,"<="&$AV71)/SUM($AZ59:$AZ71)) ) -> 1 | BW71: 13 | CF71: =IFERROR(astm(highwayfuf(CC71)-highwayfuf(CC70),3),"") ->  | CM71: =IFERROR(astm(mdiuf(CL71)-mdiuf(CL70),3),"") ->  | CP71: =IFERROR(astm(highwayfufalt(CL71)-highwayfufalt(CL70),3),"") ->  | CT71: =IF(CA71="",1, MIN(IFERROR((CA71/1000)/((BX71*$J$22)*$J$21/3600),1),IFERROR((SUMIFS(CA59:CA93,BW59:BW93,"<="&$BW71,BW59:BW93,">="&$BW71-1)/1000)/( $J$22*SUMIFS(BX59:BX93,BW59:BW93,"<="&$BW71,BW59:BW93,">="&$BW71-1)*$J$21/3600),1),IFERROR((SUMIFS(CA59:CA93,BW59:BW93,"<="&$BW71,BW59:BW93,">="&$BW71-2)/1000)/( $J$22*SUMIFS(BX59:BX93,BW59:BW93,"<="&$BW71,BW59:BW93,">="&$BW71-2)*$J$21/3600),1),IFERROR((SUMIFS(CA59:CA93,BW59:BW93,"<="&$BW71,BW59:BW93,">="&$BW71-3)/1000)/( $J$22*SUMIFS(BX59:BX93,BW59:BW93,"<="&$BW71,BW59:BW93,">="&$BW71-3)*$J$21/3600),1)) ) -> 1 | CV71: =IF(CA71="",1, MIN($CA71/SUM($CA59:$CA71),SUMIFS(CA59:CA93,BW59:BW93,">="&$BW71-1,BW59:BW93,"<="&$BW71)/SUM($CA59:$CA71),SUMIFS(CA59:CA93,BW59:BW93,">="&$BW71-2,BW59:BW93,"<="&$BW71)/SUM($CA59:$CA71),SUMIFS(CA59:CA93,BW59:BW93,">="&$BW71-3,BW59:BW93,"<="&$BW71)/SUM($CA59:$CA71)) ) -> 1
C72: Charge-sustaining Driving Range (Adjusted) | Q72: 14 | Y72: 14 | AI72: Composite CD/CS | AL72: Combined | AP72: CD CO2 emissions rate (Rcda), unadjusted (g/mi) [1] | AQ72: =IFERROR(astm((SUMIF(AV59:AV93,"<=" & AQ82-1,AX59:AX93)+AQ81*SUMIF(AV59:AV93,"=" & AQ82-1,AX59:AX93))/AQ54,1),0) -> 0 | AR72: =IFERROR(astm((SUMIF(BW59:BW93,"<=" & AR82-1,BY59:BY93)+AR81*SUMIF(BW59:BW93,"=" & AR82-1,BY59:BY93))/AR54,1),0) -> 0 | AV72: 14 | BA72: =IFERROR(astm( astm($W$94,3)*1000*(AZ72/AQ61),1),"") ->  | BE72: =IFERROR(astm(cityfuf(BB72),3)-astm(cityfuf(BB71),3),"") ->  | BL72: =IFERROR(astm(mdiuf(BK72),3)-astm(mdiuf(BK71),3),"") ->  | BO72: =IFERROR(astm(cityfufalt(BK72),3)-astm(cityfufalt(BK71),3),"") ->  | BS72: =IF(AZ72="",1, MIN(IFERROR((AZ72/1000)/((AW72*$J$22)*$J$21/3600),1),IFERROR((SUMIFS(AZ59:AZ93,AV59:AV93,"<="&$AV72,AV59:AV93,">="&$AV72-1)/1000)/( $J$22*SUMIFS(AW59:AW93,AV59:AV93,"<="&$AV72,AV59:AV93,">="&$AV72-1)*$J$21/3600),1),IFERROR((SUMIFS(AZ59:AZ93,AV59:AV93,"<="&$AV72,AV59:AV93,">="&$AV72-2)/1000)/( $J$22*SUMIFS(AW59:AW93,AV59:AV93,"<="&$AV72,AV59:AV93,">="&$AV72-2)*$J$21/3600),1),IFERROR((SUMIFS(AZ59:AZ93,AV59:AV93,"<="&$AV72,AV59:AV93,">="&$AV72-3)/1000)/( $J$22*SUMIFS(AW59:AW93,AV59:AV93,"<="&$AV72,AV59:AV93,">="&$AV72-3)*$J$21/3600),1)) ) -> 1 | BU72: =IF(AZ72="",1, MIN($AZ72/SUM($AZ59:$AZ72),SUMIFS(AZ59:AZ93,AV59:AV93,">="&$AV72-1,AV59:AV93,"<="&$AV72)/SUM($AZ59:$AZ72),SUMIFS(AZ59:AZ93,AV59:AV93,">="&$AV72-2,AV59:AV93,"<="&$AV72)/SUM($AZ59:$AZ72),SUMIFS(AZ59:AZ93,AV59:AV93,">="&$AV72-3,AV59:AV93,"<="&$AV72)/SUM($AZ59:$AZ72)) ) -> 1 | BW72: 14 | CF72: =IFERROR(astm(highwayfuf(CC72)-highwayfuf(CC71),3),"") ->  | CM72: =IFERROR(astm(mdiuf(CL72)-mdiuf(CL71),3),"") ->  | CP72: =IFERROR(astm(highwayfufalt(CL72)-highwayfufalt(CL71),3),"") ->  | CT72: =IF(CA72="",1, MIN(IFERROR((CA72/1000)/((BX72*$J$22)*$J$21/3600),1),IFERROR((SUMIFS(CA59:CA93,BW59:BW93,"<="&$BW72,BW59:BW93,">="&$BW72-1)/1000)/( $J$22*SUMIFS(BX59:BX93,BW59:BW93,"<="&$BW72,BW59:BW93,">="&$BW72-1)*$J$21/3600),1),IFERROR((SUMIFS(CA59:CA93,BW59:BW93,"<="&$BW72,BW59:BW93,">="&$BW72-2)/1000)/( $J$22*SUMIFS(BX59:BX93,BW59:BW93,"<="&$BW72,BW59:BW93,">="&$BW72-2)*$J$21/3600),1),IFERROR((SUMIFS(CA59:CA93,BW59:BW93,"<="&$BW72,BW59:BW93,">="&$BW72-3)/1000)/( $J$22*SUMIFS(BX59:BX93,BW59:BW93,"<="&$BW72,BW59:BW93,">="&$BW72-3)*$J$21/3600),1)) ) -> 1 | CV72: =IF(CA72="",1, MIN($CA72/SUM($CA59:$CA72),SUMIFS(CA59:CA93,BW59:BW93,">="&$BW72-1,BW59:BW93,"<="&$BW72)/SUM($CA59:$CA72),SUMIFS(CA59:CA93,BW59:BW93,">="&$BW72-2,BW59:BW93,"<="&$BW72)/SUM($CA59:$CA72),SUMIFS(CA59:CA93,BW59:BW93,">="&$BW72-3,BW59:BW93,"<="&$BW72)/SUM($CA59:$CA72)) ) -> 1
C73: *Range1 - Model Type Driving Range - Conventional Fuel - City | F73: =astm(IF($N$7+$N$55+$N$103=0,SUM(IFERROR(AQ38,0),IFERROR(AQ86,0),IFERROR(AQ134,0)) / ((AQ38<>0)+(AQ86<>0)+(AQ134<>0)),($N$7*AQ38+$N$55*AQ86+$N$103*AQ134)/($N$7+$N$55+$N$103)),0) -> 325 | Q73: 15 | Y73: 15 | AI73: Annual Fuel Cost ($/year) [0] | AL73: =astm( IFERROR(15000*astm(0.55*AQ94+0.45*AR94,3),0)/50,0) * 50 -> 0 | AO73: NEW | AP73: CD CO2 emissions rate (Rcda), adjusted (g/mi) [1] | AQ73: =IFERROR(astm( IFERROR((SUMIF(AV59:AV93,"<=" & AQ82-1,AX59:AX93)+AQ81*SUMIF(AV59:AV93,"=" & AQ82-1,AX59:AX93))/AQ55,#VALUE!), 1),0) -> 0 | AR73: =IFERROR(astm( IFERROR((SUMIF(BW59:BW93,"<=" & AR82-1,BY59:BY93)+AR81*SUMIF(BW59:BW93,"=" & AR82-1,BY59:BY93))/AR55,#VALUE!), 1),0) -> 0 | AV73: 15 | BA73: =IFERROR(astm( astm($W$94,3)*1000*(AZ73/AQ61),1),"") ->  | BE73: =IFERROR(astm(cityfuf(BB73),3)-astm(cityfuf(BB72),3),"") ->  | BL73: =IFERROR(astm(mdiuf(BK73),3)-astm(mdiuf(BK72),3),"") ->  | BO73: =IFERROR(astm(cityfufalt(BK73),3)-astm(cityfufalt(BK72),3),"") ->  | BS73: =IF(AZ73="",1, MIN(IFERROR((AZ73/1000)/((AW73*$J$22)*$J$21/3600),1),IFERROR((SUMIFS(AZ59:AZ93,AV59:AV93,"<="&$AV73,AV59:AV93,">="&$AV73-1)/1000)/( $J$22*SUMIFS(AW59:AW93,AV59:AV93,"<="&$AV73,AV59:AV93,">="&$AV73-1)*$J$21/3600),1),IFERROR((SUMIFS(AZ59:AZ93,AV59:AV93,"<="&$AV73,AV59:AV93,">="&$AV73-2)/1000)/( $J$22*SUMIFS(AW59:AW93,AV59:AV93,"<="&$AV73,AV59:AV93,">="&$AV73-2)*$J$21/3600),1),IFERROR((SUMIFS(AZ59:AZ93,AV59:AV93,"<="&$AV73,AV59:AV93,">="&$AV73-3)/1000)/( $J$22*SUMIFS(AW59:AW93,AV59:AV93,"<="&$AV73,AV59:AV93,">="&$AV73-3)*$J$21/3600),1)) ) -> 1 | BU73: =IF(AZ73="",1, MIN($AZ73/SUM($AZ59:$AZ73),SUMIFS(AZ59:AZ93,AV59:AV93,">="&$AV73-1,AV59:AV93,"<="&$AV73)/SUM($AZ59:$AZ73),SUMIFS(AZ59:AZ93,AV59:AV93,">="&$AV73-2,AV59:AV93,"<="&$AV73)/SUM($AZ59:$AZ73),SUMIFS(AZ59:AZ93,AV59:AV93,">="&$AV73-3,AV59:AV93,"<="&$AV73)/SUM($AZ59:$AZ73)) ) -> 1 | BW73: 15 | CF73: =IFERROR(astm(highwayfuf(CC73)-highwayfuf(CC72),3),"") ->  | CM73: =IFERROR(astm(mdiuf(CL73)-mdiuf(CL72),3),"") ->  | CP73: =IFERROR(astm(highwayfufalt(CL73)-highwayfufalt(CL72),3),"") ->  | CT73: =IF(CA73="",1, MIN(IFERROR((CA73/1000)/((BX73*$J$22)*$J$21/3600),1),IFERROR((SUMIFS(CA59:CA93,BW59:BW93,"<="&$BW73,BW59:BW93,">="&$BW73-1)/1000)/( $J$22*SUMIFS(BX59:BX93,BW59:BW93,"<="&$BW73,BW59:BW93,">="&$BW73-1)*$J$21/3600),1),IFERROR((SUMIFS(CA59:CA93,BW59:BW93,"<="&$BW73,BW59:BW93,">="&$BW73-2)/1000)/( $J$22*SUMIFS(BX59:BX93,BW59:BW93,"<="&$BW73,BW59:BW93,">="&$BW73-2)*$J$21/3600),1),IFERROR((SUMIFS(CA59:CA93,BW59:BW93,"<="&$BW73,BW59:BW93,">="&$BW73-3)/1000)/( $J$22*SUMIFS(BX59:BX93,BW59:BW93,"<="&$BW73,BW59:BW93,">="&$BW73-3)*$J$21/3600),1)) ) -> 1 | CV73: =IF(CA73="",1, MIN($CA73/SUM($CA59:$CA73),SUMIFS(CA59:CA93,BW59:BW93,">="&$BW73-1,BW59:BW93,"<="&$BW73)/SUM($CA59:$CA73),SUMIFS(CA59:CA93,BW59:BW93,">="&$BW73-2,BW59:BW93,"<="&$BW73)/SUM($CA59:$CA73),SUMIFS(CA59:CA93,BW59:BW93,">="&$BW73-3,BW59:BW93,"<="&$BW73)/SUM($CA59:$CA73)) ) -> 1
C74: *Range1 - Model Type Driving Range - Conventional Fuel - Hwy | F74: =astm(IF($N$7+$N$55+$N$103=0,SUM(IFERROR(AR38,0),IFERROR(AR86,0),IFERROR(AR134,0)) / ((AR38<>0)+(AR86<>0)+(AR134<>0)),($N$7*AR38+$N$55*AR86+$N$103*AR134)/($N$7+$N$55+$N$103)),0) -> 368 | Q74: 16 | Y74: 16 | AI74: 5-Year Fuel Savings Value ($/5 years) [0] | AL74: =$F$38-5*AL73 -> 7500 | AO74: NEW | AP74: CD utilitized CO2 (MDIUF, Rcdc), adjusted (g/mi) [1] | AQ74: =astm(SUMIF(AV59:AV93,"<=" & (AQ82),BM59:BM93),1) -> 0 | AR74: =astm(SUMIF(BW59:BW93,"<=" & (AR82),CN59:CN93),1) -> 0 | AV74: 16 | BA74: =IFERROR(astm( astm($W$94,3)*1000*(AZ74/AQ61),1),"") ->  | BE74: =IFERROR(astm(cityfuf(BB74),3)-astm(cityfuf(BB73),3),"") ->  | BL74: =IFERROR(astm(mdiuf(BK74),3)-astm(mdiuf(BK73),3),"") ->  | BO74: =IFERROR(astm(cityfufalt(BK74),3)-astm(cityfufalt(BK73),3),"") ->  | BS74: =IF(AZ74="",1, MIN(IFERROR((AZ74/1000)/((AW74*$J$22)*$J$21/3600),1),IFERROR((SUMIFS(AZ59:AZ93,AV59:AV93,"<="&$AV74,AV59:AV93,">="&$AV74-1)/1000)/( $J$22*SUMIFS(AW59:AW93,AV59:AV93,"<="&$AV74,AV59:AV93,">="&$AV74-1)*$J$21/3600),1),IFERROR((SUMIFS(AZ59:AZ93,AV59:AV93,"<="&$AV74,AV59:AV93,">="&$AV74-2)/1000)/( $J$22*SUMIFS(AW59:AW93,AV59:AV93,"<="&$AV74,AV59:AV93,">="&$AV74-2)*$J$21/3600),1),IFERROR((SUMIFS(AZ59:AZ93,AV59:AV93,"<="&$AV74,AV59:AV93,">="&$AV74-3)/1000)/( $J$22*SUMIFS(AW59:AW93,AV59:AV93,"<="&$AV74,AV59:AV93,">="&$AV74-3)*$J$21/3600),1)) ) -> 1 | BU74: =IF(AZ74="",1, MIN($AZ74/SUM($AZ59:$AZ74),SUMIFS(AZ59:AZ93,AV59:AV93,">="&$AV74-1,AV59:AV93,"<="&$AV74)/SUM($AZ59:$AZ74),SUMIFS(AZ59:AZ93,AV59:AV93,">="&$AV74-2,AV59:AV93,"<="&$AV74)/SUM($AZ59:$AZ74),SUMIFS(AZ59:AZ93,AV59:AV93,">="&$AV74-3,AV59:AV93,"<="&$AV74)/SUM($AZ59:$AZ74)) ) -> 1 | BW74: 16 | CF74: =IFERROR(astm(highwayfuf(CC74)-highwayfuf(CC73),3),"") ->  | CM74: =IFERROR(astm(mdiuf(CL74)-mdiuf(CL73),3),"") ->  | CP74: =IFERROR(astm(highwayfufalt(CL74)-highwayfufalt(CL73),3),"") ->  | CT74: =IF(CA74="",1, MIN(IFERROR((CA74/1000)/((BX74*$J$22)*$J$21/3600),1),IFERROR((SUMIFS(CA59:CA93,BW59:BW93,"<="&$BW74,BW59:BW93,">="&$BW74-1)/1000)/( $J$22*SUMIFS(BX59:BX93,BW59:BW93,"<="&$BW74,BW59:BW93,">="&$BW74-1)*$J$21/3600),1),IFERROR((SUMIFS(CA59:CA93,BW59:BW93,"<="&$BW74,BW59:BW93,">="&$BW74-2)/1000)/( $J$22*SUMIFS(BX59:BX93,BW59:BW93,"<="&$BW74,BW59:BW93,">="&$BW74-2)*$J$21/3600),1),IFERROR((SUMIFS(CA59:CA93,BW59:BW93,"<="&$BW74,BW59:BW93,">="&$BW74-3)/1000)/( $J$22*SUMIFS(BX59:BX93,BW59:BW93,"<="&$BW74,BW59:BW93,">="&$BW74-3)*$J$21/3600),1)) ) -> 1 | CV74: =IF(CA74="",1, MIN($CA74/SUM($CA59:$CA74),SUMIFS(CA59:CA93,BW59:BW93,">="&$BW74-1,BW59:BW93,"<="&$BW74)/SUM($CA59:$CA74),SUMIFS(CA59:CA93,BW59:BW93,">="&$BW74-2,BW59:BW93,"<="&$BW74)/SUM($CA59:$CA74),SUMIFS(CA59:CA93,BW59:BW93,">="&$BW74-3,BW59:BW93,"<="&$BW74)/SUM($CA59:$CA74)) ) -> 1
C75: Range1 - Model Type Driving Range - Conventional Fuel - Comb | F75: =astm(IF($N$7+$N$55+$N$103=0,SUM(IFERROR(astm(0.55*AQ38+0.45*AR38,3),0),IFERROR(astm(0.55*AQ86+0.45*AR86,3),0),IFERROR(astm(0.55*AQ134+0.45*AR134,3),0)) / ((astm(0.55*AQ38+0.45*AR38,3)<>0)+(astm(0.55*AQ86+0.45*AR86,3)<>0)+(astm(0.55*AQ134+0.45*AR134,3)<>0)),($N$7*astm(0.55*AQ38+0.45*AR38,3)+$N$55*astm(0.55*AQ86+0.45*AR86,3)+$N$103*astm(0.55*AQ134+0.45*AR134,3))/($N$7+$N$55+$N$103)),0) -> 344 | Q75: 17 | Y75: 17 | AI75: Composite CO2 (g/mi) [0] | AL75: =astm(0.55*AQ96+0.45*AR96,0) -> 0 | AP75: CD utilitized CREE (55/45 FUF, Rcdc), unadjusted (g/mi) [1] | AQ75: =astm(SUMIF(AV59:AV93,"<=" & AQ82,BF59:BF93),1) -> 0 | AR75: =astm(SUMIF(BW59:BW93,"<=" & AR82,CG59:CG93),1) -> 0 | AV75: 17 | BA75: =IFERROR(astm( astm($W$94,3)*1000*(AZ75/AQ61),1),"") ->  | BE75: =IFERROR(astm(cityfuf(BB75),3)-astm(cityfuf(BB74),3),"") ->  | BL75: =IFERROR(astm(mdiuf(BK75),3)-astm(mdiuf(BK74),3),"") ->  | BO75: =IFERROR(astm(cityfufalt(BK75),3)-astm(cityfufalt(BK74),3),"") ->  | BS75: =IF(AZ75="",1, MIN(IFERROR((AZ75/1000)/((AW75*$J$22)*$J$21/3600),1),IFERROR((SUMIFS(AZ59:AZ93,AV59:AV93,"<="&$AV75,AV59:AV93,">="&$AV75-1)/1000)/( $J$22*SUMIFS(AW59:AW93,AV59:AV93,"<="&$AV75,AV59:AV93,">="&$AV75-1)*$J$21/3600),1),IFERROR((SUMIFS(AZ59:AZ93,AV59:AV93,"<="&$AV75,AV59:AV93,">="&$AV75-2)/1000)/( $J$22*SUMIFS(AW59:AW93,AV59:AV93,"<="&$AV75,AV59:AV93,">="&$AV75-2)*$J$21/3600),1),IFERROR((SUMIFS(AZ59:AZ93,AV59:AV93,"<="&$AV75,AV59:AV93,">="&$AV75-3)/1000)/( $J$22*SUMIFS(AW59:AW93,AV59:AV93,"<="&$AV75,AV59:AV93,">="&$AV75-3)*$J$21/3600),1)) ) -> 1 | BU75: =IF(AZ75="",1, MIN($AZ75/SUM($AZ59:$AZ75),SUMIFS(AZ59:AZ93,AV59:AV93,">="&$AV75-1,AV59:AV93,"<="&$AV75)/SUM($AZ59:$AZ75),SUMIFS(AZ59:AZ93,AV59:AV93,">="&$AV75-2,AV59:AV93,"<="&$AV75)/SUM($AZ59:$AZ75),SUMIFS(AZ59:AZ93,AV59:AV93,">="&$AV75-3,AV59:AV93,"<="&$AV75)/SUM($AZ59:$AZ75)) ) -> 1 | BW75: 17 | CF75: =IFERROR(astm(highwayfuf(CC75)-highwayfuf(CC74),3),"") ->  | CM75: =IFERROR(astm(mdiuf(CL75)-mdiuf(CL74),3),"") ->  | CP75: =IFERROR(astm(highwayfufalt(CL75)-highwayfufalt(CL74),3),"") ->  | CT75: =IF(CA75="",1, MIN(IFERROR((CA75/1000)/((BX75*$J$22)*$J$21/3600),1),IFERROR((SUMIFS(CA59:CA93,BW59:BW93,"<="&$BW75,BW59:BW93,">="&$BW75-1)/1000)/( $J$22*SUMIFS(BX59:BX93,BW59:BW93,"<="&$BW75,BW59:BW93,">="&$BW75-1)*$J$21/3600),1),IFERROR((SUMIFS(CA59:CA93,BW59:BW93,"<="&$BW75,BW59:BW93,">="&$BW75-2)/1000)/( $J$22*SUMIFS(BX59:BX93,BW59:BW93,"<="&$BW75,BW59:BW93,">="&$BW75-2)*$J$21/3600),1),IFERROR((SUMIFS(CA59:CA93,BW59:BW93,"<="&$BW75,BW59:BW93,">="&$BW75-3)/1000)/( $J$22*SUMIFS(BX59:BX93,BW59:BW93,"<="&$BW75,BW59:BW93,">="&$BW75-3)*$J$21/3600),1)) ) -> 1 | CV75: =IF(CA75="",1, MIN($CA75/SUM($CA59:$CA75),SUMIFS(CA59:CA93,BW59:BW93,">="&$BW75-1,BW59:BW93,"<="&$BW75)/SUM($CA59:$CA75),SUMIFS(CA59:CA93,BW59:BW93,">="&$BW75-2,BW59:BW93,"<="&$BW75)/SUM($CA59:$CA75),SUMIFS(CA59:CA93,BW59:BW93,">="&$BW75-3,BW59:BW93,"<="&$BW75)/SUM($CA59:$CA75)) ) -> 1
C76: Charge-depleting Efficiency | E76: kW-hr/100mi | F76: MPGe | Q76: 18 | Y76: 18 | AI76: Composite Fuel Economy (MPG) [0] | AL76: =IFERROR(astm(1/(0.55/AQ97+0.45/AR97),0),0) -> 0 | AO76: NEW | AP76: CD utilitized CREE (43/57 FUF, Rcdc), adjusted (g/mi) [1] | AQ76: =astm(SUMIF(AV59:AV93,"<=" & (AQ82),BQ59:BQ93),1) -> 0 | AR76: =astm(SUMIF(BW59:BW93,"<=" & (AR82),CR59:CR93),1) -> 0 | AV76: 18 | BA76: =IFERROR(astm( astm($W$94,3)*1000*(AZ76/AQ61),1),"") ->  | BE76: =IFERROR(astm(cityfuf(BB76),3)-astm(cityfuf(BB75),3),"") ->  | BL76: =IFERROR(astm(mdiuf(BK76),3)-astm(mdiuf(BK75),3),"") ->  | BO76: =IFERROR(astm(cityfufalt(BK76),3)-astm(cityfufalt(BK75),3),"") ->  | BS76: =IF(AZ76="",1, MIN(IFERROR((AZ76/1000)/((AW76*$J$22)*$J$21/3600),1),IFERROR((SUMIFS(AZ59:AZ93,AV59:AV93,"<="&$AV76,AV59:AV93,">="&$AV76-1)/1000)/( $J$22*SUMIFS(AW59:AW93,AV59:AV93,"<="&$AV76,AV59:AV93,">="&$AV76-1)*$J$21/3600),1),IFERROR((SUMIFS(AZ59:AZ93,AV59:AV93,"<="&$AV76,AV59:AV93,">="&$AV76-2)/1000)/( $J$22*SUMIFS(AW59:AW93,AV59:AV93,"<="&$AV76,AV59:AV93,">="&$AV76-2)*$J$21/3600),1),IFERROR((SUMIFS(AZ59:AZ93,AV59:AV93,"<="&$AV76,AV59:AV93,">="&$AV76-3)/1000)/( $J$22*SUMIFS(AW59:AW93,AV59:AV93,"<="&$AV76,AV59:AV93,">="&$AV76-3)*$J$21/3600),1)) ) -> 1 | BU76: =IF(AZ76="",1, MIN($AZ76/SUM($AZ59:$AZ76),SUMIFS(AZ59:AZ93,AV59:AV93,">="&$AV76-1,AV59:AV93,"<="&$AV76)/SUM($AZ59:$AZ76),SUMIFS(AZ59:AZ93,AV59:AV93,">="&$AV76-2,AV59:AV93,"<="&$AV76)/SUM($AZ59:$AZ76),SUMIFS(AZ59:AZ93,AV59:AV93,">="&$AV76-3,AV59:AV93,"<="&$AV76)/SUM($AZ59:$AZ76)) ) -> 1 | BW76: 18 | CF76: =IFERROR(astm(highwayfuf(CC76)-highwayfuf(CC75),3),"") ->  | CM76: =IFERROR(astm(mdiuf(CL76)-mdiuf(CL75),3),"") ->  | CP76: =IFERROR(astm(highwayfufalt(CL76)-highwayfufalt(CL75),3),"") ->  | CT76: =IF(CA76="",1, MIN(IFERROR((CA76/1000)/((BX76*$J$22)*$J$21/3600),1),IFERROR((SUMIFS(CA59:CA93,BW59:BW93,"<="&$BW76,BW59:BW93,">="&$BW76-1)/1000)/( $J$22*SUMIFS(BX59:BX93,BW59:BW93,"<="&$BW76,BW59:BW93,">="&$BW76-1)*$J$21/3600),1),IFERROR((SUMIFS(CA59:CA93,BW59:BW93,"<="&$BW76,BW59:BW93,">="&$BW76-2)/1000)/( $J$22*SUMIFS(BX59:BX93,BW59:BW93,"<="&$BW76,BW59:BW93,">="&$BW76-2)*$J$21/3600),1),IFERROR((SUMIFS(CA59:CA93,BW59:BW93,"<="&$BW76,BW59:BW93,">="&$BW76-3)/1000)/( $J$22*SUMIFS(BX59:BX93,BW59:BW93,"<="&$BW76,BW59:BW93,">="&$BW76-3)*$J$21/3600),1)) ) -> 1 | CV76: =IF(CA76="",1, MIN($CA76/SUM($CA59:$CA76),SUMIFS(CA59:CA93,BW59:BW93,">="&$BW76-1,BW59:BW93,"<="&$BW76)/SUM($CA59:$CA76),SUMIFS(CA59:CA93,BW59:BW93,">="&$BW76-2,BW59:BW93,"<="&$BW76)/SUM($CA59:$CA76),SUMIFS(CA59:CA93,BW59:BW93,">="&$BW76-3,BW59:BW93,"<="&$BW76)/SUM($CA59:$CA76)) ) -> 1
C77: City2 FE (Guide) - Alternative Fuel | E77: =astm($D$23,0) -> 50 | F77: =astm($D$22,0) -> 71 | Q77: 19 | Y77: 19 | AI77: HOV Lane Values | AJ77: City | AK77: Highway | AL77: Combined | AP77: UTILITY FACTORS & OTHER METRICS | AQ77: CITY | AR77: HIGHWAY | AV77: 19 | BA77: =IFERROR(astm( astm($W$94,3)*1000*(AZ77/AQ61),1),"") ->  | BE77: =IFERROR(astm(cityfuf(BB77),3)-astm(cityfuf(BB76),3),"") ->  | BL77: =IFERROR(astm(mdiuf(BK77),3)-astm(mdiuf(BK76),3),"") ->  | BO77: =IFERROR(astm(cityfufalt(BK77),3)-astm(cityfufalt(BK76),3),"") ->  | BS77: =IF(AZ77="",1, MIN(IFERROR((AZ77/1000)/((AW77*$J$22)*$J$21/3600),1),IFERROR((SUMIFS(AZ59:AZ93,AV59:AV93,"<="&$AV77,AV59:AV93,">="&$AV77-1)/1000)/( $J$22*SUMIFS(AW59:AW93,AV59:AV93,"<="&$AV77,AV59:AV93,">="&$AV77-1)*$J$21/3600),1),IFERROR((SUMIFS(AZ59:AZ93,AV59:AV93,"<="&$AV77,AV59:AV93,">="&$AV77-2)/1000)/( $J$22*SUMIFS(AW59:AW93,AV59:AV93,"<="&$AV77,AV59:AV93,">="&$AV77-2)*$J$21/3600),1),IFERROR((SUMIFS(AZ59:AZ93,AV59:AV93,"<="&$AV77,AV59:AV93,">="&$AV77-3)/1000)/( $J$22*SUMIFS(AW59:AW93,AV59:AV93,"<="&$AV77,AV59:AV93,">="&$AV77-3)*$J$21/3600),1)) ) -> 1 | BU77: =IF(AZ77="",1, MIN($AZ77/SUM($AZ59:$AZ77),SUMIFS(AZ59:AZ93,AV59:AV93,">="&$AV77-1,AV59:AV93,"<="&$AV77)/SUM($AZ59:$AZ77),SUMIFS(AZ59:AZ93,AV59:AV93,">="&$AV77-2,AV59:AV93,"<="&$AV77)/SUM($AZ59:$AZ77),SUMIFS(AZ59:AZ93,AV59:AV93,">="&$AV77-3,AV59:AV93,"<="&$AV77)/SUM($AZ59:$AZ77)) ) -> 1 | BW77: 19 | CF77: =IFERROR(astm(highwayfuf(CC77)-highwayfuf(CC76),3),"") ->  | CM77: =IFERROR(astm(mdiuf(CL77)-mdiuf(CL76),3),"") ->  | CP77: =IFERROR(astm(highwayfufalt(CL77)-highwayfufalt(CL76),3),"") ->  | CT77: =IF(CA77="",1, MIN(IFERROR((CA77/1000)/((BX77*$J$22)*$J$21/3600),1),IFERROR((SUMIFS(CA59:CA93,BW59:BW93,"<="&$BW77,BW59:BW93,">="&$BW77-1)/1000)/( $J$22*SUMIFS(BX59:BX93,BW59:BW93,"<="&$BW77,BW59:BW93,">="&$BW77-1)*$J$21/3600),1),IFERROR((SUMIFS(CA59:CA93,BW59:BW93,"<="&$BW77,BW59:BW93,">="&$BW77-2)/1000)/( $J$22*SUMIFS(BX59:BX93,BW59:BW93,"<="&$BW77,BW59:BW93,">="&$BW77-2)*$J$21/3600),1),IFERROR((SUMIFS(CA59:CA93,BW59:BW93,"<="&$BW77,BW59:BW93,">="&$BW77-3)/1000)/( $J$22*SUMIFS(BX59:BX93,BW59:BW93,"<="&$BW77,BW59:BW93,">="&$BW77-3)*$J$21/3600),1)) ) -> 1 | CV77: =IF(CA77="",1, MIN($CA77/SUM($CA59:$CA77),SUMIFS(CA59:CA93,BW59:BW93,">="&$BW77-1,BW59:BW93,"<="&$BW77)/SUM($CA59:$CA77),SUMIFS(CA59:CA93,BW59:BW93,">="&$BW77-2,BW59:BW93,"<="&$BW77)/SUM($CA59:$CA77),SUMIFS(CA59:CA93,BW59:BW93,">="&$BW77-3,BW59:BW93,"<="&$BW77)/SUM($CA59:$CA77)) ) -> 1
C78: Hwy2 Fuel FE (Guide) - Alternative Fuel | E78: =astm($E$23,0) -> 33 | F78: =astm($E$22,0) -> 103 | Q78: 20 | Y78: 20 | AI78: MDIUF based on unadjusted Rcda [3] | AJ78: =IFERROR(astm(mdiuf(AQ54),3),0) -> 0 | AK78: =IFERROR(astm(mdiuf(AR54),3),0) -> 0 | AP78: CD 55/45 Fleet Utility Factor (FUF) for Rcdc [3] | AQ78: =astm(SUMIF(AV59:AV93,"<="&AQ82,BE59:BE93),3) -> 0 | AR78: =astm(SUMIF(BW59:BW93,"<="&AR82,CF59:CF93),3) -> 0 | AV78: 20 | BA78: =IFERROR(astm( astm($W$94,3)*1000*(AZ78/AQ61),1),"") ->  | BE78: =IFERROR(astm(cityfuf(BB78),3)-astm(cityfuf(BB77),3),"") ->  | BL78: =IFERROR(astm(mdiuf(BK78),3)-astm(mdiuf(BK77),3),"") ->  | BO78: =IFERROR(astm(cityfufalt(BK78),3)-astm(cityfufalt(BK77),3),"") ->  | BS78: =IF(AZ78="",1, MIN(IFERROR((AZ78/1000)/((AW78*$J$22)*$J$21/3600),1),IFERROR((SUMIFS(AZ59:AZ93,AV59:AV93,"<="&$AV78,AV59:AV93,">="&$AV78-1)/1000)/( $J$22*SUMIFS(AW59:AW93,AV59:AV93,"<="&$AV78,AV59:AV93,">="&$AV78-1)*$J$21/3600),1),IFERROR((SUMIFS(AZ59:AZ93,AV59:AV93,"<="&$AV78,AV59:AV93,">="&$AV78-2)/1000)/( $J$22*SUMIFS(AW59:AW93,AV59:AV93,"<="&$AV78,AV59:AV93,">="&$AV78-2)*$J$21/3600),1),IFERROR((SUMIFS(AZ59:AZ93,AV59:AV93,"<="&$AV78,AV59:AV93,">="&$AV78-3)/1000)/( $J$22*SUMIFS(AW59:AW93,AV59:AV93,"<="&$AV78,AV59:AV93,">="&$AV78-3)*$J$21/3600),1)) ) -> 1 | BU78: =IF(AZ78="",1, MIN($AZ78/SUM($AZ59:$AZ78),SUMIFS(AZ59:AZ93,AV59:AV93,">="&$AV78-1,AV59:AV93,"<="&$AV78)/SUM($AZ59:$AZ78),SUMIFS(AZ59:AZ93,AV59:AV93,">="&$AV78-2,AV59:AV93,"<="&$AV78)/SUM($AZ59:$AZ78),SUMIFS(AZ59:AZ93,AV59:AV93,">="&$AV78-3,AV59:AV93,"<="&$AV78)/SUM($AZ59:$AZ78)) ) -> 1 | BW78: 20 | CF78: =IFERROR(astm(highwayfuf(CC78)-highwayfuf(CC77),3),"") ->  | CM78: =IFERROR(astm(mdiuf(CL78)-mdiuf(CL77),3),"") ->  | CP78: =IFERROR(astm(highwayfufalt(CL78)-highwayfufalt(CL77),3),"") ->  | CT78: =IF(CA78="",1, MIN(IFERROR((CA78/1000)/((BX78*$J$22)*$J$21/3600),1),IFERROR((SUMIFS(CA59:CA93,BW59:BW93,"<="&$BW78,BW59:BW93,">="&$BW78-1)/1000)/( $J$22*SUMIFS(BX59:BX93,BW59:BW93,"<="&$BW78,BW59:BW93,">="&$BW78-1)*$J$21/3600),1),IFERROR((SUMIFS(CA59:CA93,BW59:BW93,"<="&$BW78,BW59:BW93,">="&$BW78-2)/1000)/( $J$22*SUMIFS(BX59:BX93,BW59:BW93,"<="&$BW78,BW59:BW93,">="&$BW78-2)*$J$21/3600),1),IFERROR((SUMIFS(CA59:CA93,BW59:BW93,"<="&$BW78,BW59:BW93,">="&$BW78-3)/1000)/( $J$22*SUMIFS(BX59:BX93,BW59:BW93,"<="&$BW78,BW59:BW93,">="&$BW78-3)*$J$21/3600),1)) ) -> 1 | CV78: =IF(CA78="",1, MIN($CA78/SUM($CA59:$CA78),SUMIFS(CA59:CA93,BW59:BW93,">="&$BW78-1,BW59:BW93,"<="&$BW78)/SUM($CA59:$CA78),SUMIFS(CA59:CA93,BW59:BW93,">="&$BW78-2,BW59:BW93,"<="&$BW78)/SUM($CA59:$CA78),SUMIFS(CA59:CA93,BW59:BW93,">="&$BW78-3,BW59:BW93,"<="&$BW78)/SUM($CA59:$CA78)) ) -> 1
C79: Comb2 Fuel FE (Guide) - Alternative Fuel | E79: =$F$23 -> 42.6968 | F79: =$F$22 -> 83 | Q79: 21 | Y79: 21 | AI79: Composite CD/CS Fuel Economy (MPGe) [4] | AJ79: =IFERROR(astm(1/(AJ78/(AQ54/ AQ62 )+(1-AJ78)/N59),4),0) -> 0 | AK79: =IFERROR(astm(1/(AK78/(AR54/ AR62 )+(1-AK78)/O59),4),0) -> 0 | AL79: =IFERROR(astm(1/(0.55/AJ79+0.45/AK79),4),0) -> 0 | AP79: MDIUF based on Rcda, adjusted [3] | AQ79: =astm(mdiuf(AQ55),3) -> 0 | AR79: =astm(mdiuf(AR55),3) -> 0 | AV79: 21 | BA79: =IFERROR(astm( astm($W$94,3)*1000*(AZ79/AQ61),1),"") ->  | BE79: =IFERROR(astm(cityfuf(BB79),3)-astm(cityfuf(BB78),3),"") ->  | BL79: =IFERROR(astm(mdiuf(BK79),3)-astm(mdiuf(BK78),3),"") ->  | BO79: =IFERROR(astm(cityfufalt(BK79),3)-astm(cityfufalt(BK78),3),"") ->  | BS79: =IF(AZ79="",1, MIN(IFERROR((AZ79/1000)/((AW79*$J$22)*$J$21/3600),1),IFERROR((SUMIFS(AZ59:AZ93,AV59:AV93,"<="&$AV79,AV59:AV93,">="&$AV79-1)/1000)/( $J$22*SUMIFS(AW59:AW93,AV59:AV93,"<="&$AV79,AV59:AV93,">="&$AV79-1)*$J$21/3600),1),IFERROR((SUMIFS(AZ59:AZ93,AV59:AV93,"<="&$AV79,AV59:AV93,">="&$AV79-2)/1000)/( $J$22*SUMIFS(AW59:AW93,AV59:AV93,"<="&$AV79,AV59:AV93,">="&$AV79-2)*$J$21/3600),1),IFERROR((SUMIFS(AZ59:AZ93,AV59:AV93,"<="&$AV79,AV59:AV93,">="&$AV79-3)/1000)/( $J$22*SUMIFS(AW59:AW93,AV59:AV93,"<="&$AV79,AV59:AV93,">="&$AV79-3)*$J$21/3600),1)) ) -> 1 | BU79: =IF(AZ79="",1, MIN($AZ79/SUM($AZ59:$AZ79),SUMIFS(AZ59:AZ93,AV59:AV93,">="&$AV79-1,AV59:AV93,"<="&$AV79)/SUM($AZ59:$AZ79),SUMIFS(AZ59:AZ93,AV59:AV93,">="&$AV79-2,AV59:AV93,"<="&$AV79)/SUM($AZ59:$AZ79),SUMIFS(AZ59:AZ93,AV59:AV93,">="&$AV79-3,AV59:AV93,"<="&$AV79)/SUM($AZ59:$AZ79)) ) -> 1 | BW79: 21 | CF79: =IFERROR(astm(highwayfuf(CC79)-highwayfuf(CC78),3),"") ->  | CM79: =IFERROR(astm(mdiuf(CL79)-mdiuf(CL78),3),"") ->  | CP79: =IFERROR(astm(highwayfufalt(CL79)-highwayfufalt(CL78),3),"") ->  | CT79: =IF(CA79="",1, MIN(IFERROR((CA79/1000)/((BX79*$J$22)*$J$21/3600),1),IFERROR((SUMIFS(CA59:CA93,BW59:BW93,"<="&$BW79,BW59:BW93,">="&$BW79-1)/1000)/( $J$22*SUMIFS(BX59:BX93,BW59:BW93,"<="&$BW79,BW59:BW93,">="&$BW79-1)*$J$21/3600),1),IFERROR((SUMIFS(CA59:CA93,BW59:BW93,"<="&$BW79,BW59:BW93,">="&$BW79-2)/1000)/( $J$22*SUMIFS(BX59:BX93,BW59:BW93,"<="&$BW79,BW59:BW93,">="&$BW79-2)*$J$21/3600),1),IFERROR((SUMIFS(CA59:CA93,BW59:BW93,"<="&$BW79,BW59:BW93,">="&$BW79-3)/1000)/( $J$22*SUMIFS(BX59:BX93,BW59:BW93,"<="&$BW79,BW59:BW93,">="&$BW79-3)*$J$21/3600),1)) ) -> 1 | CV79: =IF(CA79="",1, MIN($CA79/SUM($CA59:$CA79),SUMIFS(CA59:CA93,BW59:BW93,">="&$BW79-1,BW59:BW93,"<="&$BW79)/SUM($CA59:$CA79),SUMIFS(CA59:CA93,BW59:BW93,">="&$BW79-2,BW59:BW93,"<="&$BW79)/SUM($CA59:$CA79),SUMIFS(CA59:CA93,BW59:BW93,">="&$BW79-3,BW59:BW93,"<="&$BW79)/SUM($CA59:$CA79)) ) -> 1
C80: City2 Unadj FE - Alternative Fuel | E80: =astm(IF($N$7+$N$55+$N$103=0,SUM(AQ22, AQ70,AQ118) / (((AQ22)<>0) + ((AQ70)<>0) + ((AQ118)<>0)), ($N$7*(AQ22)+$N$55*(AQ70)+ $N$103*(AQ118)) /($N$7+$N$55+$N$103)),1) -> 33.1 | F80: =astm(IF($N$7+$N$55+$N$103=0, (((AQ21)<>0)+((AQ69)<>0)+((AQ117)<>0))/(IFERROR(1/(AQ21),0)+IFERROR(1/(AQ69),0)+IFERROR(1/(AQ117),0)), ($N$7+$N$55+$N$103) / (IFERROR($N$7/(AQ21),0)+IFERROR($N$55/(AQ69),0)+IFERROR($N$103/(AQ117),0)) ),1) -> 102 | Q80: 22 | Y80: 22 | AI80: Trends Report Values | AJ80: City | AK80: Highway | AL80: Combined | AP80: MDIUF based on Rcdc, unadjusted [3] | AQ80: =astm(SUMIF(AV59:AV93,"<=" & AQ82,BL59:BL93),3) -> 0 | AR80: =astm(SUMIF(BW59:BW93,"<=" & AR82,CM59:CM93),3) -> 0 | AV80: 22 | BA80: =IFERROR(astm( astm($W$94,3)*1000*(AZ80/AQ61),1),"") ->  | BE80: =IFERROR(astm(cityfuf(BB80),3)-astm(cityfuf(BB79),3),"") ->  | BL80: =IFERROR(astm(mdiuf(BK80),3)-astm(mdiuf(BK79),3),"") ->  | BO80: =IFERROR(astm(cityfufalt(BK80),3)-astm(cityfufalt(BK79),3),"") ->  | BS80: =IF(AZ80="",1, MIN(IFERROR((AZ80/1000)/((AW80*$J$22)*$J$21/3600),1),IFERROR((SUMIFS(AZ59:AZ93,AV59:AV93,"<="&$AV80,AV59:AV93,">="&$AV80-1)/1000)/( $J$22*SUMIFS(AW59:AW93,AV59:AV93,"<="&$AV80,AV59:AV93,">="&$AV80-1)*$J$21/3600),1),IFERROR((SUMIFS(AZ59:AZ93,AV59:AV93,"<="&$AV80,AV59:AV93,">="&$AV80-2)/1000)/( $J$22*SUMIFS(AW59:AW93,AV59:AV93,"<="&$AV80,AV59:AV93,">="&$AV80-2)*$J$21/3600),1),IFERROR((SUMIFS(AZ59:AZ93,AV59:AV93,"<="&$AV80,AV59:AV93,">="&$AV80-3)/1000)/( $J$22*SUMIFS(AW59:AW93,AV59:AV93,"<="&$AV80,AV59:AV93,">="&$AV80-3)*$J$21/3600),1)) ) -> 1 | BU80: =IF(AZ80="",1, MIN($AZ80/SUM($AZ59:$AZ80),SUMIFS(AZ59:AZ93,AV59:AV93,">="&$AV80-1,AV59:AV93,"<="&$AV80)/SUM($AZ59:$AZ80),SUMIFS(AZ59:AZ93,AV59:AV93,">="&$AV80-2,AV59:AV93,"<="&$AV80)/SUM($AZ59:$AZ80),SUMIFS(AZ59:AZ93,AV59:AV93,">="&$AV80-3,AV59:AV93,"<="&$AV80)/SUM($AZ59:$AZ80)) ) -> 1 | BW80: 22 | CF80: =IFERROR(astm(highwayfuf(CC80)-highwayfuf(CC79),3),"") ->  | CM80: =IFERROR(astm(mdiuf(CL80)-mdiuf(CL79),3),"") ->  | CP80: =IFERROR(astm(highwayfufalt(CL80)-highwayfufalt(CL79),3),"") ->  | CT80: =IF(CA80="",1, MIN(IFERROR((CA80/1000)/((BX80*$J$22)*$J$21/3600),1),IFERROR((SUMIFS(CA59:CA93,BW59:BW93,"<="&$BW80,BW59:BW93,">="&$BW80-1)/1000)/( $J$22*SUMIFS(BX59:BX93,BW59:BW93,"<="&$BW80,BW59:BW93,">="&$BW80-1)*$J$21/3600),1),IFERROR((SUMIFS(CA59:CA93,BW59:BW93,"<="&$BW80,BW59:BW93,">="&$BW80-2)/1000)/( $J$22*SUMIFS(BX59:BX93,BW59:BW93,"<="&$BW80,BW59:BW93,">="&$BW80-2)*$J$21/3600),1),IFERROR((SUMIFS(CA59:CA93,BW59:BW93,"<="&$BW80,BW59:BW93,">="&$BW80-3)/1000)/( $J$22*SUMIFS(BX59:BX93,BW59:BW93,"<="&$BW80,BW59:BW93,">="&$BW80-3)*$J$21/3600),1)) ) -> 1 | CV80: =IF(CA80="",1, MIN($CA80/SUM($CA59:$CA80),SUMIFS(CA59:CA93,BW59:BW93,">="&$BW80-1,BW59:BW93,"<="&$BW80)/SUM($CA59:$CA80),SUMIFS(CA59:CA93,BW59:BW93,">="&$BW80-2,BW59:BW93,"<="&$BW80)/SUM($CA59:$CA80),SUMIFS(CA59:CA93,BW59:BW93,">="&$BW80-3,BW59:BW93,"<="&$BW80)/SUM($CA59:$CA80)) ) -> 1
C81: Hwy2 Unadj FE - Alternative Fuel | E81: =astm(IF($N$7+$N$55+$N$103=0,SUM(AR22, AR70,AR118) / (((AR22)<>0) + ((AR70)<>0) + ((AR118)<>0)), ($N$7*(AR22)+$N$55*(AR70)+ $N$103*(AR118)) /($N$7+$N$55+$N$103)),1) -> 23 | F81: =astm(IF($N$7+$N$55+$N$103=0, (((AR21)<>0)+((AR69)<>0)+((AR117)<>0))/(IFERROR(1/(AR21),0)+IFERROR(1/(AR69),0)+IFERROR(1/(AR117),0)), ($N$7+$N$55+$N$103) / (IFERROR($N$7/(AR21),0)+IFERROR($N$55/(AR69),0)+IFERROR($N$103/(AR117),0)) ),1) -> 146.7 | Q81: 23 | Y81: 23 | AI81: Fleet Utility Factor (43/57) [3] | AJ81: =astm(SUMIF(AV59:AV88,"<="&AQ82,BO59:BO88),3) -> 0 | AK81: =astm(SUMIF(BW59:BW88,"<="&AR82,CP59:CP88),3) -> 0 | AL81: =0.55*AJ81+0.45*AK81 -> 0 | AP81: Fraction of transition cycle that is charge-depleting operation (Zn) [3] | AQ81: =astm( IF((IF( SUMIF(AV59:AV93,"=" & ($AQ82),AY59:AY93)/SUMIF(AV59:AV93,"=" & ($AQ82-1),AY59:AY93)<0,0, SUMIF(AV59:AV93,"=" & ($AQ82),AY59:AY93)/SUMIF(AV59:AV93,"=" & ($AQ82-1),AY59:AY93)))<0,0, IF((IF( SUMIF(AV59:AV93,"=" & ($AQ82),AY59:AY93)/SUMIF(AV59:AV93,"=" & ($AQ82-1),AY59:AY93)<0,0, SUMIF(AV59:AV93,"=" & ($AQ82),AY59:AY93)/SUMIF(AV59:AV93,"=" & ($AQ82-1),AY59:AY93)))>1,1, (IF( SUMIF(AV59:AV93,"=" & ($AQ82),AY59:AY93)/SUMIF(AV59:AV93,"=" & ($AQ82-1),AY59:AY93)<0,0, SUMIF(AV59:AV93,"=" & ($AQ82),AY59:AY93)/SUMIF(AV59:AV93,"=" & ($AQ82-1),AY59:AY93))))), 3) ->  | AR81: =astm( IF((IF( SUMIF(BW59:BW93,"=" & ($AR82),BZ59:BZ93)/SUMIF(BW59:BW93,"=" & ($AR82-1),BZ59:BZ93)<0,0, SUMIF(BW59:BW93,"=" & ($AR82),BZ59:BZ93)/SUMIF(BW59:BW93,"=" & ($AR82-1),BZ59:BZ93)))<0,0, IF((IF( SUMIF(BW59:BW93,"=" & ($AR82),BZ59:BZ93)/SUMIF(BW59:BW93,"=" & ($AR82-1),BZ59:BZ93)<0,0, SUMIF(BW59:BW93,"=" & ($AR82),BZ59:BZ93)/SUMIF(BW59:BW93,"=" & ($AR82-1),BZ59:BZ93)))>1,1, (IF( SUMIF(BW59:BW93,"=" & ($AR82),BZ59:BZ93)/SUMIF(BW59:BW93,"=" & ($AR82-1),BZ59:BZ93)<0,0, SUMIF(BW59:BW93,"=" & ($AR82),BZ59:BZ93)/SUMIF(BW59:BW93,"=" & ($AR82-1),BZ59:BZ93))))), 3) ->  | AV81: 23 | BA81: =IFERROR(astm( astm($W$94,3)*1000*(AZ81/AQ61),1),"") ->  | BE81: =IFERROR(astm(cityfuf(BB81),3)-astm(cityfuf(BB80),3),"") ->  | BL81: =IFERROR(astm(mdiuf(BK81),3)-astm(mdiuf(BK80),3),"") ->  | BO81: =IFERROR(astm(cityfufalt(BK81),3)-astm(cityfufalt(BK80),3),"") ->  | BS81: =IF(AZ81="",1, MIN(IFERROR((AZ81/1000)/((AW81*$J$22)*$J$21/3600),1),IFERROR((SUMIFS(AZ59:AZ93,AV59:AV93,"<="&$AV81,AV59:AV93,">="&$AV81-1)/1000)/( $J$22*SUMIFS(AW59:AW93,AV59:AV93,"<="&$AV81,AV59:AV93,">="&$AV81-1)*$J$21/3600),1),IFERROR((SUMIFS(AZ59:AZ93,AV59:AV93,"<="&$AV81,AV59:AV93,">="&$AV81-2)/1000)/( $J$22*SUMIFS(AW59:AW93,AV59:AV93,"<="&$AV81,AV59:AV93,">="&$AV81-2)*$J$21/3600),1),IFERROR((SUMIFS(AZ59:AZ93,AV59:AV93,"<="&$AV81,AV59:AV93,">="&$AV81-3)/1000)/( $J$22*SUMIFS(AW59:AW93,AV59:AV93,"<="&$AV81,AV59:AV93,">="&$AV81-3)*$J$21/3600),1)) ) -> 1 | BU81: =IF(AZ81="",1, MIN($AZ81/SUM($AZ59:$AZ81),SUMIFS(AZ59:AZ93,AV59:AV93,">="&$AV81-1,AV59:AV93,"<="&$AV81)/SUM($AZ59:$AZ81),SUMIFS(AZ59:AZ93,AV59:AV93,">="&$AV81-2,AV59:AV93,"<="&$AV81)/SUM($AZ59:$AZ81),SUMIFS(AZ59:AZ93,AV59:AV93,">="&$AV81-3,AV59:AV93,"<="&$AV81)/SUM($AZ59:$AZ81)) ) -> 1 | BW81: 23 | CF81: =IFERROR(astm(highwayfuf(CC81)-highwayfuf(CC80),3),"") ->  | CM81: =IFERROR(astm(mdiuf(CL81)-mdiuf(CL80),3),"") ->  | CP81: =IFERROR(astm(highwayfufalt(CL81)-highwayfufalt(CL80),3),"") ->  | CT81: =IF(CA81="",1, MIN(IFERROR((CA81/1000)/((BX81*$J$22)*$J$21/3600),1),IFERROR((SUMIFS(CA59:CA93,BW59:BW93,"<="&$BW81,BW59:BW93,">="&$BW81-1)/1000)/( $J$22*SUMIFS(BX59:BX93,BW59:BW93,"<="&$BW81,BW59:BW93,">="&$BW81-1)*$J$21/3600),1),IFERROR((SUMIFS(CA59:CA93,BW59:BW93,"<="&$BW81,BW59:BW93,">="&$BW81-2)/1000)/( $J$22*SUMIFS(BX59:BX93,BW59:BW93,"<="&$BW81,BW59:BW93,">="&$BW81-2)*$J$21/3600),1),IFERROR((SUMIFS(CA59:CA93,BW59:BW93,"<="&$BW81,BW59:BW93,">="&$BW81-3)/1000)/( $J$22*SUMIFS(BX59:BX93,BW59:BW93,"<="&$BW81,BW59:BW93,">="&$BW81-3)*$J$21/3600),1)) ) -> 1 | CV81: =IF(CA81="",1, MIN($CA81/SUM($CA59:$CA81),SUMIFS(CA59:CA93,BW59:BW93,">="&$BW81-1,BW59:BW93,"<="&$BW81)/SUM($CA59:$CA81),SUMIFS(CA59:CA93,BW59:BW93,">="&$BW81-2,BW59:BW93,"<="&$BW81)/SUM($CA59:$CA81),SUMIFS(CA59:CA93,BW59:BW93,">="&$BW81-3,BW59:BW93,"<="&$BW81)/SUM($CA59:$CA81)) ) -> 1
C82: Comb2 Unadj FE - Alternative Fuel | E82: =astm(0.55*E80+0.45*E81,4) -> 28.555 | F82: =astm(1/(0.55/F80+0.45/F81),4) -> 118.2083 | Q82: 24 | Y82: 24 | AI82: Unadjusted Fuel Economy (MPG) [4] | AJ82: =AJ57 -> 0 | AK82: =AK57 -> 0 | AL82: =AL57 -> 0 | AP82: Number of last cycle number with charge-depleting operation (transition cycle) [0] | AQ82: =IF(ISNUMBER(W96), W96, IF(COUNTIF(BR59:BR93,"CD") < COUNT(R59:R93), COUNTIF(BR59:BR93,"CD"), IF(COUNTIF(BT59:BT93,"CD") < COUNT(R59:R93), COUNTIF(BT59:BT93,"CD"), "EOT ERROR" ) ) ) -> EOT ERROR | AR82: =IF(ISNUMBER(AE96), AE96, IF(COUNTIF(CS59:CS93,"CD") < COUNT(Z59:Z93), COUNTIF(CS59:CS93,"CD"), IF(COUNTIF(CU59:CU93,"CD") < COUNT(Z59:Z93), COUNTIF(CU59:CU93,"CD"), "EOT ERROR" ) ) ) -> EOT ERROR | AV82: 24 | BA82: =IFERROR(astm( astm($W$94,3)*1000*(AZ82/AQ61),1),"") ->  | BE82: =IFERROR(astm(cityfuf(BB82),3)-astm(cityfuf(BB81),3),"") ->  | BL82: =IFERROR(astm(mdiuf(BK82),3)-astm(mdiuf(BK81),3),"") ->  | BO82: =IFERROR(astm(cityfufalt(BK82),3)-astm(cityfufalt(BK81),3),"") ->  | BS82: =IF(AZ82="",1, MIN(IFERROR((AZ82/1000)/((AW82*$J$22)*$J$21/3600),1),IFERROR((SUMIFS(AZ59:AZ93,AV59:AV93,"<="&$AV82,AV59:AV93,">="&$AV82-1)/1000)/( $J$22*SUMIFS(AW59:AW93,AV59:AV93,"<="&$AV82,AV59:AV93,">="&$AV82-1)*$J$21/3600),1),IFERROR((SUMIFS(AZ59:AZ93,AV59:AV93,"<="&$AV82,AV59:AV93,">="&$AV82-2)/1000)/( $J$22*SUMIFS(AW59:AW93,AV59:AV93,"<="&$AV82,AV59:AV93,">="&$AV82-2)*$J$21/3600),1),IFERROR((SUMIFS(AZ59:AZ93,AV59:AV93,"<="&$AV82,AV59:AV93,">="&$AV82-3)/1000)/( $J$22*SUMIFS(AW59:AW93,AV59:AV93,"<="&$AV82,AV59:AV93,">="&$AV82-3)*$J$21/3600),1)) ) -> 1 | BU82: =IF(AZ82="",1, MIN($AZ82/SUM($AZ59:$AZ82),SUMIFS(AZ59:AZ93,AV59:AV93,">="&$AV82-1,AV59:AV93,"<="&$AV82)/SUM($AZ59:$AZ82),SUMIFS(AZ59:AZ93,AV59:AV93,">="&$AV82-2,AV59:AV93,"<="&$AV82)/SUM($AZ59:$AZ82),SUMIFS(AZ59:AZ93,AV59:AV93,">="&$AV82-3,AV59:AV93,"<="&$AV82)/SUM($AZ59:$AZ82)) ) -> 1 | BW82: 24 | CF82: =IFERROR(astm(highwayfuf(CC82)-highwayfuf(CC81),3),"") ->  | CM82: =IFERROR(astm(mdiuf(CL82)-mdiuf(CL81),3),"") ->  | CP82: =IFERROR(astm(highwayfufalt(CL82)-highwayfufalt(CL81),3),"") ->  | CT82: =IF(CA82="",1, MIN(IFERROR((CA82/1000)/((BX82*$J$22)*$J$21/3600),1),IFERROR((SUMIFS(CA59:CA93,BW59:BW93,"<="&$BW82,BW59:BW93,">="&$BW82-1)/1000)/( $J$22*SUMIFS(BX59:BX93,BW59:BW93,"<="&$BW82,BW59:BW93,">="&$BW82-1)*$J$21/3600),1),IFERROR((SUMIFS(CA59:CA93,BW59:BW93,"<="&$BW82,BW59:BW93,">="&$BW82-2)/1000)/( $J$22*SUMIFS(BX59:BX93,BW59:BW93,"<="&$BW82,BW59:BW93,">="&$BW82-2)*$J$21/3600),1),IFERROR((SUMIFS(CA59:CA93,BW59:BW93,"<="&$BW82,BW59:BW93,">="&$BW82-3)/1000)/( $J$22*SUMIFS(BX59:BX93,BW59:BW93,"<="&$BW82,BW59:BW93,">="&$BW82-3)*$J$21/3600),1)) ) -> 1 | CV82: =IF(CA82="",1, MIN($CA82/SUM($CA59:$CA82),SUMIFS(CA59:CA93,BW59:BW93,">="&$BW82-1,BW59:BW93,"<="&$BW82)/SUM($CA59:$CA82),SUMIFS(CA59:CA93,BW59:BW93,">="&$BW82-2,BW59:BW93,"<="&$BW82)/SUM($CA59:$CA82),SUMIFS(CA59:CA93,BW59:BW93,">="&$BW82-3,BW59:BW93,"<="&$BW82)/SUM($CA59:$CA82)) ) -> 1
C83: City2 Unrd Adj FE - Alternative Fuel | E83: =astm($D$23,4) -> 50.372 | F83: =astm($D$22,4) -> 71.3794 | Q83: 25 | Y83: 25 | AI83: Unadjusted GHG (g/mi) [1] | AJ83: =AJ59 -> 0 | AK83: =AK59 -> 0 | AL83: =AL59 -> 0 | AO83: Intermediate Results Requiring Charge-Sustaining (CS) Test Results or Other Inputs | AV83: 25 | BA83: =IFERROR(astm( astm($W$94,3)*1000*(AZ83/AQ61),1),"") ->  | BE83: =IFERROR(astm(cityfuf(BB83),3)-astm(cityfuf(BB82),3),"") ->  | BL83: =IFERROR(astm(mdiuf(BK83),3)-astm(mdiuf(BK82),3),"") ->  | BO83: =IFERROR(astm(cityfufalt(BK83),3)-astm(cityfufalt(BK82),3),"") ->  | BS83: =IF(AZ83="",1, MIN(IFERROR((AZ83/1000)/((AW83*$J$22)*$J$21/3600),1),IFERROR((SUMIFS(AZ59:AZ93,AV59:AV93,"<="&$AV83,AV59:AV93,">="&$AV83-1)/1000)/( $J$22*SUMIFS(AW59:AW93,AV59:AV93,"<="&$AV83,AV59:AV93,">="&$AV83-1)*$J$21/3600),1),IFERROR((SUMIFS(AZ59:AZ93,AV59:AV93,"<="&$AV83,AV59:AV93,">="&$AV83-2)/1000)/( $J$22*SUMIFS(AW59:AW93,AV59:AV93,"<="&$AV83,AV59:AV93,">="&$AV83-2)*$J$21/3600),1),IFERROR((SUMIFS(AZ59:AZ93,AV59:AV93,"<="&$AV83,AV59:AV93,">="&$AV83-3)/1000)/( $J$22*SUMIFS(AW59:AW93,AV59:AV93,"<="&$AV83,AV59:AV93,">="&$AV83-3)*$J$21/3600),1)) ) -> 1 | BU83: =IF(AZ83="",1, MIN($AZ83/SUM($AZ59:$AZ83),SUMIFS(AZ59:AZ93,AV59:AV93,">="&$AV83-1,AV59:AV93,"<="&$AV83)/SUM($AZ59:$AZ83),SUMIFS(AZ59:AZ93,AV59:AV93,">="&$AV83-2,AV59:AV93,"<="&$AV83)/SUM($AZ59:$AZ83),SUMIFS(AZ59:AZ93,AV59:AV93,">="&$AV83-3,AV59:AV93,"<="&$AV83)/SUM($AZ59:$AZ83)) ) -> 1 | BW83: 25 | CF83: =IFERROR(astm(highwayfuf(CC83)-highwayfuf(CC82),3),"") ->  | CM83: =IFERROR(astm(mdiuf(CL83)-mdiuf(CL82),3),"") ->  | CP83: =IFERROR(astm(highwayfufalt(CL83)-highwayfufalt(CL82),3),"") ->  | CT83: =IF(CA83="",1, MIN(IFERROR((CA83/1000)/((BX83*$J$22)*$J$21/3600),1),IFERROR((SUMIFS(CA59:CA93,BW59:BW93,"<="&$BW83,BW59:BW93,">="&$BW83-1)/1000)/( $J$22*SUMIFS(BX59:BX93,BW59:BW93,"<="&$BW83,BW59:BW93,">="&$BW83-1)*$J$21/3600),1),IFERROR((SUMIFS(CA59:CA93,BW59:BW93,"<="&$BW83,BW59:BW93,">="&$BW83-2)/1000)/( $J$22*SUMIFS(BX59:BX93,BW59:BW93,"<="&$BW83,BW59:BW93,">="&$BW83-2)*$J$21/3600),1),IFERROR((SUMIFS(CA59:CA93,BW59:BW93,"<="&$BW83,BW59:BW93,">="&$BW83-3)/1000)/( $J$22*SUMIFS(BX59:BX93,BW59:BW93,"<="&$BW83,BW59:BW93,">="&$BW83-3)*$J$21/3600),1)) ) -> 1 | CV83: =IF(CA83="",1, MIN($CA83/SUM($CA59:$CA83),SUMIFS(CA59:CA93,BW59:BW93,">="&$BW83-1,BW59:BW93,"<="&$BW83)/SUM($CA59:$CA83),SUMIFS(CA59:CA93,BW59:BW93,">="&$BW83-2,BW59:BW93,"<="&$BW83)/SUM($CA59:$CA83),SUMIFS(CA59:CA93,BW59:BW93,">="&$BW83-3,BW59:BW93,"<="&$BW83)/SUM($CA59:$CA83)) ) -> 1
C84: Hwy2 Unrd Adj FE - Alternative Fuel | E84: =astm($E$23,4) -> 33.316 | F84: =astm($E$22,4) -> 102.7466 | Q84: 26 | Y84: 26 | AI84: Adjusted Fuel Economy (MPG) [4] | AJ84: =IFERROR(astm(1/ ( AQ64 + (1-AJ81)/N60),4),0) -> 0 | AK84: =IFERROR(astm(1/ ( AR64 + (1-AK81)/O60),4),0) -> 0 | AL84: =IFERROR(astm(1/(0.55/AJ84+0.45/AK84),4),0) -> 0 | AP84: DRIVING DISTANCE VALUES | AQ84: CITY | AR84: HIGHWAY | AV84: 26 | BA84: =IFERROR(astm( astm($W$94,3)*1000*(AZ84/AQ61),1),"") ->  | BE84: =IFERROR(astm(cityfuf(BB84),3)-astm(cityfuf(BB83),3),"") ->  | BL84: =IFERROR(astm(mdiuf(BK84),3)-astm(mdiuf(BK83),3),"") ->  | BO84: =IFERROR(astm(cityfufalt(BK84),3)-astm(cityfufalt(BK83),3),"") ->  | BS84: =IF(AZ84="",1, MIN(IFERROR((AZ84/1000)/((AW84*$J$22)*$J$21/3600),1),IFERROR((SUMIFS(AZ59:AZ93,AV59:AV93,"<="&$AV84,AV59:AV93,">="&$AV84-1)/1000)/( $J$22*SUMIFS(AW59:AW93,AV59:AV93,"<="&$AV84,AV59:AV93,">="&$AV84-1)*$J$21/3600),1),IFERROR((SUMIFS(AZ59:AZ93,AV59:AV93,"<="&$AV84,AV59:AV93,">="&$AV84-2)/1000)/( $J$22*SUMIFS(AW59:AW93,AV59:AV93,"<="&$AV84,AV59:AV93,">="&$AV84-2)*$J$21/3600),1),IFERROR((SUMIFS(AZ59:AZ93,AV59:AV93,"<="&$AV84,AV59:AV93,">="&$AV84-3)/1000)/( $J$22*SUMIFS(AW59:AW93,AV59:AV93,"<="&$AV84,AV59:AV93,">="&$AV84-3)*$J$21/3600),1)) ) -> 1 | BU84: =IF(AZ84="",1, MIN($AZ84/SUM($AZ59:$AZ84),SUMIFS(AZ59:AZ93,AV59:AV93,">="&$AV84-1,AV59:AV93,"<="&$AV84)/SUM($AZ59:$AZ84),SUMIFS(AZ59:AZ93,AV59:AV93,">="&$AV84-2,AV59:AV93,"<="&$AV84)/SUM($AZ59:$AZ84),SUMIFS(AZ59:AZ93,AV59:AV93,">="&$AV84-3,AV59:AV93,"<="&$AV84)/SUM($AZ59:$AZ84)) ) -> 1 | BW84: 26 | CF84: =IFERROR(astm(highwayfuf(CC84)-highwayfuf(CC83),3),"") ->  | CM84: =IFERROR(astm(mdiuf(CL84)-mdiuf(CL83),3),"") ->  | CP84: =IFERROR(astm(highwayfufalt(CL84)-highwayfufalt(CL83),3),"") ->  | CT84: =IF(CA84="",1, MIN(IFERROR((CA84/1000)/((BX84*$J$22)*$J$21/3600),1),IFERROR((SUMIFS(CA59:CA93,BW59:BW93,"<="&$BW84,BW59:BW93,">="&$BW84-1)/1000)/( $J$22*SUMIFS(BX59:BX93,BW59:BW93,"<="&$BW84,BW59:BW93,">="&$BW84-1)*$J$21/3600),1),IFERROR((SUMIFS(CA59:CA93,BW59:BW93,"<="&$BW84,BW59:BW93,">="&$BW84-2)/1000)/( $J$22*SUMIFS(BX59:BX93,BW59:BW93,"<="&$BW84,BW59:BW93,">="&$BW84-2)*$J$21/3600),1),IFERROR((SUMIFS(CA59:CA93,BW59:BW93,"<="&$BW84,BW59:BW93,">="&$BW84-3)/1000)/( $J$22*SUMIFS(BX59:BX93,BW59:BW93,"<="&$BW84,BW59:BW93,">="&$BW84-3)*$J$21/3600),1)) ) -> 1 | CV84: =IF(CA84="",1, MIN($CA84/SUM($CA59:$CA84),SUMIFS(CA59:CA93,BW59:BW93,">="&$BW84-1,BW59:BW93,"<="&$BW84)/SUM($CA59:$CA84),SUMIFS(CA59:CA93,BW59:BW93,">="&$BW84-2,BW59:BW93,"<="&$BW84)/SUM($CA59:$CA84),SUMIFS(CA59:CA93,BW59:BW93,">="&$BW84-3,BW59:BW93,"<="&$BW84)/SUM($CA59:$CA84)) ) -> 1
C85: Cmb2 Unrd Adj FE - Alternative Fuel | E85: =astm(0.55*D23+0.45*E23,4) -> 42.6968 | F85: =astm(1/(0.55/D22+0.45/E22),4) -> 82.7471 | Q85: 27 | Y85: 27 | AI85: Adjusted GHG (g/mi) [1] | AJ85: =IFERROR(astm( AQ76 +(1-AJ81)*astm(N63,1),1),0) -> 0 | AK85: =IFERROR(astm( AR76 +(1-AK81)*astm(O63,1),1),0) -> 0 | AL85: =IFERROR(astm(0.55*AJ85+0.45*AK85,1),0) -> 0 | AP85: CD Equivalent All-Electric Range (EAER), Unadjusted (mi) [3] | AQ85: =astm(AQ54*((N61-AQ72)/N61),3) ->  | AR85: =astm(AR54*((O61-AR72)/O61),3) ->  | AV85: 27 | BA85: =IFERROR(astm( astm($W$94,3)*1000*(AZ85/AQ61),1),"") ->  | BE85: =IFERROR(astm(cityfuf(BB85),3)-astm(cityfuf(BB84),3),"") ->  | BL85: =IFERROR(astm(mdiuf(BK85),3)-astm(mdiuf(BK84),3),"") ->  | BO85: =IFERROR(astm(cityfufalt(BK85),3)-astm(cityfufalt(BK84),3),"") ->  | BS85: =IF(AZ85="",1, MIN(IFERROR((AZ85/1000)/((AW85*$J$22)*$J$21/3600),1),IFERROR((SUMIFS(AZ59:AZ93,AV59:AV93,"<="&$AV85,AV59:AV93,">="&$AV85-1)/1000)/( $J$22*SUMIFS(AW59:AW93,AV59:AV93,"<="&$AV85,AV59:AV93,">="&$AV85-1)*$J$21/3600),1),IFERROR((SUMIFS(AZ59:AZ93,AV59:AV93,"<="&$AV85,AV59:AV93,">="&$AV85-2)/1000)/( $J$22*SUMIFS(AW59:AW93,AV59:AV93,"<="&$AV85,AV59:AV93,">="&$AV85-2)*$J$21/3600),1),IFERROR((SUMIFS(AZ59:AZ93,AV59:AV93,"<="&$AV85,AV59:AV93,">="&$AV85-3)/1000)/( $J$22*SUMIFS(AW59:AW93,AV59:AV93,"<="&$AV85,AV59:AV93,">="&$AV85-3)*$J$21/3600),1)) ) -> 1 | BU85: =IF(AZ85="",1, MIN($AZ85/SUM($AZ59:$AZ85),SUMIFS(AZ59:AZ93,AV59:AV93,">="&$AV85-1,AV59:AV93,"<="&$AV85)/SUM($AZ59:$AZ85),SUMIFS(AZ59:AZ93,AV59:AV93,">="&$AV85-2,AV59:AV93,"<="&$AV85)/SUM($AZ59:$AZ85),SUMIFS(AZ59:AZ93,AV59:AV93,">="&$AV85-3,AV59:AV93,"<="&$AV85)/SUM($AZ59:$AZ85)) ) -> 1 | BW85: 27 | CF85: =IFERROR(astm(highwayfuf(CC85)-highwayfuf(CC84),3),"") ->  | CM85: =IFERROR(astm(mdiuf(CL85)-mdiuf(CL84),3),"") ->  | CP85: =IFERROR(astm(highwayfufalt(CL85)-highwayfufalt(CL84),3),"") ->  | CT85: =IF(CA85="",1, MIN(IFERROR((CA85/1000)/((BX85*$J$22)*$J$21/3600),1),IFERROR((SUMIFS(CA59:CA93,BW59:BW93,"<="&$BW85,BW59:BW93,">="&$BW85-1)/1000)/( $J$22*SUMIFS(BX59:BX93,BW59:BW93,"<="&$BW85,BW59:BW93,">="&$BW85-1)*$J$21/3600),1),IFERROR((SUMIFS(CA59:CA93,BW59:BW93,"<="&$BW85,BW59:BW93,">="&$BW85-2)/1000)/( $J$22*SUMIFS(BX59:BX93,BW59:BW93,"<="&$BW85,BW59:BW93,">="&$BW85-2)*$J$21/3600),1),IFERROR((SUMIFS(CA59:CA93,BW59:BW93,"<="&$BW85,BW59:BW93,">="&$BW85-3)/1000)/( $J$22*SUMIFS(BX59:BX93,BW59:BW93,"<="&$BW85,BW59:BW93,">="&$BW85-3)*$J$21/3600),1)) ) -> 1 | CV85: =IF(CA85="",1, MIN($CA85/SUM($CA59:$CA85),SUMIFS(CA59:CA93,BW59:BW93,">="&$BW85-1,BW59:BW93,"<="&$BW85)/SUM($CA59:$CA85),SUMIFS(CA59:CA93,BW59:BW93,">="&$BW85-2,BW59:BW93,"<="&$BW85)/SUM($CA59:$CA85),SUMIFS(CA59:CA93,BW59:BW93,">="&$BW85-3,BW59:BW93,"<="&$BW85)/SUM($CA59:$CA85)) ) -> 1
C86: Charge-depleting CO2 | F86: g/mi | Q86: 28 | Y86: 28 | AP86: Charge-sustaining driving range, adjusted (mi) [3] | AQ86: =astm((astm($J$11,1)-AQ66)*astm(N60,4),3) -> 0 | AR86: =astm((astm($J$11,1)-AR66)*astm(O60,4),3) -> 0 | AV86: 28 | BA86: =IFERROR(astm( astm($W$94,3)*1000*(AZ86/AQ61),1),"") ->  | BE86: =IFERROR(astm(cityfuf(BB86),3)-astm(cityfuf(BB85),3),"") ->  | BL86: =IFERROR(astm(mdiuf(BK86),3)-astm(mdiuf(BK85),3),"") ->  | BO86: =IFERROR(astm(cityfufalt(BK86),3)-astm(cityfufalt(BK85),3),"") ->  | BS86: =IF(AZ86="",1, MIN(IFERROR((AZ86/1000)/((AW86*$J$22)*$J$21/3600),1),IFERROR((SUMIFS(AZ59:AZ93,AV59:AV93,"<="&$AV86,AV59:AV93,">="&$AV86-1)/1000)/( $J$22*SUMIFS(AW59:AW93,AV59:AV93,"<="&$AV86,AV59:AV93,">="&$AV86-1)*$J$21/3600),1),IFERROR((SUMIFS(AZ59:AZ93,AV59:AV93,"<="&$AV86,AV59:AV93,">="&$AV86-2)/1000)/( $J$22*SUMIFS(AW59:AW93,AV59:AV93,"<="&$AV86,AV59:AV93,">="&$AV86-2)*$J$21/3600),1),IFERROR((SUMIFS(AZ59:AZ93,AV59:AV93,"<="&$AV86,AV59:AV93,">="&$AV86-3)/1000)/( $J$22*SUMIFS(AW59:AW93,AV59:AV93,"<="&$AV86,AV59:AV93,">="&$AV86-3)*$J$21/3600),1)) ) -> 1 | BU86: =IF(AZ86="",1, MIN($AZ86/SUM($AZ59:$AZ86),SUMIFS(AZ59:AZ93,AV59:AV93,">="&$AV86-1,AV59:AV93,"<="&$AV86)/SUM($AZ59:$AZ86),SUMIFS(AZ59:AZ93,AV59:AV93,">="&$AV86-2,AV59:AV93,"<="&$AV86)/SUM($AZ59:$AZ86),SUMIFS(AZ59:AZ93,AV59:AV93,">="&$AV86-3,AV59:AV93,"<="&$AV86)/SUM($AZ59:$AZ86)) ) -> 1 | BW86: 28 | CF86: =IFERROR(astm(highwayfuf(CC86)-highwayfuf(CC85),3),"") ->  | CM86: =IFERROR(astm(mdiuf(CL86)-mdiuf(CL85),3),"") ->  | CP86: =IFERROR(astm(highwayfufalt(CL86)-highwayfufalt(CL85),3),"") ->  | CT86: =IF(CA86="",1, MIN(IFERROR((CA86/1000)/((BX86*$J$22)*$J$21/3600),1),IFERROR((SUMIFS(CA59:CA93,BW59:BW93,"<="&$BW86,BW59:BW93,">="&$BW86-1)/1000)/( $J$22*SUMIFS(BX59:BX93,BW59:BW93,"<="&$BW86,BW59:BW93,">="&$BW86-1)*$J$21/3600),1),IFERROR((SUMIFS(CA59:CA93,BW59:BW93,"<="&$BW86,BW59:BW93,">="&$BW86-2)/1000)/( $J$22*SUMIFS(BX59:BX93,BW59:BW93,"<="&$BW86,BW59:BW93,">="&$BW86-2)*$J$21/3600),1),IFERROR((SUMIFS(CA59:CA93,BW59:BW93,"<="&$BW86,BW59:BW93,">="&$BW86-3)/1000)/( $J$22*SUMIFS(BX59:BX93,BW59:BW93,"<="&$BW86,BW59:BW93,">="&$BW86-3)*$J$21/3600),1)) ) -> 1 | CV86: =IF(CA86="",1, MIN($CA86/SUM($CA59:$CA86),SUMIFS(CA59:CA93,BW59:BW93,">="&$BW86-1,BW59:BW93,"<="&$BW86)/SUM($CA59:$CA86),SUMIFS(CA59:CA93,BW59:BW93,">="&$BW86-2,BW59:BW93,"<="&$BW86)/SUM($CA59:$CA86),SUMIFS(CA59:CA93,BW59:BW93,">="&$BW86-3,BW59:BW93,"<="&$BW86)/SUM($CA59:$CA86)) ) -> 1
C87: City CO2 Rounded Adj | F87: =astm(IF($N$7+$N$55+$N$103=0, (AQ25+AQ73+AQ121)/ ((AQ7<>0)+(AQ55<>0)+(AQ103<>0)), (IFERROR($N$7*AQ25,0)+IFERROR($N$55*AQ73,0)+IFERROR($N$103*AQ121,0)) / ($N$7+$N$55+$N$103) ),0) -> 0 | Q87: 29 | Y87: 29 | AP87: UTILITY FACTORS & OTHER METRICS | AQ87: CITY | AR87: HIGHWAY | AV87: 29 | BA87: =IFERROR(astm( astm($W$94,3)*1000*(AZ87/AQ61),1),"") ->  | BE87: =IFERROR(astm(cityfuf(BB87),3)-astm(cityfuf(BB86),3),"") ->  | BL87: =IFERROR(astm(mdiuf(BK87),3)-astm(mdiuf(BK86),3),"") ->  | BO87: =IFERROR(astm(cityfufalt(BK87),3)-astm(cityfufalt(BK86),3),"") ->  | BS87: =IF(AZ87="",1, MIN(IFERROR((AZ87/1000)/((AW87*$J$22)*$J$21/3600),1),IFERROR((SUMIFS(AZ59:AZ93,AV59:AV93,"<="&$AV87,AV59:AV93,">="&$AV87-1)/1000)/( $J$22*SUMIFS(AW59:AW93,AV59:AV93,"<="&$AV87,AV59:AV93,">="&$AV87-1)*$J$21/3600),1),IFERROR((SUMIFS(AZ59:AZ93,AV59:AV93,"<="&$AV87,AV59:AV93,">="&$AV87-2)/1000)/( $J$22*SUMIFS(AW59:AW93,AV59:AV93,"<="&$AV87,AV59:AV93,">="&$AV87-2)*$J$21/3600),1),IFERROR((SUMIFS(AZ59:AZ93,AV59:AV93,"<="&$AV87,AV59:AV93,">="&$AV87-3)/1000)/( $J$22*SUMIFS(AW59:AW93,AV59:AV93,"<="&$AV87,AV59:AV93,">="&$AV87-3)*$J$21/3600),1)) ) -> 1 | BU87: =IF(AZ87="",1, MIN($AZ87/SUM($AZ59:$AZ87),SUMIFS(AZ59:AZ93,AV59:AV93,">="&$AV87-1,AV59:AV93,"<="&$AV87)/SUM($AZ59:$AZ87),SUMIFS(AZ59:AZ93,AV59:AV93,">="&$AV87-2,AV59:AV93,"<="&$AV87)/SUM($AZ59:$AZ87),SUMIFS(AZ59:AZ93,AV59:AV93,">="&$AV87-3,AV59:AV93,"<="&$AV87)/SUM($AZ59:$AZ87)) ) -> 1 | BW87: 29 | CF87: =IFERROR(astm(highwayfuf(CC87)-highwayfuf(CC86),3),"") ->  | CM87: =IFERROR(astm(mdiuf(CL87)-mdiuf(CL86),3),"") ->  | CP87: =IFERROR(astm(highwayfufalt(CL87)-highwayfufalt(CL86),3),"") ->  | CT87: =IF(CA87="",1, MIN(IFERROR((CA87/1000)/((BX87*$J$22)*$J$21/3600),1),IFERROR((SUMIFS(CA59:CA93,BW59:BW93,"<="&$BW87,BW59:BW93,">="&$BW87-1)/1000)/( $J$22*SUMIFS(BX59:BX93,BW59:BW93,"<="&$BW87,BW59:BW93,">="&$BW87-1)*$J$21/3600),1),IFERROR((SUMIFS(CA59:CA93,BW59:BW93,"<="&$BW87,BW59:BW93,">="&$BW87-2)/1000)/( $J$22*SUMIFS(BX59:BX93,BW59:BW93,"<="&$BW87,BW59:BW93,">="&$BW87-2)*$J$21/3600),1),IFERROR((SUMIFS(CA59:CA93,BW59:BW93,"<="&$BW87,BW59:BW93,">="&$BW87-3)/1000)/( $J$22*SUMIFS(BX59:BX93,BW59:BW93,"<="&$BW87,BW59:BW93,">="&$BW87-3)*$J$21/3600),1)) ) -> 1 | CV87: =IF(CA87="",1, MIN($CA87/SUM($CA59:$CA87),SUMIFS(CA59:CA93,BW59:BW93,">="&$BW87-1,BW59:BW93,"<="&$BW87)/SUM($CA59:$CA87),SUMIFS(CA59:CA93,BW59:BW93,">="&$BW87-2,BW59:BW93,"<="&$BW87)/SUM($CA59:$CA87),SUMIFS(CA59:CA93,BW59:BW93,">="&$BW87-3,BW59:BW93,"<="&$BW87)/SUM($CA59:$CA87)) ) -> 1
C88: Hwy CO2 Rounded Adj | F88: =astm(IF($N$7+$N$55+$N$103=0, (AR25+AR73+AR121)/ ((AR7<>0)+(AR55<>0)+(AR103<>0)), (IFERROR($N$7*AR25,0)+IFERROR($N$55*AR73,0)+IFERROR($N$103*AR121,0)) / ($N$7+$N$55+$N$103) ),0) -> 0 | Q88: 30 | Y88: 30 | AP88: CD 55/45 Fleet Utility Factor (FUF) for EAER [3] | AQ88: =astm(cityfuf(AQ85),3) ->  | AR88: =astm(highwayfuf(AR85),3) ->  | AV88: 30 | BA88: =IFERROR(astm( astm($W$94,3)*1000*(AZ88/AQ61),1),"") ->  | BE88: =IFERROR(astm(cityfuf(BB88),3)-astm(cityfuf(BB87),3),"") ->  | BL88: =IFERROR(astm(mdiuf(BK88),3)-astm(mdiuf(BK87),3),"") ->  | BO88: =IFERROR(astm(cityfufalt(BK88),3)-astm(cityfufalt(BK87),3),"") ->  | BS88: =IF(AZ88="",1, MIN(IFERROR((AZ88/1000)/((AW88*$J$22)*$J$21/3600),1),IFERROR((SUMIFS(AZ59:AZ93,AV59:AV93,"<="&$AV88,AV59:AV93,">="&$AV88-1)/1000)/( $J$22*SUMIFS(AW59:AW93,AV59:AV93,"<="&$AV88,AV59:AV93,">="&$AV88-1)*$J$21/3600),1),IFERROR((SUMIFS(AZ59:AZ93,AV59:AV93,"<="&$AV88,AV59:AV93,">="&$AV88-2)/1000)/( $J$22*SUMIFS(AW59:AW93,AV59:AV93,"<="&$AV88,AV59:AV93,">="&$AV88-2)*$J$21/3600),1),IFERROR((SUMIFS(AZ59:AZ93,AV59:AV93,"<="&$AV88,AV59:AV93,">="&$AV88-3)/1000)/( $J$22*SUMIFS(AW59:AW93,AV59:AV93,"<="&$AV88,AV59:AV93,">="&$AV88-3)*$J$21/3600),1)) ) -> 1 | BU88: =IF(AZ88="",1, MIN($AZ88/SUM($AZ59:$AZ88),SUMIFS(AZ59:AZ93,AV59:AV93,">="&$AV88-1,AV59:AV93,"<="&$AV88)/SUM($AZ59:$AZ88),SUMIFS(AZ59:AZ93,AV59:AV93,">="&$AV88-2,AV59:AV93,"<="&$AV88)/SUM($AZ59:$AZ88),SUMIFS(AZ59:AZ93,AV59:AV93,">="&$AV88-3,AV59:AV93,"<="&$AV88)/SUM($AZ59:$AZ88)) ) -> 1 | BW88: 30 | CF88: =IFERROR(astm(highwayfuf(CC88)-highwayfuf(CC87),3),"") ->  | CM88: =IFERROR(astm(mdiuf(CL88)-mdiuf(CL87),3),"") ->  | CP88: =IFERROR(astm(highwayfufalt(CL88)-highwayfufalt(CL87),3),"") ->  | CT88: =IF(CA88="",1, MIN(IFERROR((CA88/1000)/((BX88*$J$22)*$J$21/3600),1),IFERROR((SUMIFS(CA59:CA93,BW59:BW93,"<="&$BW88,BW59:BW93,">="&$BW88-1)/1000)/( $J$22*SUMIFS(BX59:BX93,BW59:BW93,"<="&$BW88,BW59:BW93,">="&$BW88-1)*$J$21/3600),1),IFERROR((SUMIFS(CA59:CA93,BW59:BW93,"<="&$BW88,BW59:BW93,">="&$BW88-2)/1000)/( $J$22*SUMIFS(BX59:BX93,BW59:BW93,"<="&$BW88,BW59:BW93,">="&$BW88-2)*$J$21/3600),1),IFERROR((SUMIFS(CA59:CA93,BW59:BW93,"<="&$BW88,BW59:BW93,">="&$BW88-3)/1000)/( $J$22*SUMIFS(BX59:BX93,BW59:BW93,"<="&$BW88,BW59:BW93,">="&$BW88-3)*$J$21/3600),1)) ) -> 1 | CV88: =IF(CA88="",1, MIN($CA88/SUM($CA59:$CA88),SUMIFS(CA59:CA93,BW59:BW93,">="&$BW88-1,BW59:BW93,"<="&$BW88)/SUM($CA59:$CA88),SUMIFS(CA59:CA93,BW59:BW93,">="&$BW88-2,BW59:BW93,"<="&$BW88)/SUM($CA59:$CA88),SUMIFS(CA59:CA93,BW59:BW93,">="&$BW88-3,BW59:BW93,"<="&$BW88)/SUM($CA59:$CA88)) ) -> 1
C89: Comb CO2 Rounded Adj | F89: =astm(0.55*(IF($N$7+$N$55+$N$103=0, (AQ25+AQ73+AQ121)/ ((AQ7<>0)+(AQ55<>0)+(AQ103<>0)), (IFERROR($N$7*AQ25,0)+IFERROR($N$55*AQ73,0)+IFERROR($N$103*AQ121,0)) / ($N$7+$N$55+$N$103) ))+0.45*(IF($N$7+$N$55+$N$103=0, (AR25+AR73+AR121)/ ((AR7<>0)+(AR55<>0)+(AR103<>0)), (IFERROR($N$7*AR25,0)+IFERROR($N$55*AR73,0)+IFERROR($N$103*AR121,0)) / ($N$7+$N$55+$N$103) )),0) -> 0 | Q89: 31 | Y89: 31 | AP89: FUEL COSTS: PROCESS FOR DERIVING A COMPOSITE CD/CS COST PER MILE | AQ89: CITY | AR89: HIGHWAY | AV89: 31 | BA89: =IFERROR(astm( astm($W$94,3)*1000*(AZ89/AQ61),1),"") ->  | BE89: =IFERROR(astm(cityfuf(BB89),3)-astm(cityfuf(BB88),3),"") ->  | BL89: =IFERROR(astm(mdiuf(BK89),3)-astm(mdiuf(BK88),3),"") ->  | BO89: =IFERROR(astm(cityfufalt(BK89),3)-astm(cityfufalt(BK88),3),"") ->  | BS89: =IF(AZ89="",1, MIN(IFERROR((AZ89/1000)/((AW89*$J$22)*$J$21/3600),1),IFERROR((SUMIFS(AZ59:AZ93,AV59:AV93,"<="&$AV89,AV59:AV93,">="&$AV89-1)/1000)/( $J$22*SUMIFS(AW59:AW93,AV59:AV93,"<="&$AV89,AV59:AV93,">="&$AV89-1)*$J$21/3600),1),IFERROR((SUMIFS(AZ59:AZ93,AV59:AV93,"<="&$AV89,AV59:AV93,">="&$AV89-2)/1000)/( $J$22*SUMIFS(AW59:AW93,AV59:AV93,"<="&$AV89,AV59:AV93,">="&$AV89-2)*$J$21/3600),1),IFERROR((SUMIFS(AZ59:AZ93,AV59:AV93,"<="&$AV89,AV59:AV93,">="&$AV89-3)/1000)/( $J$22*SUMIFS(AW59:AW93,AV59:AV93,"<="&$AV89,AV59:AV93,">="&$AV89-3)*$J$21/3600),1)) ) -> 1 | BU89: =IF(AZ89="",1, MIN($AZ89/SUM($AZ59:$AZ89),SUMIFS(AZ59:AZ93,AV59:AV93,">="&$AV89-1,AV59:AV93,"<="&$AV89)/SUM($AZ59:$AZ89),SUMIFS(AZ59:AZ93,AV59:AV93,">="&$AV89-2,AV59:AV93,"<="&$AV89)/SUM($AZ59:$AZ89),SUMIFS(AZ59:AZ93,AV59:AV93,">="&$AV89-3,AV59:AV93,"<="&$AV89)/SUM($AZ59:$AZ89)) ) -> 1 | BW89: 31 | CF89: =IFERROR(astm(highwayfuf(CC89)-highwayfuf(CC88),3),"") ->  | CM89: =IFERROR(astm(mdiuf(CL89)-mdiuf(CL88),3),"") ->  | CP89: =IFERROR(astm(highwayfufalt(CL89)-highwayfufalt(CL88),3),"") ->  | CT89: =IF(CA89="",1, MIN(IFERROR((CA89/1000)/((BX89*$J$22)*$J$21/3600),1),IFERROR((SUMIFS(CA59:CA93,BW59:BW93,"<="&$BW89,BW59:BW93,">="&$BW89-1)/1000)/( $J$22*SUMIFS(BX59:BX93,BW59:BW93,"<="&$BW89,BW59:BW93,">="&$BW89-1)*$J$21/3600),1),IFERROR((SUMIFS(CA59:CA93,BW59:BW93,"<="&$BW89,BW59:BW93,">="&$BW89-2)/1000)/( $J$22*SUMIFS(BX59:BX93,BW59:BW93,"<="&$BW89,BW59:BW93,">="&$BW89-2)*$J$21/3600),1),IFERROR((SUMIFS(CA59:CA93,BW59:BW93,"<="&$BW89,BW59:BW93,">="&$BW89-3)/1000)/( $J$22*SUMIFS(BX59:BX93,BW59:BW93,"<="&$BW89,BW59:BW93,">="&$BW89-3)*$J$21/3600),1)) ) -> 1 | CV89: =IF(CA89="",1, MIN($CA89/SUM($CA59:$CA89),SUMIFS(CA59:CA93,BW59:BW93,">="&$BW89-1,BW59:BW93,"<="&$BW89)/SUM($CA59:$CA89),SUMIFS(CA59:CA93,BW59:BW93,">="&$BW89-2,BW59:BW93,"<="&$BW89)/SUM($CA59:$CA89),SUMIFS(CA59:CA93,BW59:BW93,">="&$BW89-3,BW59:BW93,"<="&$BW89)/SUM($CA59:$CA89)) ) -> 1
C90: *City CO2 Unadj | F90: =astm(IF($N$7+$N$55+$N$103=0, (IFERROR(AQ24,0)+IFERROR(AQ72,0)+IFERROR(AQ120,0))/ ((AQ6<>0)+(AQ54<>0)+(AQ102<>0)), (IFERROR($N$7*AQ24,0)+IFERROR($N$55*AQ72,0)+IFERROR($N$103*AQ120,0)) / ($N$7+$N$55+$N$103) ),1) -> 0 | Q90: 32 | Y90: 32 | AP90: CD cost per mile - electricity ($/mi) [3] | AQ90: =astm($F$37*$AQ$60/100,3) -> 0 | AR90: =astm($F$37*$AR$60/100,3) -> 0 | AV90: 32 | BA90: =IFERROR(astm( astm($W$94,3)*1000*(AZ90/AQ61),1),"") ->  | BE90: =IFERROR(astm(cityfuf(BB90),3)-astm(cityfuf(BB89),3),"") ->  | BL90: =IFERROR(astm(mdiuf(BK90),3)-astm(mdiuf(BK89),3),"") ->  | BO90: =IFERROR(astm(cityfufalt(BK90),3)-astm(cityfufalt(BK89),3),"") ->  | BS90: =IF(AZ90="",1, MIN(IFERROR((AZ90/1000)/((AW90*$J$22)*$J$21/3600),1),IFERROR((SUMIFS(AZ59:AZ93,AV59:AV93,"<="&$AV90,AV59:AV93,">="&$AV90-1)/1000)/( $J$22*SUMIFS(AW59:AW93,AV59:AV93,"<="&$AV90,AV59:AV93,">="&$AV90-1)*$J$21/3600),1),IFERROR((SUMIFS(AZ59:AZ93,AV59:AV93,"<="&$AV90,AV59:AV93,">="&$AV90-2)/1000)/( $J$22*SUMIFS(AW59:AW93,AV59:AV93,"<="&$AV90,AV59:AV93,">="&$AV90-2)*$J$21/3600),1),IFERROR((SUMIFS(AZ59:AZ93,AV59:AV93,"<="&$AV90,AV59:AV93,">="&$AV90-3)/1000)/( $J$22*SUMIFS(AW59:AW93,AV59:AV93,"<="&$AV90,AV59:AV93,">="&$AV90-3)*$J$21/3600),1)) ) -> 1 | BU90: =IF(AZ90="",1, MIN($AZ90/SUM($AZ59:$AZ90),SUMIFS(AZ59:AZ93,AV59:AV93,">="&$AV90-1,AV59:AV93,"<="&$AV90)/SUM($AZ59:$AZ90),SUMIFS(AZ59:AZ93,AV59:AV93,">="&$AV90-2,AV59:AV93,"<="&$AV90)/SUM($AZ59:$AZ90),SUMIFS(AZ59:AZ93,AV59:AV93,">="&$AV90-3,AV59:AV93,"<="&$AV90)/SUM($AZ59:$AZ90)) ) -> 1 | BW90: 32 | CF90: =IFERROR(astm(highwayfuf(CC90)-highwayfuf(CC89),3),"") ->  | CM90: =IFERROR(astm(mdiuf(CL90)-mdiuf(CL89),3),"") ->  | CP90: =IFERROR(astm(highwayfufalt(CL90)-highwayfufalt(CL89),3),"") ->  | CT90: =IF(CA90="",1, MIN(IFERROR((CA90/1000)/((BX90*$J$22)*$J$21/3600),1),IFERROR((SUMIFS(CA59:CA93,BW59:BW93,"<="&$BW90,BW59:BW93,">="&$BW90-1)/1000)/( $J$22*SUMIFS(BX59:BX93,BW59:BW93,"<="&$BW90,BW59:BW93,">="&$BW90-1)*$J$21/3600),1),IFERROR((SUMIFS(CA59:CA93,BW59:BW93,"<="&$BW90,BW59:BW93,">="&$BW90-2)/1000)/( $J$22*SUMIFS(BX59:BX93,BW59:BW93,"<="&$BW90,BW59:BW93,">="&$BW90-2)*$J$21/3600),1),IFERROR((SUMIFS(CA59:CA93,BW59:BW93,"<="&$BW90,BW59:BW93,">="&$BW90-3)/1000)/( $J$22*SUMIFS(BX59:BX93,BW59:BW93,"<="&$BW90,BW59:BW93,">="&$BW90-3)*$J$21/3600),1)) ) -> 1 | CV90: =IF(CA90="",1, MIN($CA90/SUM($CA59:$CA90),SUMIFS(CA59:CA93,BW59:BW93,">="&$BW90-1,BW59:BW93,"<="&$BW90)/SUM($CA59:$CA90),SUMIFS(CA59:CA93,BW59:BW93,">="&$BW90-2,BW59:BW93,"<="&$BW90)/SUM($CA59:$CA90),SUMIFS(CA59:CA93,BW59:BW93,">="&$BW90-3,BW59:BW93,"<="&$BW90)/SUM($CA59:$CA90)) ) -> 1
C91: *Hwy CO2 Unadj | F91: =astm(IF($N$7+$N$55+$N$103=0, (IFERROR(AR24,0)+IFERROR(AR72,0)+IFERROR(AR120,0))/ ((AR6<>0)+(AR54<>0)+(AR102<>0)), (IFERROR($N$7*AR24,0)+IFERROR($N$55*AR72,0)+IFERROR($N$103*AR120,0)) / ($N$7+$N$55+$N$103) ),1) -> 0 | Q91: 33 | Y91: 33 | AP91: CD cost per mile - gasoline ($/mi) [3] | AQ91: =astm($F$36*((SUMIF(AV59:AV93,"<=" & (AQ82-1),AW59:AW93) + AQ81*SUMIF(AV59:AV93,"=" & (AQ82-1),AW59:AW93))/AQ55),3) ->  | AR91: =astm($F$36*((SUMIF(BW59:BW93,"<=" & (AR82-1),BX59:BX93) + AR81*SUMIF(BW59:BW93,"=" & (AR82-1),BX59:BX93))/AR55),3) ->  | AV91: 33 | BA91: =IFERROR(astm( astm($W$94,3)*1000*(AZ91/AQ61),1),"") ->  | BE91: =IFERROR(astm(cityfuf(BB91),3)-astm(cityfuf(BB90),3),"") ->  | BL91: =IFERROR(astm(mdiuf(BK91),3)-astm(mdiuf(BK90),3),"") ->  | BO91: =IFERROR(astm(cityfufalt(BK91),3)-astm(cityfufalt(BK90),3),"") ->  | BS91: =IF(AZ91="",1, MIN(IFERROR((AZ91/1000)/((AW91*$J$22)*$J$21/3600),1),IFERROR((SUMIFS(AZ59:AZ93,AV59:AV93,"<="&$AV91,AV59:AV93,">="&$AV91-1)/1000)/( $J$22*SUMIFS(AW59:AW93,AV59:AV93,"<="&$AV91,AV59:AV93,">="&$AV91-1)*$J$21/3600),1),IFERROR((SUMIFS(AZ59:AZ93,AV59:AV93,"<="&$AV91,AV59:AV93,">="&$AV91-2)/1000)/( $J$22*SUMIFS(AW59:AW93,AV59:AV93,"<="&$AV91,AV59:AV93,">="&$AV91-2)*$J$21/3600),1),IFERROR((SUMIFS(AZ59:AZ93,AV59:AV93,"<="&$AV91,AV59:AV93,">="&$AV91-3)/1000)/( $J$22*SUMIFS(AW59:AW93,AV59:AV93,"<="&$AV91,AV59:AV93,">="&$AV91-3)*$J$21/3600),1)) ) -> 1 | BU91: =IF(AZ91="",1, MIN($AZ91/SUM($AZ59:$AZ91),SUMIFS(AZ59:AZ93,AV59:AV93,">="&$AV91-1,AV59:AV93,"<="&$AV91)/SUM($AZ59:$AZ91),SUMIFS(AZ59:AZ93,AV59:AV93,">="&$AV91-2,AV59:AV93,"<="&$AV91)/SUM($AZ59:$AZ91),SUMIFS(AZ59:AZ93,AV59:AV93,">="&$AV91-3,AV59:AV93,"<="&$AV91)/SUM($AZ59:$AZ91)) ) -> 1 | BW91: 33 | CF91: =IFERROR(astm(highwayfuf(CC91)-highwayfuf(CC90),3),"") ->  | CM91: =IFERROR(astm(mdiuf(CL91)-mdiuf(CL90),3),"") ->  | CP91: =IFERROR(astm(highwayfufalt(CL91)-highwayfufalt(CL90),3),"") ->  | CT91: =IF(CA91="",1, MIN(IFERROR((CA91/1000)/((BX91*$J$22)*$J$21/3600),1),IFERROR((SUMIFS(CA59:CA93,BW59:BW93,"<="&$BW91,BW59:BW93,">="&$BW91-1)/1000)/( $J$22*SUMIFS(BX59:BX93,BW59:BW93,"<="&$BW91,BW59:BW93,">="&$BW91-1)*$J$21/3600),1),IFERROR((SUMIFS(CA59:CA93,BW59:BW93,"<="&$BW91,BW59:BW93,">="&$BW91-2)/1000)/( $J$22*SUMIFS(BX59:BX93,BW59:BW93,"<="&$BW91,BW59:BW93,">="&$BW91-2)*$J$21/3600),1),IFERROR((SUMIFS(CA59:CA93,BW59:BW93,"<="&$BW91,BW59:BW93,">="&$BW91-3)/1000)/( $J$22*SUMIFS(BX59:BX93,BW59:BW93,"<="&$BW91,BW59:BW93,">="&$BW91-3)*$J$21/3600),1)) ) -> 1 | CV91: =IF(CA91="",1, MIN($CA91/SUM($CA59:$CA91),SUMIFS(CA59:CA93,BW59:BW93,">="&$BW91-1,BW59:BW93,"<="&$BW91)/SUM($CA59:$CA91),SUMIFS(CA59:CA93,BW59:BW93,">="&$BW91-2,BW59:BW93,"<="&$BW91)/SUM($CA59:$CA91),SUMIFS(CA59:CA93,BW59:BW93,">="&$BW91-3,BW59:BW93,"<="&$BW91)/SUM($CA59:$CA91)) ) -> 1
C92: *Comb CO2 Unadj | F92: =astm(0.55*(IF($N$7+$N$55+$N$103=0, (IFERROR(AQ24,0)+IFERROR(AQ72,0)+IFERROR(AQ120,0))/ ((AQ6<>0)+(AQ54<>0)+(AQ102<>0)), (IFERROR($N$7*AQ24,0)+IFERROR($N$55*AQ72,0)+IFERROR($N$103*AQ120,0)) / ($N$7+$N$55+$N$103) ))+0.45*(IF($N$7+$N$55+$N$103=0, (IFERROR(AR24,0)+IFERROR(AR72,0)+IFERROR(AR120,0))/ ((AR6<>0)+(AR54<>0)+(AR102<>0)), (IFERROR($N$7*AR24,0)+IFERROR($N$55*AR72,0)+IFERROR($N$103*AR120,0)) / ($N$7+$N$55+$N$103) )),1) -> 0 | Q92: 34 | Y92: 34 | AP92: CD total cost per mile ($/mi) [3] | AQ92: =astm(AQ91+AQ90,3) ->  | AR92: =astm(AR91+AR90,3) ->  | AV92: 34 | BA92: =IFERROR(astm( astm($W$94,3)*1000*(AZ92/AQ61),1),"") ->  | BE92: =IFERROR(astm(cityfuf(BB92),3)-astm(cityfuf(BB91),3),"") ->  | BL92: =IFERROR(astm(mdiuf(BK92),3)-astm(mdiuf(BK91),3),"") ->  | BO92: =IFERROR(astm(cityfufalt(BK92),3)-astm(cityfufalt(BK91),3),"") ->  | BS92: =IF(AZ92="",1, MIN(IFERROR((AZ92/1000)/((AW92*$J$22)*$J$21/3600),1),IFERROR((SUMIFS(AZ59:AZ93,AV59:AV93,"<="&$AV92,AV59:AV93,">="&$AV92-1)/1000)/( $J$22*SUMIFS(AW59:AW93,AV59:AV93,"<="&$AV92,AV59:AV93,">="&$AV92-1)*$J$21/3600),1),IFERROR((SUMIFS(AZ59:AZ93,AV59:AV93,"<="&$AV92,AV59:AV93,">="&$AV92-2)/1000)/( $J$22*SUMIFS(AW59:AW93,AV59:AV93,"<="&$AV92,AV59:AV93,">="&$AV92-2)*$J$21/3600),1),IFERROR((SUMIFS(AZ59:AZ93,AV59:AV93,"<="&$AV92,AV59:AV93,">="&$AV92-3)/1000)/( $J$22*SUMIFS(AW59:AW93,AV59:AV93,"<="&$AV92,AV59:AV93,">="&$AV92-3)*$J$21/3600),1)) ) -> 1 | BU92: =IF(AZ92="",1, MIN($AZ92/SUM($AZ59:$AZ92),SUMIFS(AZ59:AZ93,AV59:AV93,">="&$AV92-1,AV59:AV93,"<="&$AV92)/SUM($AZ59:$AZ92),SUMIFS(AZ59:AZ93,AV59:AV93,">="&$AV92-2,AV59:AV93,"<="&$AV92)/SUM($AZ59:$AZ92),SUMIFS(AZ59:AZ93,AV59:AV93,">="&$AV92-3,AV59:AV93,"<="&$AV92)/SUM($AZ59:$AZ92)) ) -> 1 | BW92: 34 | CF92: =IFERROR(astm(highwayfuf(CC92)-highwayfuf(CC91),3),"") ->  | CM92: =IFERROR(astm(mdiuf(CL92)-mdiuf(CL91),3),"") ->  | CP92: =IFERROR(astm(highwayfufalt(CL92)-highwayfufalt(CL91),3),"") ->  | CT92: =IF(CA92="",1, MIN(IFERROR((CA92/1000)/((BX92*$J$22)*$J$21/3600),1),IFERROR((SUMIFS(CA59:CA93,BW59:BW93,"<="&$BW92,BW59:BW93,">="&$BW92-1)/1000)/( $J$22*SUMIFS(BX59:BX93,BW59:BW93,"<="&$BW92,BW59:BW93,">="&$BW92-1)*$J$21/3600),1),IFERROR((SUMIFS(CA59:CA93,BW59:BW93,"<="&$BW92,BW59:BW93,">="&$BW92-2)/1000)/( $J$22*SUMIFS(BX59:BX93,BW59:BW93,"<="&$BW92,BW59:BW93,">="&$BW92-2)*$J$21/3600),1),IFERROR((SUMIFS(CA59:CA93,BW59:BW93,"<="&$BW92,BW59:BW93,">="&$BW92-3)/1000)/( $J$22*SUMIFS(BX59:BX93,BW59:BW93,"<="&$BW92,BW59:BW93,">="&$BW92-3)*$J$21/3600),1)) ) -> 1 | CV92: =IF(CA92="",1, MIN($CA92/SUM($CA59:$CA92),SUMIFS(CA59:CA93,BW59:BW93,">="&$BW92-1,BW59:BW93,"<="&$BW92)/SUM($CA59:$CA92),SUMIFS(CA59:CA93,BW59:BW93,">="&$BW92-2,BW59:BW93,"<="&$BW92)/SUM($CA59:$CA92),SUMIFS(CA59:CA93,BW59:BW93,">="&$BW92-3,BW59:BW93,"<="&$BW92)/SUM($CA59:$CA92)) ) -> 1
C93: *City CO2 Unrd Adj | F93: =astm(IF($N$7+$N$55+$N$103=0, (AQ25+AQ73+AQ121)/ ((AQ7<>0)+(AQ55<>0)+(AQ103<>0)), (IFERROR($N$7*AQ25,0)+IFERROR($N$55*AQ73,0)+IFERROR($N$103*AQ121,0)) / ($N$7+$N$55+$N$103) ),1) -> 0 | Q93: 35 | Y93: 35 | AP93: CS cost per mile ($/mi) [3] | AQ93: =astm($F$36/astm(N60,4),3) ->  | AR93: =astm($F$36/astm(O60,4),3) ->  | AV93: 35 | BA93: =IFERROR(astm( astm($W$94,3)*1000*(AZ93/AQ61),1),"") ->  | BE93: =IFERROR(astm(cityfuf(BB93),3)-astm(cityfuf(BB92),3),"") ->  | BL93: =IFERROR(astm(mdiuf(BK93),3)-astm(mdiuf(BK92),3),"") ->  | BO93: =IFERROR(astm(cityfufalt(BK93),3)-astm(cityfufalt(BK92),3),"") ->  | BS93: =IF(AZ93="",1, MIN(IFERROR((AZ93/1000)/((AW93*$J$22)*$J$21/3600),1),IFERROR((SUMIFS(AZ59:AZ93,AV59:AV93,"<="&$AV93,AV59:AV93,">="&$AV93-1)/1000)/( $J$22*SUMIFS(AW59:AW93,AV59:AV93,"<="&$AV93,AV59:AV93,">="&$AV93-1)*$J$21/3600),1),IFERROR((SUMIFS(AZ59:AZ93,AV59:AV93,"<="&$AV93,AV59:AV93,">="&$AV93-2)/1000)/( $J$22*SUMIFS(AW59:AW93,AV59:AV93,"<="&$AV93,AV59:AV93,">="&$AV93-2)*$J$21/3600),1),IFERROR((SUMIFS(AZ59:AZ93,AV59:AV93,"<="&$AV93,AV59:AV93,">="&$AV93-3)/1000)/( $J$22*SUMIFS(AW59:AW93,AV59:AV93,"<="&$AV93,AV59:AV93,">="&$AV93-3)*$J$21/3600),1)) ) -> 1 | BU93: =IF(AZ93="",1, MIN($AZ93/SUM($AZ59:$AZ93),SUMIFS(AZ59:AZ93,AV59:AV93,">="&$AV93-1,AV59:AV93,"<="&$AV93)/SUM($AZ59:$AZ93),SUMIFS(AZ59:AZ93,AV59:AV93,">="&$AV93-2,AV59:AV93,"<="&$AV93)/SUM($AZ59:$AZ93),SUMIFS(AZ59:AZ93,AV59:AV93,">="&$AV93-3,AV59:AV93,"<="&$AV93)/SUM($AZ59:$AZ93)) ) -> 1 | BW93: 35 | CF93: =IFERROR(astm(highwayfuf(CC93)-highwayfuf(CC92),3),"") ->  | CM93: =IFERROR(astm(mdiuf(CL93)-mdiuf(CL92),3),"") ->  | CP93: =IFERROR(astm(highwayfufalt(CL93)-highwayfufalt(CL92),3),"") ->  | CT93: =IF(CA93="",1, MIN(IFERROR((CA93/1000)/((BX93*$J$22)*$J$21/3600),1),IFERROR((SUMIFS(CA59:CA93,BW59:BW93,"<="&$BW93,BW59:BW93,">="&$BW93-1)/1000)/( $J$22*SUMIFS(BX59:BX93,BW59:BW93,"<="&$BW93,BW59:BW93,">="&$BW93-1)*$J$21/3600),1),IFERROR((SUMIFS(CA59:CA93,BW59:BW93,"<="&$BW93,BW59:BW93,">="&$BW93-2)/1000)/( $J$22*SUMIFS(BX59:BX93,BW59:BW93,"<="&$BW93,BW59:BW93,">="&$BW93-2)*$J$21/3600),1),IFERROR((SUMIFS(CA59:CA93,BW59:BW93,"<="&$BW93,BW59:BW93,">="&$BW93-3)/1000)/( $J$22*SUMIFS(BX59:BX93,BW59:BW93,"<="&$BW93,BW59:BW93,">="&$BW93-3)*$J$21/3600),1)) ) -> 1 | CV93: =IF(CA93="",1, MIN($CA93/SUM($CA59:$CA93),SUMIFS(CA59:CA93,BW59:BW93,">="&$BW93-1,BW59:BW93,"<="&$BW93)/SUM($CA59:$CA93),SUMIFS(CA59:CA93,BW59:BW93,">="&$BW93-2,BW59:BW93,"<="&$BW93)/SUM($CA59:$CA93),SUMIFS(CA59:CA93,BW59:BW93,">="&$BW93-3,BW59:BW93,"<="&$BW93)/SUM($CA59:$CA93)) ) -> 1
C94: *Hwy CO2 Unrnd Adj | F94: =astm(IF($N$7+$N$55+$N$103=0, (AR25+AR73+AR121)/ ((AR7<>0)+(AR55<>0)+(AR103<>0)), (IFERROR($N$7*AR25,0)+IFERROR($N$55*AR73,0)+IFERROR($N$103*AR121,0)) / ($N$7+$N$55+$N$103) ),1) -> 0 | V94: Recharge energy (AC kilowatt-hours): | AD94: Recharge energy (AC kilowatt-hours): | AP94: Composite CD/CS cost ($/mi) [3] | AQ94: =astm(AQ79*AQ92+(1-AQ79)*AQ93,3) ->  | AR94: =astm(AR79*AR92+(1-AR79)*AR93,3) -> 
C95: *Comb CO2 Unrnd Adj | F95: =astm(0.55*(IF($N$7+$N$55+$N$103=0, (AQ25+AQ73+AQ121)/ ((AQ7<>0)+(AQ55<>0)+(AQ103<>0)), (IFERROR($N$7*AQ25,0)+IFERROR($N$55*AQ73,0)+IFERROR($N$103*AQ121,0)) / ($N$7+$N$55+$N$103) ))+0.45*(IF($N$7+$N$55+$N$103=0, (AR25+AR73+AR121)/ ((AR7<>0)+(AR55<>0)+(AR103<>0)), (IFERROR($N$7*AR25,0)+IFERROR($N$55*AR73,0)+IFERROR($N$103*AR103,0)) / ($N$7+$N$55+$N$103) )),1) -> 0 | V95: All-Electric Range (miles): | AD95: All-Electric Range (miles): | AP95: COMPOSITE CD/CS FUEL ECONOMY AND CO2 VALUES, ADJUSTED | AQ95: CITY | AR95: HIGHWAY
C96: Charge-depleting Driving Range (Adjusted) | F96: miles | Q96: ="Calculated transition cycle: " & IF(COUNTIF(BR59:BR88,"CD") < COUNT(R59:R88), COUNTIF(BR59:BR88,"CD"), IF(COUNTIF(BT59:BT88,"CD") < COUNT(R59:R88), COUNTIF(BT59:BT88,"CD"), "ERROR" ) ) -> Calculated transition cycle: ERROR | V96: To override transition cycle, enter here---> | Y96: ="Calculated transition cycle: " & IF(COUNTIF(CS59:CS88,"CD") < COUNT(Z59:Z88), COUNTIF(CS59:CS88,"CD"), IF(COUNTIF(CU59:CU88,"CD") < COUNT(Z59:Z88), COUNTIF(CU59:CU88,"CD"), "ERROR" ) ) -> Calculated transition cycle: ERROR | AD96: To override transition cycle, enter here---> | AP96: Composite CD/CS CO2, adjusted (g/mi) [1] | AQ96: =astm(IFERROR(AQ74+(1-AQ80)*N63,#VALUE!),1) -> 0 | AR96: =astm(IFERROR(AR74+(1-AR80)*O63,#VALUE!),1) -> 0
C97: City Range on Electricity (miles) | F97: =astm(D19,2) -> 19.78 | AP97: Composite CD/CS Fuel Economy, adjusted (MPG) [4] | AQ97: =IFERROR(astm( IFERROR(1/ ( AQ65 + (1-AQ80)/N60),#VALUE!), 4),0) -> 0 | AR97: =IFERROR(astm( IFERROR(1/ ( AR65 + (1-AR80)/O60),#VALUE!), 4),0) -> 0
C98: Hwy Range on Electricity (miles) | F98: =astm(E19,2) -> 28.72
C99: Comb Range on Electricity as shown on FE Label (miles) | F99: =F19 -> 24 | M99: Test Set #3 | AI99: Results from Test Set #3: | AJ99: =N100 -> 0 | AO99: INTERMEDIATE CALCULATIONS AND INPUTS | AQ99: Test Set #3: | AR99: =N101 -> 0
C100: All-Electric Driving Range (Adjusted) | F100: miles | AI100: CAFE Values | AO100: Charge-Depleting (CD) Test Results | AV100: DETAILED CALCULATIONS | AX100: UDDS | AY100: =$AR99 -> 0 | BW100: DETAILED CALCULATIONS | BY100: HFET | BZ100: =AR99 -> 0
C101: City All-Electric Range | F101: =astm(D20,2) -> 21.94 | Q101: ENTER CHARGE-DEPLETING UDDS (CITY) DATA HERE | Y101: ENTER CHARGE-DEPLETING HFET (HIGHWAY) DATA HERE | AI101: A. PHEV meets dual fuel criteria: | AJ101: City | AK101: Highway | AL101: Combined | AP101: DRIVING DISTANCE VALUES | AQ101: CITY | AR101: HIGHWAY | AV101: Cycle No. | AW101: Gasoline Consumed | AX101: CO2 [0] | AY101: Net Amp-Hours Used Per Cycle [3] | AZ101: DC Electricity Consumed [1] | BA101: AC Electricity Consumed [1] | BB101: Theoretical Cumulative Cycle Distance | BC101: Electric Only Fuel Consumption Rate | BD101: Total Fuel Consumption Rate (gas + electric) | BE101: 55/45 City Fleet Utility Factor [3] | BF101: 55/45 City FUF x CREE | BG101: 55/45 City FUF x Total Consumption | BH101: Total Fuel Consumption (gas + electric) | BI101: 5-Cycle Adjustment | BJ101: Adjusted Cycle Measured Distance | BK101: Adjusted Cycle Theoretical Cumulative Distance | BL101: MDIUF [3] | BM101: MDIUF x Adjusted CO2 | BN101: MDIUF x Adjusted Total Fuel Consumption | BO101: 43/57 City Fleet Utility Factor [3] | BP101: 43/57 City FUF x Adjusted Total Fuel Consumption Rate | BQ101: 43/57 City FUF x Adjusted CREE | BR101: Is Cycle CD or CS based on NEC 1% Tolerance? | BS101: NEC Tolerance 1% Fuel Energy Criteria | BT101: Is Cycle CD or CS based on battery 2% Tolerance? | BU101: NEC Tolerance 2% Usable Battery Energy Criteria | BW101: Cycle No. | BX101: Gasoline Consumed | BY101: CO2 [0] | BZ101: Net Amp-Hours Used Per Cycle [3] | CA101: DC Electricity Consumed [1] | CB101: AC Electricity Consumed [1] | CC101: Theoretical Cumulative Cycle Distance | CD101: Electric Only Fuel Consumption Rate | CE101: Total Fuel Consumption Rate (gas + electric) | CF101: 55/45 Highway Fleet Utility Factor [3] | CG101: 55/45 Highway FUF x CREE | CH101: 55/45 Highway FUF x Total Consumption | CI101: Total Fuel Consumption (gas + electric) | CJ101: 5-Cycle Adjustment | CK101: Adjusted Cycle Measured Distance | CL101: Adjusted Cycle Theoretical Cumulative Distance | CM101: MDIUF [3] | CN101: MDIUF x Adjusted CO2 | CO101: MDIUF x Adjusted Total Fuel Consumption | CP101: 43/57 Highway Fleet Utility Factor [3] | CQ101: 43/57 Highway FUF x Adjusted Total Fuel Consumption Rate | CR101: 43/57 Highway FUF x Adjusted CREE | CS101: Is Cycle CD or CS based on NEC 1% Tolerance? | CT101: NEC Tolerance 1% Fuel Energy Criteria | CU101: Is Cycle CD or CS based on battery 2% Tolerance? | CV101: NEC Tolerance 2% Usable Battery Energy Criteria
C102: Hwy All-Electric Range | F102: =astm(E20,2) -> 21.09 | M102: Test Set name (e.g., Eco, Power): | Q102: Cycle No. | R102: Cycle/Phase Measured Distance | S102: Integrated Amp-Hours Electricity Used | T102: Average Cycle Voltage | U102: Fuel Economy | V102: CO2 | W102: CREE | Y102: Cycle No. | Z102: Cycle/Phase Measured Distance | AA102: Integrated Amp-Hours Electricity Used | AB102: Average Cycle Voltage | AC102: Fuel Economy | AD102: CO2 | AE102: CREE | AI102: 1. Default 50/50 Composite MPGe [4] | AJ102: =IFERROR(astm(1/(0.5/( ( $J$18 ) /(AQ107/AQ133))+0.5/N107),4),0) -> 0 | AK102: =IFERROR(astm(1/(0.5/( ( $J$18 ) /(AR107/AR133))+0.5/O107),4),0) -> 0 | AL102: =IFERROR(astm(1/(0.55/AJ102+0.45/AK102),4),0) -> 0 | AP102: CD driving distance (Rcda), unadjusted (miles) [3] | AQ102: =IFERROR(astm(SUMIF(Q107:Q141,"<=" & ($AQ130-1),R107:R141) + AQ129*VLOOKUP($AQ130,Q107:R141,2,FALSE),3),0) -> 0 | AR102: =IFERROR(astm(SUMIF(Y107:Y141,"<=" & ($AR130-1),Z107:Z141) + AR129*VLOOKUP($AR130,Y107:Z141,2,FALSE),3),0) -> 0
C103: Comb All-Electric Range as shown on FE Label (miles) | F103: =F20 -> 22 | M103: Production Volume (projected or actual): | AI103: 2. Optional Utility Factor Composite MPGe [4] | AJ103: =IFERROR(astm(1/( AQ136 / ( ( $J$18 ) / (AQ107/AQ133)) + (1-AQ136)/N107), 4),0) -> 0 | AK103: =IFERROR(astm(1/( AR136 / ( ( $J$18 ) / (AR107/AR133)) + (1-AR136)/O107), 4),0) -> 0 | AL103: =IFERROR(astm(1/(0.55/AJ103+0.45/AK103),4),0) -> 0 | AP103: CD driving distance (Rcda), adjusted (miles) [3] | AQ103: =IFERROR(astm(SUMIF(AV107:AV141,"<"&AQ130,BJ107:BJ141)+AQ129*SUMIF(AV107:AV141,"="&AQ130,BJ107:BJ141),3),0) -> 0 | AR103: =IFERROR(astm(SUMIF(BW107:BW141,"<"&AR130,CK107:CK141)+AR129*SUMIF(BW107:BW141,"="&AR130,CK107:CK141),3),0) -> 0
C104: Charge-depleting Utility Factors | F104: UF | AI104: B. PHEV does NOT meet dual fuel criteria: | AJ104: City | AK104: Highway | AL104: Combined | AP104: CD all-electric driving distance, unadjusted (miles) [3] | AQ104: =IF(ISNUMBER(W143), astm(W143,3), 0) -> 0 | AR104: =IF(ISNUMBER(AE143), astm(AE143,3), 0) -> 0
C105: City Utility Factor (MDIUF) | F105: =astm(mdiuf(D19),3) -> 0.453 | M105: ENTER CHARGE-SUSTAINING TEST RESULTS HERE | AI105: 1. Utility Factor Composite MPGe [4] | AJ105: =IFERROR(astm(1/ ( AQ111 + (1-AQ126)/N107),4),0) -> 0 | AK105: =IFERROR(astm(1/ ( AR111 + (1-AR126)/O107),4),0) -> 0 | AL105: =IFERROR(astm(1/(0.55/AJ105+0.45/AK105),4),0) -> 0 | AP105: CD All-Electric Range, adjusted (mi) [3] | AQ105: =astm( 0.7*AQ104, 3) -> 0 | AR105: =astm( 0.7*AR104, 3) -> 0
C106: Hwy Utility Factor (MDIUF) | F106: =astm(mdiuf(E19),3) -> 0.572 | N106: City | O106: Highway | Q106: No. | R106: Miles [3] | S106: Amp-hrs [3] | T106: Volts [2] | U106: MPG [1] | V106: g/mi [0] | W106: g/mi [0] | Y106: No. | Z106: Miles [3] | AA106: Amp-hrs [3] | AB106: Volts [2] | AC106: MPG [1] | AD106: g/mi [0] | AE106: g/mi [0] | AI106: GHG Values | AJ106: City | AK106: Highway | AL106: Combined | AP106: FUEL CONSUMPTION & ECONOMY VALUES | AQ106: CITY | AR106: HIGHWAY | AV106: No. | AW106: gal | AX106: grams | AY106: Amp-hours | AZ106: W-hours | BA106: W-hours | BB106: mi | BC106: gal/mi equiv | BD106: gal/mi equiv | BE106: UF | BF106: UF | BG106: gal/mi equiv | BH106: gal-equiv | BI106: % | BJ106: miles | BK106: miles | BL106: UF | BM106: g/mi | BN106: gal/mi equiv | BO106: UF | BP106: gal/mi equiv | BQ106: g/mi | BR106: CD or CS | BT106: CD or CS | BW106: No. | BX106: gal | BY106: grams | BZ106: Amp-hours | CA106: W-hours | CB106: W-hours | CC106: mi | CD106: gal/mi equiv | CE106: gal/mi equiv | CF106: UF | CG106: UF | CH106: gal/mi equiv | CI106: gal-equiv | CJ106: % | CK106: miles | CL106: miles | CM106: UF | CN106: g/mi | CO106: gal-equiv | CP106: UF | CQ106: gal-equiv | CR106: g/mi | CS106: CD or CS | CU106: CD or CS
C107: Comb Utility Factor (MDIUF) | F107: =astm(mdiuf(0.55*D19+0.45*E19),3) -> 0.511 | M107: Fuel Economy, Unadjusted (MPG): | Q107: 1 | Y107: 1 | AI107: Composite CREE, without upstream emissions [1] | AJ107: =IFERROR(IF(OR(SUM(W107:W141)=0,N109=0,ISBLANK(N109), LOOKUP(2,1/(W107:W141<>""),ROW(W107:W141)) < LOOKUP(2,1/(R107:R141<>""),ROW(R107:R141)) ),"ERROR",astm(AQ123+(1-AQ126)*N109,1)),0) -> 0 | AK107: =IFERROR(IF(OR(SUM(AE107:AE141)=0,O109=0,ISBLANK(O109), LOOKUP(2,1/(AE107:AE141<>""),ROW(AE107:AE141)) < LOOKUP(2,1/(Z107:Z141<>""),ROW(Z107:Z136)) ),"ERROR",astm(AR123+(1-AR126)*O109,1)),0) -> 0 | AL107: =IFERROR(astm(0.55*AJ107+0.45*AK107,1),0) -> 0 | AO107: NEW | AP107: CD AC electricity consumption (Rcdc), unadjusted (Watt-hours) [1] | AQ107: =astm(SUMIF(AV107:AV141,"<=" & AQ130,BA107:BA141),1) -> 0 | AR107: =astm(SUMIF(BW107:BW141,"<=" & AR130,CB107:CB141),1) -> 0 | AV107: 1 | AW107: =IF(ISBLANK(R107),"", IF(astm(V107,0)=0, 0, IFERROR(astm(R107,3)/astm(U107,1),0)) ) ->  | AX107: =IF(ISBLANK(R107),"", IF(astm(V107,0)=0,0, astm( astm(V107,0)*astm(R107,3), 0) ) ) ->  | AY107: =IF( ISBLANK(S107),"",astm(S107,3)) ->  | AZ107: =IF(ISBLANK(T107),"",astm(AY107*astm(T107,2),1)) ->  | BA107: =IFERROR(astm( astm($W$142,3)*1000*(AZ107/AQ109),1),"") ->  | BB107: =IF(ISBLANK(R107),"",7.45) ->  | BC107: =IFERROR(BA107/($J$19*astm(R107,3)),"") ->  | BD107: =IFERROR(BC107+AW107/astm(R107,3),"") ->  | BE107: =astm(IFERROR(astm(cityfuf(BB107)-0,3),""),3) ->  | BF107: =IF(ISBLANK(R107),"", IF(astm(V107,0)=0, 0, IFERROR(BE107*astm(W107,0),"") ) ) ->  | BG107: =IFERROR(BD107*BE107,"") ->  | BH107: =IFERROR(BD107*astm(R107,3),"") ->  | BI107: =IF( $J$5>=2017, IFERROR(MAX(1/(0.004091*(1/BD107)+1.1601),0.7),""), IFERROR(MAX(1/(0.003259*(1/BD107)+1.1805),0.7),"") ) ->  | BJ107: =IFERROR(BI107*astm(R107,3),"") ->  | BK107: =IFERROR(BI107*7.45,"") ->  | BL107: =IFERROR(astm(mdiuf(BK107)-0,3),"") ->  | BM107: =IF(ISBLANK(R107),"", IF( astm(V107,0)=0, 0, IFERROR(BL107*astm(V107,0)/(BI107),"") ) ) ->  | BN107: =IFERROR(BL107*BD107/BI107,"") ->  | BO107: =IFERROR(astm(cityfufalt(BK107)-0,3),"") ->  | BP107: =IFERROR(BO107*BD107/BI107,"") ->  | BQ107: =IF(ISBLANK(R107),"", IF( astm(V107,0)=0, 0, IFERROR(BO107*astm(W107,0)/(BI107),"") ) ) ->  | BR107: =IF(AZ107="","", IF(ABS(BS107)<0.01,"CS based on 1% fuel energy", "CD")) ->  | BS107: =IF(AZ107="",1, MIN(IFERROR((AZ107/1000)/((AW107*$J$22)*$J$21/3600),1),IFERROR((SUMIFS(AZ107:AZ141,AV107:AV141,"<="&$AV107,AV107:AV141,">="&$AV107-1)/1000)/( $J$22*SUMIFS(AW107:AW141,AV107:AV141,"<="&$AV107,AV107:AV141,">="&$AV107-1)*$J$21/3600),1),IFERROR((SUMIFS(AZ107:AZ141,AV107:AV141,"<="&$AV107,AV107:AV141,">="&$AV107-2)/1000)/( $J$22*SUMIFS(AW107:AW141,AV107:AV141,"<="&$AV107,AV107:AV141,">="&$AV107-2)*$J$21/3600),1),IFERROR((SUMIFS(AZ107:AZ141,AV107:AV141,"<="&$AV107,AV107:AV141,">="&$AV107-3)/1000)/( $J$22*SUMIFS(AW107:AW141,AV107:AV141,"<="&$AV107,AV107:AV141,">="&$AV107-3)*$J$21/3600),1)) ) -> 1 | BT107: =IF(AZ107="","", IF(ABS(BU107)<0.02,"CS based on 2% battery energy","CD")) ->  | BU107: =IF(AZ107="",1, MIN($AZ107/SUM($AZ107:$AZ107),SUMIFS(AZ107:AZ141,AV107:AV141,">="&$AV107-1,AV107:AV141,"<="&$AV107)/SUM($AZ107:$AZ107),SUMIFS(AZ107:AZ141,AV107:AV141,">="&$AV107-2,AV107:AV141,"<="&$AV107)/SUM($AZ107:$AZ107),SUMIFS(AZ107:AZ141,AV107:AV141,">="&$AV107-3,AV107:AV141,"<="&$AV107)/SUM($AZ107:$AZ107)) ) -> 1 | BW107: 1 | BX107: =IF(ISBLANK(Z107),"", IF(astm(AD107,0)=0, 0, IFERROR(astm(Z107,3)/astm(AC107,1),0)) ) ->  | BY107: =IF(ISBLANK(Z107),"", IF(astm(AD107,0)=0,0, astm(AD107,0)*astm(Z107,3)) ) ->  | BZ107: =IF(ISBLANK(AA107),"",astm(AA107,3)) ->  | CA107: =IF(ISBLANK(AB107),"",astm(BZ107*astm(AB107,2),1)) ->  | CB107: =IFERROR( astm(astm($AE$142,3)*1000*(CA107/$AR$109),1),"") ->  | CC107: =IF(ISBLANK(Z107),"",10.3) ->  | CD107: =IFERROR(CB107/($J$19*astm(Z107,3)),"") ->  | CE107: =IFERROR(CD107+BX107/astm(Z107,3),"") ->  | CF107: =IFERROR(astm(highwayfuf(CC107)-0,3),"") ->  | CG107: =IF(ISBLANK(Z107),"", IF( astm(AD107,0)=0, 0, IFERROR(CF107*astm(AE107,0),"") ) ) ->  | CH107: =IFERROR(CE107*CF107,"") ->  | CI107: =IFERROR(CE107*astm(Z107,3),"") ->  | CJ107: =IF( $J$5>=2017, IFERROR(MAX(1/(0.003191*(1/CE107)+1.2945),0.7),""), IFERROR(MAX(1/(0.001376*(1/CE107)+1.3466),0.7),"") ) ->  | CK107: =IFERROR(CJ107*astm(Z107,3),"") ->  | CL107: =IFERROR(CJ107*10.3,"") ->  | CM107: =IFERROR(astm(mdiuf(CL107)-0,3),"") ->  | CN107: =IF(ISBLANK(Z107),"", IF( astm(AD107,0)=0, 0, IFERROR(CM107*astm(AD107,0)/(CJ107),"") ) ) ->  | CO107: =IFERROR(CM107*CE107/CJ107,"") ->  | CP107: =IFERROR(astm(highwayfufalt(CL107)-0,3),"") ->  | CQ107: =IFERROR(CP107*CE107/CJ107,"") ->  | CR107: =IF(ISBLANK(Z107),"", IF( astm(AD107,0)=0, 0, IFERROR(CP107*astm(AE107,0)/(CJ107),"") ) ) ->  | CS107: =IF($CA107="","", IF(ABS(CT107)<0.01,"CS based on 1% fuel energy","CD")) ->  | CT107: =IF(CA107="",1, MIN(IFERROR((CA107/1000)/((BX107*$J$22)*$J$21/3600),1),IFERROR((SUMIFS(CA107:CA141,BW107:BW141,"<="&$BW107,BW107:BW141,">="&$BW107-1)/1000)/( $J$22*SUMIFS(BX107:BX141,BW107:BW141,"<="&$BW107,BW107:BW141,">="&$BW107-1)*$J$21/3600),1),IFERROR((SUMIFS(CA107:CA141,BW107:BW141,"<="&$BW107,BW107:BW141,">="&$BW107-2)/1000)/( $J$22*SUMIFS(BX107:BX141,BW107:BW141,"<="&$BW107,BW107:BW141,">="&$BW107-2)*$J$21/3600),1),IFERROR((SUMIFS(CA107:CA141,BW107:BW141,"<="&$BW107,BW107:BW141,">="&$BW107-3)/1000)/( $J$22*SUMIFS(BX107:BX141,BW107:BW141,"<="&$BW107,BW107:BW141,">="&$BW107-3)*$J$21/3600),1)) ) -> 1 | CU107: =IF($CA107="","", IF(ABS(CV107)<0.02,"CS based on 2% battery energy","CD")) ->  | CV107: =IF(CA107="",1, MIN($CA107/SUM($CA107:$CA107),SUMIFS(CA107:CA141,BW107:BW141,">="&$BW107-1,BW107:BW141,"<="&$BW107)/SUM($CA107:$CA107),SUMIFS(CA107:CA141,BW107:BW141,">="&$BW107-2,BW107:BW141,"<="&$BW107)/SUM($CA107:$CA107),SUMIFS(CA107:CA141,BW107:BW141,">="&$BW107-3,BW107:BW141,"<="&$BW107)/SUM($CA107:$CA107)) ) -> 1
C108: Composite Efficiency (Adjusted) | F108: MPGe | M108: Fuel Economy, Adjusted (MPG): | Q108: 2 | Y108: 2 | AP108: CD AC electricity consumption rate (Rcda), adjusted (kW-hr/100mi) [3] | AQ108: =IFERROR(astm( astm(W142,3)*100/AQ103,3),0) -> 0 | AR108: =IFERROR(astm( astm(AE142,3)*100/AR103,3),0) -> 0 | AV108: 2 | AY108: =IF(ISBLANK(S108),"",(astm(S108,3)-astm(S107,3))) ->  | BA108: =IFERROR(astm( astm($W$142,3)*1000*(AZ108/AQ109),1),"") ->  | BB108: =IF(ISBLANK(R108),"",7.45+BB107) ->  | BE108: =IFERROR(astm(cityfuf(BB108),3)-astm(cityfuf(BB107),3),"") ->  | BG108: =IFERROR(BD108*BE108,"") ->  | BK108: =IFERROR(BI108*7.45+BK107,"") ->  | BL108: =IFERROR(astm(mdiuf(BK108),3)-astm(mdiuf(BK107),3),"") ->  | BO108: =IFERROR(astm(cityfufalt(BK108),3)-astm(cityfufalt(BK107),3),"") ->  | BS108: =IF(AZ108="",1, MIN(IFERROR((AZ108/1000)/((AW108*$J$22)*$J$21/3600),1),IFERROR((SUMIFS(AZ107:AZ141,AV107:AV141,"<="&$AV108,AV107:AV141,">="&$AV108-1)/1000)/( $J$22*SUMIFS(AW107:AW141,AV107:AV141,"<="&$AV108,AV107:AV141,">="&$AV108-1)*$J$21/3600),1),IFERROR((SUMIFS(AZ107:AZ141,AV107:AV141,"<="&$AV108,AV107:AV141,">="&$AV108-2)/1000)/( $J$22*SUMIFS(AW107:AW141,AV107:AV141,"<="&$AV108,AV107:AV141,">="&$AV108-2)*$J$21/3600),1),IFERROR((SUMIFS(AZ107:AZ141,AV107:AV141,"<="&$AV108,AV107:AV141,">="&$AV108-3)/1000)/( $J$22*SUMIFS(AW107:AW141,AV107:AV141,"<="&$AV108,AV107:AV141,">="&$AV108-3)*$J$21/3600),1)) ) -> 1 | BU108: =IF(AZ108="",1, MIN($AZ108/SUM($AZ107:$AZ108),SUMIFS(AZ107:AZ141,AV107:AV141,">="&$AV108-1,AV107:AV141,"<="&$AV108)/SUM($AZ107:$AZ108),SUMIFS(AZ107:AZ141,AV107:AV141,">="&$AV108-2,AV107:AV141,"<="&$AV108)/SUM($AZ107:$AZ108),SUMIFS(AZ107:AZ141,AV107:AV141,">="&$AV108-3,AV107:AV141,"<="&$AV108)/SUM($AZ107:$AZ108)) ) -> 1 | BW108: 2 | BZ108: =IF(ISBLANK(AA108),"",(astm(AA108,3)-astm(AA107,3))) ->  | CC108: =IF(ISBLANK(Z108),"",10.3+CC107) ->  | CF108: =IFERROR(astm(highwayfuf(CC108)-highwayfuf(CC107),3),"") ->  | CL108: =IFERROR(CJ108*10.3+CL107,"") ->  | CM108: =IFERROR(astm(mdiuf(CL108)-mdiuf(CL107),3),"") ->  | CP108: =IFERROR(astm(highwayfufalt(CL108)-highwayfufalt(CL107),3),"") ->  | CS108: =IF(CA108="","", IF(ABS(CT108)<0.01,"CS based on 1% fuel energy","CD")) ->  | CT108: =IF(CA108="",1, MIN(IFERROR((CA108/1000)/((BX108*$J$22)*$J$21/3600),1),IFERROR((SUMIFS(CA107:CA141,BW107:BW141,"<="&$BW108,BW107:BW141,">="&$BW108-1)/1000)/( $J$22*SUMIFS(BX107:BX141,BW107:BW141,"<="&$BW108,BW107:BW141,">="&$BW108-1)*$J$21/3600),1),IFERROR((SUMIFS(CA107:CA141,BW107:BW141,"<="&$BW108,BW107:BW141,">="&$BW108-2)/1000)/( $J$22*SUMIFS(BX107:BX141,BW107:BW141,"<="&$BW108,BW107:BW141,">="&$BW108-2)*$J$21/3600),1),IFERROR((SUMIFS(CA107:CA141,BW107:BW141,"<="&$BW108,BW107:BW141,">="&$BW108-3)/1000)/( $J$22*SUMIFS(BX107:BX141,BW107:BW141,"<="&$BW108,BW107:BW141,">="&$BW108-3)*$J$21/3600),1)) ) -> 1 | CU108: =IF($CA108="","", IF(ABS(CV108)<0.02,"CS based on 2% battery energy","CD")) ->  | CV108: =IF(CA108="",1, MIN($CA108/SUM($CA107:$CA108),SUMIFS(CA107:CA141,BW107:BW141,">="&$BW108-1,BW107:BW141,"<="&$BW108)/SUM($CA107:$CA108),SUMIFS(CA107:CA141,BW107:BW141,">="&$BW108-2,BW107:BW141,"<="&$BW108)/SUM($CA107:$CA108),SUMIFS(CA107:CA141,BW107:BW141,">="&$BW108-3,BW107:BW141,"<="&$BW108)/SUM($CA107:$CA108)) ) -> 1
C109: City PHEV Composite MPGe | F109: =astm(D32,0) -> 42 | M109: CREE (g/mi): | Q109: 3 | Y109: 3 | AI109: Label Values (5-Cycle Adjusted) | AP109: CD test total DC energy consumed, unadjusted (Watt-hours) [1] | AQ109: =astm(SUM(AZ107:AZ141),1) -> 0 | AR109: =astm(SUM(CA107:CA141),1) -> 0 | AV109: 3 | BA109: =IFERROR(astm( astm($W$142,3)*1000*(AZ109/AQ109),1),"") ->  | BE109: =IFERROR(astm(cityfuf(BB109),3)-astm(cityfuf(BB108),3),"") ->  | BK109: =IFERROR(BI109*7.45+BK108,"") ->  | BL109: =IFERROR(astm(mdiuf(BK109),3)-astm(mdiuf(BK108),3),"") ->  | BO109: =IFERROR(astm(cityfufalt(BK109),3)-astm(cityfufalt(BK108),3),"") ->  | BS109: =IF(AZ109="",1, MIN(IFERROR((AZ109/1000)/((AW109*$J$22)*$J$21/3600),1),IFERROR((SUMIFS(AZ107:AZ141,AV107:AV141,"<="&$AV109,AV107:AV141,">="&$AV109-1)/1000)/( $J$22*SUMIFS(AW107:AW141,AV107:AV141,"<="&$AV109,AV107:AV141,">="&$AV109-1)*$J$21/3600),1),IFERROR((SUMIFS(AZ107:AZ141,AV107:AV141,"<="&$AV109,AV107:AV141,">="&$AV109-2)/1000)/( $J$22*SUMIFS(AW107:AW141,AV107:AV141,"<="&$AV109,AV107:AV141,">="&$AV109-2)*$J$21/3600),1),IFERROR((SUMIFS(AZ107:AZ141,AV107:AV141,"<="&$AV109,AV107:AV141,">="&$AV109-3)/1000)/( $J$22*SUMIFS(AW107:AW141,AV107:AV141,"<="&$AV109,AV107:AV141,">="&$AV109-3)*$J$21/3600),1)) ) -> 1 | BU109: =IF(AZ109="",1, MIN($AZ109/SUM($AZ107:$AZ109),SUMIFS(AZ107:AZ141,AV107:AV141,">="&$AV109-1,AV107:AV141,"<="&$AV109)/SUM($AZ107:$AZ109),SUMIFS(AZ107:AZ141,AV107:AV141,">="&$AV109-2,AV107:AV141,"<="&$AV109)/SUM($AZ107:$AZ109),SUMIFS(AZ107:AZ141,AV107:AV141,">="&$AV109-3,AV107:AV141,"<="&$AV109)/SUM($AZ107:$AZ109)) ) -> 1 | BW109: 3 | CF109: =IFERROR(astm(highwayfuf(CC109)-highwayfuf(CC108),3),"") ->  | CL109: =IFERROR(CJ109*10.3+CL108,"") ->  | CM109: =IFERROR(astm(mdiuf(CL109)-mdiuf(CL108),3),"") ->  | CP109: =IFERROR(astm(highwayfufalt(CL109)-highwayfufalt(CL108),3),"") ->  | CT109: =IF(CA109="",1, MIN(IFERROR((CA109/1000)/((BX109*$J$22)*$J$21/3600),1),IFERROR((SUMIFS(CA107:CA141,BW107:BW141,"<="&$BW109,BW107:BW141,">="&$BW109-1)/1000)/( $J$22*SUMIFS(BX107:BX141,BW107:BW141,"<="&$BW109,BW107:BW141,">="&$BW109-1)*$J$21/3600),1),IFERROR((SUMIFS(CA107:CA141,BW107:BW141,"<="&$BW109,BW107:BW141,">="&$BW109-2)/1000)/( $J$22*SUMIFS(BX107:BX141,BW107:BW141,"<="&$BW109,BW107:BW141,">="&$BW109-2)*$J$21/3600),1),IFERROR((SUMIFS(CA107:CA141,BW107:BW141,"<="&$BW109,BW107:BW141,">="&$BW109-3)/1000)/( $J$22*SUMIFS(BX107:BX141,BW107:BW141,"<="&$BW109,BW107:BW141,">="&$BW109-3)*$J$21/3600),1)) ) -> 1 | CV109: =IF(CA109="",1, MIN($CA109/SUM($CA107:$CA109),SUMIFS(CA107:CA141,BW107:BW141,">="&$BW109-1,BW107:BW141,"<="&$BW109)/SUM($CA107:$CA109),SUMIFS(CA107:CA141,BW107:BW141,">="&$BW109-2,BW107:BW141,"<="&$BW109)/SUM($CA107:$CA109),SUMIFS(CA107:CA141,BW107:BW141,">="&$BW109-3,BW107:BW141,"<="&$BW109)/SUM($CA107:$CA109)) ) -> 1
C110: Hwy PHEV Composite MPGe | F110: =astm(E32,0) -> 49 | M110: CO2, Unadjusted (g/mi): | Q110: 4 | Y110: 4 | AI110: Charge-Depleting | AL110: Combined | AO110: NEW | AP110: CD Rcda total fuel consumption (Rcda), unadjusted (gal equiv) [4] | AQ110: =IFERROR(astm(SUMIF(AV107:AV141,"<=" & (AQ130-1),BH107:BH141) + AQ129*SUMIF(AV107:AV141,"=" & (AQ130-1),BH107:BH141),4),0) -> 0 | AR110: =IFERROR(astm(SUMIF(BW107:BW141,"<=" & (AR130-1),CI107:CI141) + AR129*SUMIF(BW107:BW141,"=" & (AR130-1),CI107:CI141),4),0) -> 0 | AV110: 4 | BA110: =IFERROR(astm( astm($W$142,3)*1000*(AZ110/AQ109),1),"") ->  | BE110: =IFERROR(astm(cityfuf(BB110),3)-astm(cityfuf(BB109),3),"") ->  | BL110: =IFERROR(astm(mdiuf(BK110),3)-astm(mdiuf(BK109),3),"") ->  | BO110: =IFERROR(astm(cityfufalt(BK110),3)-astm(cityfufalt(BK109),3),"") ->  | BS110: =IF(AZ110="",1, MIN(IFERROR((AZ110/1000)/((AW110*$J$22)*$J$21/3600),1),IFERROR((SUMIFS(AZ107:AZ141,AV107:AV141,"<="&$AV110,AV107:AV141,">="&$AV110-1)/1000)/( $J$22*SUMIFS(AW107:AW141,AV107:AV141,"<="&$AV110,AV107:AV141,">="&$AV110-1)*$J$21/3600),1),IFERROR((SUMIFS(AZ107:AZ141,AV107:AV141,"<="&$AV110,AV107:AV141,">="&$AV110-2)/1000)/( $J$22*SUMIFS(AW107:AW141,AV107:AV141,"<="&$AV110,AV107:AV141,">="&$AV110-2)*$J$21/3600),1),IFERROR((SUMIFS(AZ107:AZ141,AV107:AV141,"<="&$AV110,AV107:AV141,">="&$AV110-3)/1000)/( $J$22*SUMIFS(AW107:AW141,AV107:AV141,"<="&$AV110,AV107:AV141,">="&$AV110-3)*$J$21/3600),1)) ) -> 1 | BU110: =IF(AZ110="",1, MIN($AZ110/SUM($AZ107:$AZ110),SUMIFS(AZ107:AZ141,AV107:AV141,">="&$AV110-1,AV107:AV141,"<="&$AV110)/SUM($AZ107:$AZ110),SUMIFS(AZ107:AZ141,AV107:AV141,">="&$AV110-2,AV107:AV141,"<="&$AV110)/SUM($AZ107:$AZ110),SUMIFS(AZ107:AZ141,AV107:AV141,">="&$AV110-3,AV107:AV141,"<="&$AV110)/SUM($AZ107:$AZ110)) ) -> 1 | BW110: 4 | CF110: =IFERROR(astm(highwayfuf(CC110)-highwayfuf(CC109),3),"") ->  | CM110: =IFERROR(astm(mdiuf(CL110)-mdiuf(CL109),3),"") ->  | CP110: =IFERROR(astm(highwayfufalt(CL110)-highwayfufalt(CL109),3),"") ->  | CT110: =IF(CA110="",1, MIN(IFERROR((CA110/1000)/((BX110*$J$22)*$J$21/3600),1),IFERROR((SUMIFS(CA107:CA141,BW107:BW141,"<="&$BW110,BW107:BW141,">="&$BW110-1)/1000)/( $J$22*SUMIFS(BX107:BX141,BW107:BW141,"<="&$BW110,BW107:BW141,">="&$BW110-1)*$J$21/3600),1),IFERROR((SUMIFS(CA107:CA141,BW107:BW141,"<="&$BW110,BW107:BW141,">="&$BW110-2)/1000)/( $J$22*SUMIFS(BX107:BX141,BW107:BW141,"<="&$BW110,BW107:BW141,">="&$BW110-2)*$J$21/3600),1),IFERROR((SUMIFS(CA107:CA141,BW107:BW141,"<="&$BW110,BW107:BW141,">="&$BW110-3)/1000)/( $J$22*SUMIFS(BX107:BX141,BW107:BW141,"<="&$BW110,BW107:BW141,">="&$BW110-3)*$J$21/3600),1)) ) -> 1 | CV110: =IF(CA110="",1, MIN($CA110/SUM($CA107:$CA110),SUMIFS(CA107:CA141,BW107:BW141,">="&$BW110-1,BW107:BW141,"<="&$BW110)/SUM($CA107:$CA110),SUMIFS(CA107:CA141,BW107:BW141,">="&$BW110-2,BW107:BW141,"<="&$BW110)/SUM($CA107:$CA110),SUMIFS(CA107:CA141,BW107:BW141,">="&$BW110-3,BW107:BW141,"<="&$BW110)/SUM($CA107:$CA110)) ) -> 1
C111: Comb PHEV Composite MPGe | F111: =F32 -> 45 | M111: CO2, Adjusted (g/mi): | Q111: 5 | Y111: 5 | AI111: CD range, adjusted (miles) [0] | AL111: =IFERROR(astm(0.55*AQ103+0.45*AR103,0),0) -> 0 | AP111: CD utilitized total fuel consumption rate (55/45 FUF, Rcdc), unadjusted (gal-equiv/mile) [6] | AQ111: =astm(SUMIF(AV107:AV141,"<=" & (AQ130),BG107:BG141)*1000000,0)/1000000 -> 0 | AR111: =astm(SUMIF(BW107:BW141,"<=" & (AR130),CH107:CH141)*1000000,0)/1000000 -> 0 | AV111: 5 | BA111: =IFERROR(astm( astm($W$142,3)*1000*(AZ111/AQ109),1),"") ->  | BE111: =IFERROR(astm(cityfuf(BB111),3)-astm(cityfuf(BB110),3),"") ->  | BL111: =IFERROR(astm(mdiuf(BK111),3)-astm(mdiuf(BK110),3),"") ->  | BO111: =IFERROR(astm(cityfufalt(BK111),3)-astm(cityfufalt(BK110),3),"") ->  | BS111: =IF(AZ111="",1, MIN(IFERROR((AZ111/1000)/((AW111*$J$22)*$J$21/3600),1),IFERROR((SUMIFS(AZ107:AZ141,AV107:AV141,"<="&$AV111,AV107:AV141,">="&$AV111-1)/1000)/( $J$22*SUMIFS(AW107:AW141,AV107:AV141,"<="&$AV111,AV107:AV141,">="&$AV111-1)*$J$21/3600),1),IFERROR((SUMIFS(AZ107:AZ141,AV107:AV141,"<="&$AV111,AV107:AV141,">="&$AV111-2)/1000)/( $J$22*SUMIFS(AW107:AW141,AV107:AV141,"<="&$AV111,AV107:AV141,">="&$AV111-2)*$J$21/3600),1),IFERROR((SUMIFS(AZ107:AZ141,AV107:AV141,"<="&$AV111,AV107:AV141,">="&$AV111-3)/1000)/( $J$22*SUMIFS(AW107:AW141,AV107:AV141,"<="&$AV111,AV107:AV141,">="&$AV111-3)*$J$21/3600),1)) ) -> 1 | BU111: =IF(AZ111="",1, MIN($AZ111/SUM($AZ107:$AZ111),SUMIFS(AZ107:AZ141,AV107:AV141,">="&$AV111-1,AV107:AV141,"<="&$AV111)/SUM($AZ107:$AZ111),SUMIFS(AZ107:AZ141,AV107:AV141,">="&$AV111-2,AV107:AV141,"<="&$AV111)/SUM($AZ107:$AZ111),SUMIFS(AZ107:AZ141,AV107:AV141,">="&$AV111-3,AV107:AV141,"<="&$AV111)/SUM($AZ107:$AZ111)) ) -> 1 | BW111: 5 | CF111: =IFERROR(astm(highwayfuf(CC111)-highwayfuf(CC110),3),"") ->  | CM111: =IFERROR(astm(mdiuf(CL111)-mdiuf(CL110),3),"") ->  | CP111: =IFERROR(astm(highwayfufalt(CL111)-highwayfufalt(CL110),3),"") ->  | CT111: =IF(CA111="",1, MIN(IFERROR((CA111/1000)/((BX111*$J$22)*$J$21/3600),1),IFERROR((SUMIFS(CA107:CA141,BW107:BW141,"<="&$BW111,BW107:BW141,">="&$BW111-1)/1000)/( $J$22*SUMIFS(BX107:BX141,BW107:BW141,"<="&$BW111,BW107:BW141,">="&$BW111-1)*$J$21/3600),1),IFERROR((SUMIFS(CA107:CA141,BW107:BW141,"<="&$BW111,BW107:BW141,">="&$BW111-2)/1000)/( $J$22*SUMIFS(BX107:BX141,BW107:BW141,"<="&$BW111,BW107:BW141,">="&$BW111-2)*$J$21/3600),1),IFERROR((SUMIFS(CA107:CA141,BW107:BW141,"<="&$BW111,BW107:BW141,">="&$BW111-3)/1000)/( $J$22*SUMIFS(BX107:BX141,BW107:BW141,"<="&$BW111,BW107:BW141,">="&$BW111-3)*$J$21/3600),1)) ) -> 1 | CV111: =IF(CA111="",1, MIN($CA111/SUM($CA107:$CA111),SUMIFS(CA107:CA141,BW107:BW141,">="&$BW111-1,BW107:BW141,"<="&$BW111)/SUM($CA107:$CA111),SUMIFS(CA107:CA141,BW107:BW141,">="&$BW111-2,BW107:BW141,"<="&$BW111)/SUM($CA107:$CA111),SUMIFS(CA107:CA141,BW107:BW141,">="&$BW111-3,BW107:BW141,"<="&$BW111)/SUM($CA107:$CA111)) ) -> 1
C112: Composite CO2 (Adjusted) | F112: g/mi | Q112: 6 | Y112: 6 | AI112: CD All-Electric Range, adjusted (mi) [0] | AL112: =IFERROR(astm(0.55*AQ105+0.45*AR105,0),0) -> 0 | AO112: NEW | AP112: CD utilitized total fuel consumption rate (43/57 FUF, Rcdc), adjusted (gal-equiv/mile) [6] | AQ112: =astm( 1000000*SUMIF(AV107:AV141,"<=" & (AQ130),BP107:BP141), 0) / 1000000 -> 0 | AR112: =astm( 1000000*SUMIF(BW107:BW141,"<=" & (AR130),CQ107:CQ141), 0) / 1000000 -> 0 | AV112: 6 | BA112: =IFERROR(astm( astm($W$142,3)*1000*(AZ112/AQ109),1),"") ->  | BE112: =IFERROR(astm(cityfuf(BB112),3)-astm(cityfuf(BB111),3),"") ->  | BL112: =IFERROR(astm(mdiuf(BK112),3)-astm(mdiuf(BK111),3),"") ->  | BO112: =IFERROR(astm(cityfufalt(BK112),3)-astm(cityfufalt(BK111),3),"") ->  | BS112: =IF(AZ112="",1, MIN(IFERROR((AZ112/1000)/((AW112*$J$22)*$J$21/3600),1),IFERROR((SUMIFS(AZ107:AZ141,AV107:AV141,"<="&$AV112,AV107:AV141,">="&$AV112-1)/1000)/( $J$22*SUMIFS(AW107:AW141,AV107:AV141,"<="&$AV112,AV107:AV141,">="&$AV112-1)*$J$21/3600),1),IFERROR((SUMIFS(AZ107:AZ141,AV107:AV141,"<="&$AV112,AV107:AV141,">="&$AV112-2)/1000)/( $J$22*SUMIFS(AW107:AW141,AV107:AV141,"<="&$AV112,AV107:AV141,">="&$AV112-2)*$J$21/3600),1),IFERROR((SUMIFS(AZ107:AZ141,AV107:AV141,"<="&$AV112,AV107:AV141,">="&$AV112-3)/1000)/( $J$22*SUMIFS(AW107:AW141,AV107:AV141,"<="&$AV112,AV107:AV141,">="&$AV112-3)*$J$21/3600),1)) ) -> 1 | BU112: =IF(AZ112="",1, MIN($AZ112/SUM($AZ107:$AZ112),SUMIFS(AZ107:AZ141,AV107:AV141,">="&$AV112-1,AV107:AV141,"<="&$AV112)/SUM($AZ107:$AZ112),SUMIFS(AZ107:AZ141,AV107:AV141,">="&$AV112-2,AV107:AV141,"<="&$AV112)/SUM($AZ107:$AZ112),SUMIFS(AZ107:AZ141,AV107:AV141,">="&$AV112-3,AV107:AV141,"<="&$AV112)/SUM($AZ107:$AZ112)) ) -> 1 | BW112: 6 | CF112: =IFERROR(astm(highwayfuf(CC112)-highwayfuf(CC111),3),"") ->  | CM112: =IFERROR(astm(mdiuf(CL112)-mdiuf(CL111),3),"") ->  | CP112: =IFERROR(astm(highwayfufalt(CL112)-highwayfufalt(CL111),3),"") ->  | CT112: =IF(CA112="",1, MIN(IFERROR((CA112/1000)/((BX112*$J$22)*$J$21/3600),1),IFERROR((SUMIFS(CA107:CA141,BW107:BW141,"<="&$BW112,BW107:BW141,">="&$BW112-1)/1000)/( $J$22*SUMIFS(BX107:BX141,BW107:BW141,"<="&$BW112,BW107:BW141,">="&$BW112-1)*$J$21/3600),1),IFERROR((SUMIFS(CA107:CA141,BW107:BW141,"<="&$BW112,BW107:BW141,">="&$BW112-2)/1000)/( $J$22*SUMIFS(BX107:BX141,BW107:BW141,"<="&$BW112,BW107:BW141,">="&$BW112-2)*$J$21/3600),1),IFERROR((SUMIFS(CA107:CA141,BW107:BW141,"<="&$BW112,BW107:BW141,">="&$BW112-3)/1000)/( $J$22*SUMIFS(BX107:BX141,BW107:BW141,"<="&$BW112,BW107:BW141,">="&$BW112-3)*$J$21/3600),1)) ) -> 1 | CV112: =IF(CA112="",1, MIN($CA112/SUM($CA107:$CA112),SUMIFS(CA107:CA141,BW107:BW141,">="&$BW112-1,BW107:BW141,"<="&$BW112)/SUM($CA107:$CA112),SUMIFS(CA107:CA141,BW107:BW141,">="&$BW112-2,BW107:BW141,"<="&$BW112)/SUM($CA107:$CA112),SUMIFS(CA107:CA141,BW107:BW141,">="&$BW112-3,BW107:BW141,"<="&$BW112)/SUM($CA107:$CA112)) ) -> 1
C113: City CO2-PHEV Composite Rounded Adjusted Combined CO2 | F113: =astm(D31,0) -> 155 | Q113: 7 | Y113: 7 | AI113: Total Driving Range (Miles) [0] | AL113: =IFERROR(astm( IFERROR((astm(0.55*AQ134+0.45*AR134,0)+AL111),0) / 10,0) *10,0) -> 0 | AO113: NEW | AP113: CD utilitized total fuel consumption rate (MDIUF, Rcdc), adjusted (gal-equiv/mile) [6] | AQ113: =astm(SUMIF(AV107:AV141,"<=" & (AQ130),BN107:BN141)*1000000,0) / 1000000 -> 0 | AR113: =astm(SUMIF(BW107:BW141,"<=" & (AR130),CO107:CO141)*1000000,0) / 1000000 -> 0 | AV113: 7 | BA113: =IFERROR(astm( astm($W$142,3)*1000*(AZ113/AQ109),1),"") ->  | BE113: =IFERROR(astm(cityfuf(BB113),3)-astm(cityfuf(BB112),3),"") ->  | BL113: =IFERROR(astm(mdiuf(BK113),3)-astm(mdiuf(BK112),3),"") ->  | BO113: =IFERROR(astm(cityfufalt(BK113),3)-astm(cityfufalt(BK112),3),"") ->  | BS113: =IF(AZ113="",1, MIN(IFERROR((AZ113/1000)/((AW113*$J$22)*$J$21/3600),1),IFERROR((SUMIFS(AZ107:AZ141,AV107:AV141,"<="&$AV113,AV107:AV141,">="&$AV113-1)/1000)/( $J$22*SUMIFS(AW107:AW141,AV107:AV141,"<="&$AV113,AV107:AV141,">="&$AV113-1)*$J$21/3600),1),IFERROR((SUMIFS(AZ107:AZ141,AV107:AV141,"<="&$AV113,AV107:AV141,">="&$AV113-2)/1000)/( $J$22*SUMIFS(AW107:AW141,AV107:AV141,"<="&$AV113,AV107:AV141,">="&$AV113-2)*$J$21/3600),1),IFERROR((SUMIFS(AZ107:AZ141,AV107:AV141,"<="&$AV113,AV107:AV141,">="&$AV113-3)/1000)/( $J$22*SUMIFS(AW107:AW141,AV107:AV141,"<="&$AV113,AV107:AV141,">="&$AV113-3)*$J$21/3600),1)) ) -> 1 | BU113: =IF(AZ113="",1, MIN($AZ113/SUM($AZ107:$AZ113),SUMIFS(AZ107:AZ141,AV107:AV141,">="&$AV113-1,AV107:AV141,"<="&$AV113)/SUM($AZ107:$AZ113),SUMIFS(AZ107:AZ141,AV107:AV141,">="&$AV113-2,AV107:AV141,"<="&$AV113)/SUM($AZ107:$AZ113),SUMIFS(AZ107:AZ141,AV107:AV141,">="&$AV113-3,AV107:AV141,"<="&$AV113)/SUM($AZ107:$AZ113)) ) -> 1 | BW113: 7 | CF113: =IFERROR(astm(highwayfuf(CC113)-highwayfuf(CC112),3),"") ->  | CM113: =IFERROR(astm(mdiuf(CL113)-mdiuf(CL112),3),"") ->  | CP113: =IFERROR(astm(highwayfufalt(CL113)-highwayfufalt(CL112),3),"") ->  | CT113: =IF(CA113="",1, MIN(IFERROR((CA113/1000)/((BX113*$J$22)*$J$21/3600),1),IFERROR((SUMIFS(CA107:CA141,BW107:BW141,"<="&$BW113,BW107:BW141,">="&$BW113-1)/1000)/( $J$22*SUMIFS(BX107:BX141,BW107:BW141,"<="&$BW113,BW107:BW141,">="&$BW113-1)*$J$21/3600),1),IFERROR((SUMIFS(CA107:CA141,BW107:BW141,"<="&$BW113,BW107:BW141,">="&$BW113-2)/1000)/( $J$22*SUMIFS(BX107:BX141,BW107:BW141,"<="&$BW113,BW107:BW141,">="&$BW113-2)*$J$21/3600),1),IFERROR((SUMIFS(CA107:CA141,BW107:BW141,"<="&$BW113,BW107:BW141,">="&$BW113-3)/1000)/( $J$22*SUMIFS(BX107:BX141,BW107:BW141,"<="&$BW113,BW107:BW141,">="&$BW113-3)*$J$21/3600),1)) ) -> 1 | CV113: =IF(CA113="",1, MIN($CA113/SUM($CA107:$CA113),SUMIFS(CA107:CA141,BW107:BW141,">="&$BW113-1,BW107:BW141,"<="&$BW113)/SUM($CA107:$CA113),SUMIFS(CA107:CA141,BW107:BW141,">="&$BW113-2,BW107:BW141,"<="&$BW113)/SUM($CA107:$CA113),SUMIFS(CA107:CA141,BW107:BW141,">="&$BW113-3,BW107:BW141,"<="&$BW113)/SUM($CA107:$CA113)) ) -> 1
C114: Hwy CO2-PHEV Composite Rounded Adjusted Combined CO2 | F114: =astm(E31,0) -> 132 | Q114: 8 | Y114: 8 | AI114: CD Fuel Economy (MPGe) [0] | AL114: =IFERROR(astm(1/(0.55/AQ115+0.45/AR115),0),0) -> 0 | AP114: CD gasoline consumption (Rcda), adjusted (gal) [1] | AQ114: =IFERROR(SUMIF(AV107:AV141,"<=" & AQ130-1,AW107:AW141)+AQ129*SUMIF(AV107:AV141,"=" & AQ130-1,AW107:AW141),0) -> 0 | AR114: =IFERROR(SUMIF(BW107:BW141,"<=" & AR130-1,BX107:BX141)+AR129*SUMIF(BW107:BW141,"=" & AR130-1,BX107:BX141),0) -> 0 | AV114: 8 | BA114: =IFERROR(astm( astm($W$142,3)*1000*(AZ114/AQ109),1),"") ->  | BE114: =IFERROR(astm(cityfuf(BB114),3)-astm(cityfuf(BB113),3),"") ->  | BL114: =IFERROR(astm(mdiuf(BK114),3)-astm(mdiuf(BK113),3),"") ->  | BO114: =IFERROR(astm(cityfufalt(BK114),3)-astm(cityfufalt(BK113),3),"") ->  | BS114: =IF(AZ114="",1, MIN(IFERROR((AZ114/1000)/((AW114*$J$22)*$J$21/3600),1),IFERROR((SUMIFS(AZ107:AZ141,AV107:AV141,"<="&$AV114,AV107:AV141,">="&$AV114-1)/1000)/( $J$22*SUMIFS(AW107:AW141,AV107:AV141,"<="&$AV114,AV107:AV141,">="&$AV114-1)*$J$21/3600),1),IFERROR((SUMIFS(AZ107:AZ141,AV107:AV141,"<="&$AV114,AV107:AV141,">="&$AV114-2)/1000)/( $J$22*SUMIFS(AW107:AW141,AV107:AV141,"<="&$AV114,AV107:AV141,">="&$AV114-2)*$J$21/3600),1),IFERROR((SUMIFS(AZ107:AZ141,AV107:AV141,"<="&$AV114,AV107:AV141,">="&$AV114-3)/1000)/( $J$22*SUMIFS(AW107:AW141,AV107:AV141,"<="&$AV114,AV107:AV141,">="&$AV114-3)*$J$21/3600),1)) ) -> 1 | BU114: =IF(AZ114="",1, MIN($AZ114/SUM($AZ107:$AZ114),SUMIFS(AZ107:AZ141,AV107:AV141,">="&$AV114-1,AV107:AV141,"<="&$AV114)/SUM($AZ107:$AZ114),SUMIFS(AZ107:AZ141,AV107:AV141,">="&$AV114-2,AV107:AV141,"<="&$AV114)/SUM($AZ107:$AZ114),SUMIFS(AZ107:AZ141,AV107:AV141,">="&$AV114-3,AV107:AV141,"<="&$AV114)/SUM($AZ107:$AZ114)) ) -> 1 | BW114: 8 | CF114: =IFERROR(astm(highwayfuf(CC114)-highwayfuf(CC113),3),"") ->  | CM114: =IFERROR(astm(mdiuf(CL114)-mdiuf(CL113),3),"") ->  | CP114: =IFERROR(astm(highwayfufalt(CL114)-highwayfufalt(CL113),3),"") ->  | CT114: =IF(CA114="",1, MIN(IFERROR((CA114/1000)/((BX114*$J$22)*$J$21/3600),1),IFERROR((SUMIFS(CA107:CA141,BW107:BW141,"<="&$BW114,BW107:BW141,">="&$BW114-1)/1000)/( $J$22*SUMIFS(BX107:BX141,BW107:BW141,"<="&$BW114,BW107:BW141,">="&$BW114-1)*$J$21/3600),1),IFERROR((SUMIFS(CA107:CA141,BW107:BW141,"<="&$BW114,BW107:BW141,">="&$BW114-2)/1000)/( $J$22*SUMIFS(BX107:BX141,BW107:BW141,"<="&$BW114,BW107:BW141,">="&$BW114-2)*$J$21/3600),1),IFERROR((SUMIFS(CA107:CA141,BW107:BW141,"<="&$BW114,BW107:BW141,">="&$BW114-3)/1000)/( $J$22*SUMIFS(BX107:BX141,BW107:BW141,"<="&$BW114,BW107:BW141,">="&$BW114-3)*$J$21/3600),1)) ) -> 1 | CV114: =IF(CA114="",1, MIN($CA114/SUM($CA107:$CA114),SUMIFS(CA107:CA141,BW107:BW141,">="&$BW114-1,BW107:BW141,"<="&$BW114)/SUM($CA107:$CA114),SUMIFS(CA107:CA141,BW107:BW141,">="&$BW114-2,BW107:BW141,"<="&$BW114)/SUM($CA107:$CA114),SUMIFS(CA107:CA141,BW107:BW141,">="&$BW114-3,BW107:BW141,"<="&$BW114)/SUM($CA107:$CA114)) ) -> 1
C115: CO2-PHEV Composite Rounded Adjusted Combined CO2 | F115: =F31 -> 145 | Q115: 9 | Y115: 9 | AI115: CD Electricity Consumption (kW-hr/100mi) [0] | AL115: =IFERROR(astm(0.55*AQ108+0.45*AR108,0),0) -> 0 | AP115: CD fuel economy (Rcda), adjusted (MPGe) [4] | AQ115: =IFERROR(astm( AQ103/ ( SUMIF(AV107:AV141,"<=" & (AQ130-1),BH107:BH141) + AQ129*SUMIF(AV107:AV141,"=" & (AQ130-1),BH107:BH141) ),4),0) -> 0 | AR115: =IFERROR(astm( AR103/ ( SUMIF(BW107:BW141,"<=" & (AR130-1),CI107:CI141) + AR129*SUMIF(BW107:BW141,"=" & (AR130-1),CI107:CI141) ),4),0) -> 0 | AV115: 9 | BA115: =IFERROR(astm( astm($W$142,3)*1000*(AZ115/AQ109),1),"") ->  | BE115: =IFERROR(astm(cityfuf(BB115),3)-astm(cityfuf(BB114),3),"") ->  | BL115: =IFERROR(astm(mdiuf(BK115),3)-astm(mdiuf(BK114),3),"") ->  | BO115: =IFERROR(astm(cityfufalt(BK115),3)-astm(cityfufalt(BK114),3),"") ->  | BS115: =IF(AZ115="",1, MIN(IFERROR((AZ115/1000)/((AW115*$J$22)*$J$21/3600),1),IFERROR((SUMIFS(AZ107:AZ141,AV107:AV141,"<="&$AV115,AV107:AV141,">="&$AV115-1)/1000)/( $J$22*SUMIFS(AW107:AW141,AV107:AV141,"<="&$AV115,AV107:AV141,">="&$AV115-1)*$J$21/3600),1),IFERROR((SUMIFS(AZ107:AZ141,AV107:AV141,"<="&$AV115,AV107:AV141,">="&$AV115-2)/1000)/( $J$22*SUMIFS(AW107:AW141,AV107:AV141,"<="&$AV115,AV107:AV141,">="&$AV115-2)*$J$21/3600),1),IFERROR((SUMIFS(AZ107:AZ141,AV107:AV141,"<="&$AV115,AV107:AV141,">="&$AV115-3)/1000)/( $J$22*SUMIFS(AW107:AW141,AV107:AV141,"<="&$AV115,AV107:AV141,">="&$AV115-3)*$J$21/3600),1)) ) -> 1 | BU115: =IF(AZ115="",1, MIN($AZ115/SUM($AZ107:$AZ115),SUMIFS(AZ107:AZ141,AV107:AV141,">="&$AV115-1,AV107:AV141,"<="&$AV115)/SUM($AZ107:$AZ115),SUMIFS(AZ107:AZ141,AV107:AV141,">="&$AV115-2,AV107:AV141,"<="&$AV115)/SUM($AZ107:$AZ115),SUMIFS(AZ107:AZ141,AV107:AV141,">="&$AV115-3,AV107:AV141,"<="&$AV115)/SUM($AZ107:$AZ115)) ) -> 1 | BW115: 9 | CF115: =IFERROR(astm(highwayfuf(CC115)-highwayfuf(CC114),3),"") ->  | CM115: =IFERROR(astm(mdiuf(CL115)-mdiuf(CL114),3),"") ->  | CP115: =IFERROR(astm(highwayfufalt(CL115)-highwayfufalt(CL114),3),"") ->  | CT115: =IF(CA115="",1, MIN(IFERROR((CA115/1000)/((BX115*$J$22)*$J$21/3600),1),IFERROR((SUMIFS(CA107:CA141,BW107:BW141,"<="&$BW115,BW107:BW141,">="&$BW115-1)/1000)/( $J$22*SUMIFS(BX107:BX141,BW107:BW141,"<="&$BW115,BW107:BW141,">="&$BW115-1)*$J$21/3600),1),IFERROR((SUMIFS(CA107:CA141,BW107:BW141,"<="&$BW115,BW107:BW141,">="&$BW115-2)/1000)/( $J$22*SUMIFS(BX107:BX141,BW107:BW141,"<="&$BW115,BW107:BW141,">="&$BW115-2)*$J$21/3600),1),IFERROR((SUMIFS(CA107:CA141,BW107:BW141,"<="&$BW115,BW107:BW141,">="&$BW115-3)/1000)/( $J$22*SUMIFS(BX107:BX141,BW107:BW141,"<="&$BW115,BW107:BW141,">="&$BW115-3)*$J$21/3600),1)) ) -> 1 | CV115: =IF(CA115="",1, MIN($CA115/SUM($CA107:$CA115),SUMIFS(CA107:CA141,BW107:BW141,">="&$BW115-1,BW107:BW141,"<="&$BW115)/SUM($CA107:$CA115),SUMIFS(CA107:CA141,BW107:BW141,">="&$BW115-2,BW107:BW141,"<="&$BW115)/SUM($CA107:$CA115),SUMIFS(CA107:CA141,BW107:BW141,">="&$BW115-3,BW107:BW141,"<="&$BW115)/SUM($CA107:$CA115)) ) -> 1
C116: PHEV Total Driving Range (Adjusted) | F116: miles | Q116: 10 | Y116: 10 | AI116: CD Gasoline Consumption (gal/100mi) [0] | AL116: =IFERROR(astm(0.55*AQ116+0.45*AR116,1),0) -> 0 | AP116: CD gasoline consumption rate (Rcda), adjusted (gal/100mi) [4] | AQ116: =IFERROR(astm(100*(SUMIF(AV107:AV141,"<=" & AQ130-1,AW107:AW141)+AQ129*SUMIF(AV107:AV141,"=" & AQ130-1,AW107:AW141))/AQ103,4),0) -> 0 | AR116: =IFERROR(astm(100*(SUMIF(BW107:BW141,"<=" & AR130-1,BX107:BX141)+AR129*SUMIF(BW107:BW141,"=" & AR130-1,BX107:BX141))/AR103,4),0) -> 0 | AV116: 10 | BA116: =IFERROR(astm( astm($W$142,3)*1000*(AZ116/AQ109),1),"") ->  | BE116: =IFERROR(astm(cityfuf(BB116),3)-astm(cityfuf(BB115),3),"") ->  | BL116: =IFERROR(astm(mdiuf(BK116),3)-astm(mdiuf(BK115),3),"") ->  | BO116: =IFERROR(astm(cityfufalt(BK116),3)-astm(cityfufalt(BK115),3),"") ->  | BS116: =IF(AZ116="",1, MIN(IFERROR((AZ116/1000)/((AW116*$J$22)*$J$21/3600),1),IFERROR((SUMIFS(AZ107:AZ141,AV107:AV141,"<="&$AV116,AV107:AV141,">="&$AV116-1)/1000)/( $J$22*SUMIFS(AW107:AW141,AV107:AV141,"<="&$AV116,AV107:AV141,">="&$AV116-1)*$J$21/3600),1),IFERROR((SUMIFS(AZ107:AZ141,AV107:AV141,"<="&$AV116,AV107:AV141,">="&$AV116-2)/1000)/( $J$22*SUMIFS(AW107:AW141,AV107:AV141,"<="&$AV116,AV107:AV141,">="&$AV116-2)*$J$21/3600),1),IFERROR((SUMIFS(AZ107:AZ141,AV107:AV141,"<="&$AV116,AV107:AV141,">="&$AV116-3)/1000)/( $J$22*SUMIFS(AW107:AW141,AV107:AV141,"<="&$AV116,AV107:AV141,">="&$AV116-3)*$J$21/3600),1)) ) -> 1 | BU116: =IF(AZ116="",1, MIN($AZ116/SUM($AZ107:$AZ116),SUMIFS(AZ107:AZ141,AV107:AV141,">="&$AV116-1,AV107:AV141,"<="&$AV116)/SUM($AZ107:$AZ116),SUMIFS(AZ107:AZ141,AV107:AV141,">="&$AV116-2,AV107:AV141,"<="&$AV116)/SUM($AZ107:$AZ116),SUMIFS(AZ107:AZ141,AV107:AV141,">="&$AV116-3,AV107:AV141,"<="&$AV116)/SUM($AZ107:$AZ116)) ) -> 1 | BW116: 10 | CF116: =IFERROR(astm(highwayfuf(CC116)-highwayfuf(CC115),3),"") ->  | CM116: =IFERROR(astm(mdiuf(CL116)-mdiuf(CL115),3),"") ->  | CP116: =IFERROR(astm(highwayfufalt(CL116)-highwayfufalt(CL115),3),"") ->  | CT116: =IF(CA116="",1, MIN(IFERROR((CA116/1000)/((BX116*$J$22)*$J$21/3600),1),IFERROR((SUMIFS(CA107:CA141,BW107:BW141,"<="&$BW116,BW107:BW141,">="&$BW116-1)/1000)/( $J$22*SUMIFS(BX107:BX141,BW107:BW141,"<="&$BW116,BW107:BW141,">="&$BW116-1)*$J$21/3600),1),IFERROR((SUMIFS(CA107:CA141,BW107:BW141,"<="&$BW116,BW107:BW141,">="&$BW116-2)/1000)/( $J$22*SUMIFS(BX107:BX141,BW107:BW141,"<="&$BW116,BW107:BW141,">="&$BW116-2)*$J$21/3600),1),IFERROR((SUMIFS(CA107:CA141,BW107:BW141,"<="&$BW116,BW107:BW141,">="&$BW116-3)/1000)/( $J$22*SUMIFS(BX107:BX141,BW107:BW141,"<="&$BW116,BW107:BW141,">="&$BW116-3)*$J$21/3600),1)) ) -> 1 | CV116: =IF(CA116="",1, MIN($CA116/SUM($CA107:$CA116),SUMIFS(CA107:CA141,BW107:BW141,">="&$BW116-1,BW107:BW141,"<="&$BW116)/SUM($CA107:$CA116),SUMIFS(CA107:CA141,BW107:BW141,">="&$BW116-2,BW107:BW141,"<="&$BW116)/SUM($CA107:$CA116),SUMIFS(CA107:CA141,BW107:BW141,">="&$BW116-3,BW107:BW141,"<="&$BW116)/SUM($CA107:$CA116)) ) -> 1
F117: =F21 -> 370 | Q117: 11 | Y117: 11 | AI117: Charge-Sustaining | AL117: Combined | AO117: NEW | AP117: CD fuel economy (Rcda), unadjusted (MPGe) [4] | AQ117: =astm(IFERROR(AQ102/ ( SUMIF(AV107:AV141,"<=" & (AQ130-1),BH107:BH141) + AQ129*SUMIF(AV107:AV141,"=" & (AQ130-1),BH107:BH141) ),0),4) -> 0 | AR117: =astm(IFERROR(AR102/ ( SUMIF(BW107:BW141,"<=" & (AR130-1),CI107:CI141) + AR129*SUMIF(BW107:BW141,"=" & (AR130-1),CI107:CI141) ),0),4) -> 0 | AV117: 11 | BA117: =IFERROR(astm( astm($W$142,3)*1000*(AZ117/AQ109),1),"") ->  | BE117: =IFERROR(astm(cityfuf(BB117),3)-astm(cityfuf(BB116),3),"") ->  | BL117: =IFERROR(astm(mdiuf(BK117),3)-astm(mdiuf(BK116),3),"") ->  | BO117: =IFERROR(astm(cityfufalt(BK117),3)-astm(cityfufalt(BK116),3),"") ->  | BS117: =IF(AZ117="",1, MIN(IFERROR((AZ117/1000)/((AW117*$J$22)*$J$21/3600),1),IFERROR((SUMIFS(AZ107:AZ141,AV107:AV141,"<="&$AV117,AV107:AV141,">="&$AV117-1)/1000)/( $J$22*SUMIFS(AW107:AW141,AV107:AV141,"<="&$AV117,AV107:AV141,">="&$AV117-1)*$J$21/3600),1),IFERROR((SUMIFS(AZ107:AZ141,AV107:AV141,"<="&$AV117,AV107:AV141,">="&$AV117-2)/1000)/( $J$22*SUMIFS(AW107:AW141,AV107:AV141,"<="&$AV117,AV107:AV141,">="&$AV117-2)*$J$21/3600),1),IFERROR((SUMIFS(AZ107:AZ141,AV107:AV141,"<="&$AV117,AV107:AV141,">="&$AV117-3)/1000)/( $J$22*SUMIFS(AW107:AW141,AV107:AV141,"<="&$AV117,AV107:AV141,">="&$AV117-3)*$J$21/3600),1)) ) -> 1 | BU117: =IF(AZ117="",1, MIN($AZ117/SUM($AZ107:$AZ117),SUMIFS(AZ107:AZ141,AV107:AV141,">="&$AV117-1,AV107:AV141,"<="&$AV117)/SUM($AZ107:$AZ117),SUMIFS(AZ107:AZ141,AV107:AV141,">="&$AV117-2,AV107:AV141,"<="&$AV117)/SUM($AZ107:$AZ117),SUMIFS(AZ107:AZ141,AV107:AV141,">="&$AV117-3,AV107:AV141,"<="&$AV117)/SUM($AZ107:$AZ117)) ) -> 1 | BW117: 11 | CF117: =IFERROR(astm(highwayfuf(CC117)-highwayfuf(CC116),3),"") ->  | CM117: =IFERROR(astm(mdiuf(CL117)-mdiuf(CL116),3),"") ->  | CP117: =IFERROR(astm(highwayfufalt(CL117)-highwayfufalt(CL116),3),"") ->  | CT117: =IF(CA117="",1, MIN(IFERROR((CA117/1000)/((BX117*$J$22)*$J$21/3600),1),IFERROR((SUMIFS(CA107:CA141,BW107:BW141,"<="&$BW117,BW107:BW141,">="&$BW117-1)/1000)/( $J$22*SUMIFS(BX107:BX141,BW107:BW141,"<="&$BW117,BW107:BW141,">="&$BW117-1)*$J$21/3600),1),IFERROR((SUMIFS(CA107:CA141,BW107:BW141,"<="&$BW117,BW107:BW141,">="&$BW117-2)/1000)/( $J$22*SUMIFS(BX107:BX141,BW107:BW141,"<="&$BW117,BW107:BW141,">="&$BW117-2)*$J$21/3600),1),IFERROR((SUMIFS(CA107:CA141,BW107:BW141,"<="&$BW117,BW107:BW141,">="&$BW117-3)/1000)/( $J$22*SUMIFS(BX107:BX141,BW107:BW141,"<="&$BW117,BW107:BW141,">="&$BW117-3)*$J$21/3600),1)) ) -> 1 | CV117: =IF(CA117="",1, MIN($CA117/SUM($CA107:$CA117),SUMIFS(CA107:CA141,BW107:BW141,">="&$BW117-1,BW107:BW141,"<="&$BW117)/SUM($CA107:$CA117),SUMIFS(CA107:CA141,BW107:BW141,">="&$BW117-2,BW107:BW141,"<="&$BW117)/SUM($CA107:$CA117),SUMIFS(CA107:CA141,BW107:BW141,">="&$BW117-3,BW107:BW141,"<="&$BW117)/SUM($CA107:$CA117)) ) -> 1
Q118: 12 | Y118: 12 | AI118: CS Fuel Economy (MPG) [0] | AJ118: =IFERROR(astm(N108,4),0) -> 0 | AK118: =IFERROR(astm(O108,4),0) -> 0 | AL118: =IFERROR(astm(1/(0.55/AJ118+0.45/AK118),0),0) -> 0 | AO118: NEW | AP118: CD AC electricity consumption rate (Rcda), unadjusted (kW-hr/100mi) [3] | AQ118: =astm(IFERROR((IFERROR( ( SUMIF(AV107:AV141,"<=" & (AQ130-1),BA107:BA141) + AQ129*SUMIF(AV107:AV141,"=" & (AQ130-1),BA107:BA141) ) / AQ102 *100 / 1000, 0)),0),3) -> 0 | AR118: =astm(IFERROR((IFERROR( ( SUMIF(BW107:BW141,"<=" & (AR130-1),CB107:CB141) + AR129*SUMIF(BW107:BW141,"=" & (AR130-1),CB107:CB141) ) / AR102 *100 / 1000, 0)),0),3) -> 0 | AV118: 12 | BA118: =IFERROR(astm( astm($W$142,3)*1000*(AZ118/AQ109),1),"") ->  | BE118: =IFERROR(astm(cityfuf(BB118),3)-astm(cityfuf(BB117),3),"") ->  | BL118: =IFERROR(astm(mdiuf(BK118),3)-astm(mdiuf(BK117),3),"") ->  | BO118: =IFERROR(astm(cityfufalt(BK118),3)-astm(cityfufalt(BK117),3),"") ->  | BS118: =IF(AZ118="",1, MIN(IFERROR((AZ118/1000)/((AW118*$J$22)*$J$21/3600),1),IFERROR((SUMIFS(AZ107:AZ141,AV107:AV141,"<="&$AV118,AV107:AV141,">="&$AV118-1)/1000)/( $J$22*SUMIFS(AW107:AW141,AV107:AV141,"<="&$AV118,AV107:AV141,">="&$AV118-1)*$J$21/3600),1),IFERROR((SUMIFS(AZ107:AZ141,AV107:AV141,"<="&$AV118,AV107:AV141,">="&$AV118-2)/1000)/( $J$22*SUMIFS(AW107:AW141,AV107:AV141,"<="&$AV118,AV107:AV141,">="&$AV118-2)*$J$21/3600),1),IFERROR((SUMIFS(AZ107:AZ141,AV107:AV141,"<="&$AV118,AV107:AV141,">="&$AV118-3)/1000)/( $J$22*SUMIFS(AW107:AW141,AV107:AV141,"<="&$AV118,AV107:AV141,">="&$AV118-3)*$J$21/3600),1)) ) -> 1 | BU118: =IF(AZ118="",1, MIN($AZ118/SUM($AZ107:$AZ118),SUMIFS(AZ107:AZ141,AV107:AV141,">="&$AV118-1,AV107:AV141,"<="&$AV118)/SUM($AZ107:$AZ118),SUMIFS(AZ107:AZ141,AV107:AV141,">="&$AV118-2,AV107:AV141,"<="&$AV118)/SUM($AZ107:$AZ118),SUMIFS(AZ107:AZ141,AV107:AV141,">="&$AV118-3,AV107:AV141,"<="&$AV118)/SUM($AZ107:$AZ118)) ) -> 1 | BW118: 12 | CF118: =IFERROR(astm(highwayfuf(CC118)-highwayfuf(CC117),3),"") ->  | CM118: =IFERROR(astm(mdiuf(CL118)-mdiuf(CL117),3),"") ->  | CP118: =IFERROR(astm(highwayfufalt(CL118)-highwayfufalt(CL117),3),"") ->  | CT118: =IF(CA118="",1, MIN(IFERROR((CA118/1000)/((BX118*$J$22)*$J$21/3600),1),IFERROR((SUMIFS(CA107:CA141,BW107:BW141,"<="&$BW118,BW107:BW141,">="&$BW118-1)/1000)/( $J$22*SUMIFS(BX107:BX141,BW107:BW141,"<="&$BW118,BW107:BW141,">="&$BW118-1)*$J$21/3600),1),IFERROR((SUMIFS(CA107:CA141,BW107:BW141,"<="&$BW118,BW107:BW141,">="&$BW118-2)/1000)/( $J$22*SUMIFS(BX107:BX141,BW107:BW141,"<="&$BW118,BW107:BW141,">="&$BW118-2)*$J$21/3600),1),IFERROR((SUMIFS(CA107:CA141,BW107:BW141,"<="&$BW118,BW107:BW141,">="&$BW118-3)/1000)/( $J$22*SUMIFS(BX107:BX141,BW107:BW141,"<="&$BW118,BW107:BW141,">="&$BW118-3)*$J$21/3600),1)) ) -> 1 | CV118: =IF(CA118="",1, MIN($CA118/SUM($CA107:$CA118),SUMIFS(CA107:CA141,BW107:BW141,">="&$BW118-1,BW107:BW141,"<="&$BW118)/SUM($CA107:$CA118),SUMIFS(CA107:CA141,BW107:BW141,">="&$BW118-2,BW107:BW141,"<="&$BW118)/SUM($CA107:$CA118),SUMIFS(CA107:CA141,BW107:BW141,">="&$BW118-3,BW107:BW141,"<="&$BW118)/SUM($CA107:$CA118)) ) -> 1
Q119: 13 | Y119: 13 | AI119: CS Fuel Consumption (gal/100mi) [1] | AJ119: =IFERROR(astm(100/AJ118,1),0) -> 0 | AK119: =IFERROR(astm(100/AK118,1),0) -> 0 | AL119: =IFERROR(astm(100/AL118,1),0) -> 0 | AP119: GHG EMISSIONS VALUES | AQ119: CITY | AR119: HIGHWAY | AV119: 13 | BA119: =IFERROR(astm( astm($W$142,3)*1000*(AZ119/AQ109),1),"") ->  | BE119: =IFERROR(astm(cityfuf(BB119),3)-astm(cityfuf(BB118),3),"") ->  | BL119: =IFERROR(astm(mdiuf(BK119),3)-astm(mdiuf(BK118),3),"") ->  | BO119: =IFERROR(astm(cityfufalt(BK119),3)-astm(cityfufalt(BK118),3),"") ->  | BS119: =IF(AZ119="",1, MIN(IFERROR((AZ119/1000)/((AW119*$J$22)*$J$21/3600),1),IFERROR((SUMIFS(AZ107:AZ141,AV107:AV141,"<="&$AV119,AV107:AV141,">="&$AV119-1)/1000)/( $J$22*SUMIFS(AW107:AW141,AV107:AV141,"<="&$AV119,AV107:AV141,">="&$AV119-1)*$J$21/3600),1),IFERROR((SUMIFS(AZ107:AZ141,AV107:AV141,"<="&$AV119,AV107:AV141,">="&$AV119-2)/1000)/( $J$22*SUMIFS(AW107:AW141,AV107:AV141,"<="&$AV119,AV107:AV141,">="&$AV119-2)*$J$21/3600),1),IFERROR((SUMIFS(AZ107:AZ141,AV107:AV141,"<="&$AV119,AV107:AV141,">="&$AV119-3)/1000)/( $J$22*SUMIFS(AW107:AW141,AV107:AV141,"<="&$AV119,AV107:AV141,">="&$AV119-3)*$J$21/3600),1)) ) -> 1 | BU119: =IF(AZ119="",1, MIN($AZ119/SUM($AZ107:$AZ119),SUMIFS(AZ107:AZ141,AV107:AV141,">="&$AV119-1,AV107:AV141,"<="&$AV119)/SUM($AZ107:$AZ119),SUMIFS(AZ107:AZ141,AV107:AV141,">="&$AV119-2,AV107:AV141,"<="&$AV119)/SUM($AZ107:$AZ119),SUMIFS(AZ107:AZ141,AV107:AV141,">="&$AV119-3,AV107:AV141,"<="&$AV119)/SUM($AZ107:$AZ119)) ) -> 1 | BW119: 13 | CF119: =IFERROR(astm(highwayfuf(CC119)-highwayfuf(CC118),3),"") ->  | CM119: =IFERROR(astm(mdiuf(CL119)-mdiuf(CL118),3),"") ->  | CP119: =IFERROR(astm(highwayfufalt(CL119)-highwayfufalt(CL118),3),"") ->  | CT119: =IF(CA119="",1, MIN(IFERROR((CA119/1000)/((BX119*$J$22)*$J$21/3600),1),IFERROR((SUMIFS(CA107:CA141,BW107:BW141,"<="&$BW119,BW107:BW141,">="&$BW119-1)/1000)/( $J$22*SUMIFS(BX107:BX141,BW107:BW141,"<="&$BW119,BW107:BW141,">="&$BW119-1)*$J$21/3600),1),IFERROR((SUMIFS(CA107:CA141,BW107:BW141,"<="&$BW119,BW107:BW141,">="&$BW119-2)/1000)/( $J$22*SUMIFS(BX107:BX141,BW107:BW141,"<="&$BW119,BW107:BW141,">="&$BW119-2)*$J$21/3600),1),IFERROR((SUMIFS(CA107:CA141,BW107:BW141,"<="&$BW119,BW107:BW141,">="&$BW119-3)/1000)/( $J$22*SUMIFS(BX107:BX141,BW107:BW141,"<="&$BW119,BW107:BW141,">="&$BW119-3)*$J$21/3600),1)) ) -> 1 | CV119: =IF(CA119="",1, MIN($CA119/SUM($CA107:$CA119),SUMIFS(CA107:CA141,BW107:BW141,">="&$BW119-1,BW107:BW141,"<="&$BW119)/SUM($CA107:$CA119),SUMIFS(CA107:CA141,BW107:BW141,">="&$BW119-2,BW107:BW141,"<="&$BW119)/SUM($CA107:$CA119),SUMIFS(CA107:CA141,BW107:BW141,">="&$BW119-3,BW107:BW141,"<="&$BW119)/SUM($CA107:$CA119)) ) -> 1
